Workbook

Sheet Chart Index (hidden)
A7: Preview | B7: Sheet (and graph link) | C7: Chart Title | D7: Chart Series
B8: طراحی همه الگوها | C8: رسم دستی چادر2 | D8: انحنا, صاف
B9: طراحی همه الگوها | C9: رسم دستی چادر 3 | D9: انحنا, صاف
B10: طراحی همه الگوها | C10: رسم دستی چادر 5 | D10: انحنا, صاف
B11: طراحی همه الگوها | C11: طراحی چادرها و رسم چادر 4 | D11: شبیه ساز دست خمیده و سر, شبیه ساز دامن, رسم یا طراحی چادر4
B12: طراحی همه الگوها | C12: چادر1 و مقنعه برای پرینت | D12: شبیه ساز دست خمیده و سر, شبیه ساز دامن, چادر 1 با نقطه گذاری
B13: طراحی همه الگوها | C13: شلوار پشت | D13: 1شبیه ساز, 2کمر شلوار, 3وسط شلوار و خط اتو, 4پهلو, 6فاق, 7لبه پایین, 9کمر جدا, اطلاعات اندام در شلوار
B14: طراحی همه الگوها | C14: طراحی پشت یقه | D14: شبیه ساز برش, شبیه ساز انحنا, طراحی یقه گرد
B15: طراحی همه الگوها | C15: طراحی جلو یقه | D15: شبیه ساز اندام, طراحی یقه شکاری
B16: طراحی همه الگوها | C16: شلوار جلو | D16: 1شبیه ساز جلو, 2کمر شلوار, 3وسط شلوار, 4پهلو, 6فاق, 7لبه پایین شلوار, 8زیپ, 9کمر جدا, 10جیب مردانه, 11جیب جین, اطلاعات اندام در شلوار
B17: طراحی همه الگوها | C17: طراحی جلو دامن ترک با کمر پهن | D17: شبیه ساز دامن تنگ, کمر پهن, خط مرکزی جلو کمر, خطوط اصلی دامن ترک, خطوط فرعی دامن ترک, خط اوزمان, پیلی
B18: طراحی همه الگوها | C18: طراحی پشت دامن ترک با کمر پهن | D18: شبیه ساز دامن تنگ, کمر یکسره, خطوط اصلی دامن ترک, خطوط فرعی دامن ترک, پیلی
B19: طراحی همه الگوها | C19: آستین | D19: شبیه ساز آستین, آستین بلند یا کوتاه, مچ آستین بلند یا کوتاه
B20: طراحی همه الگوها | C20: الگو پشت | D20: 0 اطلاعات اندام, 72شبیه ساز بالاتنه بدون ساسون, 2شبیه ساز دامن, 5حلقه آستین بدون ساسون, 6سرشانه بدون ساسون, 10پهلو صاف وپایین لباس, 17یقه گرد , 18خط پشت در پیراهن, 24بدون شیفت ساسون کمر
B21: طراحی همه الگوها | C21: یقه و کلاه | D21: شومیزیه
B22: طراحی همه الگوها | C22: الگو جلو | D22: 0اطلاعات اندام, 1شبیه ساز بالاتنه, 2شبیه ساز دامن, 6حلقه آستین بدون ساسون , 7سرشانه بدون ساسون, 11پهلو صاف , 22یقه گرد چرخیده, 23جادکمه یقه گرد در پیراهن, 29پایین پیراهن بدون ترک, 70ساسون کمر, 76جادکمه متصل به یقه

Sheet محاسبات (hidden)
A1: height_print | B1: 29.40101385
A2: width_print | B2: 28.46773059
A3: charts_resized | B3: 1
A4: print_body_chartS
A5: ActiveWindow.Zoom | B5: 15
A6: per_font_size_chart | B6: 0.8
A7: ChartFieldRange( باید خالی باشد )
A8: show_temp_print_sheet | B8: 0
A9: per_line_size_chart | F9: نقاط ورودی | J9: رسم چادر شماره 1 و مقنعه چانه دار | N9: نقاط ورودی | R9: رسم مقنعه دراپه | V9: رسم دستی چادر 2 (بر حسب سانتیمتر) | Y9: رسم چادر شماره 2 | AG9: نقاط ورودی | AK9: طراحی چادر شماره 2 | AS9: طراحی چادر شماره 3 | AW9: رسم دستی چادر 3 (بر حسب سانتیمتر) | AZ9: رسم چادر شماره 3 | BH9: رسم دستی چادر 4 | BN9: رسم و طراحی چادر شماره 4 | BZ9: رسم چادر شماره 5 | CH9: طراحی چادر شماره 5 | CL9: طراحی چادر شماره 5 | CU9: پروسیجر یافتن راس سوم مثلث با داشتن دو راس و دو ضلع | DA9: پروسیجر چرخش یک نقطه حول نقطه دیگر | DG9: کامل شده
F10: مولفه افقی | G10: مولفه عمودی | H10: اسم نقطه | J10: مولفه افقی | K10: مولفه عمودی | L10: اسم نقطه | N10: مولفه افقی | O10: مولفه عمودی | P10: اسم نقطه | R10: مولفه افقی | S10: مولفه عمودی | T10: اسم نقطه | Z10: صاف | AD10: انحنا | AG10: اسم نقطه | AH10: مولفه افقی | AI10: مولفه عمودی | AK10: =AH21 -> 3 | AL10: 166.468913 | AM10: s6 | AO10: طراحی چادر شماره 3 | AS10: =AP12 -> 3 | AT10: 166.468913 | AU10: s'6 | BA10: صاف | BE10: انحنا | BN10: رسم دستی چادر4 با نقطه گذاری | BS10: خطوط پرینت الگو یا طراحی چادر4 | BV10: رسم دستی چادر 5 (بر حسب سانتیمتر) | CA10: صاف | CE10: انحنا | CH10: اسم نقطه | CI10: مولفه افقی | CJ10: مولفه عمودی | CL10: =CI14 -> 3 | CM10: =CJ14 -> 166.468913 | CN10: s'6 | CW10: اطلاعات ورودی | DA10: رادیان | DB10: =-#REF! ->  | DC10: زاویه چرخش | DD10: چرخش مخالف عقربه های ساعت
F11: =AC406 -> 3 | G11: =AD406 -> 165.971 | H11: شبیه ساز s15 | J11: =F36 -> 80.4 | K11: =G36 -> 170.3 | L11: j5 | N11: =AC404 -> 3 | O11: =AD404 -> 148.44 | P11: شبیه ساز s5 | R11: =N24 -> 3 | S11: =O24 -> 96.4635 | T11: d6 | Y11: =W35+'طراحی همه الگوها'!U190 -> 13.8 | Z11: =Z12 -> 0 | AA11: 5 | AC11: =Y15 -> 13.8 | AD11: =Z15 -> 24.9 | AE11: 11 | AG11: s2 | AH11: =AC401 -> 7.40496 | AI11: =AD401 -> 162.33825 | AK11: 9.902466639 | AL11: 164.2945786 | AM11: s7 | AO11: اسم نقطه | AP11: مولفه افقی | AQ11: مولفه عمودی | AS11: 9.203588054 | AT11: 163.6292449 | AU11: s'7 | AZ11: =W35 -> 0 | BA11: ='طراحی همه الگوها'!U210+AX33 -> 162.3 | BB11: 1 | BD11: =AZ30 -> 173.4 | BE11: =BA30 -> 162.3 | BF11: 11 | BN11: =BJ29 -> 3 | BO11: =BK30 -> -3.1 | BP11: 2 | BR11: =BJ30 -> -6.1 | BS11: =BK30 -> -3.1 | BT11: 3 | BZ11: =BZ15-'طراحی همه الگوها'!U274 -> 66.1 | CA11: =CA15 -> 95.5 | CB11: خط پهلو | CD11: =BZ30 -> 98.1 | CE11: =CA30 -> 106.4 | CF11: 13 | CH11: s1 | CI11: =AC400 -> 3 | CJ11: =AD400 -> 164.1 | CL11: 10.45750022 | CM11: 163.7282398 | CN11: s''7 | CU11: اسم نقطه | CV11: مولفه افقی | CW11: مولفه عمودی | DA11: مولفه افقی | DB11: مولفه عمودی | DC11: اسم نقطه | DE11: نقطه خروجی چرخیده
G12: ='متغیرها '!C52 -> 8 | H12: شیفت عمودی | J12: =F33 -> 3 | K12: =G33 -> 170.3 | L12: j1 | N12: =F34 -> 3 | O12: =G34 -> 104 | P12: j2 | R12: =N22 -> 3 | S12: =O22 -> 180.0785 | T12: d3 | Y12: =W35 -> 0 | Z12: =O33 -> 0 | AA12: 2 | AC12: ='طراحی همه الگوها'!U190+'طراحی همه الگوها'!U199 -> 34.8 | AD12: =Z12+'طراحی همه الگوها'!U201 -> 27.8 | AE12: 17 | AG12: s3 | AH12: =AC402 -> 9.2928 | AI12: =AD402 -> 157.053 | AK12: 26.00822213 | AL12: 148.3494596 | AM12: s8 | AO12: s'6 | AP12: =AH14 -> 3 | AQ12: =1.003*AI14 -> 166.468913 | AS12: 23.67862685 | AT12: 143.7515679 | AU12: s'8 | AZ12: =W35 -> 0 | BA12: =BA11-'طراحی همه الگوها'!U212 -> 93.2 | BB12: 4 | BD12: =BD13+0.7*(BD11-BD13) -> 172.23 | BE12: =BE13+0.4*(BE11-BE13) -> 143.88 | BF12: 13' | BN12: =BJ29 -> 3 | BO12: =BK29 -> 170.3 | BP12: 1 | BR12: =BJ32 -> 8.879443021 | BS12: =BK32 -> -3.885039344 | BT12: 6 | CD12: =CD11+0.45*(CD15-CD11) -> 108.855 | CE12: =CE11+0.25*(CE15-CE11) -> 132.575 | CF12: 13' | CH12: s3 | CI12: =AC402 -> 9.2928 | CJ12: =AD402 -> 157.053 | CL12: 22.88666725 | CM12: 144.5435275 | CN12: s''8 | CT12: راس پایین | CU12: منهای شیفتa50 | CV12: =BL37 -> 93.34719782 | CW12: =BM37 -> 0 | CX12: ضلع پایین | CY12: =BT25 -> 8 | DA12: =#REF! ->  | DB12: =#REF! ->  | DC12: a40 | DD12: نقطه مرکزی چرخش | DE12: مولفه افقی | DF12: مولفه عمودی | DG12: اسم نقطه
F13: دور سر | G13: ='متغیرها '!U85 -> 53 | H13: w12 | O13: =G19 -> 157 | P13: تمام قد | Y13: =W35 -> 0 | Z13: ='طراحی همه الگوها'!U188+O33 -> 169.7 | AA13: 1 | AC13: =Y19 -> 55.8 | AD13: =Z19 -> 33.2 | AE13: 10 | AG13: خط سینه | AH13: =BC400 -> 3 | AI13: =BD400 -> 119 | AK13: 43.26438873 | AL13: 137.4777876 | AM13: s9 | AO13: s'7 | AP13: =AP12+0.12*(AP16-AP12) -> 9.203588054 | AQ13: =AQ16+0.95*(AQ12-AQ16) -> 163.6292449 | AS13: 39.18759698 | AT13: 126.7135591 | AU13: s'9 | AZ13: =W35 -> 0 | BA13: =AX33 -> 0 | BB13: 2 | BD13: =AZ29-'طراحی همه الگوها'!U220 -> 169.5 | BE13: =BA29 -> 131.6 | BF13: 13 | BZ13: 0 | CA13: =BW42 -> 0 | CB13: 1 | CD13: =CD11+0.75*(CD15-CD11) -> 116.025 | CE13: =CE11+0.5*(CE15-CE11) -> 158.75 | CF13: 28 | CH13: s5 | CI13: =AC404 -> 3 | CJ13: =AD404 -> 148.44 | CL13: 37.80166769 | CM13: 127.0032191 | CN13: s''9 | CT13: راس بالا | CU13: منهای شیفتe18 | CV13: =BV27-BQ21 -> 0 | CW13: =BW27 -> 0 | CX13: ضلع بالا | CY13: =BT26 -> 0 | DA13: =#REF!-#REF!+#REF! ->  | DB13: =#REF! ->  | DC13: a48-b16+f22 | DD13: نقطه قبل از چرخش | DE13: =IF(DB13>DB12,IF(DA13>DA12,DA12+SQRT(POWER(DA13-DA12,2)+POWER(DB13-DB12,2))*COS(ATAN((DB13-DB12)/(DA13-DA12+0.000123))+DB10),DA12-SQRT(POWER(DA13-DA12,2)+POWER(DB13-DB12,2))*COS(ATAN((DB13-DB12)/(DA12-DA13+0.000123))-DB10)),IF(DA13>DA12,DA12+SQRT(POWER(DA13-DA12,2)+POWER(DB13-DB12,2))*COS(ATAN((DB12-DB13)/(DA13-DA12+0.000123))-DB10),DA12-SQRT(POWER(DA13-DA12,2)+POWER(DB13-DB12,2))*COS(ATAN((DB12-DB13)/(DA12-DA13+0.000123))+DB10))) ->  | DF13: =IF(DB13>DB12,IF(DA13>DA12,DB12+SQRT(POWER(DA13-DA12,2)+POWER(DB13-DB12,2))*SIN(ATAN((DB13-DB12)/(DA13-DA12+0.000123))+DB10),DB12+SQRT(POWER(DA13-DA12,2)+POWER(DB13-DB12,2))*SIN(ATAN((DB13-DB12)/(DA12-DA13+0.000123))-DB10)),IF(DA13>DA12,DB12-SQRT(POWER(DA13-DA12,2)+POWER(DB13-DB12,2))*SIN(ATAN((DB12-DB13)/(DA13-DA12+0.000123))-DB10),DB12-SQRT(POWER(DA13-DA12,2)+POWER(DB13-DB12,2))*SIN(ATAN((DB12-DB13)/(DA12-DA13+0.000123))+DB10))) ->  | DG13: e52
G14: ='متغیرها '!U76 -> 84 | H14: t3 | J14: =F33 -> 3 | K14: =G33 -> 170.3 | L14: j1 | O14: ='متغیرها '!C52 -> 8 | P14: شیفت عمودی | R14: =N22 -> 3 | S14: =O22 -> 180.0785 | T14: d3 | Y14: =W35+'طراحی همه الگوها'!U190 -> 13.8 | Z14: =Z13 -> 169.7 | AA14: 4 | AC14: ='طراحی همه الگوها'!U190+'طراحی همه الگوها'!U192+'طراحی همه الگوها'!U202 -> 66.1 | AD14: =Z12+'طراحی همه الگوها'!U204 -> 31.7 | AE14: 20 | AG14: s15 | AH14: =AC406 -> 3 | AI14: =AD406 -> 165.971 | AK14: 60.52055533 | AL14: 130.2300062 | AM14: s10 | AO14: s'8 | AP14: =AP12+0.4*(AP16-AP12) -> 23.67862685 | AQ14: =AQ16+0.6*(AQ12-AQ16) -> 143.7515679 | AS14: 54.69656712 | AT14: 109.6755503 | AU14: s'10 | AZ14: =W35+'طراحی همه الگوها'!U216 -> 110 | BA14: =BA13 -> 0 | BB14: 8 | BN14: =BJ31 -> 11.5 | BO14: =BK31 -> 8 | BP14: 5 | BR14: =BJ32 -> 8.879443021 | BS14: =BK32 -> -3.885039344 | BT14: 6 | BZ14: =BZ13+'طراحی همه الگوها'!U249 -> 89.1 | CA14: =CA13 -> 0 | CB14: 2 | CD14: =CD11+0.95*(CD15-CD11) -> 120.805 | CE14: =CE11+0.8*(CE15-CE11) -> 190.16 | CF14: 13''' | CH14: s'6 | CI14: =AP12 -> 3 | CJ14: =AQ12 -> 166.468913 | CL14: 52.71666813 | CM14: 111.6554493 | CN14: s''10 | CT14: c19 | CU14: =ATAN((CV13-CV12)/(CW13-CW12)) ->  | CW14: محاسبات
G15: ='متغیرها '!U56 -> 95.5 | H15: e | J15: =F34 -> 3 | K15: =G34 -> 104 | L15: j2 | N15: محاسبات | R15: =N23 -> 73.875 | S15: =O23 -> 109.2035 | T15: d4 | Y15: =W35+'طراحی همه الگوها'!U190 -> 13.8 | Z15: =Z12+'طراحی همه الگوها'!U195 -> 24.9 | AA15: 11 | AC15: =Y23 -> 76.4 | AD15: =Z23 -> 25.854 | AE15: 7 | AG15: زاویه متوسط سرشانه | AH15: ='متغیرها '!B245 -> 0.3204522679 | AI15: α2 | AO15: s'9 | AP15: =AP12+0.7*(AP16-AP12) -> 39.18759698 | AQ15: =AQ16+0.3*(AQ12-AQ16) -> 126.7135591 | AZ15: =AZ14 -> 110 | BA15: =BA14+'طراحی همه الگوها'!U221 -> 3.9 | BB15: 14 | BD15: =AZ13 -> 0 | BE15: =BA13 -> 0 | BF15: 2 | BN15: =BJ29 -> 3 | BO15: =BK31 -> 8 | BP15: 4 | BR15: =BR14+0.3*(BR17-BR14) -> 26.81205381 | BS15: =BS14+0.05*(BS17-BS14) -> -2.885173257 | BT15: 6'' | BZ15: =BZ13+'طراحی همه الگوها'!U249 -> 89.1 | CA15: =CA13+'طراحی همه الگوها'!U251 -> 95.5 | CB15: 4 | CD15: =BZ34 -> 122 | CE15: =CA34 -> 211.1 | CF15: 15 | CH15: s''7 | CI15: =CI14+0.15*(CI18-CI14) -> 10.45750022 | CJ15: =CJ18+0.95*(CJ14-CJ18) -> 163.7282398 | CL15: 60.63626408 | CM15: 103.7358533 | CN15: k4 شبیه ساز | CU15: درجه α | CV15: x | CW15: y | CX15: c21 | CY15: c'17 | DB15: به دست آوردن نقطه تقاطع دو خط | DC15: مولفه افقی | DD15: مولفه عمودی
G16: ='متغیرها '!U58 -> 96.5 | H16: g | N16: (d1 → d2) | O16: =0.45*'متغیرها '!U85 -> 23.85 | Y16: =W35+'طراحی همه الگوها'!U190 -> 13.8 | Z16: =Z12 -> 0 | AA16: 5 | AG16: دست صاف شبیه ساز k4 | AH16: =F406 -> 74.18749528 | AI16: =J406 -> 125.6940662 | AK16: =AH26 -> 54.3781365 | AL16: =AI26 -> 111.7226917 | AM16: s12 | AO16: s'10 | AP16: =AX39-('متغیرها '!C19*'متغیرها '!U83)*COS(AH15+RADIANS(AX38)) -> 54.69656712 | AQ16: =AY39+('متغیرها '!C19*'متغیرها '!U83)*SIN(AH15+RADIANS(AX38)) -> 109.6755503 | AS16: =AP18 -> 42.95859455 | AT16: 97.9375777 | AU16: s'12 | AZ16: =W35+'طراحی همه الگوها'!U216 -> 110 | BA16: =BA13+'طراحی همه الگوها'!U217 -> 63.4 | BB16: 9 | BD16: =BD15+0.3*(BD18-BD15) -> 16.884 | BE16: =BE15+0.15*(BE18-BE15) -> 1.965 | BF16: 16' | BN16: =BJ29 -> 3 | BO16: =BK30 -> -3.1 | BP16: 2 | BR16: =BR14+0.7*(BR17-BR14) -> 50.72220154 | BS16: =BS14+0.4*(BS17-BS14) -> 4.11388935 | BT16: 6''' | BZ16: =BZ13+'طراحی همه الگوها'!U249-'طراحی همه الگوها'!U255 -> 79.9 | CA16: =CA15 -> 95.5 | CB16: 8 | CH16: s''8 | CI16: =CI14+0.4*(CI18-CI14) -> 22.88666725 | CJ16: =CJ18+0.6*(CJ14-CJ18) -> 144.5435275 | CU16: 2 | CV16: =CV12+CY12*SIN(RADIANS(CU16)+CU14) ->  | CW16: =CW12+CY12*COS(RADIANS(CU16)+CU14) ->  | CX16: =IF(CV13>CV16,ATAN((CW13-CW16)/(CV13-CV16)),ATAN((CW13-CW16)/(CV16-CV13))) ->  | CY16: =IF(CV13>CV16,(CV13-CV16)/COS(CX16),(CV16-CV13)/COS(CX16)) ->  | DA16: نقطه اول از خط اول | DB16: f5 | DC16: =#REF! ->  | DD16: =#REF! -> 
F17: محاسبات | J17: =F34 -> 3 | K17: =G34 -> 104 | L17: j2 | N17: (d1 →d4) | O17: ='طراحی همه الگوها'!U178+'طراحی همه الگوها'!U177 -> 77.4 | R17: =N28 -> 3 | S17: =O28 -> 101.913005 | T17: j'2 | Y17: =Y16+'طراحی همه الگوها'!U192 -> 55.8 | Z17: =Z12 -> 0 | AA17: 8 | AC17: =Y16 -> 13.8 | AD17: =Z16 -> 0 | AE17: 5 | AG17: شبیه ساز 26 | AH17: =BG388 -> 3 | AI17: =BH388 -> 138.3907064 | AK17: =AK16+0.25*(AK19-AK16) -> 58.90860238 | AL17: =AL19+0.5*(AL16-AL19) -> 59.86134585 | AM17: s12' | AO17: s'11 | AP17: =AP27-'طراحی همه الگوها'!U226*SIN(AH15+RADIANS(AX38)) -> 49.74681965 | AQ17: =AQ27-'طراحی همه الگوها'!U226*COS(AH15+RADIANS(AX38)) -> 92.84640887 | AS17: 52.07601619 | AT17: 52.96878885 | AU17: s''13 | AZ17: =AZ24 -> 60.9 | BA17: =BA12+'طراحی همه الگوها'!U215 -> 97.5 | BB17: 7 | BD17: =W35+'طراحی همه الگوها'!U227 -> 33.768 | BE17: =BE15+'طراحی همه الگوها'!U228 -> 5.9 | BF17: 22 | BN17: =BJ30 -> -6.1 | BO17: =BK30 -> -3.1 | BP17: 3 | BR17: =BJ34 -> 68.65481233 | BS17: =BK34 -> 16.11228239 | BT17: 8 | BZ17: =BZ13 -> 0 | CA17: =CA15 -> 95.5 | CB17: 3 | CD17: =BZ32 -> 0 | CE17: =CA32 -> 119.8 | CF17: 18 | CH17: s''9 | CI17: =CI14+0.7*(CI18-CI14) -> 37.80166769 | CJ17: =CJ18+0.28*(CJ14-CJ18) -> 127.0032191 | CL17: =CI19 -> 60.63626408 | CM17: 103.7358533 | CN17: k4 شبیه ساز | CU17: 4 | CV17: =CV12+CY12*SIN(RADIANS(CU17)+CU14) ->  | CW17: =CW12+CY12*COS(RADIANS(CU17)+CU14) ->  | CX17: =IF(CV13>CV17,ATAN((CW13-CW17)/(CV13-CV17)),ATAN((CW13-CW17)/(CV17-CV13))) ->  | CY17: =IF(CV13>CV17,(CV13-CV17)/COS(CX17),(CV17-CV13)/COS(CX17)) ->  | DA17: نقطه دوم از خط اول | DB17: f6 | DC17: =#REF! ->  | DD17: =#REF! -> 
F18: قد سرشانه تا زمین | G18: =0.5*(G14+G15+G16) -> 138 | J18: =F44 -> 14.1 | K18: =G44 -> 104 | L18: j13 | N18: (d5 →d6) | O18: =5+0.1*O17 -> 12.74 | Y18: =Y16+'طراحی همه الگوها'!U192 -> 55.8 | Z18: =Z12+'طراحی همه الگوها'!U193 -> 12.9 | AA18: 9 | AC18: ='طراحی همه الگوها'!U190+'طراحی همه الگوها'!U199 -> 34.8 | AD18: =Z12+'طراحی همه الگوها'!U200 -> 4.5 | AE18: 16 | AK18: =AK16+0.6*(AK19-AK16) -> 65.2512546 | AL18: =AL19+0.2*(AL16-AL19) -> 28.74453834 | AM18: s12'' | AO18: s'12 | AP18: =AP16-'طراحی همه الگوها'!U225*SIN(AH15+RADIANS(AX38)) -> 42.95859455 | AQ18: =AQ16-'طراحی همه الگوها'!U225*COS(AH15+RADIANS(AX38)) -> 97.9375777 | AS18: 59.67386755 | AT18: 30.48439442 | AU18: s'''13 | AZ18: =W35+'طراحی همه الگوها'!U216 -> 110 | BA18: =BA16+'طراحی همه الگوها'!U218 -> 131.6 | BB18: 10 | BD18: =W35+'طراحی همه الگوها'!U222 -> 56.28 | BE18: =BA13+'طراحی همه الگوها'!U223 -> 13.1 | BF18: 16 | BZ18: =BZ13 -> 0 | CA18: =CA17-'طراحی همه الگوها'!U252 -> 82.1 | CB18: 5 | CD18: =CD17+'طراحی همه الگوها'!U268 -> 23.9 | CE18: =CA31+'طراحی همه الگوها'!U269 -> 120.8 | CF18: 24 | CH18: s''10 | CI18: =AX39-0.2*'متغیرها '!U83*COS(AH15+RADIANS(AX38)) -> 52.71666813 | CJ18: =AY39+0.2*'متغیرها '!U83*SIN(AH15+RADIANS(AX38)) -> 111.6554493 | CL18: 49.9730613 | CM18: 77.49914375 | CN18: s''11 | CU18: 6 | CV18: =CV12+CY12*SIN(RADIANS(CU18)+CU14) ->  | CW18: =CW12+CY12*COS(RADIANS(CU18)+CU14) ->  | CX18: =IF(CV13>CV18,ATAN((CW13-CW18)/(CV13-CV18)),ATAN((CW13-CW18)/(CV18-CV13))) ->  | CY18: =IF(CV13>CV18,(CV13-CV18)/COS(CX18),(CV18-CV13)/COS(CX18)) ->  | DA18: نقطه اول از خط دوم | DB18: f7 | DC18: =#REF! ->  | DD18: =#REF! -> 
F19: تمام قد | G19: =ROUND(G18+IF(G13>51.5,0.35,IF(G13>50.5,0.33,0.31))*G13,0) -> 157 | N19: نقاط خروجی در مقنعه دراپه | R19: =N21 -> 3 | S19: =O21 -> 146.45 | T19: d2 | Y19: =Y16+'طراحی همه الگوها'!U192 -> 55.8 | Z19: =Z12+'طراحی همه الگوها'!U194 -> 33.2 | AA19: 10 | AC19: =Y18 -> 55.8 | AD19: =Z18 -> 12.9 | AE19: 9 | AG19: طراحی چادر شماره 2 | AK19: =AH28 -> 72.5 | AL19: =AI28 -> 8 | AM19: s13 | AO19: s''13 | AP19: =AP18+0.3*(AP21-AP18) -> 52.07601619 | AQ19: =AQ21+0.5*(AQ18-AQ21) -> 52.96878885 | AS19: 73.35 | AT19: 8 | AU19: s'13 | AZ19: =W35+'طراحی همه الگوها'!U216 -> 110 | BA19: =BA16 -> 63.4 | BB19: 9 | BD19: =BD18+0.5*(BD20-BD18) -> 83.14 | BE19: =BE20+0.8*(BE18-BE20) -> 11.26 | BF19: 14' | BN19: =BJ29 -> 3 | BO19: =BK35 -> 112.4619912 | BP19: 13 | BR19: =BJ31 -> 11.5 | BS19: =BK31 -> 8 | BT19: 5 | BZ19: =BZ13 -> 0 | CA19: =CA13 -> 0 | CB19: 1 | CD19: =CD17+'طراحی همه الگوها'!U270 -> 47.8 | CE19: =CA31+'طراحی همه الگوها'!U271 -> 125.2 | CF19: 26 | CH19: k4 شبیه ساز | CI19: =K384 -> 60.63626408 | CJ19: =L384 -> 103.7358533 | CL19: 28.64665573 | CM19: 56.50977611 | CN19: s'11 | CU19: 8 | CV19: =CV12+CY12*SIN(RADIANS(CU19)+CU14) ->  | CW19: =CW12+CY12*COS(RADIANS(CU19)+CU14) ->  | CX19: =IF(CV13>CV19,ATAN((CW13-CW19)/(CV13-CV19)),ATAN((CW13-CW19)/(CV19-CV13))) ->  | CY19: =IF(CV13>CV19,(CV13-CV19)/COS(CX19),(CV19-CV13)/COS(CX19)) ->  | DA19: نقطه دوم از خط دوم | DB19: f8 | DC19: =#REF! ->  | DD19: =#REF! -> 
F20: j4 | G20: =IF('متغیرها '!C5<1,'متغیرها '!C5*'متغیرها '!U59,IF('متغیرها '!C5<2,'متغیرها '!U59+('متغیرها '!C5-1)*('متغیرها '!U60-'متغیرها '!U59),IF('متغیرها '!C5<3,'متغیرها '!U60+('متغیرها '!C5-2)*(I105-'متغیرها '!U60),I105+('متغیرها '!C5-3)*(H127-H126)))) -> 96 | J20: =F43 -> 14.1 | K20: =G43 -> 162.3 | L20: j12 | N20: مولفه افقی | O20: مولفه عمودی | P20: اسم نقطه | AC20: ='طراحی همه الگوها'!U190+'طراحی همه الگوها'!U192+'طراحی همه الگوها'!U202 -> 66.1 | AD20: =Z12+'طراحی همه الگوها'!U203 -> 18.7 | AE20: 19 | AG20: اسم نقطه | AH20: مولفه افقی | AI20: مولفه عمودی | AO20: s'''13 | AP20: =AP18+0.55*(AP21-AP18) -> 59.67386755 | AQ20: =AQ21+0.25*(AQ18-AQ21) -> 30.48439442 | BD20: =AZ14 -> 110 | BE20: =BA14+'طراحی همه الگوها'!U221 -> 3.9 | BF20: 14 | BN20: =BJ35 -> 33.58638625 | BO20: =BK35 -> 112.4619912 | BP20: 9 | BR20: =BJ33 -> 22.8843767 | BS20: =BK33 -> 8.596629901 | BT20: 7 | CD20: =BZ37 -> 59.7 | CE20: =CA37 -> 129.7 | CF20: 17 | CH20: s''11 | CI20: =CI22+0.8*(CI19-CI22) -> 49.9730613 | CJ20: =CJ22+0.5*(CJ19-CJ22) -> 77.49914375 | CL20: 7.320250154 | CM20: 51.2624342 | CN20: s11 | CU20: 10 | CV20: =CV12+CY12*SIN(RADIANS(CU20)+CU14) ->  | CW20: =CW12+CY12*COS(RADIANS(CU20)+CU14) ->  | CX20: =IF(CV13>CV20,ATAN((CW13-CW20)/(CV13-CV20)),ATAN((CW13-CW20)/(CV20-CV13))) ->  | CY20: =IF(CV13>CV20,(CV13-CV20)/COS(CX20),(CV20-CV13)/COS(CX20)) ->  | DA20: نقطه تقاطع | DB20: f10 | DC20: =(DD18-DD16+DC16*((DD17-DD16)/(DC17-DC16+0.0001))-DC18*((DD19-DD18)/(DC19-DC18+0.0001)))/(((DD17-DD16)/(DC17-DC16+0.0001))-((DD19-DD18)/(DC19-DC18+0.0001))) ->  | DD20: =DD16+(DC20-DC16)*((DD17-DD16)/(DC17-DC16+0.0001)) -> 
F21: رسم دستی چادر 1 یا مقنعه چانه دار(بر حسب سانتیمتر) | J21: =F35 -> 14.1 | K21: =G35 -> 170.3 | L21: j3 | N21: =N11 -> 3 | O21: =O13+0.1*'متغیرها '!U85-O16+O14 -> 146.45 | P21: d2 | T21: انحنا | Y21: =Y16+'طراحی همه الگوها'!U192 -> 55.8 | Z21: =Z12 -> 0 | AA21: 8 | AC21: =Y23 -> 76.4 | AD21: =Z23 -> 25.854 | AE21: 7 | AG21: s6 | AH21: =AH14 -> 3 | AI21: =1.003*AI14 -> 166.468913 | AK21: =AH32 -> 3 | AL21: =AI32 -> 164 | AM21: s17 | AO21: s'13 | AP21: =AH17+0.5*('طراحی همه الگوها'!U216+'طراحی همه الگوها'!U210-'طراحی همه الگوها'!U217-'طراحی همه الگوها'!U218) -> 73.35 | AQ21: =AX33+AH42 -> 8 | AS21: =AP25 -> 3 | AT21: =AQ25 -> 164 | AU21: s'17 | AZ21: =W35 -> 0 | BA21: =BA12 -> 93.2 | BB21: 4 | BZ21: =BZ13+'طراحی همه الگوها'!U249-'طراحی همه الگوها'!U253 -> 59.7 | CA21: =CA15 -> 95.5 | CB21: 6 | CH21: s'11 | CI21: =CI22+0.4*(CI19-CI22) -> 28.64665573 | CJ21: =CJ22+0.1*(CJ19-CJ22) -> 56.50977611 | CU21: 12 | CV21: =CV12+CY12*SIN(RADIANS(CU21)+CU14) ->  | CW21: =CW12+CY12*COS(RADIANS(CU21)+CU14) ->  | CX21: =IF(CV13>CV21,ATAN((CW13-CW21)/(CV13-CV21)),ATAN((CW13-CW21)/(CV21-CV13))) ->  | CY21: =IF(CV13>CV21,(CV13-CV21)/COS(CX21),(CV21-CV13)/COS(CX21)) -> 
N22: =N21 -> 3 | O22: =O21+1.41*O16 -> 180.0785 | P22: d3 | R22: =N24 -> 3 | S22: =O24 -> 96.4635 | T22: d6 | Y22: =W35+'طراحی همه الگوها'!U189 -> 76.4 | Z22: =Z12 -> 0 | AA22: 6 | AG22: s7 | AH22: =AH21+0.12*(AH25-AH21) -> 9.902466639 | AI22: =AI25+0.94*(AI21-AI25) -> 164.2945786 | AK22: =AH33 -> 6.1464 | AL22: =AI33 -> 161.9159 | AM22: s18 | AO22: s'14 | AP22: =AH11+AH40*COS(AH38) -> 9.2928 | AQ22: =AI11-AH40*SIN(AH38) -> 157.053 | AS22: =AP26 -> 6.77568 | AT22: =AQ26 -> 161.9159 | AU22: s'18 | AZ22: =W35+'طراحی همه الگوها'!U213 -> 44.9 | BA22: =BA12 -> 93.2 | BB22: 5 | BD22: =BD18 -> 56.28 | BE22: =BE18 -> 13.1 | BF22: 16 | BN22: =BJ29 -> 3 | BO22: =BK37 -> 95.27597052 | BP22: 12 | BR22: =BJ33 -> 22.8843767 | BS22: =BK33 -> 8.596629901 | BT22: 7 | BZ22: =BZ13+'طراحی همه الگوها'!U249-'طراحی همه الگوها'!U253 -> 59.7 | CA22: =CA15-'طراحی همه الگوها'!U254 -> 72.2 | CB22: 7 | CD22: =BZ18 -> 0 | CE22: =CA18 -> 82.1 | CF22: 5 | CH22: s11 | CI22: =0.7*CI15 -> 7.320250154 | CJ22: =CJ15-'طراحی همه الگوها'!U263+1.2*SQRT(POWER(CI15-CI14,2)+POWER(CJ15-CJ14,2)) -> 51.2624342 | CL22: =CI28 -> 3 | CM22: =CJ28 -> 164 | CN22: s''17 | CU22: 14 | CV22: =CV12+CY12*SIN(RADIANS(CU22)+CU14) ->  | CW22: =CW12+CY12*COS(RADIANS(CU22)+CU14) ->  | CX22: =IF(CV13>CV22,ATAN((CW13-CW22)/(CV13-CV22)),ATAN((CW13-CW22)/(CV22-CV13))) ->  | CY22: =IF(CV13>CV22,(CV13-CV22)/COS(CX22),(CV22-CV13)/COS(CX22)) ->  | DD22: قرینه نقطه نسبت به خط با داشتن دو نقطه از یک خط
J23: =F42 -> 23.6 | K23: =G42 -> 170.3 | L23: j11 | N23: =0.7*(O17+O16)+N21 -> 73.875 | O23: =O22-0.7*(O16+O17) -> 109.2035 | P23: d4 | R23: =N25 -> 17.175 | S23: =O25 -> 96.4635 | T23: d7 | Y23: =W35+'طراحی همه الگوها'!U189 -> 76.4 | Z23: =Z12+'طراحی همه الگوها'!U191 -> 25.854 | AA23: 7 | AC23: =Y13 -> 0 | AD23: =Z13 -> 169.7 | AE23: 1 | AG23: s8 | AH23: =AH21+0.4*(AH25-AH21) -> 26.00822213 | AI23: =AI25+0.5*(AI21-AI25) -> 148.3494596 | AK23: =AH29 -> 9.2928 | AL23: =AI29 -> 157.053 | AM23: s14 | AO23: s'16 | AP23: =AH13 -> 3 | AQ23: =AI13 -> 119 | AS23: =AP22 -> 9.2928 | AT23: =AQ22 -> 157.053 | AU23: s'14 | AZ23: =W35+'طراحی همه الگوها'!U213+'طراحی همه الگوها'!U214 -> 60.9 | BA23: =BA12 -> 93.2 | BB23: 6 | BD23: =BD18 -> 56.28 | BE23: =BA13 -> 0 | BF23: 15 | BN23: =BJ37 -> 56.38656198 | BO23: =BK37 -> 95.27597052 | BP23: 11 | BR23: =BR22+0.3*(BR25-BR22) -> 36.61550739 | BS23: =MIN(BS22,BS25)+IF(BS25>BS22,0.15,0.9)*ABS(BS25-BS22) -> 9.723977774 | BT23: 7'' | CD23: =CD22+'طراحی همه الگوها'!U264 -> 23.9 | CE23: =CA17-'طراحی همه الگوها'!U265 -> 81.1 | CF23: 20 | CH23: s12 | CI23: =CI24 -> 27.57 | CJ23: =CJ24+'طراحی همه الگوها'!U257 -> 110.4477071 | CL23: =CI29 -> 6.1464 | CM23: =CJ29 -> 161.9159 | CN23: s''18 | CU23: 16 | CV23: =CV12+CY12*SIN(RADIANS(CU23)+CU14) ->  | CW23: =CW12+CY12*COS(RADIANS(CU23)+CU14) ->  | CX23: =IF(CV13>CV23,ATAN((CW13-CW23)/(CV13-CV23)),ATAN((CW13-CW23)/(CV23-CV13))) ->  | CY23: =IF(CV13>CV23,(CV13-CV23)/COS(CX23),(CV23-CV13)/COS(CX23)) ->  | DA23: مولفه افقی | DB23: مولفه عمودی | DC23: اسم نقطه ورودی
J24: =F43 -> 14.1 | K24: =G43 -> 162.3 | L24: j12 | N24: =N21 -> 3 | O24: =O23-O18+'متغیرها '!C6*0.1*'متغیرها '!U85*0.7 -> 96.4635 | P24: d6 | R24: =N27 -> 52.6125 | S24: =O27 -> 97.7375 | T24: d9 | Y24: =W35+'طراحی همه الگوها'!U189 -> 76.4 | Z24: =Z13-'طراحی همه الگوها'!U198 -> 150.2 | AA24: 14 | AG24: s9 | AH24: =AH21+0.7*(AH25-AH21) -> 43.26438873 | AI24: =AI25+0.2*(AI21-AI25) -> 137.4777876 | AO24: s'15 | AP24: =AP23+0.7*(AP22-AP23) -> 7.40496 | AQ24: =AQ23+0.5*(AQ22-AQ23) -> 138.0265 | AS24: =AP24 -> 7.40496 | AT24: =AQ24 -> 138.0265 | AU24: s'15 | AZ24: =AZ23 -> 60.9 | BA24: =BA17 -> 97.5 | BB24: 7 | BR24: =BR22+0.7*(BR25-BR22) -> 54.92368164 | BS24: =MIN(BS22,BS25)+0.5*ABS(BS25-BS22) -> 12.35445615 | BT24: 7''' | BZ24: =BZ15 -> 89.1 | CA24: =CA15 -> 95.5 | CB24: 4 | CD24: =CD22+'طراحی همه الگوها'!U266 -> 47.8 | CE24: =CA17-'طراحی همه الگوها'!U267 -> 76.7 | CF24: 22 | CH24: 41 شبیه ساز | CI24: =BC395 -> 27.57 | CJ24: =BD395 -> 106.5477071 | CL24: =CI12 -> 9.2928 | CM24: =CJ12 -> 157.053 | CN24: s3 | CU24: 18 | CV24: =CV12+CY12*SIN(RADIANS(CU24)+CU14) ->  | CW24: =CW12+CY12*COS(RADIANS(CU24)+CU14) ->  | CX24: =IF(CV13>CV24,ATAN((CW13-CW24)/(CV13-CV24)),ATAN((CW13-CW24)/(CV24-CV13))) ->  | CY24: =IF(CV13>CV24,(CV13-CV24)/COS(CX24),(CV24-CV13)/COS(CX24)) ->  | DA24: 0 | DB24: 0 | DC24: 1 | DD24: نقطه اول خط تقارن | DE24: نقاط قرینه شده نسبت به خط تقارن
N25: =0.2*(N23-N21)+N21 -> 17.175 | O25: =O24 -> 96.4635 | P25: d7 | R25: =N26 -> 66.7875 | S25: =O26 -> 102.8335 | T25: d8 | Y25: =Y27+'طراحی همه الگوها'!U196 -> 90.8 | Z25: =Z13-'طراحی همه الگوها'!U197 -> 152.2 | AA25: 13 | AD25: صاف | AG25: s10 | AH25: =AH16-('طراحی همه الگوها'!U196-'متغیرها '!C13*'متغیرها '!U83)*COS(AH15) -> 60.52055533 | AI25: =AI16+('طراحی همه الگوها'!U196-'متغیرها '!C13*'متغیرها '!U83)*SIN(AH15) -> 130.2300062 | AK25: =AH29 -> 9.2928 | AL25: =AI29 -> 157.053 | AM25: s14 | AO25: s'17 | AP25: =AC400 -> 3 | AQ25: =IF('متغیرها '!C22=-1,AL10,IF('متغیرها '!C22=0,AD400-0.1,AD400-0.25*(AD400-AD404))) -> 164 | AS25: =AP23 -> 3 | AT25: =AQ23 -> 119 | AU25: s'16 | AZ25: =AZ22 -> 44.9 | BA25: =BA22 -> 93.2 | BB25: 5 | BD25: =BD17 -> 33.768 | BE25: =BE15 -> 0 | BF25: 21 | BH25: (3 →6) | BI25: =ROUND(0.2*(BJ34-BJ30),1) -> 15 | BN25: =BJ29 -> 3 | BO25: =BK34 -> 16.11228239 | BP25: 14 | BR25: =BJ34 -> 68.65481233 | BS25: =BK34 -> 16.11228239 | BT25: 8 | BZ25: =BZ15 -> 89.1 | CA25: =CA15+'طراحی همه الگوها'!U257 -> 99.4 | CB25: 9 | CD25: =BZ22 -> 59.7 | CE25: =CA22 -> 72.2 | CF25: 7 | CH25: 41' | CI25: =CI24+0.5*(CI27-CI24) -> 37.56 | CJ25: =CJ27+0.7*(CJ24-CJ27) -> 76.983395 | CU25: 20 | CV25: =CV12+CY12*SIN(RADIANS(CU25)+CU14) ->  | CW25: =CW12+CY12*COS(RADIANS(CU25)+CU14) ->  | CX25: =IF(CV13>CV25,ATAN((CW13-CW25)/(CV13-CV25)),ATAN((CW13-CW25)/(CV25-CV13))) ->  | CY25: =IF(CV13>CV25,(CV13-CV25)/COS(CX25),(CV25-CV13)/COS(CX25)) ->  | DA25: =DE17 -> 0 | DB25: =DF17 -> 0 | DC25: 2 | DD25: نقطه دوم خط تقارن | DE25: مولفه افقی | DF25: مولفه عمودی | DG25: اسم نقطه
J26: =F37 -> 8.3 | K26: =G37 -> 170.3 | L26: j6 | N26: =0.9*(N23-N21)+N21 -> 66.7875 | O26: =O24+0.5*(O23-O24) -> 102.8335 | P26: d8 | R26: =N23 -> 73.875 | S26: =O23 -> 109.2035 | T26: d4 | Y26: =Y27+'طراحی همه الگوها'!U196 -> 90.8 | Z26: =Z13 -> 169.7 | AA26: 12 | AC26: =AC18 -> 34.8 | AD26: =Z12 -> 0 | AE26: 15 | AG26: s12 | AH26: =AH25-'طراحی همه الگوها'!U198*SIN(AH15) -> 54.3781365 | AI26: =AI25-'طراحی همه الگوها'!U198*COS(AH15) -> 111.7226917 | AK26: =AH31 -> 7.40496 | AL26: =AI31 -> 138.0265 | AM26: s15 | AO26: s'18 | AP26: =AP25+0.6*(AP22-AP25) -> 6.77568 | AQ26: =AQ25-0.3*(AQ25-AQ22) -> 161.9159 | BD26: =BD17 -> 33.768 | BE26: =BE17 -> 5.9 | BF26: 22 | BH26: (5 →7) | BI26: =ROUND(0.2*(BJ34-BJ31),1) -> 11.4 | BN26: =BJ34 -> 68.65481233 | BO26: =BK34 -> 16.11228239 | BP26: 8 | BZ26: =BZ13+'طراحی همه الگوها'!U249-'طراحی همه الگوها'!U256 -> -33.5 | CA26: =CA25 -> 99.4 | CB26: 10 | CH26: 41'' | CI26: =CI24+0.88*(CI27-CI24) -> 45.1524 | CJ26: =CJ27+0.3*(CJ24-CJ27) -> 37.56431214 | CL26: =CI12 -> 9.2928 | CM26: =CJ12 -> 157.053 | CN26: s3 | CU26: 22 | CV26: =CV12+CY12*SIN(RADIANS(CU26)+CU14) ->  | CW26: =CW12+CY12*COS(RADIANS(CU26)+CU14) ->  | CX26: =IF(CV13>CV26,ATAN((CW13-CW26)/(CV13-CV26)),ATAN((CW13-CW26)/(CV26-CV13))) ->  | CY26: =IF(CV13>CV26,(CV13-CV26)/COS(CX26),(CV26-CV13)/COS(CX26)) ->  | DA26: 0 | DB26: 0 | DC26: 3 | DE26: =DA26+2*(SIN(ATAN((DA25-DA24)/(DB25-DB24)))*(DB26-DB24)+COS(ATAN((DA25-DA24)/(DB25-DB24)))*(DA24-DA26))*COS(ATAN((DA25-DA24)/(DB25-DB24))) ->  | DF26: =DB26-2*(SIN(ATAN((DA25-DA24)/(DB25-DB24)))*(DB26-DB24)+COS(ATAN((DA25-DA24)/(DB25-DB24)))*(DA24-DA26))*SIN(ATAN((DA25-DA24)/(DB25-DB24))) ->  | DG26: =DC26 -> 3
J27: =F39 -> 5.1 | K27: =G39 -> 155.5 | L27: j8 | N27: =0.7*(N23-N21)+N21 -> 52.6125 | O27: =O24+0.1*(O23-O24) -> 97.7375 | P27: d9 | Y27: =W35+'طراحی همه الگوها'!U189 -> 76.4 | Z27: =Z13 -> 169.7 | AA27: 3 | AC27: =AC18 -> 34.8 | AD27: =AD18 -> 4.5 | AE27: 16 | AG27: s11 | AH27: =AH34-'طراحی همه الگوها'!U197*SIN(AH15) -> 68.67506813 | AI27: =AI34-'طراحی همه الگوها'!U197*COS(AH15) -> 109.0849377 | AK27: =AH30 -> 3 | AL27: =AI30 -> 119 | AM27: s16 | AO27: s'19 | AP27: =AX39+('متغیرها '!C20*'متغیرها '!U83)*COS(AH15+RADIANS(AX38)) -> 60.63626408 | AQ27: =AY39-('متغیرها '!C20*'متغیرها '!U83)*SIN(AH15+RADIANS(AX38)) -> 103.7358533 | AS27: =AP16 -> 54.69656712 | AT27: =AQ16 -> 109.6755503 | AU27: s'10 | AZ27: =W35+'طراحی همه الگوها'!U216 -> 110 | BA27: =BA18 -> 131.6 | BB27: 10 | BI27: نقاط در چادر شماره 4 | BR27: =BJ29 -> 3 | BS27: =BK29 -> 170.3 | BT27: 1 | BZ27: =BZ26 -> -33.5 | CA27: =CA17 -> 95.5 | CB27: 11 | CD27: =CD23 -> 23.9 | CE27: =CA17 -> 95.5 | CF27: 19 | CH27: s13 | CI27: =CI30+0.5*'طراحی همه الگوها'!U249 -> 47.55 | CJ27: =CJ30 -> 8 | CL27: =CI33 -> 8.306525077 | CM27: =CJ33 -> 114.7367737 | CN27: s'3 | CU27: 24 | CV27: =CV12+CY12*SIN(RADIANS(CU27)+CU14) ->  | CW27: =CW12+CY12*COS(RADIANS(CU27)+CU14) ->  | CX27: =IF(CV13>CV27,ATAN((CW13-CW27)/(CV13-CV27)),ATAN((CW13-CW27)/(CV27-CV13))) ->  | CY27: =IF(CV13>CV27,(CV13-CV27)/COS(CX27),(CV27-CV13)/COS(CX27)) ->  | DA27: 0 | DB27: 0 | DC27: 4 | DE27: =DA27+2*(SIN(ATAN((DA25-DA24)/(DB25-DB24)))*(DB27-DB24)+COS(ATAN((DA25-DA24)/(DB25-DB24)))*(DA24-DA27))*COS(ATAN((DA25-DA24)/(DB25-DB24))) ->  | DF27: =DB27-2*(SIN(ATAN((DA25-DA24)/(DB25-DB24)))*(DB27-DB24)+COS(ATAN((DA25-DA24)/(DB25-DB24)))*(DA24-DA27))*SIN(ATAN((DA25-DA24)/(DB25-DB24))) ->  | DG27: =DC27 -> 4
N28: =N21 -> 3 | O28: =O12-1-0.013*(O22-O24) -> 101.913005 | P28: j'2 | Y28: =W35+'طراحی همه الگوها'!U189 -> 76.4 | Z28: =Z13-'طراحی همه الگوها'!U198 -> 150.2 | AA28: 14 | AC28: =AC12 -> 34.8 | AD28: =AD12 -> 27.8 | AE28: 17 | AG28: s13 | AH28: =AH17+'طراحی همه الگوها'!U189-0.5*'طراحی همه الگوها'!U190 -> 72.5 | AI28: =AH43+AH42 -> 8 | AO28: 2' | AP28: =AH17 -> 3 | AQ28: =AX33+AH42 -> 8 | AS28: =AP27 -> 60.63626408 | AT28: =AQ27 -> 103.7358533 | AU28: s'19 | AZ28: =BD13 -> 169.5 | BA28: =BE13 -> 131.6 | BB28: 13 | BD28: =W35 -> 0 | BE28: =BA11 -> 162.3 | BF28: 1 | BH28: افقی شبیه ساز | BI28: اسم نقطه | BJ28: مولفه افقی | BK28: مولفه عمودی | BL28: عمودی شبیه ساز | BN28: =BL43 -> 53.3 | BO28: =BL44 -> 69.025 | BP28: 15 | BR28: =BJ36 -> 67.20529573 | BS28: =BK36 -> 106.0947043 | BT28: 10 | BZ28: =BZ16 -> 79.9 | CA28: =CA16 -> 95.5 | CB28: 8 | CD28: =CD23 -> 23.9 | CE28: =CE23 -> 81.1 | CF28: 20 | CH28: s''17 | CI28: =CI11 -> 3 | CJ28: =IF('متغیرها '!C40=-1,CJ14,IF('متغیرها '!C40=0,CJ11-0.1,CJ11-0.25*(CJ11-CJ13))) -> 164 | CL28: =CI22 -> 7.320250154 | CM28: =CJ22 -> 51.2624342 | CN28: s11 | CU28: 26 | CV28: =CV12+CY12*SIN(RADIANS(CU28)+CU14) ->  | CW28: =CW12+CY12*COS(RADIANS(CU28)+CU14) ->  | CX28: =IF(CV13>CV28,ATAN((CW13-CW28)/(CV13-CV28)),ATAN((CW13-CW28)/(CV28-CV13))) ->  | CY28: =IF(CV13>CV28,(CV13-CV28)/COS(CX28),(CV28-CV13)/COS(CX28)) ->  | DA28: =DE18 -> 0 | DB28: =DF18 -> 0 | DC28: 5 | DE28: =DA28+2*(SIN(ATAN((DA25-DA24)/(DB25-DB24)))*(DB28-DB24)+COS(ATAN((DA25-DA24)/(DB25-DB24)))*(DA24-DA28))*COS(ATAN((DA25-DA24)/(DB25-DB24))) ->  | DF28: =DB28-2*(SIN(ATAN((DA25-DA24)/(DB25-DB24)))*(DB28-DB24)+COS(ATAN((DA25-DA24)/(DB25-DB24)))*(DA24-DA28))*SIN(ATAN((DA25-DA24)/(DB25-DB24))) ->  | DG28: =DC28 -> 5
J29: =F39 -> 5.1 | K29: =G39 -> 155.5 | L29: j8 | AG29: s14 | AH29: =AH11+AH40*COS(AH38) -> 9.2928 | AI29: =AI11-AH40*SIN(AH38) -> 157.053 | AK29: =AK23 -> 9.2928 | AL29: =AL23 -> 157.053 | AM29: s14 | AZ29: =W35+'طراحی همه الگوها'!U211+'طراحی همه الگوها'!U219 -> 173.4 | BA29: =BA18 -> 131.6 | BB29: 12 | BD29: =W35+'طراحی همه الگوها'!U216 -> 110 | BE29: =BA31 -> 162.3 | BF29: 3 | BI29: 1 | BJ29: =AH17 -> 3 | BK29: ='طراحی همه الگوها'!U233+BL39+AH42 -> 170.3 | BN29: =BN28+'طراحی همه الگوها'!U242 -> 59.8 | BO29: =BO28 -> 69.025 | BP29: 16 | CH29: s''18 | CI29: =CI28+0.5*(CI12-CI28) -> 6.1464 | CJ29: =CJ28-0.3*(CJ28-CJ12) -> 161.9159 | CU29: 28 | CV29: =CV12+CY12*SIN(RADIANS(CU29)+CU14) ->  | CW29: =CW12+CY12*COS(RADIANS(CU29)+CU14) ->  | CX29: =IF(CV13>CV29,ATAN((CW13-CW29)/(CV13-CV29)),ATAN((CW13-CW29)/(CV29-CV13))) ->  | CY29: =IF(CV13>CV29,(CV13-CV29)/COS(CX29),(CV29-CV13)/COS(CX29)) -> 
J30: =F38 -> 3 | K30: =G38 -> 155.5 | L30: j7 | Y30: =Y27 -> 76.4 | Z30: =Z13 -> 169.7 | AA30: 3 | AC30: =AC20 -> 66.1 | AD30: =Z12 -> 0 | AE30: 18 | AG30: s16 | AH30: =AH13 -> 3 | AI30: =AI13 -> 119 | AK30: =AK29+0.32*(AK32-AK29) -> 25.2320877 | AL30: =AL32+0.5*(AL29-AL32) -> 141.5060437 | AS30: =AS28 -> 60.63626408 | AT30: =AT28 -> 103.7358533 | AU30: s'19 | AW30: شیفت افقی مچ | AX30: =AZ18+10 -> 120 | AZ30: =AZ29 -> 173.4 | BA30: =BA11 -> 162.3 | BB30: 11 | BI30: 3 | BJ30: =BJ29-'طراحی همه الگوها'!U234 -> -6.1 | BK30: =BK29-'طراحی همه الگوها'!U232 -> -3.1 | BN30: =BN28+'طراحی همه الگوها'!U242 -> 59.8 | BO30: =BO28-'طراحی همه الگوها'!U245 -> 49.225 | BP30: 19 | BR30: =BJ36 -> 67.20529573 | BS30: =BK36 -> 106.0947043 | BT30: 10 | BZ30: =BZ13+'طراحی همه الگوها'!U260+'طراحی همه الگوها'!U262 -> 98.1 | CA30: =CA25+BW44 -> 106.4 | CB30: 13 | CD30: =CD24 -> 47.8 | CE30: =CA17 -> 95.5 | CF30: 21 | CH30: 2 | CI30: =CI14 -> 3 | CJ30: =BW42+AH42 -> 8 | CL30: =CI24 -> 27.57 | CM30: 106.5477071 | CN30: 41شبیه ساز | CU30: 30 | CV30: =CV12+CY12*SIN(RADIANS(CU30)+CU14) ->  | CW30: =CW12+CY12*COS(RADIANS(CU30)+CU14) ->  | CX30: =IF(CV13>CV30,ATAN((CW13-CW30)/(CV13-CV30)),ATAN((CW13-CW30)/(CV30-CV13))) ->  | CY30: =IF(CV13>CV30,(CV13-CV30)/COS(CX30),(CV30-CV13)/COS(CX30)) ->  | DD30: یافتن راس سوم مثلث با داشتن دو راس و یک ضلع و یک زاویه
F31: نقاط خروجی | Y31: =Y14 -> 13.8 | Z31: =Z13 -> 169.7 | AA31: 4 | AC31: =AC20 -> 66.1 | AD31: =AD20 -> 18.7 | AE31: 19 | AG31: s15 | AH31: =AH30+0.7*(AH29-AH30) -> 7.40496 | AI31: =AI30+0.5*(AI29-AI30) -> 138.0265 | AK31: =AK29+0.67*(AK32-AK29) -> 42.66568362 | AL31: =AL32+0.2*(AL29-AL32) -> 132.17787 | AS31: =AP17 -> 49.74681965 | AT31: =AQ17 -> 92.84640887 | AU31: s'11 | AW31: شیفت عمودی مچ | AX31: =BA18-10 -> 121.6 | AZ31: =W35+'طراحی همه الگوها'!U216 -> 110 | BA31: =BA11 -> 162.3 | BB31: 3 | BD31: =AZ19 -> 110 | BE31: =BA19 -> 63.4 | BF31: 9 | BI31: 5 | BJ31: =BJ29+'طراحی همه الگوها'!U235 -> 11.5 | BK31: =BK29-'طراحی همه الگوها'!U233 -> 8 | BR31: =BJ37 -> 56.38656198 | BS31: =BK37 -> 95.27597052 | BT31: 11 | BZ31: =BZ13 -> 0 | CA31: =CA30 -> 106.4 | CB31: 12 | CD31: =CD24 -> 47.8 | CE31: =CE24 -> 76.7 | CF31: 22 | CH31: s''12 | CI31: =CI30 -> 3 | CJ31: =CJ24 -> 106.5477071 | CL31: 37.56 | CM31: 76.983395 | CN31: 41' | CU31: 32 | CV31: =CV12+CY12*SIN(RADIANS(CU31)+CU14) ->  | CW31: =CW12+CY12*COS(RADIANS(CU31)+CU14) ->  | CX31: =IF(CV13>CV31,ATAN((CW13-CW31)/(CV13-CV31)),ATAN((CW13-CW31)/(CV31-CV13))) ->  | CY31: =IF(CV13>CV31,(CV13-CV31)/COS(CX31),(CV31-CV13)/COS(CX31)) ->  | DA31: اطلاعات ورودی
F32: مولفه افقی | G32: مولفه عمودی | H32: اسم نقطه | J32: =F39 -> 5.1 | K32: =G39 -> 155.5 | L32: j8 | AA32: نقاب | AC32: =AC14 -> 66.1 | AD32: =AD14 -> 31.7 | AE32: 20 | AG32: s17 | AH32: =AC400 -> 3 | AI32: =IF('متغیرها '!C14=-1,AL10,IF('متغیرها '!C14=0,AD400-0.1,AD400-0.25*(AD400-AD404))) -> 164 | AK32: =AH35 -> 59.10307406 | AL32: =AI35 -> 125.9590875 | AM32: s20 | AW32: زاویه گشادی نسبی جلو به پشت | AX32: 33 | AZ32: =W35+'طراحی همه الگوها'!U216 -> 110 | BA32: =BA18 -> 131.6 | BB32: 10 | BD32: =BD20 -> 110 | BE32: =BE20 -> 3.9 | BF32: 14 | BI32: 6 | BJ32: =BJ30+BI25*COS(RADIANS('متغیرها '!C26)) -> 8.879443021 | BK32: =BK30-BI25*SIN(RADIANS('متغیرها '!C26)) -> -3.885039344 | BN32: =BN28+'طراحی همه الگوها'!U242 -> 59.8 | BO32: =BO28+'طراحی همه الگوها'!U244 -> 88.825 | BP32: 18 | BZ32: =BZ13 -> 0 | CA32: =CA31+'طراحی همه الگوها'!U258 -> 119.8 | CB32: 18 | CH32: s'12 | CI32: =CI30 -> 3 | CJ32: =CJ23 -> 110.4477071 | CL32: 45.1524 | CM32: 37.56431214 | CN32: 41'' | CU32: 34 | CV32: =CV12+CY12*SIN(RADIANS(CU32)+CU14) ->  | CW32: =CW12+CY12*COS(RADIANS(CU32)+CU14) ->  | CX32: =IF(CV13>CV32,ATAN((CW13-CW32)/(CV13-CV32)),ATAN((CW13-CW32)/(CV32-CV13))) ->  | CY32: =IF(CV13>CV32,(CV13-CV32)/COS(CX32),(CV32-CV13)/COS(CX32)) ->  | DA32: مولفه افقی | DB32: مولفه عمودی | DC32: اسم نقطه | DE32: محاسبات
F33: =F11 -> 3 | G33: =G20+'طراحی همه الگوها'!U177+G12 -> 170.3 | H33: j1 | J33: =F41 -> 5.1 | K33: =G41 -> 119.6 | L33: j10 | Y33: =Y13 -> 0 | Z33: =Z13 -> 169.7 | AA33: 1 | AG33: s18 | AH33: =AH32+0.5*(AH29-AH32) -> 6.1464 | AI33: =AI32-0.3*(AI32-AI29) -> 161.9159 | AS33: =AS31 -> 49.74681965 | AT33: =AT31 -> 92.84640887 | AU33: s'11 | AW33: j4 | AX33: =IF('متغیرها '!C17<1,'متغیرها '!C17*'متغیرها '!U59,IF('متغیرها '!C17<2,'متغیرها '!U59+('متغیرها '!C17-1)*('متغیرها '!U60-'متغیرها '!U59),IF('متغیرها '!C17<3,'متغیرها '!U60+('متغیرها '!C17-2)*(I105-'متغیرها '!U60),I105+('متغیرها '!C17-3)*(H127-H126)))) -> 0 | AY33: چادر 3 | BI33: 7 | BJ33: =BJ31+BI26*COS(RADIANS('متغیرها '!C26)) -> 22.8843767 | BK33: =BK31+BI26*SIN(RADIANS('متغیرها '!C26)) -> 8.596629901 | BN33: =BN28+'طراحی همه الگوها'!U242 -> 59.8 | BO33: =BO28 -> 69.025 | BP33: 16 | BR33: =BJ37 -> 56.38656198 | BS33: =BK37 -> 95.27597052 | BT33: 11 | BZ33: =BZ13 -> 0 | CA33: =CA32+'طراحی همه الگوها'!U259 -> 211.1 | CB33: 14 | CD33: =CD18 -> 23.9 | CE33: =CA31 -> 106.4 | CF33: 23 | CH33: s'3 | CI33: =CI22+0.5*(CI12-CI22) -> 8.306525077 | CJ33: =CJ22+0.6*(CJ12-CJ22) -> 114.7367737 | CL33: 47.55 | CM33: 8 | CN33: s13 | CU33: 36 | CV33: =CV12+CY12*SIN(RADIANS(CU33)+CU14) ->  | CW33: =CW12+CY12*COS(RADIANS(CU33)+CU14) ->  | CX33: =IF(CV13>CV33,ATAN((CW13-CW33)/(CV13-CV33)),ATAN((CW13-CW33)/(CV33-CV13))) ->  | CY33: =IF(CV13>CV33,(CV13-CV33)/COS(CX33),(CV33-CV13)/COS(CX33)) ->  | DA33: 5 | DB33: 50 | DC33: 1 | DD33: راس بالا | DE33: =SQRT(POWER(DA34-DA33,2)+POWER(DB33-DB34,2)) -> 10.19803903 | DF33: m2
F34: =F33 -> 3 | G34: =G33-'طراحی همه الگوها'!U177 -> 104 | H34: j2 | V34: محاسبات | Y34: =Y13 -> 0 | Z34: =Z13-'طراحی همه الگوها'!U205 -> 164.4 | AA34: 21 | AG34: s19 | AH34: =AH16+'متغیرها '!C13*'متغیرها '!U83*COS(AH15) -> 74.18749528 | AI34: =AI16-'متغیرها '!C13*'متغیرها '!U83*SIN(AH15) -> 125.6940662 | AK34: =AH25 -> 60.52055533 | AL34: =AI25 -> 130.2300062 | AM34: s10 | AS34: =AP18 -> 42.95859455 | AT34: =AQ18 -> 97.9375777 | AU34: s'12 | AW34: (1 → 5) | AX34: =W36-'متغیرها '!C19*'متغیرها '!U83 -> 82.42769651 | AZ34: =AX30 -> 120 | BA34: =AX31 -> 121.6 | BB34: 17 | BD34: =AZ18 -> 110 | BE34: =BA18 -> 131.6 | BF34: 10 | BI34: 8 | BJ34: =BJ35+BL41*SIN(RADIANS('متغیرها '!C30)) -> 68.65481233 | BK34: =BK35-BL41*COS(RADIANS('متغیرها '!C30)) -> 16.11228239 | BN34: =BN28+'طراحی همه الگوها'!U242+'طراحی همه الگوها'!U243 -> 66.3 | BO34: =BO28 -> 69.025 | BP34: 17 | BR34: =BJ35 -> 33.58638625 | BS34: =BK35 -> 112.4619912 | BT34: 9 | BZ34: =BZ13+'طراحی همه الگوها'!U263 -> 122 | CA34: =CA33 -> 211.1 | CB34: 15 | CD34: =CD18 -> 23.9 | CE34: =CE18 -> 120.8 | CF34: 24 | CU34: 38 | CV34: =CV12+CY12*SIN(RADIANS(CU34)+CU14) ->  | CW34: =CW12+CY12*COS(RADIANS(CU34)+CU14) ->  | CX34: =IF(CV13>CV34,ATAN((CW13-CW34)/(CV13-CV34)),ATAN((CW13-CW34)/(CV34-CV13))) ->  | CY34: =IF(CV13>CV34,(CV13-CV34)/COS(CX34),(CV34-CV13)/COS(CX34)) ->  | DA34: 7 | DB34: 40 | DC34: 2 | DD34: راس پایین | DE34: =ATAN((DA34-DA33)/(DB33-DB34)) -> 0.1973955598 | DF34: γ18
F35: =F33+'طراحی همه الگوها'!U178 -> 14.1 | G35: =G33 -> 170.3 | H35: j3 | J35: =F41 -> 5.1 | K35: =G41 -> 119.6 | L35: j10 | V35: مولفه افقی نقطه 1 | W35: =0 -> 0 | Y35: =Y14 -> 13.8 | Z35: =Z14-'طراحی همه الگوها'!U206 -> 166 | AA35: 22 | AG35: s20 | AH35: =AH25-0.25*'متغیرها '!U84*SIN(AH15) -> 59.10307406 | AI35: =AI25-0.25*'متغیرها '!U84*COS(AH15) -> 125.9590875 | AK35: =AH34 -> 74.18749528 | AL35: =AI34 -> 125.6940662 | AM35: s19 | AW35: زاویه مچ | AX35: 15 | AZ35: =AX30+'طراحی همه الگوها'!U224 -> 128.4 | BA35: =AX31 -> 121.6 | BB35: 18 | BD35: =BD13 -> 169.5 | BE35: =BE13 -> 131.6 | BF35: 13 | BH35: =BH37-BL45*SIN(BL46-RADIANS(45)+BL42) -> 21.92527845 | BI35: 9 | BJ35: =BJ37-BL40*SIN(BL46-RADIANS(45)+BL42) -> 33.58638625 | BK35: =BK37+BL40*COS(BL46-RADIANS(45)+BL42) -> 112.4619912 | BL35: =BL37+BL45*COS(BL46-RADIANS(45)+BL42) -> 117.8986559 | CL35: =CI18 -> 52.71666813 | CM35: =CJ18 -> 111.6554493 | CN35: s''10 | CU35: 40 | CV35: =CV12+CY12*SIN(RADIANS(CU35)+CU14) ->  | CW35: =CW12+CY12*COS(RADIANS(CU35)+CU14) ->  | CX35: =IF(CV13>CV35,ATAN((CW13-CW35)/(CV13-CV35)),ATAN((CW13-CW35)/(CV35-CV13))) ->  | CY35: =IF(CV13>CV35,(CV13-CV35)/COS(CX35),(CV35-CV13)/COS(CX35)) ->  | DA35: 10 | DB35: m4 | DC35: ضلع بالا | DE35: =RADIANS(90)-RADIANS(DE34)-DA36 -> 1.829150512 | DF35: m5
F36: ='طراحی همه الگوها'!U178+'طراحی همه الگوها'!U177+F33 -> 80.4 | G36: =G33 -> 170.3 | H36: j5 | J36: =F40 -> 3 | K36: =G40 -> 119.6 | L36: j9 | V36: نوک سر تا مچ دست شبیه ساز a3 | W36: =1.03*(SQRT(POWER(0.5*H168,2)+POWER((0.47*'متغیرها '!U85+H167*SIN('متغیرها '!B245)),2)))+'متغیرها '!U83 -> 90.82769651 | AS36: =AS34 -> 42.95859455 | AT36: =AT34 -> 97.9375777 | AU36: s'12 | AW36: شبیه سازαk1 | AX36: =F423 -> 1.389834572 | AZ36: =AX30+'طراحی همه الگوها'!U224 -> 128.4 | BA36: =AX31-'طراحی همه الگوها'!U226 -> 106.2 | BB36: 20 | BH36: =BJ29+W36*COS(RADIANS(45)) -> 67.22488012 | BI36: 10 | BJ36: =BJ29+'طراحی همه الگوها'!U236*COS(RADIANS(45)) -> 67.20529573 | BK36: =BK29-'طراحی همه الگوها'!U236*SIN(RADIANS(45)) -> 106.0947043 | BL36: =BK29-W36*SIN(RADIANS(45)) -> 106.0751199 | BN36: =BJ36 -> 67.20529573 | BO36: =BK36 -> 106.0947043 | BP36: 10 | BR36: =BJ35 -> 33.58638625 | BS36: =BK35 -> 112.4619912 | BT36: 9 | BZ36: =BZ31+'طراحی همه الگوها'!U260 -> 59.7 | CA36: =CA31 -> 106.4 | CB36: 16 | CD36: =CD19 -> 47.8 | CE36: =CA31 -> 106.4 | CF36: 25 | CL36: =CI19 -> 60.63626408 | CM36: =CJ19 -> 103.7358533 | CN36: k4 شبیه ساز | CU36: 42 | CV36: =CV12+CY12*SIN(RADIANS(CU36)+CU14) ->  | CW36: =CW12+CY12*COS(RADIANS(CU36)+CU14) ->  | CX36: =IF(CV13>CV36,ATAN((CW13-CW36)/(CV13-CV36)),ATAN((CW13-CW36)/(CV36-CV13))) ->  | CY36: =IF(CV13>CV36,(CV13-CV36)/COS(CX36),(CV36-CV13)/COS(CX36)) ->  | DA36: =RADIANS(-15) -> -0.2617993878 | DB36: m1 | DC36: زاویه ضلع پایین با افق به رادیان ساعتگرزیر افق عدد مثبت | DE36: =DA35*COS(DE37)-DE33*COS(DE35) -> 4.275403846 | DF36: m7
F37: ='طراحی همه الگوها'!U179+F33 -> 8.3 | G37: =G33 -> 170.3 | H37: j6 | AG37: محاسبات طراحی چادر 2 | AK37: =AK35 -> 74.18749528 | AL37: =AL35 -> 125.6940662 | AM37: s19 | AS37: =AP16 -> 54.69656712 | AT37: =AQ16 -> 109.6755503 | AU37: s'10 | AW37: (k4 →k5)شبیه ساز | AX37: =F425 -> 10.27792782 | AZ37: =AX30 -> 120 | BA37: =AX31-'طراحی همه الگوها'!U225 -> 105 | BB37: 19 | BD37: =AZ35 -> 128.4 | BE37: =BA35 -> 121.6 | BF37: 18 | BH37: =BH36-'متغیرها '!U84*COS(RADIANS(45)) -> 54.49695806 | BI37: 11 | BJ37: =BJ36-'طراحی همه الگوها'!U237*COS(RADIANS(45)) -> 56.38656198 | BK37: =BK36-'طراحی همه الگوها'!U237*SIN(RADIANS(45)) -> 95.27597052 | BL37: =BL36-'متغیرها '!U84*SIN(RADIANS(45)) -> 93.34719782 | BR37: =BJ34 -> 68.65481233 | BS37: =BK34 -> 16.11228239 | BT37: 8 | BZ37: =BZ36 -> 59.7 | CA37: =CA31+'طراحی همه الگوها'!U261 -> 129.7 | CB37: 17 | CD37: =CD19 -> 47.8 | CE37: =CE19 -> 125.2 | CF37: 26 | CU37: 44 | CV37: =CV12+CY12*SIN(RADIANS(CU37)+CU14) ->  | CW37: =CW12+CY12*COS(RADIANS(CU37)+CU14) ->  | CX37: =IF(CV13>CV37,ATAN((CW13-CW37)/(CV13-CV37)),ATAN((CW13-CW37)/(CV37-CV13))) ->  | CY37: =IF(CV13>CV37,(CV13-CV37)/COS(CX37),(CV37-CV13)/COS(CX37)) ->  | DA37: راس سوم | DE37: =ASIN(DE38/DA35) -> 1.403019319 | DF37: m8
F38: =F33 -> 3 | G38: =G39 -> 155.5 | H38: j7 | J38: =F40 -> 3 | K38: =G40 -> 119.6 | L38: j9 | AG38: αs2 | AH38: =ATAN((AI11-AI12)/(AH12-AH11)) -> 1.227730317 | AK38: =AH27 -> 68.67506813 | AL38: =AI27 -> 109.0849377 | AM38: s11 | AW38: زاویه خم بودن دست | AX38: =K390 -> 26.63943751 | AZ38: =AX30 -> 120 | BA38: =AX31 -> 121.6 | BB38: 17 | CL38: =CI27 -> 47.55 | CM38: =CJ27 -> 8 | CN38: s13 | CU38: 46 | CV38: =CV12+CY12*SIN(RADIANS(CU38)+CU14) ->  | CW38: =CW12+CY12*COS(RADIANS(CU38)+CU14) ->  | CX38: =IF(CV13>CV38,ATAN((CW13-CW38)/(CV13-CV38)),ATAN((CW13-CW38)/(CV38-CV13))) ->  | CY38: =IF(CV13>CV38,(CV13-CV38)/COS(CX38),(CV38-CV13)/COS(CX38)) ->  | DA38: =DA34+DE36*COS(DA36) -> 11.12972299 | DB38: =DB34-DE36*SIN(DA36) -> 41.10655594 | DC38: 3 | DE38: =DE33*SIN(DE35) -> 9.859584224 | DF38: m9
F39: ='طراحی همه الگوها'!U181+F33 -> 5.1 | G39: =G33-'طراحی همه الگوها'!U180 -> 155.5 | H39: j8 | J39: =F38 -> 3 | K39: =G38 -> 155.5 | L39: j7 | AG39: (s2 →s3) | AH39: =SQRT(POWER((AH12-AH11),2)+POWER((AI11-AI12),2)) -> 5.612290747 | AS39: =AP21 -> 73.35 | AT39: =AQ21 -> 8 | AU39: s'13 | AW39: دست خمیده شبیه ساز k4 | AX39: =K384 -> 60.63626408 | AY39: =L384 -> 103.7358533 | BK39: j4 | BL39: =IF('متغیرها '!C25<1,'متغیرها '!C25*'متغیرها '!U59,IF('متغیرها '!C25<2,'متغیرها '!U59+('متغیرها '!C25-1)*('متغیرها '!U60-'متغیرها '!U59),IF('متغیرها '!C25<3,'متغیرها '!U60+('متغیرها '!C25-2)*(I105-'متغیرها '!U60),I105+('متغیرها '!C25-3)*(H127-H126)))) -> 0 | BR39: =BJ29 -> 3 | BS39: =BK29 -> 170.3 | BT39: 1 | BZ39: =BZ13 -> 0 | CA39: =CA33-BW43 -> 199.97 | CB39: 19' | CD39: =CD13 -> 116.025 | CE39: =CA33 -> 211.1 | CF39: 27 | CL39: =CI30 -> 3 | CM39: =CJ30 -> 8 | CN39: 2 | CU39: 48 | CV39: =CV12+CY12*SIN(RADIANS(CU39)+CU14) ->  | CW39: =CW12+CY12*COS(RADIANS(CU39)+CU14) ->  | CX39: =IF(CV13>CV39,ATAN((CW13-CW39)/(CV13-CV39)),ATAN((CW13-CW39)/(CV39-CV13))) ->  | CY39: =IF(CV13>CV39,(CV13-CV39)/COS(CX39),(CV39-CV13)/COS(CX39)) -> 
F40: =F33 -> 3 | G40: =G41 -> 119.6 | H40: j9 | L40: انحنا | AG40: (s2 →s14) | AH40: =AH39*2*('متغیرها '!C10-0.5) -> 5.612290747 | AK40: =AK38 -> 68.67506813 | AL40: =AL38 -> 109.0849377 | AM40: s11 | AS40: =AP28 -> 3 | AT40: =AQ28 -> 8 | AU40: 2' | BK40: (9→11) | BL40: ='متغیرها '!C29*BL45+'متغیرها '!C27*'متغیرها '!U83 -> 28.55183567 | BR40: =BJ30 -> -6.1 | BS40: =BK30 -> -3.1 | BT40: 3 | CD40: =CD13 -> 116.025 | CE40: =CE13 -> 158.75 | CF40: 28 | CU40: 50 | CV40: =CV12+CY12*SIN(RADIANS(CU40)+CU14) ->  | CW40: =CW12+CY12*COS(RADIANS(CU40)+CU14) ->  | CX40: =IF(CV13>CV40,ATAN((CW13-CW40)/(CV13-CV40)),ATAN((CW13-CW40)/(CV40-CV13))) ->  | CY40: =IF(CV13>CV40,(CV13-CV40)/COS(CX40),(CV40-CV13)/COS(CX40)) -> 
F41: =F39 -> 5.1 | G41: =G38-'طراحی همه الگوها'!U182 -> 119.6 | H41: j10 | J41: =F36 -> 80.4 | K41: =G36 -> 170.3 | L41: j5 | AG41: شیفت افقی کل | AH41: ='متغیرها '!C51 -> 3 | AK41: =AH26 -> 54.3781365 | AL41: =AI26 -> 111.7226917 | AM41: s12 | BK41: (8→9) | BL41: =BL37+'متغیرها '!C29*BL45*COS(BL46-RADIANS(45)+BL42)-BK31 -> 102.5332185 | CL41: =CL39 -> 3 | CM41: =CM39 -> 8 | CN41: 2 | CU41: 52 | CV41: =CV12+CY12*SIN(RADIANS(CU41)+CU14) ->  | CW41: =CW12+CY12*COS(RADIANS(CU41)+CU14) ->  | CX41: =IF(CV13>CV41,ATAN((CW13-CW41)/(CV13-CV41)),ATAN((CW13-CW41)/(CV41-CV13))) ->  | CY41: =IF(CV13>CV41,(CV13-CV41)/COS(CX41),(CV41-CV13)/COS(CX41)) -> 
F42: =F35+'طراحی همه الگوها'!U183 -> 23.6 | G42: =G33 -> 170.3 | H42: j11 | J42: =F45 -> 78.411 | K42: 155.714 | L42: j5' | AG42: شیفت عمودی کل | AH42: ='متغیرها '!C52 -> 8 | AS42: =AS40 -> 3 | AT42: =AT40 -> 8 | AU42: 2' | BK42: α2 | BL42: ='متغیرها '!B245 -> 0.3204522679 | BR42: =BN28 -> 53.3 | BS42: =BO28 -> 69.025 | BT42: 15 | BV42: j4 | BW42: =IF('متغیرها '!C37<1,'متغیرها '!C37*'متغیرها '!U59,IF('متغیرها '!C37<2,'متغیرها '!U59+('متغیرها '!C37-1)*('متغیرها '!U60-'متغیرها '!U59),IF('متغیرها '!C37<3,'متغیرها '!U60+('متغیرها '!C37-2)*(I105-'متغیرها '!U60),I105+('متغیرها '!C37-3)*(H127-H126)))) -> 0 | CL42: =CI31 -> 3 | CM42: =CJ31 -> 106.5477071 | CN42: s''12 | CU42: 54 | CV42: =CV12+CY12*SIN(RADIANS(CU42)+CU14) ->  | CW42: =CW12+CY12*COS(RADIANS(CU42)+CU14) ->  | CX42: =IF(CV13>CV42,ATAN((CW13-CW42)/(CV13-CV42)),ATAN((CW13-CW42)/(CV42-CV13))) ->  | CY42: =IF(CV13>CV42,(CV13-CV42)/COS(CX42),(CV42-CV13)/COS(CX42)) -> 
F43: =F35 -> 14.1 | G43: =G33-'طراحی همه الگوها'!U184 -> 162.3 | H43: j12 | J43: 70.455 | K43: 137.15 | L43: j5'' | AG43: j4 | AH43: =IF('متغیرها '!C9<1,'متغیرها '!C9*'متغیرها '!U59,IF('متغیرها '!C9<2,'متغیرها '!U59+('متغیرها '!C9-1)*('متغیرها '!U60-'متغیرها '!U59),IF('متغیرها '!C9<3,'متغیرها '!U60+('متغیرها '!C9-2)*(I105-'متغیرها '!U60),I105+('متغیرها '!C9-3)*(H127-H126)))) -> 0 | AI43: چادر 2 | AK43: =AK41 -> 54.3781365 | AL43: =AL41 -> 111.7226917 | AM43: s12 | AS43: =AH13 -> 3 | AT43: =AI13 -> 119 | AU43: خط سینه | BK43: شیفت افقی مرغک | BL43: ='متغیرها '!C33*0.5*('متغیرها '!U72-'متغیرها '!U73) -> 53.3 | BR43: =BN32 -> 59.8 | BS43: =BO32 -> 88.825 | BT43: 18 | BV43: (14 →19') | BW43: =AH45+0.1*'متغیرها '!C40 -> 11.13 | BZ43: رسم چادر شماره 5 برای پرینت | CU43: 56 | CV43: =CV12+CY12*SIN(RADIANS(CU43)+CU14) ->  | CW43: =CW12+CY12*COS(RADIANS(CU43)+CU14) ->  | CX43: =IF(CV13>CV43,ATAN((CW13-CW43)/(CV13-CV43)),ATAN((CW13-CW43)/(CV43-CV13))) ->  | CY43: =IF(CV13>CV43,(CV13-CV43)/COS(CX43),(CV43-CV13)/COS(CX43)) -> 
F44: =F35 -> 14.1 | G44: =G34 -> 104 | H44: j13 | J44: 53.88 | K44: 119.249 | L44: j5''' | AG44: (j1 → j2) | AH44: =ROUND(G19+0.1*'متغیرها '!U85-AH43,1) -> 162.3 | AK44: =AH25 -> 60.52055533 | AL44: =AI25 -> 130.2300062 | AM44: s10 | BK44: شیفت عمودی مرغک | BL44: =IF('متغیرها '!C34<1,'متغیرها '!C34*'متغیرها '!U59,IF('متغیرها '!C34<2,'متغیرها '!U59+('متغیرها '!C34-1)*('متغیرها '!U60-'متغیرها '!U59),IF('متغیرها '!C34<3,'متغیرها '!U60+('متغیرها '!C34-2)*(I105-'متغیرها '!U60),I105+('متغیرها '!C34-3)*(H127-H126))))+'طراحی همه الگوها'!U245 -> 69.025 | BV44: شیفت عمودی الگو دسته | BW44: 7 | CA44: صاف | CB44: برای پرینت | CE44: انحنا | CF44: برای پرینت | CL44: =CL42 -> 3 | CM44: =CM42 -> 106.5477071 | CN44: s''12 | CU44: 58 | CV44: =CV12+CY12*SIN(RADIANS(CU44)+CU14) ->  | CW44: =CW12+CY12*COS(RADIANS(CU44)+CU14) ->  | CX44: =IF(CV13>CV44,ATAN((CW13-CW44)/(CV13-CV44)),ATAN((CW13-CW44)/(CV44-CV13))) ->  | CY44: =IF(CV13>CV44,(CV13-CV44)/COS(CX44),(CV44-CV13)/COS(CX44)) -> 
F45: =F44+0.97*(F36-F44) -> 78.411 | G45: =G44+0.78*(G36-G44) -> 155.714 | H45: j5' | J45: 30.675 | K45: 106.652 | L45: j5'''' | AG45: (j1 → j3) | AH45: =0.21*G13 -> 11.13 | AI45: بدون انتخاب | BK45: شبیه ساز آستین(3→19) | BL45: =BL516 -> 40.78833666 | BR45: =BN34 -> 66.3 | BS45: =BO34 -> 69.025 | BT45: 17 | BV45: شیفت عمودی الگو دسته برای پرینت | BW45: =-'متغیرها '!U56 -> -95.5 | BZ45: =BZ13+'طراحی همه الگوها'!U260+'طراحی همه الگوها'!U262 -> 98.1 | CA45: =CA25+BW45 -> 3.9 | CB45: 13 | CD45: =BZ45 -> 98.1 | CE45: =CA45 -> 3.9 | CF45: 13 | CL45: =CI32 -> 3 | CM45: =CJ32 -> 110.4477071 | CN45: s'12 | CU45: 60 | CV45: =CV12+CY12*SIN(RADIANS(CU45)+CU14) ->  | CW45: =CW12+CY12*COS(RADIANS(CU45)+CU14) ->  | CX45: =IF(CV13>CV45,ATAN((CW13-CW45)/(CV13-CV45)),ATAN((CW13-CW45)/(CV45-CV13))) ->  | CY45: =IF(CV13>CV45,(CV13-CV45)/COS(CX45),(CV45-CV13)/COS(CX45)) -> 
F46: =F44+0.85*(F36-F44) -> 70.455 | G46: =G44+0.5*(G36-G44) -> 137.15 | H46: j5'' | J46: =F44 -> 14.1 | K46: =G44 -> 104 | L46: j13 | AK46: =AH28 -> 72.5 | AL46: =AI28 -> 8 | AM46: s13 | BK46: شبیه سازαk1 | BL46: =F423 -> 1.389834572 | BR46: =BN30 -> 59.8 | BS46: =BO30 -> 49.225 | BT46: 19 | BZ46: =BZ13 -> 0 | CA46: =CA45 -> 3.9 | CB46: 12 | CD46: =CD45+0.45*(CD49-CD45) -> 108.855 | CE46: =CE45+0.25*(CE49-CE45) -> 30.075 | CF46: 13' | CU46: 62 | CV46: =CV12+CY12*SIN(RADIANS(CU46)+CU14) ->  | CW46: =CW12+CY12*COS(RADIANS(CU46)+CU14) ->  | CX46: =IF(CV13>CV46,ATAN((CW13-CW46)/(CV13-CV46)),ATAN((CW13-CW46)/(CV46-CV13))) ->  | CY46: =IF(CV13>CV46,(CV13-CV46)/COS(CX46),(CV46-CV13)/COS(CX46)) -> 
F47: =F44+0.6*(F36-F44) -> 53.88 | G47: =G44+0.23*(G36-G44) -> 119.249 | H47: j5''' | J47: =F34 -> 3 | K47: =G34 -> 104 | L47: j2 | AK47: =AH17 -> 3 | AL47: =AI28 -> 8 | AM47: 2 | BZ47: =BZ13 -> 0 | CA47: =CA46+'طراحی همه الگوها'!U258 -> 17.3 | CB47: 18 | CD47: =CD45+0.75*(CD49-CD45) -> 116.025 | CE47: =CE45+0.5*(CE49-CE45) -> 56.25 | CF47: 13'' | CL47: =CL45 -> 3 | CM47: =CM45 -> 110.4477071 | CN47: s'12 | CU47: 64 | CV47: =CV12+CY12*SIN(RADIANS(CU47)+CU14) ->  | CW47: =CW12+CY12*COS(RADIANS(CU47)+CU14) ->  | CX47: =IF(CV13>CV47,ATAN((CW13-CW47)/(CV13-CV47)),ATAN((CW13-CW47)/(CV47-CV13))) ->  | CY47: =IF(CV13>CV47,(CV13-CV47)/COS(CX47),(CV47-CV13)/COS(CX47)) -> 
F48: =F44+0.25*(F36-F44) -> 30.675 | G48: =G44+0.04*(G36-G44) -> 106.652 | H48: j5'''' | BR48: =BN28 -> 53.3 | BS48: =BO28 -> 69.025 | BT48: 15 | BZ48: =BZ13 -> 0 | CA48: =CA47+'طراحی همه الگوها'!U259 -> 108.6 | CB48: 14 | CD48: =CD45+0.95*(CD49-CD45) -> 120.805 | CE48: =CE45+0.8*(CE49-CE45) -> 87.66 | CF48: 13''' | CL48: =CI23 -> 27.57 | CM48: =CJ23 -> 110.4477071 | CN48: s12 | CU48: بهینه α | CV48: =IF(CY13<CY16,CU16,IF(CY13<CY17,CU17,IF(CY13<CY18,CU18,IF(CY13<CY19,CU19,IF(CY13<CY20,CU20,IF(CY13<CY21,CU21,IF(CY13<CY22,CU22,IF(CY13<CY23,CU23,IF(CY13<CY24,CU24,IF(CY13<CY25,CU25,IF(CY13<CY26,CU26,IF(CY13<CY27,CU27,IF(CY13<CY28,CU28,IF(CY13<CY29,CU29,IF(CY13<CY30,CU30,IF(CY13<CY31,CU31,IF(CY13<CY32,CU32,IF(CY13<CY33,CU33,IF(CY13<CY34,CU34,IF(CY13<CY35,CU35,IF(CY13<CY36,CU36,IF(CY13<CY37,CU37,IF(CY13<CY38,CU38,IF(CY13<CY39,CU39,IF(CY13<CY40,CU40,IF(CY13<CY41,CU41,IF(CY13<CY42,CU42,IF(CY13<CY43,CU43,IF(CY13<CY44,CU44,IF(CY13<CY45,CU45,IF(CY13<CY46,CU46,CU47))))))))))))))))))))))))))))))) ->  | CW48: =RADIANS(CV48) ->  | CX48: c21 | CY48: =IF(CV13>CV50,ATAN((CW13-CW50)/(CV13-CV50)),ATAN((CW13-CW50)/(CV50-CV13))) -> 
AK49: =AK47 -> 3 | AL49: =AL47 -> 8 | AM49: 2 | BR49: =BN30 -> 59.8 | BS49: =BO30 -> 49.225 | BT49: 19 | BZ49: =BZ13+'طراحی همه الگوها'!U263 -> 122 | CA49: =CA48 -> 108.6 | CB49: 15 | CD49: =BZ49 -> 122 | CE49: =CA49 -> 108.6 | CF49: 15 | CV49: مولفه افقی | CW49: مولفه عمودی | DD49: پروسیجرها
AK50: =AH13 -> 3 | AL50: =AI13 -> 119 | AM50: خط سینه | CL50: =CL48 -> 27.57 | CM50: =CM48 -> 110.4477071 | CN50: s12 | CU50: e23 | CV50: =CV12+CY12*SIN(CW48+CU14) ->  | CW50: =CW12+CY12*COS(CW48+CU14) ->  | CX50: راس سوم
K51: محاسبات بافت | BR51: =BN34 -> 66.3 | BS51: =BO34 -> 69.025 | BT51: 17 | BZ51: =CD54 -> 59.7 | CA51: =CA46 -> 3.9 | CB51: 16 | CD51: =BZ47 -> 0 | CE51: =CA47 -> 17.3 | CF51: 18 | CL51: =CI24 -> 27.57 | CM51: =CJ24 -> 106.5477071 | CN51: 41 شبیه ساز
BR52: =BN32 -> 59.8 | BS52: =BO32 -> 88.825 | BT52: 18 | CD52: =CD18 -> 23.9 | CE52: =CA46+'طراحی همه الگوها'!U269 -> 18.3 | CF52: 24
E53: متغیرهای ورودی مربوط به ضخامت میل (متناسب با ضخامت نخ) | H53: متغیرهای ورودی یقه ب ب گرد بافت همه از زیر | K53: متغیرهای ورودی یقه شکاری کشباف | N53: متغیر محاسبه ای یقه انگلیسی | Q53: متغیرهای ورودی یقه شومیزیه بافت همه از زیر | CD53: =CD19 -> 47.8 | CE53: =CA46+'طراحی همه الگوها'!U271 -> 22.7 | CF53: 26 | CL53: =CL51 -> 27.57 | CM53: =CM51 -> 106.5477071 | CN53: 41 شبیه ساز
E54: (بدون احتساب بافت انتخابی) a'0 ضریب تعداد رج | F54: =IF(F56=2,N68,IF(F56=3,O68,P68)) -> 2.8 | H54: =ROUND(I60*G167,1) -> 18 | I54: پهنا (cm)= | K54: =ROUND(L59*(0.4*G166+0.037*H131),1) -> 5.8 | L54: پهنا (cm)= | N54: d'3 | O54: ='متغیرها '!C167*H124 -> 4.35 | Q54: =ROUND(R61*R57,1) -> 2.6 | R54: پهنا (cm)= | BR54: =BJ29 -> 3 | BS54: =BK29 -> 170.3 | BT54: 1 | CD54: =BZ46+'طراحی همه الگوها'!U260 -> 59.7 | CE54: =CA46+'طراحی همه الگوها'!U261 -> 27.2 | CF54: 17 | CL54: =CI31 -> 3 | CM54: =CJ31 -> 106.5477071 | CN54: s''12
E55: (بدون احتساب بافت انتخابی) b'0 ضریب تعداد دانه | F55: =IF(F56=2,N69,IF(F56=3,O69,P69)) -> 1.8 | H55: متغیر محاسبه ای یقه ب ب گرد | K55: متغیر محاسبه ای یقه شکاری | N55: d11 | O55: =(0.95+1.45*'متغیرها '!C164)*(0.4*G166+0.037*H131) -> 6.952155182 | Q55: =ROUND(R62*R57,1) -> 4.1 | R55: پهنا (cm)= | BR55: =BJ31 -> 11.5 | BS55: =BK31 -> 8 | BT55: 5
E56: انتخاب ضخامت میل بافتنی f1 | F56: ='متغیرها '!C43 -> 3 | H56: c6 | I56: =ROUNDUP(1.3*F54*I57,0) -> 66 | K56: a7 | L56: =F54*L59*(0.4*G166+0.037*H131) -> 16.22169543 | N56: d'12 | O56: =G275-G270 -> 26.31138703 | Q56: متغیر محاسبه ای شومیزیه
E57: جمع شوندگی عمودی بافت f2 | F57: ='متغیرها '!C44 -> 0 | H57: c'6 | I57: =I60*G167 -> 17.97669344 | N57: d12 | O57: =ROUND(F54*O56,0) -> 74 | Q57: e'1 | R57: =(0.4*G166+0.037*H131) -> 2.896731326
E58: جمع شوندگی افقی بافت f3 | F58: ='متغیرها '!C45 -> 0 | K58: متغیرهای ورودی یقه شکاری کشباف | N58: d''12 | O58: =G276+AX147 -> 7.837525666 | Q58: e''1 | R58: =R62*R57 -> 4.055423856
E59: از آستین رگلان γ9 | F59: =DE542 -> 0.6302890728 | H59: متغیرهای ورودی یقه ب ب گرد بافت همه از زیر | K59: ضریب پهنای یقه (1.5 الی 3) | L59: ='متغیرها '!C731 -> 2
E60: γ10 از آستین رگلان | F60: =DE543 -> 0.4787341247 | H60: ضریب پهنای یقه (0.6 الی 1.2) | I60: =1.9*'متغیرها '!C751 -> 1.52 | K60: یقه شکاری کشباف | N60: یقه انگلیسی بافت جودانه | Q60: متغیرهای ورودی یقه شومیزیه بافت همه از زیر
H61: یقه ب ب گرد | Q61: ضریب پهنای پایه یقه (1 الی 2) | R61: ='متغیرها '!C738 -> 0.9
E62: گشادی بالای مچ آستین (cm) b'11 | F62: =ROUND(DY522-DY523,0) -> 22 | N62: b'1 نوار باز شده گردن - دور تا دور گردن | O62: =CP680+CP681 -> 25.51177398 | Q62: ضریب پهنای برگرد یقه (1.5 الی 3) | R62: ='متغیرها '!C742 -> 1.4
E63: تعداد دانه ها در بالای مچ آستین b'12 | F63: =ROUND(O65*F62,0) -> 40 | N63: محاسبه شده (با احتساب بافت انتخابی) | Q63: یقه شومیزیه
E64: تعداد دانه های اضافه شده زیر بغل b8 | F64: =ROUNDUP(O65*(AX119+AX114+BI116),0) -> 9 | H64: b22 | I64: =SQRT(POWER(F84,2)-POWER(F67,2)) -> 44.34655887 | N64: a0 تعداد رج در یک سانت | O64: =F54+0.3*F57*F54 -> 2.8
E65: تعداد دانه های سرتاسر آستین در قسمت زیر بغل b20 | F65: =ROUNDUP(F64+O64*F80*COS(0.4*(F59+F60))+J86+0.5*F78,0) -> 84 | H65: b'22 | I65: =I64*O64 -> 124.1703648 | N65: تعداد دانه در یک سانتb0 | O65: =F55+0.68*F58*F55 -> 1.8
E66: تعداد دانه های اضافه شده در کنار آستین در هر طرف b21 | F66: =0.5*(F65-F63) -> 22 | H66: b12 | I66: =ROUND(F63/((F62-F88)*O65),0) -> 
E67: طول اضافه شده در کنار آستین در هر طرف b'21 | F67: =F66/O65 -> 12.22222222 | N67: میل 2 و 2.5 | O67: میل 3 و 3.5 | P67: میل 4 و 4.5
E68: هر b11 رج در بافت آستین یکدانه از ابتدا و یکدانه از انتها کم شود | F68: =ROUND(I65/F66,0) -> 6 | N68: 3.5 | O68: 2.8 | P68: 2.6 | Q68: a''0
N69: 2.3 | O69: 1.8 | P69: 1.7 | Q69: b''0
J73: محاسبات بافت
E74: محاسبات در بافت بالاتنه و آستین (بافت انتخابی)
E75: تعداد دانه ها دور گردن + دو تا نیمه جادکمه که از خط مرکزی اضافه شده | F75: =F77+2*F76 -> 92 | H75: یقه ب ب گرد | K75: یقه شکاری | N75: یقه شومیزیه | Q75: یقه انگلیسی
E76: b2 تعداد دانه های اضافه شده از خط مرکزی تا خط جادکمه = نیمه جادکمه | F76: =ROUNDUP(F55*'متغیرها '!C66*(2*H129+H130),0) -> 0 | H76: بافت همه از زیر | K76: بافت کشباف | N76: بافت همه از زیر | Q76: بافت جودانه
E77: (بدون اعمال بافت اننتخابی) b1 تعداد دانه ها دور تا دور گردن | F77: =I87+2*I86+2*I85+I84 -> 92 | H77: c1 | I77: =F77+2*(I80+1)+1*(I79+1)-3 -> 156 | K77: a1 | L77: =2*F77 -> 184 | N77: e1 | O77: =F77-I84+O82+2*O78+15 -> 113 | Q77: d1 | R77: =I87+2*I86+2*ROUND(F55*O250,0)-2*R79 -> 82
E78: تعداد رج دوبل برای ایجاد گودی گردن جلو b13 | F78: =ROUNDDOWN(0.25*O64*((AX129-BI128)),0) -> 6 | H78: c2 | I78: =ROUND(0.25*1.3*F54*I57,0)-1 -> 15 | K78: a2 | L78: =IF((ROUND(0.6*L56,0)-6)<0," خطا - قد پشت یقه زیاد شود ",(ROUND(0.6*L56,0)-6)) -> 4 | N78: e2 | O78: =ROUNDDOWN(0.5*(1.3*F54*R58-9),0) -> 2 | Q78: d2 | R78: =ROUND(F54*O54,0) -> 12
E79: تعداد رج سوبل برای ایجاد گودی گردن جلو b'''13 | F79: =ROUND((1/8)*O64*((AX129-BI128)),0) -> 3 | H79: c3 | I79: =ROUND(0.45*1.3*F54*I57,0)-1 -> 28 | K79: a3 | L79: =ROUND(0.33*L81,0) -> 21 | N79: e3 | O79: =ROUND(0.15*(F77-I84+O82+13),0) -> 16 | Q79: d3 | R79: =ROUND(F55*O54,0) -> 8
E80: فاصله گردن تا محل جدا شدن آستین در قسمت جلو (cm) b7 | F80: =ROUNDUP(SQRT(POWER(CI103-CI121,2)+POWER(CJ103-CJ121,2)),0) -> 22 | H80: c4 | I80: =I56-I78-I79-5 -> 18 | K80: a4 | L80: =ROUND(0.66*L81,0) -> 42 | N80: e4 | O80: =ROUND(0.24*(F77-I84+O82+9),0) -> 25 | Q80: d4 | R80: =IF((ROUND(F54*O55,0)-R78-4)<0,"خطا - بزرگی پشت یقه زیاد شود",(ROUND(F54*O55,0)-R78-4)) -> 3
E81: تعداد دانه های اضافه شده زیر بغل b8 | F81: =F64 -> 9 | K81: a5 | L81: =ROUND(0.35*L77,0) -> 64 | N81: e5 | O81: =ROUND(0.35*(F77-I84+O82+3),0) -> 34 | Q81: d5 | R81: =R77+2*R79 -> 98
E82: تعداد دانه های سرتاسر آستین در قسمت زیر بغل b20 | F82: =F65 -> 84 | K82: a6 | L82: =ROUND(0.4*L56,0) -> 6 | N82: e6 | O82: =O78 -> 2 | Q82: d6 | R82: =I87 -> 24
E83: فاصله زیر بغل تا پایین لباس (cm) b9 | F83: =ROUND(AX113,0) -> 55 | H83: تقسیم بندی بالاتنه | I83: تعداد دانه ها (بافت جودانه یا ساده) | J83: تعداد دانه ها (بافت انتخابی) | N83: e7 | O83: =F76 -> 0 | Q83: d7 | R83: =I86 -> 16
E84: فاصله زیر بغل تا بالای مچ آستین (cm) b10 | F84: =ROUNDUP(SQRT(POWER(DY513-DY520,2)+POWER(DZ513-DZ520,2)),0) -> 46 | H84: b6 جادکمه | I84: =2*F76 -> 0 | N84: e8 | O84: =2*(F76-2) -> -4 | Q84: d8 | R84: =ROUND(F55*O250,0) -> 21
E85: گشادی لبه پایین آستین (cm) b'11 | F85: =F62 -> 22 | H85: b3 جلو بدون جادکمه | I85: =ROUNDUP(F55*(SQRT(POWER(AX129-AX131,2)+POWER(AX130,2))+SQRT(POWER(AX131-AX133,2)+POWER(AX132-AX130,2))),0)-F76 -> 18 | J85: =ROUNDUP(O65*(SQRT(POWER(AX129-AX131,2)+POWER(AX130,2))+SQRT(POWER(AX131-AX133,2)+POWER(AX132-AX130,2))),0)-F76 -> 18 | N85: e9 | O85: =ROUNDUP(R61*1.3*F54*R57,0)-O83-O84-3 -> 11 | Q85: d9 | R85: =ROUND((F54*O56)/(F55*O58),0) -> 5
E86: تعداد دانه ها در بالای مچ آستین b'12 | F86: =F63 -> 40 | H86: b4 آستین | I86: =ROUNDDOWN(F55*(DE534+DE535),0) -> 16 | J86: =ROUNDDOWN(O65*(DE534+DE535),0) -> 16 | Q86: d10 | R86: =IF(ROUND((F54*(G271-G270))/(F55*G272),0)>40,"----",ROUND((F54*(G271-G270))/(F55*G272),0)) -> 11
E87: پهنای مچ آستین (cm) b14 | F87: =ROUNDUP(CA513-CA511,0) -> 7 | H87: b5 پشت | I87: =ROUNDDOWN(F55*2*(SQRT(POWER(BI128-BI130,2)+POWER(BI129,2))+SQRT(POWER(BI130-BI132,2)+POWER(BI131-BI129,2))),0) -> 24 | J87: =ROUNDDOWN(O65*2*(SQRT(POWER(BI128-BI130,2)+POWER(BI129,2))+SQRT(POWER(BI130-BI132,2)+POWER(BI131-BI129,2))),0) -> 24 | Q87: d12 | R87: =O57 -> 74 | AF87: شبیه ساز بالاتنه پشت
E88: گشادی مچ جدار در پایین آستین (cm) b15 | F88: =ROUND(BZ520-BZ519,0) -> 22 | AF88: انحنا | AJ88: خطوط برش
E89: در بالای مچ هر b12 دانه یکی کم شود | F89: =I66 ->  | AF89: =Y146 -> 6.992 | AG89: =Y114 -> 40.5 | AH89: 27 | AJ89: =Y146 -> 6.992 | AK89: =Y114 -> 40.5 | AL89: 27
E90: هر b11 رج در بافت آستین یکدانه از ابتدا و یکدانه از انتها کم شود | F90: =F68 -> 6 | AF90: =Y150 -> 5.244 | AG90: =Y114-Y151 -> 39.26290301 | AH90: 32 | AJ90: =Y146+Y153 -> 12.664984 | AK90: =Y114-Y154 -> 39.2028697 | AL90: 34
AF91: =Y148 -> 2.7968 | AG91: =Y114-Y149 -> 38.64435452 | AH91: 30
AF92: 0 | AG92: =Y114-Y147 -> 38.43817169 | AH92: 28 | AJ92: =Y115-Y135+Y141-Y156 -> 14.23270072 | AK92: =Y130+Y136+Y142+Y157 -> 38.91330134 | AL92: 36
AJ93: =Y115-Y135+Y141 -> 19.42 | AK93: =Y130+Y136+Y142 -> 36.27564696 | AL93: 24 | AZ93: انحنای حلقه آستین جلو
AF94: =Y115-Y135+Y141 -> 19.42 | AG94: =Y130+Y136+Y142 -> 36.27564696 | AH94: 24 | AZ94: =AZ125+'متغیرها '!C55 -> 29.08211047 | BA94: =BA125 -> 139.9739481 | BB94: شیفت22
AF95: =Y115-Y135+Y143 -> 18.076 | AG95: =Y130+Y136+Y144 -> 31.20066834 | AH95: 26 | AJ95: =Y115 -> 21.71462297 | AK95: =Y130 -> 16.99791669 | AL95: 14 | AZ95: =AZ128+'متغیرها '!C55 -> 25.99317154 | BA95: =BA128 -> 134.8320453 | BB95: شیفت24 | BF95: جادکمه در پیراهن
L96: به دست آوردن نقطه تقاطع دو خط (نمونه کپی) | M96: مولفه افقی | N96: مولفه عمودی | Q96: شبیه ساز بالاتنه جلو | AF96: =Y115-Y135 -> 17.5 | AG96: =Y130+Y136 -> 24.99791669 | AH96: 18 | AJ96: =Y115 -> 21.71462297 | AK96: =Y130-Y132 -> 16.99791669 | AL96: 16 | AZ96: =AZ115+'متغیرها '!C55 -> 24.66934057 | BA96: =BA115 -> 129.6901424 | BB96: شیفت16 | BD96: =AZ106 -> 3 | BE96: =BA106 -> 67.935 | BF96: 1
K97: نقطه اول از خط اول | L97: اسم نقطه | M97: 1 | N97: 1 | Q97: انحنا | U97: خطوط برش | AF97: =Y115-Y139 -> 18.76438689 | AG97: =Y130+Y140 -> 20.19791669 | AH97: 22 | AJ97: =Y121+Y123+Y124+Y127 -> 20.44402586 | AK97: =Y128 -> 0.04988477558 | AL97: 13 | AZ97: =AZ121+'متغیرها '!C55 -> 25.61294245 | BA97: =BA121 -> 125.8232624 | BB97: شیفت20 | BD97: =AX147+AX99 -> 3 | BE97: =0+AX98 -> 67.935 | BF97: 1' | BH97: شیفت عمودی پشت پیراهن | BI97: =BG148+'متغیرها '!U59-BI148+'متغیرها '!C54 -> 69.935
K98: نقطه دوم از خط اول | L98: اسم نقطه | M98: 2 | N98: 2 | Q98: =L143 -> 6.992 | R98: =L114 -> 43.5 | S98: 25 | U98: 0 | V98: =L114-L144 -> 34.89070642 | W98: 26 | AF98: =Y115-Y137 -> 20.87169838 | AG98: =Y130+Y138 -> 17.79791669 | AH98: 20 | AJ98: =Y121+Y123+Y124 -> 11.125 | AK98: 0 | AL98: 11 | AW98: شیفت عمودی جلو پیراهن | AX98: =H114+'متغیرها '!C52+(I104-H104) -> 67.935 | AZ98: =AZ118+'متغیرها '!C55 -> 27.02834528 | BA98: =BA118 -> 124.2120624 | BB98: شیفت18 | BD98: =AX148+AX99 -> 3 | BE98: =AX103-AX129+AX98 -> 134.2513362 | BF98: 26' | BH98: شیفت افقی پشت پیراهن | BI98: ='متغیرها '!C53 -> 3
E99: اندازه ها در دامن و شلوار | H99: اندازه محاسبه | I99: شبیه ساز | K99: نقطه اول از خط دوم | L99: اسم نقطه | M99: 3 | N99: 2 | Q99: =L147 -> 5.5936 | R99: =L114-L148 -> 39.19535321 | S99: 30 | U99: 0 | V99: 0 | W99: 1 | AF99: =Y115 -> 21.71462297 | AG99: =Y130 -> 16.99791669 | AH99: 14 | AW99: شیفت افقی جلو پیراهن | AX99: ='متغیرها '!C51 -> 3 | AZ99: =AZ113+'متغیرها '!C55 -> 29.38735 | BA99: =BA113 -> 123.2453424 | BB99: شیفت12 | BD99: =AZ102 -> 3 | BE99: =BA102 -> 134.2513362 | BF99: 26 | BG99: =BG149+BG150+BG151+1*(IF('متغیرها '!U55>'متغیرها '!U53,0.5*'متغیرها '!U55,0.5*'متغیرها '!U53)-BG149-BG151+BG163)-1*BG142-IF('متغیرها '!C125=1,2*BG143,BG150) -> 25.25 | BH99: (1 → 41) با شرط x5=1 | BI99: =BI149+BI150+BI151+1*(IF(H103>H101,0.5*H103,0.5*H101)+'متغیرها '!C62*H120-BI149-BI151+BI163)-1*BI142-IF('متغیرها '!C125=1,2*BI143,BI150) -> 25.44845
E100: دور کمر | F100: a | H100: ='متغیرها '!U52+0.3*'متغیرها '!C60*('متغیرها '!U52+'متغیرها '!U54+'متغیرها '!U72) -> 85.84 | I100: ='متغیرها '!U52 -> 85 | K100: نقطه دوم از خط دوم | L100: اسم نقطه | M100: 4 | N100: 4 | Q100: =L145 -> 2.7968 | R100: =L114-L146 -> 35.75163578 | S100: 28 | U100: =L120 -> 9.6286 | V100: 0 | W100: 8 | AJ100: =Y121+Y123 -> 10.225 | AK100: 0 | AL100: 10 | AV100: =AV156+AV157+AV158+1*(IF(('متغیرها '!U54-'متغیرها '!U55)>('متغیرها '!U52-'متغیرها '!U53),0.5*('متغیرها '!U54-'متغیرها '!U55),0.5*('متغیرها '!U52-'متغیرها '!U53))-AV156-AV158)-IF('متغیرها '!C125=1,2*AV150,AV157) -> 24.25 | AW100: (1 → 44) با شرط x5=1 | AX100: =AX156+AX157+AX158+1*(IF((H102-H103)>(H100-H101),0.5*(H102-H103),0.5*(H100-H101))+'متغیرها '!C62*H120-AX156-AX158)-IF('متغیرها '!C125=1,2*AX150,AX157) -> 24.47155 | AZ100: =BD156 -> 30.99855 | BA100: =BE156 -> 123.2453424 | BB100: شیفت13 | BD100: =AZ106 -> 3 | BE100: =BA106 -> 67.935 | BF100: 1 | BH100: زاویه خط پهلو پشت | BI100: =ATAN((BI106-BI108)/(BI110-BI112-BI107)) -> 0.03241911456 | BO100: انحنای حلقه آستین پشت | BS100: انتقال قسمتی از ساسون سرشانه به خط مرکزی جلو و حلقه آستین با ساسون زیر بغل و خط رگلان | CA100: انتقال قسمتی از ساسون سرشانه به خط مرکزی پشت و حلقه آستین با ساسون زیر بغل | CI100: حلقه آستین و سرشانه و رگلان بدون ساسون | CQ100: حلقه آستین و سرشانه و رگلان بدون ساسون | CY100: جیب با ساسون | DG100: تکه پهلو جدا | DT100: کنترل گودی حلقه آستین | EF100: حلقه آستین با ساسون متغیر | EJ100: انگلیسی و آرشال چرخیده | EN100: پهلو ترک | ER100: پهلو برای جیب با ساسون | EV100: اطلاعات اندام | EZ100: پهلو جدا در پیراهن | FD100: رسم انحنا جلو آستر کت | FH100: حلقه آستین با ساسون متغیر | FL100: یقه گرد | FP100: پهلو جدا و ترک وسط و نیمی از حلقه آستین عصایی | FT100: پهلو جدا و ترک وسط و حلقه آستین عصایی در آستر کت | GA100: رسم قرینه جلو پیراهن
E101: نوار کمر از پشت بین دو خط پهلو | F101: b | H101: ='متغیرها '!U53+0.3*'متغیرها '!C60*('متغیرها '!U53+'متغیرها '!U55+'متغیرها '!U73) -> 39.4969 | I101: ='متغیرها '!U53 -> 39.1 | K101: نقطه تقاطع | L101: اسم نقطه | M101: =(N99-N97+M97*((N98-N97)/(M98-M97))-M99*((N100-N99)/(M100-M99)))/(((N98-N97)/(M98-M97))-((N100-N99)/(M100-M99))) -> 4 | N101: =N97+(M101-M97)*((N98-N97)/(M98-M97)) -> 4 | Q101: =0 -> 0 | R101: =L114-L144 -> 34.89070642 | S101: 26 | AJ101: =Y121 -> 0 | AK101: 0 | AL101: 9 | AW101: زاویه خط پهلو جلو در پیراهن راسته با ساسون | AX101: =ATAN((AX110-AX104)/(AX113-AX115-AX111)) -> 0.03241911456 | AZ101: رسم جلو پیراهن | BD101: انحنای حلقه یقه جلو | BH101: زاویه متوسط سرشانه پشت و جلو مانتو راسته | BI101: =0.5*(P139+0.3*(P140-P139)+AE139+0.3*(AE140-AE139)) -> 0.3204522679 | BK101: =BI126+BI98 -> 15.26974818 | BL101: =BI125+BI97 -> 138.7532465 | BM101: 22 | BO101: =BK140 -> 23.13415357 | BP101: =BL140 -> 142.3797043 | BQ101: شیفت18 | BS101: نقاط ورودی | BW101: انتخاب c1 >1 | BX101: ='متغیرها '!C108 -> 0 | CA101: نقاط ورودی | CI101: نقاط ورودی | CO101: حلقه بدون ساسون | CQ101: نقاط ورودی | CV101: انحنا | CY101: نقاط ورودی | DC101: نقاط خروجی | DG101: نقاط ورودی | DK101: نقاط ورودی | DO101: نقاط خروجی | DT101: نقاط ورودی | DX101: نقاط ورودی | ED101: =BW139+BT130 -> 28.88626028 | EE101: =BX139 -> 128.2691728 | EF101: شیفت b14 | EL101: =BS140+BT130 -> 29.38735 | EM101: =BT140 -> 119.0562224 | EN101: شیفت 14 | EP101: مولفه افقی | EQ101: مولفه عمودی | ER101: اسم نقطه | EV101: کمر | EX101: =DG103 -> 27.02834528 | EY101: =DH103 -> 124.2120624 | EZ101: =DI103 -> 18شیفت | FB101: =BW114 -> 10.38436934 | FC101: =BX114 -> 140.7341178 | FD101: e5 | FF101: =CE122+CB112 -> 26.03567767 | FG101: =CF122+CB113 -> 123.2486048 | FH101: شیفت b14 | FJ101: =CE105 -> 11.71921424 | FK101: 146.5952 | FL101: 23 | FN101: =DL167 -> 21.30585629 | FO101: =DM167 -> 131.3035201 | FP101: شیفت12p یا 12 | FR101: =DK103 -> 21.30585629 | FS101: 131.3035201 | FT101: شیفت12p | FX101: مولفه افقی | FY101: مولفه عمودی | FZ101: اسم نقطه | GC101: =AZ106 -> 3 | GD101: مرجع | GH101: 12' | GK101: =-2*'متغیرها '!C51 -> -6 | GL101: شیفت افقی | GO101: ='متغیرها '!C52 -> 8 | GP101: شیفت عمودی | GT101: 14' | GX101: 19' | HB101: 48' | HF101: 63' | HJ101: 64' | HN101: 77'
E102: دور باسن | F102: c | H102: ='متغیرها '!U54+0.3*'متغیرها '!C60*('متغیرها '!U52+'متغیرها '!U54+'متغیرها '!U72) -> 99.84 | I102: ='متغیرها '!U54 -> 99 | U102: =L120+L121 -> 12.2186 | V102: 0 | W102: 9 | AJ102: 0 | AK102: =Y117 -> 30.375 | AL102: 5 | AV102: شبیه ساز | AW102: متغیرهای خروجی جلو پیراهن با ساسون کمر | AZ102: =AX99 -> 3 | BA102: =AX103-AX129+AX98 -> 134.2513362 | BB102: 26 | BD102: =AZ140 -> 11.70836185 | BE102: =BA140 -> 146.5514088 | BF102: 25 | BG102: شبیه ساز | BH102: متغیرهای خروجی پشت پیراهن با ساسون کمر (رسم کاربر) | BK102: =0+BI98 -> 3 | BL102: =BI125+BI97 -> 138.7532465 | BM102: 21 | BO102: =BK110 -> 21.85434547 | BP102: =BL110 -> 137.3954214 | BQ102: شیفت20 | BS102: مولفه افقی | BT102: مولفه عمودی | BU102: اسم نقطه | BW102: انتخاب عصایی | BX102: ='متغیرها '!C101 -> 0 | CA102: مولفه افقی | CB102: مولفه عمودی | CC102: اسم نقطه | CI102: مولفه افقی | CJ102: مولفه عمودی | CK102: اسم نقطه | CM102: =CI117+CJ105 -> 21.81059828 | CN102: =CJ117 -> 143.1985633 | CO102: شیفت 22f | CQ102: مولفه افقی | CR102: مولفه عمودی | CS102: اسم نقطه | CU102: =CQ120+CR105 -> 21.82145067 | CV102: =CR120+CR106 -> 143.2423545 | CW102: شیفت 18f | CY102: مولفه افقی | CZ102: مولفه عمودی | DA102: اسم نقطه | DC102: مولفه افقی | DD102: مولفه عمودی | DE102: اسم نقطه | DG102: مولفه افقی | DH102: مولفه عمودی | DI102: اسم نقطه | DK102: مولفه افقی | DL102: مولفه عمودی | DM102: اسم نقطه | DO102: =DK106+DH109 -> 26.78312141 | DP102: =DL106+DH110 -> 124.2142401 | DQ102: شیفت8m | DR102: پیراهن | DT102: مولفه افقی | DU102: مولفه عمودی | DV102: اسم نقطه | DX102: مولفه افقی | DY102: مولفه عمودی | DZ102: اسم نقطه | ED102: =BW140+BT130 -> 28.63017711 | EE102: =BX140 -> 123.7882004 | EF102: شیفت b2 | EH102: =BW105 -> 11.70836185 | EI102: =BX105 -> 146.5514088 | EJ102: چرخیده 25 | EL102: =AZ168+BT130 -> 27.30735 | EM102: =BA168 -> 106.5477071 | EN102: شیفت 41 | EP102: =CY109 -> 12.90107 | EQ102: =CZ109 -> 67.935 | ER102: 52 | ET102: =AZ165 -> 3 | EU102: =BA165 -> 103.5 | EV102: 38 | EX102: =DG121 -> 27.02834528 | EY102: 119.0562224 | EZ102: =DI121 -> 14شیفتm | FB102: =DP169 -> 11.90975923 | FC102: =DQ169 -> 130.9107449 | FD102: a4 | FF102: =CE116+CB112 -> 23.80075432 | FG102: =CF116+CB113 -> 124.0540071 | FH102: شیفت b8 | FJ102: 9.539410683 | FK102: 144.8913767 | FL102: 28 | FN102: =DL168 -> 22.24133441 | FO102: =DM168 -> 126.4699201 | FP102: شیفت16p یا 16 | FR102: 22.24133441 | FS102: 126.4699201 | FT102: شیفت16p | FZ102: 6' | GB102: مولفه افقی | GC102: مولفه عمودی | GD102: اسم نقطه | GF102: =-EX101-GK101 -> -21.02834528 | GG102: =EY101 -> 124.2120624 | GH102: شیفت 18 | GL102: 3' | GP102: 10' | GR102: =-EP102-GK101 -> -6.90107 | GS102: =EQ102 -> 67.935 | GT102: 52 | GV102: =-CR154-GK101 -> -7.87107 | GW102: =CS154 -> 115.9 | GX102: 43 | GZ102: =-DY255-GK101 -> 3 | HA102: =DZ255 -> 127.1094239 | HB102: p10 | HD102: =-U384-GK101 -> -5.708361851 | HE102: =V384 -> 146.5514088 | HF102: 25 | HH102: =-CP238-GK101 -> -1.74 | HI102: =CQ238 -> 77.30281529 | HJ102: m2 | HL102: =-DN238-GK101 -> -23.38735 | HM102: =DO238 -> 119.0562224 | HN102: 14
E103: نوار باسن از پشت بین دو خط پهلو | F103: d | H103: ='متغیرها '!U55+0.3*'متغیرها '!C60*('متغیرها '!U53+'متغیرها '!U55+'متغیرها '!U73) -> 50.8969 | I103: ='متغیرها '!U55 -> 50.5 | K103: به دست آوردن مختصات قرینه یک نقطه نسبت به خط تقارن با داشتن دونقطه از خط تقارن (نمونه کپی) | Q103: =L115-L132+L138 -> 25.38 | R103: =L127+L133+L139 -> 36.92204895 | S103: 22 | U103: =L120+L121+L124 -> 25.54 | V103: =L125 -> 3.047707137 | W103: 11 | AJ103: 0 | AK103: =Y114-Y147 -> 38.43817169 | AL103: 28 | AV103: =L114+'متغیرها '!U56-H114 -> 79.065 | AW103: (1 → 2) | AX103: =K114+H104-H114 -> 78.61640881 | AZ103: =AX99 -> 3 | BA103: =AX105+AX98 -> 120.55 | BB103: 4 | BD103: =AZ148 -> 9.966689481 | BE103: =BA148 -> 140.4013725 | BF103: 30 | BG103: ='متغیرها '!U58-'متغیرها '!U59+Y114 -> 96.7 | BH103: (1 → 2) | BI103: =H106-H114+AA114 -> 76.66020003 | BK103: =0+BI98 -> 3 | BL103: =BI103+BI97 -> 146.5952 | BM103: 2 | BO103: =BK112 -> 21.30585629 | BP103: =BL112 -> 131.3035201 | BQ103: شیفت12 | BT103: =('متغیرها '!C107/('متغیرها '!C106+0.001))*(BU143-BU142) -> 0 | BU103: زاویه چرخش به خط مرکزی جلو | BW103: نقاط خروجی چرخیده | CB103: =('متغیرها '!C112/('متغیرها '!C111+0.001))*(CC126-CC125) -> 0 | CC103: زاویه چرخش به خط مرکزی پشت | CE103: نقاط خروجی چرخیده | CI103: =BW106 -> 9.966689481 | CJ103: =BX106 -> 140.4013725 | CK103: 30 | CM103: =CI118+CJ105 -> 21.16781341 | CN103: =CJ118 -> 137.8369304 | CO103: شیفت 24f | CQ103: =BK135 -> 9.539410683 | CR103: =BL135 -> 144.8913767 | CS103: 28 | CU103: =CQ121+CR105 -> 21.09351849 | CV103: =CR121+CR106 -> 136.6440591 | CW103: شیفت 20f | CY103: =AZ161 -> 13.87107 | CZ103: =BA161 -> 115.9 | DA103: 43 | DC103: =CY110-(CY106-CY109) -> 13.295775 | DD103: =CZ110 -> 67.935 | DE103: 50s | DG103: =AZ98 -> 27.02834528 | DH103: =BA98 -> 124.2120624 | DI103: 18شیفت | DJ103: پیراهن | DK103: =DL167 -> 21.30585629 | DL103: =DM167 -> 131.3035201 | DM103: شیفت12p | DN103: پیراهن | DO103: =DK107+DH109 -> 26.78312141 | DP103: =DL107 -> 119.0584001 | DQ103: شیفت10m | DT103: =DT151 -> 22.09880912 | DU103: =DU151 -> 144.2795007 | DV103: 22b | DW103: راس حلقه آستین | DX103: =DY152 -> 23.3697626 | DY103: =DZ152 -> 142.8731499 | DZ103: 18b | EA103: راس حلقه آستین | EH103: =BW113 -> 10.83752567 | EI103: =BX113 -> 142.861387 | EJ103: e7 | EP103: =DC103 -> 13.295775 | EQ103: 67.935 | ER103: 50s | ET103: =AZ166 -> 13.06107 | EU103: =BA166 -> 103.5 | EV103: 39 | EX103: 24.94834528 | EY103: 106.5477071 | EZ103: =DI122 -> 41شیفتm | FB103: =DP168 -> 16.4859289 | FC103: =DQ168 -> 125.9990584 | FD103: a3 | FF103: =IF('متغیرها '!C119=1,DX123,CE117)+CB112 -> 22.24141031 | FG103: =IF('متغیرها '!C119=1,DY123,CF117)+CB113 -> 126.4706691 | FH103: شیفت b10 یا b'10p | FJ103: 6.487685698 | FK103: 144.039465 | FL103: 26 | FN103: =DO109 -> 23.11444732 | FO103: =DP109 -> 124.6895441 | FP103: =DQ109 -> شیفت8''m | FR103: =DO109 -> 23.11444732 | FS103: =DP109 -> 124.6895441 | FT103: =DQ109 -> شیفت8''m | FX103: =-CM102-GK101 -> -15.81059828 | FY103: =CN102 -> 143.1985633 | FZ103: شیفت 22f | GD103: 7' | GF103: =-EX102-GK101 -> -21.02834528 | GG103: =EY102 -> 119.0562224 | GH103: شیفت 14m | GJ103: =-ED101-GK101 -> -22.88626028 | GK103: =EE101 -> 128.2691728 | GL103: شیفت b14 | GN103: =-EL101-GK101 -> -23.38735 | GO103: =EM101 -> 119.0562224 | GP103: شیفت 14 | GR103: =-EP103-GK101 -> -7.295775 | GS103: 67.935 | GT103: 50s | GV103: =-CR155-GK101 -> -7.06107 | GW103: =CS155 -> 103.5 | GX103: 39 یا d5 | GZ103: =-DY256-GK101 -> 3 | HA103: =DZ256 -> 67.935 | HB103: 1' | HD103: =-U385-GK101 -> -15.81059828 | HE103: =V385 -> 143.1985633 | HF103: 22f | HH103: =-CP239-GK101 -> -3.11867982 | HI103: =CQ239 -> 81.01182994 | HJ103: m10 | HL103: =-DN239-GK101 -> -21.30735 | HM103: =DO239 -> 106.5477071 | HN103: 41
E104: فاصله نوار کمر تا زمین، از قسمت جلو | F104: e | H104: ='متغیرها '!U56+'متغیرها '!C63*'متغیرها '!U56 -> 95.5 | I104: ='متغیرها '!U56 -> 95.5 | K104: مولفه افقی | L104: مولفه عمودی | M104: اسم نقطه | Q104: =L115-L132+L140 -> 22.244 | R104: =L127+L133+L141 -> 31.658894 | S104: 24 | U104: =L115 -> 26.65 | V104: =L127-L129 -> 19.99573905 | W104: 14 | AV104: =L115 -> 26.65 | AW104: (1 → 3) | AX104: =K115 -> 26.38735 | AZ104: =AX106+AX99 -> 13.87107 | BA104: =AX105+AX98 -> 120.55 | BB104: 5 | BD104: =AZ145 -> 6.48334474 | BE104: =BA145 -> 135.4813435 | BF104: 28 | BH104: (1 → 3) | BI104: =BI106+(BI107-BI105)*TAN(BI100) -> 22.86803553 | BK104: =BI127+BI98 -> 11.71921424 | BL104: =BI103+BI97 -> 146.5952 | BM104: 23 | BO104: =BK117 -> 22.24133441 | BP104: =BL117 -> 126.4699201 | BQ104: شیفت16 | BS104: =AZ165+AN119 -> 13.87107 | BT104: =BA165+AO119 -> 119 | BU104: 5 بالاتنه | BV104: نقطه مرکزی چرخش | BW104: مولفه افقی | BX104: مولفه عمودی | BY104: اسم نقطه | CA104: =BO164 -> 13.774225 | CB104: =BP164 -> 127.3281918 | CC104: 40 | CD104: نقطه مرکزی چرخش | CE104: مولفه افقی | CF104: مولفه عمودی | CG104: اسم نقطه | CI104: =AZ104 -> 13.87107 | CJ104: =BA104 -> 120.55 | CK104: 5پیراهن | CM104: =CI119+CJ105 -> 20.89233418 | CN104: =CJ119 -> 132.4752975 | CO104: شیفت 16f | CQ104: =BK154 -> 13.774225 | CR104: =BL154 -> 127.3281918 | CS104: 40 | CU104: =CQ122+CR105 -> 20.91153544 | CV104: =CR122+CR106 -> 132.2451955 | CW104: شیفت 12f | CY104: =BD168-CZ122 -> 14.68107 | CZ104: =BE168 -> 103.5 | DA104: 40 | DC104: =CY111-(CY106-CY109) -> 16.9665075 | DD104: 69.25454143 | DE104: 50's | DG104: =BD177 -> 29.38735 | DH104: 119.0562224 | DI104: 14شیفت | DK104: =DL168 -> 22.24133441 | DL104: =DM168 -> 126.4699201 | DM104: شیفت16p | DO104: =DK108+DH109 -> 26.49825472 | DP104: =DL108 -> 106.5498848 | DQ104: شیفت36m | DT104: =BW105 -> 11.70836185 | DU104: =BX105 -> 146.5514088 | DV104: 25 | DW104: راس یقه | DX104: =CE105 -> 11.71921424 | DY104: =CF105 -> 146.5952 | DZ104: 23 | EA104: راس یقه | ED104: =BW139+BT130 -> 28.88626028 | EE104: =BX139 -> 128.2691728 | EF104: شیفتb14 | EH104: =BW114 -> 10.38436934 | EI104: =BX114 -> 140.7341178 | EJ104: e5 | EL104: =AZ168+BT130 -> 27.30735 | EM104: =BA168 -> 106.5477071 | EN104: شیفت 41 | EP104: 16.9665075 | EQ104: 69.25454143 | ER104: 50's | EX104: 25.11254528 | EY104: 86.54770714 | EZ104: =DI123 -> 45شیفتm | FB104: =DP166 -> 25.63826825 | FC104: =DQ166 -> 124.3618296 | FD104: a1 | FF104: =IF('متغیرها '!C119=1,DX122,CE118)+CB112 -> 21.30550456 | FG104: =IF('متغیرها '!C119=1,DY122,CF118)+CB113 -> 131.3041864 | FH104: شیفت b6 یا b'6p | FJ104: 3 | FK104: 143.7554945 | FL104: 24 | FN104: =DO107 -> 24.4241167 | FO104: =DP107 -> 123.7308801 | FP104: =DQ107 -> شیفت8'm | FR104: =DO107 -> 24.4241167 | FS104: =DP107 -> 123.7308801 | FT104: =DQ107 -> شیفت8'm | FX104: =-CM103-GK101 -> -15.16781341 | FY104: 137.8369304 | FZ104: شیفت 24f | GB104: =-CM113-GK101 -> -15.81059828 | GC104: =CN113 -> 143.1985633 | GD104: شیفت22f | GF104: =-EX103-GK101 -> -18.94834528 | GG104: =EY103 -> 106.5477071 | GH104: شیفت 41m | GJ104: =-ED102-GK101 -> -22.63017711 | GK104: =EE102 -> 123.7882004 | GL104: شیفت b2 | GN104: =-EL104-GK101 -> -21.30735 | GO104: =EM104 -> 106.5477071 | GP104: شیفت 41 | GR104: =-EP104-GK101 -> -10.9665075 | GS104: 69.25454143 | GT104: 50's | HD104: =-U386-GK101 -> -65.34530604 | HE104: =V386 -> 116.4592937 | HF104: k4 | HH104: =-CP240-GK101 -> -7.25471928 | HI104: =CQ240 -> 85.25070382 | HJ104: m8 | HL104: =-DN240-GK101 -> -21.47155 | HM104: =DO240 -> 86.54770714 | HN104: 45
E105: فاصله نوار کمر تا زمین، از قسمت پهلو | F105: f | H105: =ROUND(0.5*('متغیرها '!U56+'متغیرها '!U58),1)+'متغیرها '!C63*ROUND(0.5*('متغیرها '!U56+'متغیرها '!U58),1) -> 96 | I105: =ROUND(0.5*('متغیرها '!U56+'متغیرها '!U58),1) -> 96 | K105: 1 | L105: 1 | M105: e1 | N105: نقطه اول خط تقارن | Q105: =L115-L132 -> 20.9 | R105: =L127+L133 -> 26.39573905 | S105: 16 | U105: =L115 -> 26.65 | V105: =L127 -> 19.99573905 | W105: 12 | AJ105: انحنای حلقه آستین و ساسون سرشانه پشت | AW105: (1→ 4) | AX105: =H104-H114+V142 -> 52.615 | AZ105: =AZ103 -> 3 | BA105: =BA103 -> 120.55 | BB105: 4 | BD105: =AZ102 -> 3 | BE105: =BA102 -> 134.2513362 | BF105: 26 | BH105: (3→ 4) | BI105: =BI159 -> 4.599884776 | BK105: =BI127+BI134+BI98 -> 15.74938081 | BL105: =BI103+BI97 -> 146.5952 | BM105: 29 | BO105: =BK120 -> 23.80046462 | BP105: =BL120 -> 124.0531201 | BQ105: شیفت14 | BS105: =BD102 -> 11.70836185 | BT105: 146.5514088 | BU105: 25 | BV105: نقطه یقه | BW105: =BS104+SQRT(POWER(BS105-BS104,2)+POWER(BT105-BT104,2))*SIN(BT103-ATAN((BS104-BS105)/(BT105-BT104))) -> 11.70836185 | BX105: =BT104+SQRT(POWER(BS105-BS104,2)+POWER(BT105-BT104,2))*COS(BT103-ATAN((BS104-BS105)/(BT105-BT104))) -> 146.5514088 | BY105: =BU105 -> 25 | CA105: =BK104 -> 11.71921424 | CB105: =BL104 -> 146.5952 | CC105: 23 | CD105: نقطه یقه | CE105: =CA104+SQRT(POWER(CA105-CA104,2)+POWER(CB105-CB104,2))*SIN(CB103-ATAN((CA104-CA105)/(CB105-CB104))) -> 11.71921424 | CF105: =CB104+SQRT(POWER(CA105-CA104,2)+POWER(CB105-CB104,2))*COS(CB103-ATAN((CA104-CA105)/(CB105-CB104))) -> 146.5952 | CG105: =CC105 -> 23 | CJ105: ='متغیرها '!C55 -> 0 | CK105: شیفت افقی تکه پهلو | CM105: =CI120+CJ105 -> 22.16658655 | CN105: =CJ120 -> 127.8603199 | CO105: شیفت 20f | CR105: ='متغیرها '!C56 -> 0 | CS105: شیفت افقی تکه پهلو | CU105: =CQ123+CR105 -> 21.42391357 | CV105: =CR123+CR106 -> 128.2462287 | CW105: شیفت 16f | CY105: =AZ180-CZ122 -> 14.84107 | CZ105: =BA180 -> 85.95 | DA105: 47'' | DC105: =CY112-(CY106-CY109) -> 20.02545125 | DD105: 71.56373893 | DE105: 50''s | DG105: 27.30735 | DH105: 106.5477071 | DI105: 41شیفت | DK105: =BO126 -> 13.774225 | DL105: =BP126 -> 127.3281918 | DM105: شیفت40 | DO105: =DK109+DH109 -> 30.80745472 | DP105: =DL109 -> 86.54988478 | DQ105: شیفت42m | DT105: =BW136 -> 20.58402031 | DU105: =BX136 -> 137.7759235 | DV105: b12 | DW105: نقطه حلقه آستین | DX105: =CE119 -> 21.85345479 | DY105: =CF119 -> 137.3961362 | DZ105: b12 | EA105: نقطه حلقه آستین | ED105: =BW132+BT130 -> 27.35190316 | EE105: =BX132 -> 127.777529 | EF105: شیفتb4 | EL105: =AZ172 -> 27.47155 | EM105: =BA172 -> 86.54770714 | EN105: شیفت 45 | EP105: 20.02545125 | EQ105: 71.56373893 | ER105: 50''s | ET105: =AZ179 -> 14.68107 | EU105: =BA179 -> 103.5 | EV105: شیفت 40 | EX105: 25.11254528 | EY105: 71.23385357 | EZ105: =DI124 -> 49'شیفتm | FF105: =IF('متغیرها '!C119=1,DX121,CE119)+CB112 -> 21.85345479 | FG105: =IF('متغیرها '!C119=1,DY121,CF119)+CB113 -> 137.3961362 | FH105: شیفت b12 یا b'12p | FN105: =DO102 -> 26.78312141 | FO105: =DP102 -> 124.2142401 | FP105: =DQ102 -> شیفت8m | FR105: =DO102 -> 26.78312141 | FS105: =DP102 -> 124.2142401 | FT105: =DQ102 -> شیفت8m | FX105: =-CM104-GK101 -> -14.89233418 | FY105: 132.4752975 | FZ105: شیفت 16f | GB105: =-CM114-GK101 -> -10.75948006 | GC105: =CN114 -> 144.874986 | GD105: شیفت وسط 22f | GF105: =-EX104-GK101 -> -19.11254528 | GG105: =EY104 -> 86.54770714 | GH105: شیفت 45m | GR105: =-EP105-GK101 -> -14.02545125 | GS105: 71.56373893 | GT105: 50''s | GV105: =-CR155-GK101 -> -7.06107 | GW105: =CS155 -> 103.5 | GX105: 39 یا d5 | GZ105: =-DY258-GK101 -> 3 | HA105: =DZ258 -> 67.935 | HB105: 1' | HH105: =-CP241-GK101 -> -14.5420269 | HI105: =CQ241 -> 87.68805631 | HJ105: m6 | HL105: =-DN241-GK101 -> -20.49609935 | HM105: =DO241 -> 69.536 | HN105: p7
E106: فاصله نوار کمر تا زمین، از قسمت پشت | F106: g | H106: ='متغیرها '!U58+'متغیرها '!C63*'متغیرها '!U58 -> 96.5 | I106: ='متغیرها '!U58 -> 96.5 | K106: 2 | L106: 2 | M106: e10 | N106: نقطه دوم خط تقارن | Q106: =L115-L136 -> 22.05 | R106: =L127+L137 -> 22.55573905 | S106: 20 | AF106: انحنا ساسون کمر | AJ106: =AR152 -> 14.35130428 | AK106: 38.85637122 | AL106: 36 | AW106: (4 → 5) | AX106: =U142 -> 10.87107 | AZ106: =AX99 -> 3 | BA106: =0+AX98 -> 67.935 | BB106: 1 | BG106: =BG108+0.5*(AV100-AV104+BG99-BG108) -> 22.28231148 | BH106: (1 → 5) | BI106: =BI108+0.5*(AX100-AX104+BI99-BI108) -> 22.47838335 | BK106: =BI127+BI134+BI98 -> 15.74938081 | BL106: =BI103-BI135+BI97 -> 145.6506668 | BM106: 30 | BO106: =BK114 -> 26.0353167 | BP106: =BL114 -> 123.2475201 | BQ106: شیفت9 | BS106: 9.966689481 | BT106: 140.4013725 | BU106: 30 | BV106: نقطه یقه | BW106: =BS104+SQRT(POWER(BS106-BS104,2)+POWER(BT106-BT104,2))*SIN(BT103-ATAN((BS104-BS106)/(BT106-BT104))) -> 9.966689481 | BX106: =BT104+SQRT(POWER(BS106-BS104,2)+POWER(BT106-BT104,2))*COS(BT103-ATAN((BS104-BS106)/(BT106-BT104))) -> 140.4013725 | BY106: 30 | CA106: =BK135 -> 9.539410683 | CB106: =BL135 -> 144.8913767 | CC106: 28 | CD106: نقطه یقه | CE106: =CA104+SQRT(POWER(CA106-CA104,2)+POWER(CB106-CB104,2))*SIN(CB103-ATAN((CA104-CA106)/(CB106-CB104))) -> 9.539410683 | CF106: =CB104+SQRT(POWER(CA106-CA104,2)+POWER(CB106-CB104,2))*COS(CB103-ATAN((CA104-CA106)/(CB106-CB104))) -> 144.8913767 | CG106: 28 | CI106: نقاط ورودی | CM106: =CI121+CJ105 -> 25.13984209 | CN106: =CJ121 -> 124.6298357 | CO106: شیفت 18f | CR106: ='متغیرها '!C57 -> 0 | CS106: شیفت عمودی تکه پهلو | CU106: =CQ124+CR105 -> 23.21723701 | CV106: =CR124+CR106 -> 125.0470552 | CW106: شیفت 14f | CY106: =AZ181-CZ122 -> 14.84107 | CZ106: =BA181 -> 67.935 | DA106: 53 | DC106: =CY113-(CY106-CY109) -> 23.084395 | DD106: 73.87293642 | DE106: 50'''s | DG106: 27.47155 | DH106: 86.54770714 | DI106: 45شیفت | DK106: =BK122 -> 24.4241167 | DL106: =BL122 -> 123.2475201 | DM106: شیفت8 | DO106: =DK110+DH109 -> 30.80745472 | DP106: =DL110-0.5*(CZ114-CZ106) -> 71.23603121 | DQ106: شیفت43''m | DT106: =BW135 -> 20.89233418 | DU106: =BX135 -> 132.4752975 | DV106: b6 | DW106: نقطه حلقه آستین | DX106: =CE118 -> 21.30550456 | DY106: =CF118 -> 131.3041864 | DZ106: b6 | EA106: نقطه حلقه آستین | ED106: =BW133+BT130 -> 24.81042003 | EE106: =BX133 -> 127.9783132 | EF106: شیفتb8 | EH106: =BW114 -> 10.38436934 | EI106: =BX114 -> 140.7341178 | EJ106: e5 | EP106: 23.084395 | EQ106: 73.87293642 | ER106: 50'''s | ET106: =BD178 -> 27.30735 | EU106: =BE178 -> 106.5477071 | EV106: شیفت 41 | FB106: =DP167 -> 26.60632296 | FC106: =DQ167 -> 118.9587286 | FD106: a2 | FF106: =DY152+CB112 -> 23.3697626 | FG106: =DZ152+CB113 -> 142.8731499 | FH106: شیفت 18b | FL106: پهلو ترک | FX106: =-CM105-GK101 -> -16.16658655 | FY106: 127.8603199 | FZ106: شیفت 20f | GF106: =-EX105-GK101 -> -19.11254528 | GG106: =EY105 -> 71.23385357 | GH106: شیفت 49'm | GJ106: =-ED104-GK101 -> -22.88626028 | GK106: =EE104 -> 128.2691728 | GL106: شیفتb14 | GN106: =-EL104-GK101 -> -21.30735 | GO106: =EM104 -> 106.5477071 | GP106: شیفت 41 | GR106: =-EP106-GK101 -> -17.084395 | GS106: 73.87293642 | GT106: 50'''s | GV106: =-CR158-GK101 -> -6.991052906 | GW106: =CS158 -> 95.82 | GX106: d5 | GZ106: =-DY259-GK101 -> -6.90107 | HA106: =DZ259 -> 67.935 | HB106: 52 | HD106: =-U388-GK101 -> -65.34530604 | HE106: =V388 -> 116.4592937 | HF106: k4 | HH106: =-CP242-GK101 -> -21.435426 | HI106: =CQ242 -> 87.9 | HJ106: m4
E107: فاصله نوار زانو تا زمین | F107: h | H107: ='متغیرها '!U59+'متغیرها '!C63*'متغیرها '!U59 -> 40.3 | I107: ='متغیرها '!U59 -> 40.3 | K107: 1 | L107: 2 | M107: e3 | N107: نقطه قرینه خواسته | Q107: =L115-L134 -> 23.775 | R107: =L127+L135 -> 20.95573905 | S107: 18 | U107: =L143 -> 6.992 | V107: =L114 -> 43.5 | W107: 25 | AF107: =AR130 -> 21.4241167 | AG107: =AS130 -> 12.55679629 | AH107: 16 | AJ107: 13.51868184 | AK107: 36.54527757 | AL107: 36- | AW107: (1 → 6) | AX107: =AX110+(AX111-AX108)*TAN(AX101) -> 27.83126883 | AZ107: =AX107+AX99 -> 30.83126883 | BA107: =0+AX98 -> 67.935 | BB107: 6 | BD107: =J248 -> 3 | BE107: =K248 -> 116.55 | BF107: e1 | BH107: (5 → 6) | BI107: =H108-H114+Y128+0.5*(H106-H104) -> 16.61488478 | BS107: 6.48334474 | BT107: 135.4813435 | BU107: 28 | BV107: نقطه یقه | BW107: =BS104+SQRT(POWER(BS107-BS104,2)+POWER(BT107-BT104,2))*SIN(BT103-ATAN((BS104-BS107)/(BT107-BT104))) -> 6.48334474 | BX107: =BT104+SQRT(POWER(BS107-BS104,2)+POWER(BT107-BT104,2))*COS(BT103-ATAN((BS104-BS107)/(BT107-BT104))) -> 135.4813435 | BY107: 28 | CA107: =BK132 -> 6.487685698 | CB107: =BL132 -> 144.039465 | CC107: 26 | CD107: نقطه یقه | CE107: =CA104+SQRT(POWER(CA107-CA104,2)+POWER(CB107-CB104,2))*SIN(CB103-ATAN((CA104-CA107)/(CB107-CB104))) -> 6.487685698 | CF107: =CB104+SQRT(POWER(CA107-CA104,2)+POWER(CB107-CB104,2))*COS(CB103-ATAN((CA104-CA107)/(CB107-CB104))) -> 144.039465 | CG107: 26 | CI107: مولفه افقی | CJ107: مولفه عمودی | CK107: اسم نقطه | CM107: =CI110+CJ105 -> 29.38735 | CN107: =CJ110 -> 123.2453424 | CO107: شیفت 12 | CR107: ='متغیرها '!C71 -> 0.3 | CS107: x6 | CU107: =CQ113+CR105 -> 26.0353167 | CV107: =CR113+CR106 -> 123.2475201 | CW107: شیفت 9 | CY107: =AZ166 -> 13.06107 | CZ107: =BA166 -> 103.5 | DA107: 39 | DC107: =CY114-(CY106-CY109) -> 25.53155 | DD107: 74.53270714 | DE107: 49's | DG107: 27.47155 | DH107: 74.53270714 | DI107: 49'شیفت | DK107: =BO170 -> 24.4241167 | DL107: =BP170 -> 119.0584001 | DM107: شیفت10 | DO107: =DK106 -> 24.4241167 | DP107: =DL106+0.5*(DP102-DL106) -> 123.7308801 | DQ107: شیفت8'm | DT107: =BW134 -> 22.9708781 | DU107: =BX134 -> 129.0807724 | DV107: b10 | DW107: نقطه حلقه آستین | DX107: =CE117 -> 22.24141031 | DY107: =CF117 -> 126.4706691 | DZ107: b10 | EA107: نقطه حلقه آستین | ED107: =IF('متغیرها '!C119=1,DT123,BW134)+BT130 -> 22.9708781 | EE107: =IF('متغیرها '!C119=1,DU123,BX134) -> 129.0807724 | EF107: شیفت b10 یا b'10g | EH107: =BW117 -> 4.148338715 | EI107: =BX117 -> 136.639072 | EJ107: e9 | EL107: =AZ172 -> 27.47155 | EM107: =BA172 -> 86.54770714 | EN107: شیفت 45 | EP107: 25.53155 | EQ107: 74.53270714 | ER107: 49's | EV107: باسن | EX107: =DG124 -> 25.11254528 | EY107: =DH124 -> 71.23385357 | EZ107: =DI124 -> 49'شیفتm | FB107: =DP171 -> 17.11662346 | FC107: =DQ171 -> 113.8563557 | FD107: a6 | FJ107: =BO170 -> 24.4241167 | FK107: =BP170 -> 119.0584001 | FL107: شیفت 10 | FN107: =DO102 -> 26.78312141 | FO107: 124.2142401 | FP107: =DQ102 -> شیفت8m | FR107: =DO102 -> 26.78312141 | FS107: 124.2142401 | FT107: شیفت8m | FX107: =-CM106-GK101 -> -19.13984209 | FY107: 124.6298357 | FZ107: شیفت 18f | GB107: =-CM116-GK101 -> -10.75948006 | GC107: =CN116 -> 144.874986 | GD107: شیفت وسط 22f | GJ107: =-ED105-GK101 -> -21.35190316 | GK107: 127.777529 | GL107: شیفتb4 | GN107: =-EL107-GK101 -> -21.47155 | GO107: =EM107 -> 86.54770714 | GP107: شیفت 45 | GR107: =-EP107-GK101 -> -19.53155 | GS107: 74.53270714 | GT107: 49's | HD107: =-U389-GK101 -> -55.60802752 | HE107: =V389 -> 98.42090843 | HF107: k5 | HL107: =-DN243-GK101 -> -20.49609935 | HM107: =DO243 -> 69.536 | HN107: p7
E108: فاصله نوار باسن تا زمین | F108: j | H108: ='متغیرها '!U60+'متغیرها '!C63*'متغیرها '!U60 -> 76 | I108: ='متغیرها '!U60 -> 76 | K108: =K107+2*(SIN(ATAN((K106-K105)/(L106-L105)))*(L107-L105)+COS(ATAN((K106-K105)/(L106-L105)))*(K105-K107))*COS(ATAN((K106-K105)/(L106-L105))) -> 2 | L108: =L107-2*(SIN(ATAN((K106-K105)/(L106-L105)))*(L107-L105)+COS(ATAN((K106-K105)/(L106-L105)))*(K105-K107))*SIN(ATAN((K106-K105)/(L106-L105))) -> 1 | M108: e11 | N108: نقطه قرینه شده نسبت به خط تقارن | Q108: =L115 -> 26.65 | R108: =L127 -> 19.99573905 | S108: 12 | U108: =L143+L150 -> 12.64785095 | V108: =L114-L151 -> 42.13009327 | W108: 32 | AF108: =AR126+0.5*(AR130-AR126) -> 20.79418335 | AG108: =IF(G151>0,AS126+0.65*(AS130-AS126),AS126) -> 8.161917589 | AJ108: 12.89421501 | AK108: 34.56434015 | AL108: 36-- | AW108: (6 → 7) | AX108: =AX166 -> 6.597707137 | AZ108: =AX107+AX99 -> 30.83126883 | BA108: =AX108+AX98 -> 74.53270714 | BB108: 7 | BD108: =J244 -> 10.83752567 | BE108: =K244 -> 142.861387 | BF108: e7 | BG108: =0.5*'متغیرها '!U73+AE127 -> 21.71462297 | BH108: (1 → 7) | BI108: =0.5*H121+'متغیرها '!C61*H120+AD127 -> 21.4241167 | BO108: =BK150 -> 3 | BP108: =BL150 -> 119 | BQ108: سینه | BS108: =BD105 -> 3 | BT108: =BE105 -> 134.2513362 | BU108: 26 | BV108: نقطه یقه | BW108: =BS104+SQRT(POWER(BS108-BS104,2)+POWER(BT108-BT104,2))*SIN(BT103-ATAN((BS104-BS108)/(BT108-BT104))) -> 3 | BX108: =BT104+SQRT(POWER(BS108-BS104,2)+POWER(BT108-BT104,2))*COS(BT103-ATAN((BS104-BS108)/(BT108-BT104))) -> 134.2513362 | BY108: 26 | CA108: =BK138 -> 3 | CB108: =BL138 -> 143.7554945 | CC108: 24 | CD108: نقطه یقه | CE108: =CA104+SQRT(POWER(CA108-CA104,2)+POWER(CB108-CB104,2))*SIN(CB103-ATAN((CA104-CA108)/(CB108-CB104))) -> 3 | CF108: =CB104+SQRT(POWER(CA108-CA104,2)+POWER(CB108-CB104,2))*COS(CB103-ATAN((CA104-CA108)/(CB108-CB104))) -> 143.7554945 | CG108: 24 | CI108: =BW163 -> 20.89233418 | CJ108: =BX163 -> 132.4752975 | CK108: b6 | CL108: با چرخش کامل | CM108: =CI111+CJ105 -> 30.99855 | CN108: =CJ111 -> 123.2453424 | CO108: شیفت 13 | CR108: ='متغیرها '!C76 -> 0 | CS108: x8 | CY108: =AZ176 -> 12.90107 | CZ108: =BA176 -> 85.95 | DA108: 47' | DC108: =CY115-(CY106-CY109) -> 25.53155 | DD108: 86.54770714 | DE108: 45s | DG108: =AZ181 -> 14.84107 | DH108: =BA181 -> 67.935 | DI108: 53شیفت | DK108: =BK162 -> 24.13925 | DL108: =BL162 -> 106.5498848 | DM108: شیفت36 | DO108: =DK103+0.35*(DK104-DK103) -> 21.63327363 | DP108: =DL104+0.45*(DL103-DL104) -> 128.6450401 | DQ108: شیفت12m | DT108: =BW133 -> 24.81042003 | DU108: =BX133 -> 127.9783132 | DV108: b8 | DW108: نقطه حلقه آستین | DX108: =CE116 -> 23.80075432 | DY108: =CF116 -> 124.0540071 | DZ108: b8 | EA108: نقطه حلقه آستین | ED108: =IF('متغیرها '!C119=1,DT122,BW135)+BT130 -> 20.89233418 | EE108: =IF('متغیرها '!C119=1,DU122,BX135) -> 132.4752975 | EF108: شیفت b6 یا b'6g | EL108: =BD180 -> 27.47155 | EM108: =BE180 -> 74.53270714 | EN108: شیفت49' … | ET108: =ET102 -> 3 | EU108: =EU102-(H104-H108) -> 84 | EV108: g46 | EX108: =EX110+0.8*(EX107-EX110) -> 23.05825023 | EY108: =EY110+0.8*(EY107-EY110) -> 70.57408285 | FB108: =DP172 -> 12.23620658 | FC108: =DQ172 -> 98.54923716 | FD108: a7 | FF108: =CE122+CB112 -> 26.03567767 | FG108: =CF122+CB113 -> 123.2486048 | FH108: شیفت b14 | FJ108: =BK162 -> 24.13925 | FK108: =BL162 -> 106.5498848 | FL108: شیفت 36 | FN108: 26.78312141 | FO108: 119.0584001 | FP108: =DQ103 -> شیفت10m | FR108: 26.78312141 | FS108: 119.0584001 | FT108: شیفت10m | FX108: =-CM107-GK101 -> -23.38735 | FY108: 123.2453424 | FZ108: شیفت 12 | GB108: =-CM117-GK101 -> -7.87107 | GC108: =CN117 -> 120.55 | GD108: شیفت5 پیراهن | GF108: =-EX107-GK101 -> -19.11254528 | GG108: =EY107 -> 71.23385357 | GH108: شیفت 49'm | GJ108: =-ED106-GK101 -> -18.81042003 | GK108: 127.9783132 | GL108: شیفتb8 | GV108: =-CR158-GK101 -> -6.991052906 | GW108: =CS158 -> 95.82 | GX108: d5 | GZ108: =-DY261-GK101 -> 3 | HA108: =DZ261 -> 127.1094239 | HB108: p26 | HH108: =-CP244-GK101 -> 3 | HI108: =CQ244 -> 77.30281529 | HJ108: m1 | HL108: =-DN244-GK101 -> -20.49609935 | HM108: =DO244 -> 67.935 | HN108: p8
E109: دور زانو | F109: L | H109: ='متغیرها '!U61 -> 38.6 | I109: ='متغیرها '!U61 -> 38.6 | AF109: =AR126+0.15*(AR130-AR126) -> 20.35323 | AG109: =IF(G151>0,AS126+0.3*(AS130-AS126),AS126) -> 3.767038887 | AJ109: =AR156 -> 12.26974818 | AK109: =AS156 -> 32.2532465 | AL109: 38 | AW109: (3 → 7) | AX109: هلال وصل | BH109: (4 → 7) | BI109: هلال وصل | BK109: =BI108-BI114+BI122+BI98+'متغیرها '!C56 -> 21.85434547 | BL109: =BI110+BI115+BI97+'متغیرها '!C57 -> 131.3035201 | BM109: شیفت19 | BO109: =BK151 -> 8.3871125 | BP109: =BL151 -> 119 | BS109: =AZ138 -> 15.71320617 | BT109: =BA138 -> 145.504696 | BU109: 32 | BV109: نقطه ساسون سرشانه | BW109: =BS104+SQRT(POWER(BS109-BS104,2)+POWER(BT109-BT104,2))*SIN(BT103-ATAN((BS104-BS109)/(BT109-BT104))) -> 15.71320617 | BX109: =BT104+SQRT(POWER(BS109-BS104,2)+POWER(BT109-BT104,2))*COS(BT103-ATAN((BS104-BS109)/(BT109-BT104))) -> 145.504696 | BY109: 32 | CA109: =BK106 -> 15.74938081 | CB109: =BL106 -> 145.6506668 | CC109: 30 | CD109: نقطه ساسون سرشانه | CE109: =CA104+SQRT(POWER(CA109-CA104,2)+POWER(CB109-CB104,2))*SIN(CB103-ATAN((CA104-CA109)/(CB109-CB104))) -> 15.74938081 | CF109: =CB104+SQRT(POWER(CA109-CA104,2)+POWER(CB109-CB104,2))*COS(CB103-ATAN((CA104-CA109)/(CB109-CB104))) -> 145.6506668 | CG109: 30 | CI109: =BW105 -> 11.70836185 | CJ109: =BX105 -> 146.5514088 | CK109: 25 | CL109: نقطه اتصال سرشانه به گردن | CR109: ='متغیرها '!C78 -> 0.1 | CS109: x10 | CU109: =CQ113+CR105 -> 26.0353167 | CV109: =CR113+CR106 -> 123.2475201 | CW109: شیفت 9 | CY109: =AZ177 -> 12.90107 | CZ109: =BA177 -> 67.935 | DA109: 52 | DC109: =CY118+CZ122 -> 24.81042003 | DD109: =CZ118 -> 127.9783132 | DE109: b8s | DH109: =AX119 -> 2.359004717 | DI109: (12 →17) | DK109: =BK165 -> 28.44845 | DL109: =BL165 -> 86.54988478 | DM109: شیفت42 | DO109: =DK104+0.4*(DO107-DK104) -> 23.11444732 | DP109: =DP107+0.35*(DL104-DP107) -> 124.6895441 | DQ109: شیفت8''m | DU109: ='متغیرها '!C120*F137 -> 0.155 | DV109: g0 | ED109: =IF('متغیرها '!C119=1,DT121,BW136)+BT130 -> 20.58402031 | EE109: =IF('متغیرها '!C119=1,DU121,BX136) -> 137.7759235 | EF109: شیفت b12 یا b'12g | EH109: =BW117 -> 4.148338715 | EI109: =BX117 -> 136.639072 | EJ109: e9 | EN109: چیب | EP109: =DC107 -> 25.53155 | EQ109: =DD107 -> 74.53270714 | ER109: 49's | ET109: =AZ176 -> 12.90107 | EU109: =EU108 -> 84 | EV109: g47' | EX109: =EX110+0.5*(EX107-EX110) -> 19.97680764 | EY109: =EY110+0.2*(EY107-EY110) -> 68.59477071 | FB109: =DP170 -> 13.04960939 | FC109: =DQ170 -> 67.935 | FD109: a5 | FF109: =CE123+CB112 -> 24.42484828 | FG109: =CF123+CB113 -> 119.0593423 | FH109: شیفت b2 | FN109: 26.49825472 | FO109: 106.5498848 | FP109: =DQ104 -> شیفت36m | FR109: =DO105 -> 30.80745472 | FS109: 86.54988478 | FT109: شیفت42m | FX109: =-CM108-GK101 -> -24.99855 | FY109: 123.2453424 | FZ109: شیفت 13 | GF109: =-EX108-GK101 -> -17.05825023 | GG109: =EY108 -> 70.57408285 | GJ109: =-ED107-GK101 -> -16.9708781 | GK109: 129.0807724 | GL109: شیفت b10 یا b'10g | GN109: =-EL107-GK101 -> -21.47155 | GO109: =EM107 -> 86.54770714 | GP109: شیفت 45 | GR109: =-EP109-GK101 -> -19.53155 | GS109: =EQ109 -> 74.53270714 | GT109: 49's | GV109: =-CR161-GK101 -> -1.8 | GW109: =CS161 -> 98.7 | GX109: _u5 | GZ109: =-DY262-GK101 -> 3 | HA109: =DZ262 -> 67.935 | HB109: 1 | HD109: =-U391-GK101 -> -55.60802752 | HE109: =V391 -> 98.42090843 | HF109: k5 | HH109: =-CP245-GK101 -> -1.74 | HI109: =CQ245 -> 77.30281529 | HJ109: m2
E110: بلندی فاق | F110: m | H110: =1.06*'متغیرها '!U62+0.03*'متغیرها '!U56*'متغیرها '!U66*IF('متغیرها '!U66=1,0.2,0.6)+'متغیرها '!C63*'متغیرها '!U62 -> 27.56 | I110: =1.06*'متغیرها '!U62+0.03*'متغیرها '!U56*'متغیرها '!U66*IF('متغیرها '!U66=1,0.2,0.6) -> 27.56 | U110: =L115-L132+L138-L153 -> 20.53460128 | V110: =L127+L133+L139+L154 -> 40.14499879 | W110: 34 | AF110: =AR126 -> 20.16425 | AG110: =AS126 -> 0 | AH110: 12 | AJ110: =AR150 -> 12.55752776 | AK110: =AS150 -> 35.70195663 | AL110: 34-- | AV110: =AV104+0.5*(AV100-AV104+BG99-BG108) -> 27.21768852 | AW110: (1 → 8) | AX110: =AX104+0.5*(AX100-AX104+BI99-BI108) -> 27.44161665 | AZ110: =0+AX99 -> 3 | BA110: =H104-H114+AX98 -> 103.5 | BB110: کمر | BD110: =AZ131 -> 25.37704198 | BE110: =BA131 -> 94 | BF110: 35شیفت | BG110: ='متغیرها '!U58-'متغیرها '!U59+H153*(I127-I126)+Y128 -> 73.19791669 | BH110: (7→ 8) | BI110: =H106-H114+G153*(H127-H126)-AX118*'متغیرها '!C77/(1+'متغیرها '!C77)+Y128 -> 53.31252006 | BK110: =BI108-BI114+BI122+BI98+'متغیرها '!C56 -> 21.85434547 | BL110: =BI110+BI115+BI123+BI97+'متغیرها '!C57 -> 137.3954214 | BM110: شیفت20 | BO110: انحنای حلقه یقه پشت | BS110: =BD98 -> 3 | BT110: =BE98 -> 134.2513362 | BU110: 26' | BV110: نقطه جادکمه | BW110: =BS104+SQRT(POWER(BS110-BS104,2)+POWER(BT110-BT104,2))*SIN(BT103-ATAN((BS104-BS110)/(BT110-BT104))) -> 3 | BX110: =BT104+SQRT(POWER(BS110-BS104,2)+POWER(BT110-BT104,2))*COS(BT103-ATAN((BS104-BS110)/(BT110-BT104))) -> 134.2513362 | BY110: 26' | CA110: =BK153 -> 3 | CB110: =BL153 -> 127.3281918 | CC110: 39 | CD110: امتداد نقطه مرکزی چرخش | CE110: =CA104+SQRT(POWER(CA110-CA104,2)+POWER(CB110-CB104,2))*SIN(CB103-ATAN((CA104-CA110)/(CB110-CB104+0.001))) -> 3.000000046 | CF110: =CB104+SQRT(POWER(CA110-CA104,2)+POWER(CB110-CB104,2))*COS(CB103-ATAN((CA104-CA110)/(CB110-CB104+0.001))) -> 127.3291918 | CG110: 39 | CI110: =AZ113 -> 29.38735 | CJ110: =BA113 -> 123.2453424 | CK110: 12 | CM110: =CM108 -> 30.99855 | CN110: =CN108 -> 123.2453424 | CO110: شیفت13 | CQ110: =BK103 -> 3 | CR110: =BL103 -> 146.5952 | CS110: 2 | CU110: =CQ115 -> 24.4241167 | CV110: =CR115 -> 119.0584001 | CW110: شیفت 10 | CY110: =BD186-CZ122 -> 15.235775 | CZ110: =BE186 -> 67.935 | DA110: 50 | DC110: =CY119+CZ122 -> 27.35190316 | DD110: =CZ119 -> 127.777529 | DE110: b4s | DH110: =AX120 -> 0.96672 | DI110: (17 →18) | DK110: =BK172 -> 28.44845 | DL110: =BL172 -> 74.53488478 | DM110: شیفت43'' | DO110: =CE108 -> 3 | DP110: =CF108 -> 143.7554945 | DQ110: 24m | DU110: ='متغیرها '!C121 -> 2 | DV110: g1 | ED110: =DT151+BT130 -> 22.09880912 | EE110: =DU151 -> 144.2795007 | EF110: شیفت22b | EH110: =BW127 -> 0.304293093 | EI110: =BX127 -> 135.7309513 | EJ110: e10 | EL110: =EP178 -> 22.85293332 | EM110: =EQ178 -> 100.9349315 | EN110: 37شیفت | EP110: =IF(DD108>DD120,DC120,DC108) -> 25.61904364 | EQ110: =IF(DD108>DD120,DD120,DD108) -> 75.90940594 | ER110: 45s یا s2 | EX110: =DG108 -> 14.84107 | EY110: =DH108 -> 67.935 | EZ110: =DI108 -> 53شیفت | FJ110: =BK162 -> 24.13925 | FK110: =BL162 -> 106.5498848 | FL110: شیفت 36 | FN110: 30.80745472 | FO110: 86.54988478 | FP110: =DQ105 -> شیفت42m | FR110: 30.80745472 | FS110: 71.23603121 | FT110: شیفت43''m | GB110: =-CM119-GK101 -> -7.87107 | GC110: =CN119 -> 120.55 | GD110: شیفت 5 پیراهن | GF110: =-EX109-GK101 -> -13.97680764 | GG110: =EY109 -> 68.59477071 | GJ110: =-ED108-GK101 -> -14.89233418 | GK110: 132.4752975 | GL110: شیفت b6 یا b'6g | GN110: =-EL108-GK101 -> -21.47155 | GO110: =EM108 -> 74.53270714 | GP110: شیفت49' … | GR110: =-EP110-GK101 -> -19.61904364 | GS110: =EQ110 -> 75.90940594 | GT110: 45s یا s2 | HD110: =-U392-GK101 -> -25.9587523 | HE110: =V392 -> 117.0811187 | HF110: k6 | HL110: =-DN246-GK101 -> -20.49609935 | HM110: =DO246 -> 67.935 | HN110: p8
E111: آنفورشور | F111: q | H111: =1*'متغیرها '!U63+0.6*'متغیرها '!C63*'متغیرها '!U63+0.3*'متغیرها '!C60*'متغیرها '!U63 -> 70.4106 | I111: =1*'متغیرها '!U63 -> 70.2 | J111: s3 | K111: =((I124-I123-I127+I126)-0.5*(1-H154)*('متغیرها '!U70-'متغیرها '!U71)*TAN(0.5*IF(L121=0,0,H162))+(0.5-G148)*'متغیرها '!U71*TAN(0.5*H157)) -> 2.770066293 | L111: =(I124-I123-I127+I126-0.5*(1-H154)*('متغیرها '!U70-'متغیرها '!U71)*TAN(0.5*IF(L121=0,0,H162))+(0.5-G148)*'متغیرها '!U71*TAN(0.5*H157)) -> 2.770066293 | U111: =L115-L132+L138 -> 25.38 | V111: =L127+L133+L139 -> 36.92204895 | W111: 22 | AJ111: =AR149 -> 12.65345429 | AK111: =AS149 -> 37.08144069 | AL111: 34- | AO111: شیفت عمودی جلو بالاتنه به سانتیمتر | AP111: =0 -> 0 | AS111: شیفت عمودی پشت بالاتنه به سانتیمتر | AT111: =0 -> 0 | AW111: (8 → 9) | AX111: =H108-H114+L125-0.5*(H106-H104) -> 18.61270714 | BD111: =AZ155 -> 22.85293332 | BE111: =BA155 -> 100.9349315 | BF111: 37شیفت | BH111: (8 →9) | BI111: =AA131 -> 1.6112 | BO111: =BK104 -> 11.71921424 | BP111: =BL104 -> 146.5952 | BQ111: 23 | BS111: =AZ103 -> 3 | BT111: =BT104 -> 119 | BU111: 4 | BV111: امتداد نقطه مرکزی چرخش | BW111: =BS104+SQRT(POWER(BS111-BS104,2)+POWER(BT111-BT104,2))*SIN(BT103-ATAN((BS104-BS111)/(BT111-BT104+0.001))) -> 3.000000046 | BX111: =BT104+SQRT(POWER(BS111-BS104,2)+POWER(BT111-BT104,2))*COS(BT103-ATAN((BS104-BS111)/(BT111-BT104+0.001))) -> 119.001 | BY111: 4 | CA111: انتقال قسمتی از ساسون سرشانه به ساسون زیر بغل به روش چرخش | CI111: =BD156-CJ105 -> 30.99855 | CJ111: =BE156 -> 123.2453424 | CK111: 13 | CL111: نقطه انتهایی زیر حلقه | CM111: =CI112 -> 29.38735 | CN111: =CJ112 -> 119.0562224 | CO111: شیفت14 | CQ111: کارور پشت | CR111: =H129 -> 35.35 | CS111: v3 | CY111: =BD185-CZ122 -> 18.9065075 | CZ111: =BE185 -> 69.25454143 | DA111: 50' | DC111: =CY120+CZ122 -> 28.88626028 | DD111: =CZ120 -> 128.2691728 | DE111: b14s | DG111: =O168 -> 0 | DH111: =P168 -> 0 | DI111: 25 | DK111: =BK177 -> 12.799225 | DL111: =BL177 -> 69.935 | DM111: شیفت50 | DO111: =CE105 -> 11.71921424 | DP111: =CF105 -> 146.5952 | DQ111: 23m | DT111: =BS135 -> 24.66934057 | DU111: =BT135 -> 129.6901424 | DV111: 16 | DW111: نقطه حلقه آستین بدون چرخش | DX111: =CA118 -> 21.30585629 | DY111: =CB118 -> 131.3035201 | DZ111: 12 | EA111: نقطه حلقه آستین بدون چرخش | EL111: =EP179 -> 27.90115064 | EM111: =EQ179 -> 87.06506846 | EN111: شیفت37' | ET111: =AZ180 -> 14.84107 | EU111: =EU109 -> 84 | EV111: g47'' | EZ111: کمر | FB111: =DC126-DT171 -> 24.99289844 | FC111: =DD126 -> 127.9638969 | FD111: بدون شیفتb'8s | FF111: =CE123+CB112 -> 24.42484828 | FG111: =CF123+CB113 -> 119.0593423 | FH111: شیفت b2 | FJ111: =BK165 -> 28.44845 | FK111: =BL165 -> 86.54988478 | FL111: شیفت 42 | FN111: 30.80745472 | FO111: 71.23603121 | FP111: =DQ106 -> شیفت43''m | FX111: =-CM110-GK101 -> -24.99855 | FY111: =CN110 -> 123.2453424 | FZ111: شیفت13 | GB111: =-CM120-GK101 -> -7.87107 | GC111: =CN120 -> 119 | GD111: شیفت 5 بالاتنه | GF111: =-EX110-GK101 -> -8.84107 | GG111: =EY110 -> 67.935 | GH111: شیفت 53 | GJ111: =-ED109-GK101 -> -14.58402031 | GK111: 137.7759235 | GL111: شیفت b12 یا b'12g | GP111: چیب | GV111: =-CR161-GK101 -> -1.8 | GW111: =CS161 -> 98.7 | GX111: _u5 | HB111: 49' | HD111: =-U393-GK101 -> -21.30735 | HE111: =V393 -> 106.5477071 | HF111: 41 | HH111: =-CP247-GK101 -> -1.74 | HI111: =CQ247 -> 77.30281529 | HJ111: m2 | HL111: =-DN247-GK101 -> 2.371248487 | HM111: =DO247 -> 67.935 | HN111: p6
E112: دور مچ پا | F112: r | H112: ='متغیرها '!U64 -> 25.2 | I112: =0.8*'متغیرها '!U61 -> 30.88 | J112: فاصله لبه دامن یا پیراهن تا زمین (به سانتیمتر) k | K112: =IF('متغیرها '!C67<1,'متغیرها '!C67*'متغیرها '!U59,IF('متغیرها '!C67<2,'متغیرها '!U59+('متغیرها '!C67-1)*('متغیرها '!U60-'متغیرها '!U59),IF('متغیرها '!C67<3,'متغیرها '!U60+('متغیرها '!C67-2)*(I105-'متغیرها '!U60),I105+('متغیرها '!C67-3)*(H127-H126)))) -> 59.935 | AJ112: =AR148 -> 12.74938081 | AK112: =AS148 -> 39.15066677 | AL112: 34 | AW112: (1 → 10) | AX112: =AX104-0.85*AX117 -> 22.37704198 | AZ112: =AX104+AX99 -> 29.38735 | BA112: =0+AX98 -> 67.935 | BB112: 3 | BH112: (8 → 10) | BI112: =AA132 -> 4.18912 | BK112: =BI108-BI114+BI98+'متغیرها '!C56 -> 21.30585629 | BL112: =BI110+BI115+BI97+'متغیرها '!C57 -> 131.3035201 | BM112: شیفت12 | BO112: =BK135 -> 9.539410683 | BP112: =BL135 -> 144.8913767 | BQ112: 28 | BS112: =BD98 -> 3 | BT112: =BT104 -> 119 | BU112: 4' | BW112: =BS104+SQRT(POWER(BS112-BS104,2)+POWER(BT112-BT104,2))*SIN(BT103-ATAN((BS104-BS112)/(BT112-BT104+0.001))) -> 3.000000046 | BX112: =BT104+SQRT(POWER(BS112-BS104,2)+POWER(BT112-BT104,2))*COS(BT103-ATAN((BS104-BS112)/(BT112-BT104+0.001))) -> 119.001 | BY112: 4' | CB112: ='متغیرها '!C56 -> 0 | CC112: شیفت افقی | CI112: =BD155 -> 29.38735 | CJ112: =BE155 -> 119.0562224 | CK112: شیفت14 | CO112: سرشانه بدون ساسون | CQ112: =BK104 -> 11.71921424 | CR112: =BL104 -> 146.5952 | CS112: 23 | CT112: نقطه اتصال سرشانه به گردن | CU112: =CU102 -> 21.82145067 | CV112: =CV102 -> 143.2423545 | CW112: شیفت 18f | CY112: =BD184-CZ122 -> 21.96545125 | CZ112: =BE184 -> 71.56373893 | DA112: 50'' | DC112: =CY121+CZ122 -> 28.63017711 | DD112: =CZ121 -> 123.7882004 | DE112: b2s | DG112: =BW144 -> 21.95663119 | DH112: =BX144 -> 143.615157 | DI112: b16 | DK112: =BK161 -> 14.711725 | DL112: =BL161 -> 106.5 | DM112: شیفت35 | DO112: =CE107 -> 6.487685698 | DP112: =CF107 -> 144.039465 | DQ112: 26m | DT112: =BS134 -> 25.61294245 | DU112: =BT134 -> 125.8232624 | DV112: 20 | DW112: نقطه حلقه آستین بدون چرخش | DX112: =CA117 -> 22.24133441 | DY112: =CB117 -> 126.4699201 | DZ112: 16 | EA112: نقطه حلقه آستین بدون چرخش | EF112: سرشانه با ساسون متغیر | EH112: =BW118 -> 16.75154973 | EI112: =BX118 -> 154.5246517 | EJ112: a2 | EP112: =EP110 -> 25.61904364 | EQ112: =EQ110 -> 75.90940594 | ER112: =ER110 -> 45s یا s2 | ET112: =AZ172 -> 27.47155 | EU112: =BE178-(H105-H108) -> 86.54770714 | EV112: g45 | EX112: =DG122 -> 24.94834528 | EY112: =DH122 -> 106.5477071 | EZ112: =DI122 -> 41شیفتm | FB112: =DP173 -> 26.55254528 | FC112: =DQ173 -> 71.23385357 | FD112: a8 | FF112: =CE125+CB112 -> 14.83921417 | FG112: =CF125+CB113 -> 126.5012881 | FH112: شیفت b | FR112: =DO106 -> 30.80745472 | FS112: =DP106 -> 71.23603121 | FT112: =DQ106 -> شیفت43''m | FX112: =-CM111-GK101 -> -23.38735 | FY112: =CN111 -> 119.0562224 | FZ112: شیفت14 | GH112: کمر | GJ112: =-ED110-GK101 -> -16.09880912 | GK112: 144.2795007 | GL112: شیفت22b | GN112: =-EP178-GK101 -> -16.85293332 | GO112: =EQ178 -> 100.9349315 | GP112: 37شیفت | GR112: =-EP112-GK101 -> -19.61904364 | GS112: =EQ112 -> 75.90940594 | GT112: =GT110 -> 45s یا s2 | GV112: =-CR164-GK101 -> 3 | GW112: =CS164 -> 98.7 | GX112: d4 | GZ112: =-DY265-GK101 -> 3 | HA112: =DZ265 -> 127.1094239 | HB112: p10 | HF112: رسم آستین کیمونو تا خط اوزمان | HH112: =-CP248-GK101 -> -1.74 | HI112: =CQ248 -> 75.30281529 | HJ112: m12
J113: متغیرهای خروجی جلو (رسم کاربر) | L113: شبیه ساز | Q113: =AN120 -> 10.87107 | R113: =AO120 -> 17.05 | S113: 6 | Y113: شبیه ساز | Z113: متغیرهای خروجی پشت بالاتنه (رسم کاربر) | AF113: =AR121 -> 10.774225 | AG113: =AS121 -> 23.14243528 | AH113: 7 | AN113: نقاط جلو بالاتنه | AR113: نقاط پشت بالاتنه | AV113: ='متغیرها '!U56-H114+H153*(I127-I126)+L125 -> 55.56073905 | AW113: (3 → 12) | AX113: =H104-H114+G153*(H127-H126)-AX118*'متغیرها '!C77/(1+'متغیرها '!C77)+L125 -> 55.31034242 | AZ113: =AX104+AX99 -> 29.38735 | BA113: =AX113+AX98 -> 123.2453424 | BB113: 12 | BD113: =AZ131 -> 25.37704198 | BE113: =BA131 -> 94 | BF113: 35شیفت | BH113: (9 → 10→ 6→ 4) | BI113: وصل | BK113: =BI108-BI114+BI98+'متغیرها '!C56 -> 21.30585629 | BL113: =BI110+BI97+'متغیرها '!C57 -> 123.2475201 | BM113: شیفت11 | BO113: =BK132 -> 6.487685698 | BP113: =BL132 -> 144.039465 | BQ113: 26 | BS113: =J244 -> 10.83752567 | BT113: =K244 -> 142.861387 | BU113: e7 | BW113: =BS104+SQRT(POWER(BS113-BS104,2)+POWER(BT113-BT104,2))*SIN(BT103-ATAN((BS104-BS113)/(BT113-BT104))) -> 10.83752567 | BX113: =BT104+SQRT(POWER(BS113-BS104,2)+POWER(BT113-BT104,2))*COS(BT103-ATAN((BS104-BS113)/(BT113-BT104))) -> 142.861387 | BY113: e7 | CB113: ='متغیرها '!C57 -> 0 | CC113: شیفت عمودی | CI113: α2 | CJ113: =0.5*(P139+0.3*(P140-P139)+AE139+0.3*(AE140-AE139)) -> 0.3204522679 | CK113: زاویه سرشانه با افق | CM113: =CM102 -> 21.81059828 | CN113: =CN102 -> 143.1985633 | CO113: شیفت22f | CQ113: =BK114-CR105 -> 26.0353167 | CR113: =BL114-CR106 -> 123.2475201 | CS113: 9 | CT113: نقطه انتهایی زیر حلقه | CU113: =CU119+CR105 -> 16.77033246 | CV113: =CV119+CR106 -> 144.9187773 | CW113: شیفت وسط 18f | CY113: =BD183-CZ122 -> 25.024395 | CZ113: =BE183 -> 73.87293642 | DA113: 50''' | DC113: =CY103+CZ122 -> 13.87107 | DD113: =CZ103 -> 115.9 | DE113: 43s | DG113: =DD572 -> 27.42952003 | DH113: 86.55213118 | DI113: 10r | DJ113: شلوار | DK113: =BO191 -> 12.799225 | DL113: =BP191 -> 88.05 | DM113: شیفت38'' | DO113: =CE106 -> 9.539410683 | DP113: =CF106 -> 144.8913767 | DQ113: 28m | DV113: محاسبات | DZ113: محاسبات | ED113: =DT150+BT130 -> 15.75475482 | EE113: =DU150 -> 145.7163087 | EF113: شیفت 34b | EH113: =BW119 -> 13.725637 | EI113: =BX119 -> 150.5380303 | EJ113: a13 | EN113: ترک وسط با ساسون | EP113: =DC120 -> 25.61904364 | EQ113: =DD120 -> 75.90940594 | ER113: s2 | EV113: زانو | EX113: =AZ167+BT130 -> 14.68107 | EY113: =BA167 -> 103.5 | EZ113: شیفت 40 | FJ113: =BK165 -> 28.44845 | FK113: =BL165 -> 86.54988478 | FL113: شیفت 42 | FN113: =DO106 -> 30.80745472 | FO113: =DP106 -> 71.23603121 | FP113: =DQ106 -> شیفت43''m | FR113: =FR115+0.6*(FR112-FR115) -> 23.60416283 | FS113: =FS115+0.8*(FS112-FS115) -> 70.97582497 | GB113: =-CM122-GK101 -> -7.87107 | GC113: =CN122 -> 119 | GD113: شیفت 5 بالاتنه | GF113: =-EX112-GK101 -> -18.94834528 | GG113: =EY112 -> 106.5477071 | GH113: شیفت 41m | GN113: =-EP179-GK101 -> -21.90115064 | GO113: =EQ179 -> 87.06506846 | GP113: شیفت37' | GR113: =-EP113-GK101 -> -19.61904364 | GS113: =EQ113 -> 75.90940594 | GT113: s2 | GZ113: =-DY266-GK101 -> 3 | HA113: =DZ266 -> 98.7 | HB113: 26'' | HD113: =-U395-GK101 -> -55.60802752 | HE113: =V395 -> 98.42090843 | HF113: k5 | HL113: =-DN249-GK101 -> 2.371248487 | HM113: =DO249 -> 67.935 | HN113: p6
E114: شلوار زنانه و بچگانه = 0 مردانه=1 بچه با پوشک=2 | H114: =K112 -> 59.935 | I114: K | J114: (1 → 2) | K114: =H124-('متغیرها '!C71)*0.5*G167*SIN(O139) -> 43.05140881 | L114: =I124 -> 43.5 | Q114: =AN121 -> 10.87107 | R114: =AO121 -> 12.4 | S114: 7 | U114: انحنای حلقه آستین جلو | Y114: =I127 -> 40.5 | Z114: (1 → 2) | AA114: =H127-('متغیرها '!C71)*0.5*G167*SIN(AD139) -> 40.09520003 | AF114: =AR122 -> 10.774225 | AG114: =AS122 -> 20.82819175 | AH114: 8 | AN114: مولفه افقی | AO114: مولفه عمودی | AP114: اسم نقطه | AR114: مولفه افقی | AS114: مولفه عمودی | AT114: اسم نقطه | AW114: (12 → 13) | AX114: =K128 -> 1.6112 | AZ114: =AX104-AX117+AX99 -> 24.66934057 | BA114: =AX113+AX98 -> 123.2453424 | BB114: 15 | BD114: =AX112+AX144+AX99+'متغیرها '!C55 -> 27.90115064 | BE114: =AX143-AX145+AX98 -> 87.06506846 | BF114: شیفت 37' | BG114: =Y135 -> 4.214622969 | BH114: (8 → 11) | BI114: =AA135 -> 3.118260411 | BK114: =BI108+BI111+BI98+'متغیرها '!C56 -> 26.0353167 | BL114: =BI110+BI97+'متغیرها '!C57 -> 123.2475201 | BM114: شیفت9 | BO114: =BK138 -> 3 | BP114: =BL138 -> 143.7554945 | BQ114: 24 | BS114: =J245 -> 10.38436934 | BT114: =K245 -> 140.7341178 | BU114: e5 | BW114: =BS104+SQRT(POWER(BS114-BS104,2)+POWER(BT114-BT104,2))*SIN(BT103-ATAN((BS104-BS114)/(BT114-BT104))) -> 10.38436934 | BX114: =BT104+SQRT(POWER(BS114-BS104,2)+POWER(BT114-BT104,2))*COS(BT103-ATAN((BS104-BS114)/(BT114-BT104))) -> 140.7341178 | BY114: e5 | CB114: =(CC126-CC125) -> 8.847010582e-05 | CC114: زاویه چرخش به ساسون زیر بغل | CI114: =H167 -> 11.63877905 | CJ114: =G167 -> 11.826772 | CK114: W | CM114: =CM132+CJ105 -> 16.75948006 | CN114: =CN132 -> 144.874986 | CO114: شیفت وسط 22f | CQ114: =BK122-CR105 -> 24.4241167 | CR114: =BL122-CR106 -> 123.2475201 | CS114: 8 | CY114: =BD180-CZ122 -> 27.47155 | CZ114: =BE180 -> 74.53270714 | DA114: 49' | DC114: =CY117+CZ122 -> 29.38735 | DD114: =CZ117 -> 119.0562224 | DE114: 14s | DG114: 23.08904275 | DH114: 48.3 | DI114: 7r | DK114: =BO114 -> 3 | DL114: =BP114 -> 143.7554945 | DM114: 24 | DO114: =DX103 -> 23.3697626 | DP114: =DY103 -> 142.8731499 | DQ114: 18m | DT114: (b12→22g) | DU114: =SQRT(POWER(DT105-DT103,2)+POWER(DU105-DU103,2)) -> 6.677656908 | DX114: (b12→18p) | DY114: =SQRT(POWER(DX105-DX103,2)+POWER(DY105-DY103,2)) -> 5.683033375 | ED114: =DT151+BT130 -> 22.09880912 | EE114: =DU151 -> 144.2795007 | EF114: شیفت22b | EH114: =BW105 -> 11.70836185 | EI114: =BX105 -> 146.5514088 | EJ114: چرخیده 25 | EL114: =AZ181 -> 14.84107 | EM114: =BA181 -> 67.935 | EN114: شیفت 53 | ET114: =ET108 -> 3 | EU114: =BA165-(H104-H107) -> 48.3 | EV114: g1 | EZ114: چیب | FB114: =DP173 -> 26.55254528 | FC114: =DQ173 -> 71.23385357 | FD114: a8 | FF114: =CE125+CB112 -> 14.83921417 | FG114: =CF125+CB113 -> 126.5012881 | FH114: شیفت b | FJ114: =BK172 -> 28.44845 | FK114: =BL172 -> 74.53488478 | FL114: شیفت 43'' | FN114: =FN116+0.6*(FN113-FN116) -> 23.60416283 | FO114: =FO116+0.8*(FO113-FO116) -> 70.97582497 | FR114: =FR115+0.3*(FR112-FR115) -> 18.20169392 | FS114: =FS115+0.2*(FS112-FS115) -> 70.19520624 | FZ114: 8' | GB114: =-CM123-GK101 -> -7.87107 | GC114: =CN123 -> 115.9 | GD114: شیفت 43 | GF114: =-EX113-GK101 -> -8.68107 | GG114: =EY113 -> 103.5 | GH114: شیفت 40 | GL114: 5' | GV114: =-CR166-GK101 -> -7.87107 | GW114: =CS166 -> 115.9 | GX114: شیفت 43 | HD114: =-U396-GK101 -> -29.52114079 | HE114: =V396 -> 109.9092545 | HF114: k6 | HH114: =-CP250-GK101 -> -1.74 | HI114: =CQ250 -> 75.30281529 | HJ114: m12 | HL114: =-DN250-GK101 -> 2.371248487 | HM114: =DO250 -> 69.536 | HN114: p5
J115: (1 → 3) | K115: =0.5*(H120-H121)+'متغیرها '!C61*H120-'متغیرها '!C77*O128*H130*((L115-L120-L121-L124)/(L127-L125)) -> 26.38735 | L115: =0.5*('متغیرها '!U72-'متغیرها '!U73) -> 26.65 | Q115: =AN119 -> 10.87107 | R115: =AO119 -> 15.5 | S115: 5 | U115: =AN136 -> 26.08211047 | V115: =AO136 -> 36.47394814 | W115: 22 | Y115: =0.5*'متغیرها '!U73+AE127 -> 21.71462297 | Z115: (1 → 3) | AA115: =0.5*H121+'متغیرها '!C61*H120+AD127-'متغیرها '!C77*O128*H130*((Y115-Y121-Y123-Y124-Y127)/(Y130)) -> 21.4241167 | AF115: =AR120 -> 10.774225 | AG115: =AS120 -> 12.5 | AH115: 6 | AJ115: =AR138 -> 20.13415357 | AK115: =AS138 -> 35.87810054 | AL115: 24 | AN115: 0 | AO115: =0+AP111 -> 0 | AP115: 1 | AR115: 0 | AS115: =AT111 -> 0 | AT115: 1 | AV115: =L129 -> 0 | AW115: (12 → 14) | AX115: =K129 -> 4.18912 | AZ115: =AX104-AX117+AX99 -> 24.66934057 | BA115: =AX113+AX118+AX98 -> 129.6901424 | BB115: 16 | BG115: 8 | BH115: (11 →12) | BI115: 8.056 | BS115: =J262 -> 0.5122394328 | BT115: =K262 -> 134.2513362 | BU115: e3 | BW115: =BS104+SQRT(POWER(BS115-BS104,2)+POWER(BT115-BT104,2))*SIN(BT103-ATAN((BS104-BS115)/(BT115-BT104))) -> 0.5122394328 | BX115: =BT104+SQRT(POWER(BS115-BS104,2)+POWER(BT115-BT104,2))*COS(BT103-ATAN((BS104-BS115)/(BT115-BT104))) -> 134.2513362 | BY115: e3 | CA115: =BK122-CB112 -> 24.4241167 | CB115: =BL122-CB113 -> 123.2475201 | CC115: 8 | CD115: نقطه حلقه آستین | CE115: =CA104+SQRT(POWER(CA115-CA104,2)+POWER(CB115-CB104,2))*SIN(IF(CB115=CB104,RADIANS(90)-CB114,ATAN((CA115-CA104)/ABS(CB115-CB104))+IF(CB115>CB104,-1,1)*CB114)) -> 24.42447767 | CF115: =CB104+IF(CB115<CB104,-1,1)*SQRT(POWER(CA115-CA104,2)+POWER(CB115-CB104,2))*COS(IF(CB115=CB104,RADIANS(90)-CB114,ATAN((CA115-CA104)/ABS(CB115-CB104))+IF(CB115>CB104,-1,1)*CB114)) -> 123.2484623 | CG115: b4 | CI115: نقاط حلقه آستین جلو بدون ساسون سرشانه | CQ115: =BO170 -> 24.4241167 | CR115: =BP170 -> 119.0584001 | CS115: شیفت10 | CU115: =CU113 -> 16.77033246 | CV115: =CV113 -> 144.9187773 | CW115: شیفت وسط 18f | CY115: =AZ172-CZ122 -> 27.47155 | CZ115: =BA172 -> 86.54770714 | DA115: 45 | DC115: =DC113+CZ127*SIN(CZ123+CZ131) -> 18.4261921 | DD115: =DD113-CZ127*COS(CZ123+CZ131) -> 104.3385571 | DE115: 40s | DG115: 22.3369973 | DH115: 8 | DI115: 5r | DK115: =BO113 -> 6.487685698 | DL115: =BP113 -> 144.039465 | DM115: 26 | DO115: =DX121 -> 22.09108815 | DP115: =DY121 -> 137.3358347 | DQ115: 20m | DT115: α22g1 | DU115: =ATAN((DU104-DU103)/(DT103-DT104)) -> 0.2152656482 | DX115: α18p1 | DY115: =ATAN((DY104-DY103)/(DX103-DX104)) -> 0.3092259528 | EL115: =AZ180 -> 14.84107 | EM115: =BA180 -> 85.95 | EN115: شیفت 47'' | EP115: =DC120 -> 25.61904364 | EQ115: =DD120 -> 75.90940594 | ER115: s2 | ET115: =ET109 -> 12.90107 | EU115: =EU114 -> 48.3 | EV115: g52 | EX115: =EP178 -> 22.85293332 | EY115: =EQ178 -> 100.9349315 | EZ115: 37شیفت | FB115: =EX105-'متغیرها '!C55 -> 25.11254528 | FC115: =EY105 -> 71.23385357 | FD115: 49'm | FF115: =BO170 -> 24.4241167 | FG115: =BP170 -> 119.0584001 | FH115: شیفت 10 | FL115: پایین لباس پهلو | FN115: =FN116+0.3*(FN113-FN116) -> 18.20169392 | FO115: =FO116+0.2*(FO113-FO116) -> 70.19520624 | FR115: =DK111 -> 12.799225 | FS115: =DL111 -> 69.935 | FT115: =DM111 -> شیفت50 | FX115: =-DD153-GK101 -> -16.09880912 | FY115: =DE153 -> 144.2795007 | FZ115: 39 | GH115: چیب | GJ115: =-ED113-GK101 -> -9.754754824 | GK115: =EE113 -> 145.7163087 | GL115: شیفت 34b | GP115: 17' | GR115: =-EP115-GK101 -> -19.61904364 | GS115: =EQ115 -> 75.90940594 | GT115: s2 | GV115: =-CR167-GK101 -> -8.68107 | GW115: =CS167 -> 103.5 | GX115: شیفت40 یا dd5 | GZ115: =-DY268-GK101 -> 3 | HA115: =DZ268 -> 98.7 | HB115: 26'' | HD115: =-U397-GK101 -> -21.47155 | HE115: =V397 -> 86.54770714 | HF115: 45 | HH115: =-CP251-GK101 -> 3 | HI115: =CQ251 -> 75.30281529 | HJ115: m11
J116: (1→ 4) | K116: =H124-H123 -> 15.5 | L116: =I124-I123 -> 15.5 | Q116: =AN118 -> 0 | R116: =AO118 -> 15.5 | S116: 4 | U116: =AN138 -> 22.99317154 | V116: =AO138 -> 31.33204528 | W116: 24 | Y116: =I127-I126 -> 12.5 | Z116: (1→ 4) | AA116: =H127-H126 -> 12.5 | AF116: =AR118 -> 0 | AG116: =AS118 -> 12.5 | AH116: 4 | AJ116: =AR140 -> 18.85434547 | AK116: =AS140 -> 30.89381763 | AL116: 26 | AN116: 0 | AO116: =K114+AP111 -> 43.05140881 | AP116: 2 | AR116: 0 | AS116: =AA114+AT111 -> 40.09520003 | AT116: 2 | AW116: (13 → 14→ 9→ 7) | AX116: وصل | BD116: =BD155 -> 29.38735 | BE116: =BE155 -> 119.0562224 | BF116: 14شیفت | BG116: 0.8429245939 | BH116: (8 → 13) | BI116: 0.6236520823 | BK116: =BI108-BI118+BI98+'متغیرها '!C56 -> 22.24133441 | BL116: =BI110+BI97+'متغیرها '!C57 -> 123.2475201 | BM116: شیفت15 | BO116: =BK101 -> 15.26974818 | BP116: =BL101 -> 138.7532465 | BQ116: 22 | BS116: =J248 -> 3 | BT116: =K248 -> 116.55 | BU116: e1 | CA116: =BO105-CB112 -> 23.80046462 | CB116: =BP105-CB113 -> 124.0531201 | CC116: 14 | CD116: نقطه حلقه آستین | CE116: =CA104+SQRT(POWER(CA116-CA104,2)+POWER(CB116-CB104,2))*SIN(IF(CB116=CB104,RADIANS(90)-CB114,ATAN((CA116-CA104)/ABS(CB116-CB104))+IF(CB116>CB104,-1,1)*CB114)) -> 23.80075432 | CF116: =CB104+IF(CB116<CB104,-1,1)*SQRT(POWER(CA116-CA104,2)+POWER(CB116-CB104,2))*COS(IF(CB116=CB104,RADIANS(90)-CB114,ATAN((CA116-CA104)/ABS(CB116-CB104))+IF(CB116>CB104,-1,1)*CB114)) -> 124.0540071 | CG116: b8 | CI116: مولفه افقی | CJ116: مولفه عمودی | CK116: اسم نقطه | CM116: =CM114 -> 16.75948006 | CN116: =CN114 -> 144.874986 | CO116: شیفت وسط 22f | CQ116: α4 | CR116: =0.5*(P139+0.3*(P140-P139)+AE139+0.3*(AE140-AE139)) -> 0.3204522679 | CS116: زاویه سرشانه با افق | CU116: =CQ104+CR105 -> 13.774225 | CV116: =CR104+CR106 -> 127.3281918 | CW116: شیفت40 | CY116: =AZ168 -> 27.30735 | CZ116: =BA168 -> 106.5477071 | DA116: 41 | DC116: =DC115+CZ128*SIN(CZ123-CZ132) -> 23.93379283 | DD116: =DD115-CZ128*COS(CZ123-CZ132) -> 87.6743909 | DE116: 47''s | DG116: 22.3369973 | DH116: 8 | DI116: 1r | DK116: =BO112 -> 9.539410683 | DL116: =BP112 -> 144.8913767 | DM116: 28 | DO116: =DK122 -> 3 | DP116: =DL122+0.5*DL121 -> 139.4970182 | DQ116: 21m | DT116: α22g2 | DU116: =ATAN((DU103-DU105)/(DT103-DT105)) -> 1.341959979 | DX116: α18p2 | DY116: =ATAN((DY103-DY105)/(DX103-DX105)) -> 1.300711583 | ED116: =DT150+BT130 -> 15.75475482 | EE116: =DU150 -> 145.7163087 | EF116: شیفت 34b | EH116: =BW118 -> 16.75154973 | EI116: =BX118 -> 154.5246517 | EJ116: a2 | EP116: =CY108 -> 12.90107 | EQ116: =CZ108 -> 85.95 | ER116: 47' | EX116: =EP179 -> 27.90115064 | EY116: =EQ179 -> 87.06506846 | EZ116: شیفت37' | FJ116: =BK172 -> 28.44845 | FK116: 74.53488478 | FL116: شیفت43'' | FN116: =DK111 -> 12.799225 | FO116: =DL111 -> 69.935 | FP116: =DM111 -> شیفت50 | FX116: =-DD154-GK101 -> -14.58402031 | FY116: =DE154 -> 137.7759235 | FZ116: 37 | GB116: =-CM125-GK101 -> -7.87107 | GC116: =CN125 -> 115.9 | GD116: 43 | GF116: =-EX115-GK101 -> -16.85293332 | GG116: =EY115 -> 100.9349315 | GH116: 37شیفت | GJ116: =-ED114-GK101 -> -16.09880912 | GK116: =EE114 -> 144.2795007 | GL116: شیفت22b | GN116: =-EL114-GK101 -> -8.84107 | GO116: =EM114 -> 67.935 | GP116: شیفت 53 | GR116: =-EP116-GK101 -> -6.90107 | GS116: =EQ116 -> 85.95 | GT116: 47' | GZ116: =-DY269-GK101 -> 3 | HA116: =DZ269 -> 98.7 | HB116: d4 | HF116: رسم آستین کیمونو تا پایین لباس | HL116: =-DN252-GK101 -> 2.371248487 | HM116: =DO252 -> 69.536 | HN116: p5
E117: اندازه ها در بالاتنه | H117: اندازه محاسبه | J117: (4 → 5) | K117: =0.5*G154*(H120-H121) -> 10.87107 | L117: =0.5*H154*('متغیرها '!U72-'متغیرها '!U73) -> 10.9236 | Q117: =AN115 -> 0 | R117: =AO115 -> 0 | S117: 1 | U117: =AN130 -> 21.66934057 | V117: =AO130 -> 26.19014242 | W117: 16 | Y117: =0.75*I127 -> 30.375 | Z117: (1 → 5) | AA117: ='متغیرها '!C83*H127 -> 30.375 | AF117: =AR115 -> 0 | AG117: =AS115 -> 0 | AH117: 1 | AJ117: =AR132 -> 18.30585629 | AK117: =AS132 -> 24.80191629 | AL117: 18 | AN117: =K115 -> 26.38735 | AO117: =0+AP111 -> 0 | AP117: 3 | AR117: =AA115 -> 21.4241167 | AS117: =AT111 -> 0 | AT117: 3 | AV117: =L132 -> 5.75 | AW117: (12 → 15) | AX117: =K132 -> 4.718009435 | AZ117: =AX104-AX119+AX99 -> 27.02834528 | BA117: =AX113+AX98 -> 123.2453424 | BB117: 17 | BD117: =BW148+'متغیرها '!C55 -> 15.422698 | BE117: =BX148 -> 119.248279 | BF117: شیفت b | BG117: 0.8 | BH117: (13 → 14) | BI117: 0.8056 | BK117: =BI108-BI118+BI98+'متغیرها '!C56 -> 22.24133441 | BL117: =BI110+BI119+BI97+'متغیرها '!C57 -> 126.4699201 | BM117: شیفت16 | BO117: =BK154 -> 13.774225 | BP117: =BL154 -> 127.3281918 | BQ117: 40 | BS117: =J246 -> 4.148338715 | BT117: =K246 -> 136.639072 | BU117: e9 | BW117: =BS104+SQRT(POWER(BS117-BS104,2)+POWER(BT117-BT104,2))*SIN(BT103-ATAN((BS104-BS117)/(BT117-BT104))) -> 4.148338715 | BX117: =BT104+SQRT(POWER(BS117-BS104,2)+POWER(BT117-BT104,2))*COS(BT103-ATAN((BS104-BS117)/(BT117-BT104))) -> 136.639072 | BY117: =BU117 -> e9 | CA117: =BO104-CB112 -> 22.24133441 | CB117: =BP104-CB113 -> 126.4699201 | CC117: 16 | CD117: نقطه حلقه آستین | CE117: =CA104+SQRT(POWER(CA117-CA104,2)+POWER(CB117-CB104,2))*SIN(IF(CB117=CB104,RADIANS(90)-CB114,ATAN((CA117-CA104)/ABS(CB117-CB104))+IF(CB117>CB104,-1,1)*CB114)) -> 22.24141031 | CF117: =CB104+IF(CB117<CB104,-1,1)*SQRT(POWER(CA117-CA104,2)+POWER(CB117-CB104,2))*COS(IF(CB117=CB104,RADIANS(90)-CB114,ATAN((CA117-CA104)/ABS(CB117-CB104))+IF(CB117>CB104,-1,1)*CB114)) -> 126.4706691 | CG117: b10 | CI117: =CI109+CJ114*(1-0.5*'متغیرها '!C76+0.5*'متغیرها '!C78-0.5*'متغیرها '!C71)*COS(CJ113) -> 21.81059828 | CJ117: =CJ109-CJ114*(1-0.5*'متغیرها '!C76+0.5*'متغیرها '!C78-0.5*'متغیرها '!C71)*SIN(CJ113) -> 143.1985633 | CK117: 22f | CM117: =CI104+CJ105 -> 13.87107 | CN117: =CJ104 -> 120.55 | CO117: شیفت5 پیراهن | CR117: =G167 -> 11.826772 | CS117: w | CY117: =BD177-CZ122 -> 29.38735 | CZ117: =BE177 -> 119.0562224 | DA117: 14 | DC117: =DC112+CZ129*SIN(CZ123-CZ134) -> 30.46624432 | DD117: =DD112-CZ129*COS(CZ123-CZ134) -> 111.241559 | DE117: 41s | DG117: =DD569 -> 14.84107 | DH117: =DE569 -> 8 | DI117: 53r | DK117: =BO111 -> 11.71921424 | DL117: =BP111 -> 146.5952 | DM117: 23 | DO117: =DO118-CZ146*COS(CZ140) -> 29.53399785 | DP117: =DP118+CZ146*SIN(CZ140) -> 86.06873111 | DQ117: s''2m | DR117: امتداد جیب | DT117: α22g | DU117: =DU115+DU116 -> 1.557225627 | DX117: α18p | DY117: =DY115+DY116 -> 1.609937536 | ED117: =BS128+BT130 -> 13.87107 | EE117: =BT128 -> 120.55 | EF117: شیفت 5 پیراهن | EH117: =BW120 -> 12.03812049 | EI117: =BX120 -> 159.6350378 | EJ117: a4 | EL117: =AZ180 -> 14.84107 | EM117: =BA180 -> 85.95 | EN117: شیفت 47'' | ET117: =ET111 -> 14.84107 | EU117: =EU114 -> 48.3 | EV117: g53 | FB117: =FB109 -> 13.04960939 | FC117: =FC109 -> 67.935 | FD117: a5 | FH117: سرشانه با ساسون | FJ117: 25.903605 | FK117: 74.0748963 | FL117: 41'''' | FX117: =-DD155-GK101 -> -14.89233418 | FY117: =DE155 -> 132.4752975 | FZ117: 35 | GB117: =-CM126-GK101 -> -7.87107 | GC117: =CN126 -> 119 | GD117: 5 بالاتنه | GF117: =-EX116-GK101 -> -21.90115064 | GG117: =EY116 -> 87.06506846 | GH117: شیفت37' | GN117: =-EL115-GK101 -> -8.84107 | GO117: =EM115 -> 85.95 | GP117: شیفت 47'' | GV117: =-CR167-GK101 -> -8.68107 | GW117: =CS167 -> 103.5 | GX117: شیفت40 یا dd5 | HD117: =-U399-GK101 -> -55.60802752 | HE117: =V399 -> 98.42090843 | HF117: k5 | HH117: =-CP253-GK101 -> 3 | HI117: =CQ253 -> 75.30281529 | HJ117: m11 | HL117: =-DN253-GK101 -> 1.1838 | HM117: =DO253 -> 75.0319 | HN117: p4
E118: دور کمر | F118: a | H118: ='متغیرها '!U70+0.3*'متغیرها '!C60*('متغیرها '!U52+'متغیرها '!U54+'متغیرها '!U72) -> 85.84 | J118: (5 → 6) | K118: ='متغیرها '!C90*(H124-H123) -> 1.55 | L118: =0.2*(H124-H123) -> 3.1 | Q118: =AN122 -> 9.57607 | R118: 0 | S118: 8 | U118: =AN134 -> 22.61294245 | V118: =AO134 -> 22.32326242 | W118: 20 | Y118: =H148*'متغیرها '!U73 -> 10.675 | Z118: (4 → 6) | AA118: =G148*H121 -> 10.774225 | AF118: =AR123 -> 0 | AG118: 0 | AH118: 9 | AJ118: =AR136 -> 19.24133441 | AK118: =AS136 -> 19.96831629 | AL118: 22 | AN118: 0 | AO118: =K116+AP111 -> 15.5 | AP118: 4 | AR118: 0 | AS118: =AA116+AT111 -> 12.5 | AT118: 4 | AV118: 6.4 | AW118: (15 → 16) | AX118: 6.4448 | AZ118: =AX104-AX119+AX99 -> 27.02834528 | BA118: =AX113+AX120+AX98 -> 124.2120624 | BB118: 18 | BF118: کش سویشرت | BG118: 2.950236078 | BH118: (8 → 15) | BI118: 2.182782288 | BS118: =J251 -> 16.75154973 | BT118: =K251 -> 154.5246517 | BU118: a2 | BW118: =BS104+SQRT(POWER(BS118-BS104,2)+POWER(BT118-BT104,2))*SIN(BT103-ATAN((BS104-BS118)/(BT118-BT104))) -> 16.75154973 | BX118: =BT104+SQRT(POWER(BS118-BS104,2)+POWER(BT118-BT104,2))*COS(BT103-ATAN((BS104-BS118)/(BT118-BT104))) -> 154.5246517 | BY118: a2 | CA118: =BO103-CB112 -> 21.30585629 | CB118: =BP103-CB113 -> 131.3035201 | CC118: 12 | CD118: نقطه حلقه آستین | CE118: =CA104+SQRT(POWER(CA118-CA104,2)+POWER(CB118-CB104,2))*SIN(ATAN((CA118-CA104)/(CB118-CB104))-CB114) -> 21.30550456 | CF118: =CB104+SQRT(POWER(CA118-CA104,2)+POWER(CB118-CB104,2))*COS(ATAN((CA118-CA104)/(CB118-CB104))-CB114) -> 131.3041864 | CG118: b6 | CI118: =CI119+IF(CI117>CI119,0.3,0.7)*(CI117-CI119) -> 21.16781341 | CJ118: =CJ119+0.5*(CJ117-CJ119) -> 137.8369304 | CK118: 24f | CQ118: نقاط حلقه آستین پشت بدون ساسون سرشانه | CU118: =CQ104 -> 13.774225 | CV118: =CR104 -> 127.3281918 | CW118: 40 | CY118: =BW133 -> 24.81042003 | CZ118: =BX133 -> 127.9783132 | DA118: b8 | DC118: =CY105+(CY115-CY105+3)*COS(CZ136-RADIANS('متغیرها '!C187)) -> 27.10908443 | DD118: =CZ105-(CY115-CY105+3)*SIN(CZ136-RADIANS('متغیرها '!C187)) -> 76.26456109 | DE118: s''2 | DH118: ='متغیرها '!C55 -> 0 | DI118: شیفت افقی | DK118: =BO101-DL120 -> 23.13415357 | DL118: =BP101 -> 142.3797043 | DM118: 18 | DO118: =DO104+CZ148*SIN(CZ143) -> 30.71092672 | DP118: =DP104-CZ148*COS(CZ143) -> 86.99789367 | DQ118: s'2m | DT118: αb12g | DU118: =DU110*DY118 -> 0.08628632716 | DX118: αb12p | DY118: =(RADIANS(180)-DU117-DY117+DU109)*(1/(1+DU110)) -> 0.04314316358 | EL118: =AZ167+BT130 -> 14.68107 | EM118: =BA167 -> 103.5 | EN118: شیفت 40 | EP118: =DC112 -> 28.63017711 | EQ118: =DD112 -> 123.7882004 | ER118: b2s | ET118: =ET112 -> 27.47155 | EU118: =BE178-(H105-H107) -> 50.84770714 | EV118: g49 | EZ118: پهلو جدا روی جیب با ساسون | FB118: =FB115 -> 25.11254528 | FC118: =FC115 -> 71.23385357 | FD118: 49'm | FF118: =CE105 -> 11.71921424 | FG118: =CF105 -> 146.5952 | FH118: 23 | FJ118: 22.72254875 | FK118: 72.46493663 | FL118: 41''' | FN118: =DK105 -> 13.774225 | FO118: =DL105 -> 127.3281918 | FP118: =DM105 -> شیفت40 | FR118: =DK103 -> 21.30585629 | FS118: =DL103 -> 131.3035201 | FT118: =DM103 -> شیفت12p | GJ118: =-ED116-GK101 -> -9.754754824 | GK118: =EE116 -> 145.7163087 | GL118: شیفت 34b | GR118: =-EP118-GK101 -> -22.63017711 | GS118: =EQ118 -> 123.7882004 | GT118: b2s | GV118: =-CR170-GK101 -> -8.751087094 | GW118: =CS170 -> 95.82 | GX118: dd5 | GZ118: =-DY271-GK101 -> 3 | HA118: =DZ271 -> 127.1094239 | HB118: p26 | HD118: =-U400-GK101 -> -31.64293924 | HE118: =V400 -> 105.5956234 | HF118: k6 | HH118: =-CP254-GK101 -> 3 | HI118: =CQ254 -> 81.01182994 | HJ118: m9 | HL118: =-DN254-GK101 -> 3 | HM118: =DO254 -> 75.94 | HN118: p3
E119: نوار کمر از پشت بین دو خط پهلو | F119: b | H119: ='متغیرها '!U71+0.3*'متغیرها '!C60*('متغیرها '!U53+'متغیرها '!U55+'متغیرها '!U73) -> 39.4969 | J119: (5 → 7) | K119: ='متغیرها '!C88*(H124-H123) -> 3.1 | L119: =0*(I124-I123) -> 0 | Q119: 12.16607 | R119: 0 | S119: 9 | U119: =AN132 -> 24.02834528 | V119: =AO132 -> 20.71206242 | W119: 18 | Y119: =(H153-1)*(I127-I126)+0.2*'متغیرها '!U82 -> 10.84803191 | Z119: (6 → 7) | AA119: =(G153-1)*(H127-H126)+0.2*H130 -> 10.64243528 | AF119: 10.324225 | AG119: 0 | AH119: 10 | AJ119: =AR134 -> 20.80046462 | AK119: =AS134 -> 17.55151629 | AL119: 20 | AN119: =K117 -> 10.87107 | AO119: =K116+AP111 -> 15.5 | AP119: 5 | AR119: 0 | AS119: =AA117+AT111 -> 30.375 | AT119: 5 | AV119: 2.875 | AW119: (12 → 17) | AX119: 2.359004717 | BD119: =AZ106 -> 3 | BE119: =BA151+'متغیرها '!C278*('متغیرها '!U60-'متغیرها '!U59) -> 75.83770714 | BG119: 3.2 | BH119: (15 →16) | BI119: 3.2224 | BK119: =BI108-BI116+BI98+'متغیرها '!C56 -> 23.80046462 | BL119: =BI110+BI97+'متغیرها '!C57 -> 123.2475201 | BM119: شیفت13 | BO119: =BK155 -> 13.774225 | BP119: =BL155 -> 88.05 | BQ119: 38 | BS119: =J257 -> 13.725637 | BT119: =K257 -> 150.5380303 | BU119: a13 | BW119: =BS104+SQRT(POWER(BS119-BS104,2)+POWER(BT119-BT104,2))*SIN(BT103-ATAN((BS104-BS119)/(BT119-BT104))) -> 13.725637 | BX119: =BT104+SQRT(POWER(BS119-BS104,2)+POWER(BT119-BT104,2))*COS(BT103-ATAN((BS104-BS119)/(BT119-BT104))) -> 150.5380303 | BY119: a13 | CA119: =BO102-CB112 -> 21.85434547 | CB119: =BP102-CB113 -> 137.3954214 | CC119: 20 | CD119: نقطه حلقه آستین | CE119: =CA104+SQRT(POWER(CA119-CA104,2)+POWER(CB119-CB104,2))*SIN(ATAN((CA119-CA104)/(CB119-CB104))-CB114) -> 21.85345479 | CF119: =CB104+SQRT(POWER(CA119-CA104,2)+POWER(CB119-CB104,2))*COS(ATAN((CA119-CA104)/(CB119-CB104))-CB114) -> 137.3961362 | CG119: b12 | CI119: =CI108 -> 20.89233418 | CJ119: =CJ108 -> 132.4752975 | CK119: 16f | CM119: =BS128+BT130 -> 13.87107 | CN119: =BT128 -> 120.55 | CO119: شیفت 5 پیراهن | CQ119: مولفه افقی | CR119: مولفه عمودی | CS119: اسم نقطه | CU119: =CU122+0.5*(CQ120-CU122) -> 16.77033246 | CV119: =CR120+0.5*(CV122-CR120) -> 144.9187773 | CW119: وسط 18f | CY119: =BW132 -> 27.35190316 | CZ119: =BX132 -> 127.777529 | DA119: b4 | DC119: =DD134 -> 27.55904364 | DD119: =DE134 -> 75.90940594 | DE119: s'2 | DG119: نقاط خروجی | DK119: =BO102-DL120 -> 21.85434547 | DL119: =BP102 -> 137.3954214 | DM119: 20 | DO119: =CE109 -> 15.74938081 | DP119: =CF109 -> 145.6506668 | DQ119: 30m | DT119: نقاط خروجی | DX119: نقاط خروجی | ED119: =BS104+BT130 -> 13.87107 | EE119: =BT104 -> 119 | EF119: شیفت 5 بالاتنه | EH119: =BW120 -> 12.03812049 | EI119: 159.6350378 | EJ119: a4 | EP119: =DC117 -> 30.46624432 | EQ119: =DD117 -> 111.241559 | ER119: 41s | EV119: سینه | EX119: =DC126 -> 24.99289844 | EY119: =DD126 -> 127.9638969 | EZ119: b'8s | FD119: انگلیسی | FF119: =DY150 -> 15.79329066 | FG119: =DZ150 -> 145.8628838 | FH119: 30b | FJ119: 19.5414925 | FK119: 70.85497696 | FL119: 41'' | FN119: =DK112 -> 14.711725 | FO119: 106.5 | FP119: شیفت35 | FR119: =EE337 -> 8.799225 | FS119: =EF337-0.3*DZ168 -> 66.95 | FT119: e215 | FX119: =-DD157-GK101 -> -14.89233418 | FY119: =DE157 -> 132.4752975 | FZ119: 35 | GB119: =-CM128-GK101 -> -7.87107 | GC119: =CN128 -> 119 | GD119: 5 بالاتنه | GH119: 13' | GJ119: =-ED117-GK101 -> -7.87107 | GK119: =EE117 -> 120.55 | GL119: شیفت 5 پیراهن | GN119: =-EL115-GK101 -> -8.84107 | GO119: =EM115 -> 85.95 | GP119: شیفت 47'' | GR119: =-EP119-GK101 -> -24.46624432 | GS119: =EQ119 -> 111.241559 | GT119: 41s | GZ119: =-DY272-GK101 -> 3 | HA119: =DZ272 -> 98.7 | HB119: d4 | HD119: =-U401-GK101 -> -21.47155 | HE119: =V401 -> 74.53270714 | HF119: 49'
E120: دور سینه : از برجسته ترین قسمت سینه | F120: s1 | H120: ='متغیرها '!U72+0.3*'متغیرها '!C60*('متغیرها '!U52+'متغیرها '!U54+'متغیرها '!U72) -> 96.84 | J120: (1 → 8) | K120: =0.5*G154*(H120-H121)-IF(G152>0,G152,0) -> 9.57607 | L120: =0.5*H154*('متغیرها '!U72-'متغیرها '!U73)-IF(H152>0,H152,0) -> 9.6286 | Q120: 25.27735 | R120: 0 | S120: 10 | U120: =AN126 -> 26.38735 | V120: =AO126 -> 19.74534242 | W120: 12 | Y120: =(H153*(I127-I126)+0.2*'متغیرها '!U82)*0.9-(I127-I126) -> 8.513228723 | Z120: (6 → 8) | AA120: =(G153*(H127-H126)+0.2*H130)*'متغیرها '!C85-(H127-H126) -> 8.328191753 | AF120: 11.224225 | AG120: 0 | AH120: 11 | AJ120: =AR129 -> 23.0353167 | AK120: =AS129 -> 16.74591629 | AL120: 15 | AN120: =K117 -> 10.87107 | AO120: =K116+K118+AP111 -> 17.05 | AP120: 6 | AR120: =AA118 -> 10.774225 | AS120: =AA116+AT111 -> 12.5 | AT120: 6 | AV120: 0.96 | AW120: (17 → 18) | AX120: 0.96672 | AZ120: =AX104-AX121+AX99 -> 25.61294245 | BA120: =AX113+AX98 -> 123.2453424 | BB120: 19 | BD120: =BD154 -> 30.44161665 | BE120: =BE119 -> 75.83770714 | BG120: 1.92 | BH120: (12 → 17) | BI120: 1.828297286 | BK120: =BI108-BI116+BI98+'متغیرها '!C56 -> 23.80046462 | BL120: =BI110+BI117+BI97+'متغیرها '!C57 -> 124.0531201 | BM120: شیفت14 | BO120: =BO119 -> 13.774225 | BP120: =BL168 -> 69.935 | BQ120: 38''' | BS120: =J252 -> 12.03812049 | BT120: =K252 -> 159.6350378 | BU120: a4 | BW120: =BS104+SQRT(POWER(BS120-BS104,2)+POWER(BT120-BT104,2))*SIN(BT103-ATAN((BS104-BS120)/(BT120-BT104))) -> 12.03812049 | BX120: =BT104+SQRT(POWER(BS120-BS104,2)+POWER(BT120-BT104,2))*COS(BT103-ATAN((BS104-BS120)/(BT120-BT104))) -> 159.6350378 | BY120: a4 | CA120: =BO101-CB112 -> 23.13415357 | CB120: =BP101-CB113 -> 142.3797043 | CC120: 18 | CD120: نقطه حلقه آستین | CE120: =CA104+SQRT(POWER(CA120-CA104,2)+POWER(CB120-CB104,2))*SIN(ATAN((CA120-CA104)/(CB120-CB104))-CB114) -> 23.13282193 | CF120: =CB104+SQRT(POWER(CA120-CA104,2)+POWER(CB120-CB104,2))*COS(ATAN((CA120-CA104)/(CB120-CB104))-CB114) -> 142.3805323 | CG120: b16 | CI120: =CI110-0.85*(CI110-CI119)+CJ114*0.07*'متغیرها '!C76 -> 22.16658655 | CJ120: =CJ110+0.5*(CJ119-CJ110) -> 127.8603199 | CK120: 20f | CM120: =BS104+BT130 -> 13.87107 | CN120: =BT104 -> 119 | CO120: شیفت 5 بالاتنه | CQ120: =CQ112+CR117*(1-0.5*CR108+0.5*CR109-0.5*CR107)*COS(CR116) -> 21.82145067 | CR120: =CR112-CR117*(1-0.5*CR108+0.5*CR109-0.5*CR107)*SIN(CR116) -> 143.2423545 | CS120: 18f | CY120: =BW139 -> 28.88626028 | CZ120: =BX139 -> 128.2691728 | DA120: b14 | DC120: =DC119-CY106+CY109 -> 25.61904364 | DD120: =DD119 -> 75.90940594 | DE120: s2 | DG120: مولفه افقی | DH120: مولفه عمودی | DI120: اسم نقطه | DL120: ='متغیرها '!C56 -> 0 | DM120: شیفت افقی | DO120: =CE121 -> 17.34970917 | DP120: =CF121 -> 145.3582914 | DQ120: 32m | DT120: مولفه افقی | DU120: مولفه عمودی | DV120: اسم نقطه | DX120: مولفه افقی | DY120: مولفه عمودی | DZ120: اسم نقطه | ED120: =BS128+BT130 -> 13.87107 | EE120: =BT128 -> 120.55 | EF120: شیفت 5 پیراهن | EH120: 6.957232789 | EI120: 154.053941 | EJ120: a6 | EL120: =AZ167+BT130 -> 14.68107 | EM120: =BA167 -> 103.5 | EN120: شیفت 40 | ET120: =ET108 -> 3 | EU120: =BA165+(H124-H123) -> 119 | EV120: g4 | EX120: =DC124 -> 28.21974749 | EY120: =DD124 -> 109.9535603 | EZ120: 41m | FB120: =DU176 -> 3 | FC120: 108.75 | FD120: e''1 | FJ120: 15.724225 | FK120: 69.935 | FL120: شیفت41' | FN120: 12.799225 | FO120: 88.05 | FP120: شیفت38'' | FX120: =-DD158-GK101 -> -11.7327653 | FY120: =DE158 -> 128.3314731 | FZ120: 33 | GB120: =-CM129-GK101 -> -7.87107 | GC120: =CN129 -> 120.55 | GD120: 5 پیراهن | GF120: =-EX119-GK101 -> -18.99289844 | GG120: =EY119 -> 127.9638969 | GH120: b'8s | GN120: =-EL118-GK101 -> -8.68107 | GO120: =EM118 -> 103.5 | GP120: شیفت 40 | GV120: =-CR170-GK101 -> -8.751087094 | GW120: =CS170 -> 95.82 | GX120: dd5 | HF120: رسم آستین سرخود | HH120: =-CP256-GK101 -> 3 | HI120: =CQ256 -> 75.30281529 | HJ120: m11 | HL120: =-DN256-GK101 -> 3 | HM120: =DO256 -> 75.94 | HN120: p3
E121: پشت نوار سینه، بین دو خط پهلو | F121: s2 | H121: ='متغیرها '!U73+0.3*'متغیرها '!C60*('متغیرها '!U53+'متغیرها '!U55+'متغیرها '!U73) -> 43.0969 | J121: (8 → 9) | K121: =IF(G152>0,2*G152,0) -> 2.59 | L121: =2*IF(H152>0,H152,0) -> 2.59 | Q121: 25.27735 | R121: 3.111227519 | S121: 11 | U121: =AN127 -> 27.99855 | V121: =AO127 -> 19.74534242 | W121: 13 | Y121: =H147 -> 0 | Z121: (1→ 9) | AA121: =G147 -> 0 | AF121: 20.16425 | AG121: 0 | AH121: 12 | AN121: =K117 -> 10.87107 | AO121: =K116-K119+AP111 -> 12.4 | AP121: 7 | AR121: =AA118 -> 10.774225 | AS121: =AA116+AA119+AT111 -> 23.14243528 | AT121: 7 | AV121: 4.6 | AW121: (12 → 19) | AX121: 3.774407548 | AZ121: =AX104-AX121+AX99 -> 25.61294245 | BA121: =AX113+AX122+AX98 -> 125.8232624 | BB121: 20 | BG121: 11.27773027 | BH121: (17 → 18) | BI121: 11.07618425 | BS121: =J253 -> 6.957232789 | BT121: =K253 -> 154.053941 | BU121: a6 | BW121: =BS104+SQRT(POWER(BS121-BS104,2)+POWER(BT121-BT104,2))*SIN(BT103-ATAN((BS104-BS121)/(BT121-BT104))) -> 6.957232789 | BX121: =BT104+SQRT(POWER(BS121-BS104,2)+POWER(BT121-BT104,2))*COS(BT103-ATAN((BS104-BS121)/(BT121-BT104))) -> 154.053941 | BY121: a6 | CA121: =BK146-CB112 -> 17.35130428 | CB121: =BL146-CB113 -> 145.357975 | CC121: 32 | CD121: نقطه ساسون سرشانه | CE121: =CA104+SQRT(POWER(CA121-CA104,2)+POWER(CB121-CB104,2))*SIN(ATAN((CA121-CA104)/(CB121-CB104))-CB114) -> 17.34970917 | CF121: =CB104+SQRT(POWER(CA121-CA104,2)+POWER(CB121-CB104,2))*COS(ATAN((CA121-CA104)/(CB121-CB104))-CB114) -> 145.3582914 | CG121: 32 | CI121: =CI110-0.5*(CI110-CI119)+CJ114*0.07*'متغیرها '!C76 -> 25.13984209 | CJ121: =CJ110+0.15*(CJ119-CJ110) -> 124.6298357 | CK121: 18f | CQ121: =CQ122+0.2*(CQ120-CQ122)-CR117*0.05*CR108 -> 21.09351849 | CR121: =CR122+0.4*(CR120-CR122) -> 136.6440591 | CS121: 20f | CU121: =CU119 -> 16.77033246 | CV121: =CV119 -> 144.9187773 | CW121: وسط 18f | CY121: =BW140 -> 28.63017711 | CZ121: =BX140 -> 123.7882004 | DA121: b2 | DC121: =DC117+CZ130*SIN(CZ123+CZ133) -> 36.72544118 | DD121: =DD117-CZ130*COS(CZ123+CZ133) -> 92.24552213 | DE121: 45ss | DG121: =DG104-DH109 -> 27.02834528 | DH121: =DH104 -> 119.0562224 | DI121: 14شیفتm | DL121: =H170 -> 1.487543461 | DM121: m' | DO121: =DX122 -> 21.59066459 | DP121: =DY122 -> 131.3041864 | DQ121: =DZ122 -> b'6p | DR121: چرخیده | DT121: =DT103-DU114*COS(DU116+DU118) -> 21.15012956 | DU121: =DU103-DU114*SIN(DU116+DU118) -> 137.6695756 | DV121: b'12g | DX121: =DX103-DY114*COS(DY116+DY118) -> 22.09108815 | DY121: =DY103-DY114*SIN(DY116+DY118) -> 137.3358347 | DZ121: b'12p | EH121: 2.44573744 | EI121: 144.1526386 | EJ121: a8 | EL121: =AZ161+BT130 -> 13.87107 | EM121: =BA161 -> 115.9 | EN121: شیفت 43 | EP121: =DC117 -> 30.46624432 | EQ121: =DD117 -> 111.241559 | ER121: 41s | ET121: =AZ104 -> 13.87107 | EU121: =EU120 -> 119 | EV121: g5 | FB121: 2.6 | FC121: 116.55 | FD121: e'1 | FF121: =DY150 -> 15.79329066 | FG121: =DZ150 -> 145.8628838 | FH121: 30b | FJ121: 12.799225 | FK121: 69.935 | FL121: شیفت50 | FN121: =DK111 -> 12.799225 | FO121: =DL111 -> 69.935 | FP121: =DM111 -> شیفت50 | FR121: =EE337 -> 8.799225 | FS121: =EF337-0.3*DZ168 -> 66.95 | FT121: e215 | FX121: =-DD159-GK101 -> -9.064684911 | FY121: =DE159 -> 122.530119 | FZ121: 23 | GF121: =-EX120-GK101 -> -22.21974749 | GG121: =EY120 -> 109.9535603 | GH121: 41m | GJ121: =-ED119-GK101 -> -7.87107 | GK121: =EE119 -> 119 | GL121: شیفت 5 بالاتنه | GR121: =-EP121-GK101 -> -24.46624432 | GS121: =EQ121 -> 111.241559 | GT121: 41s | GV121: =-CR173-GK101 -> -21.3388764 | GW121: =CS173 -> 102.7077071 | GX121: d3 | HB121: 52' | HD121: =-U403-GK101 -> -5.708361851 | HE121: =V403 -> 146.5514088 | HF121: 25 | HH121: =-CP257-GK101 -> 3 | HI121: =CQ257 -> 75.30281529 | HJ121: m'11 | HL121: =-DN257-GK101 -> 3 | HM121: =DO257 -> 75.94 | HN121: p'3
E122: فاصله عمودی از خط سینه جلو تا خط سینه پشت که از کنار حلقه آستین بگذرد | F122: t1 | H122: =('متغیرها '!U74-'متغیرها '!U77)-0.5*'متغیرها '!C60*('متغیرها '!U74-'متغیرها '!U77)+'متغیرها '!C63*('متغیرها '!U75-'متغیرها '!U78) -> 22.487 | I122: =('متغیرها '!U74-'متغیرها '!U77) -> 22.6 | J122: (7 → 8) | K122: وصل | Q122: =AN124 -> 25.27735 | R122: =AO124 -> 0 | S122: 10 | Z122: (9 →5) | AA122: وصل | AF122: 20.16425 | AG122: 0.04828101031 | AH122: 13 | AN122: =K120 -> 9.57607 | AO122: =0+AP111 -> 0 | AP122: 8 | AR122: =AA118 -> 10.774225 | AS122: =AA116+AA120+AT111 -> 20.82819175 | AT122: 8 | AV122: 2.56 | AW122: (19 → 20) | AX122: 2.57792 | BD122: =AZ162 -> 13.87107 | BE122: =BE119 -> 75.83770714 | BG122: 0.576 | BH122: (12 → 19) | BI122: 0.5484891857 | BK122: =BI108+BI98+'متغیرها '!C56 -> 24.4241167 | BL122: =BI110+BI97+'متغیرها '!C57 -> 123.2475201 | BM122: شیفت8 | BO122: =BO153 -> 24.4241167 | BP122: =BP153 -> 119.0584001 | BQ122: 10 شیفت | BS122: =J261 -> 2.44573744 | BT122: =K261 -> 144.1526386 | BU122: a8 | BW122: =BS104+SQRT(POWER(BS122-BS104,2)+POWER(BT122-BT104,2))*SIN(BT103-ATAN((BS104-BS122)/(BT122-BT104))) -> 2.44573744 | BX122: =BT104+SQRT(POWER(BS122-BS104,2)+POWER(BT122-BT104,2))*COS(BT103-ATAN((BS104-BS122)/(BT122-BT104))) -> 144.1526386 | BY122: a8 | CA122: =BO106-CB112 -> 26.0353167 | CB122: =BP106-CB113 -> 123.2475201 | CC122: 9 | CD122: نقطه حلقه آستین | CE122: =CA104+SQRT(POWER(CA122-CA104,2)+POWER(CB122-CB104,2))*SIN(IF(CB122=CB104,RADIANS(90)-CB114,ATAN((CA122-CA104)/ABS(CB122-CB104))+IF(CB122>CB104,-1,1)*CB114)) -> 26.03567767 | CF122: =CB104+IF(CB122<CB104,-1,1)*SQRT(POWER(CA122-CA104,2)+POWER(CB122-CB104,2))*COS(IF(CB122=CB104,RADIANS(90)-CB114,ATAN((CA122-CA104)/ABS(CB122-CB104))+IF(CB122>CB104,-1,1)*CB114)) -> 123.2486048 | CG122: b14 | CM122: =BS104+BT130 -> 13.87107 | CN122: =BT104 -> 119 | CO122: شیفت 5 بالاتنه | CQ122: =CQ110+0.5*CR111+CR117*(0.2*CR109-0.3*CR108) -> 20.91153544 | CR122: =CR113+0.45*(CR120-CR113) -> 132.2451955 | CS122: 12f | CU122: =CQ112 -> 11.71921424 | CV122: =CR112 -> 146.5952 | CW122: 23 | CZ122: ='متغیرها '!C55 -> 0 | DA122: شیفت افقی | DC122: =DC121-CZ135*SIN(CZ123+CZ133) -> 40.05480265 | DD122: =DD121+CZ135*COS(CZ123+CZ133) -> 82.14124285 | DE122: ss2 | DG122: =DG105-DH109 -> 24.94834528 | DH122: =DH105 -> 106.5477071 | DI122: 41شیفتm | DK122: =BK102 -> 3 | DL122: =BL102 -> 138.7532465 | DM122: 21 | DO122: =DK129+DH109 -> 27.151365 | DP122: =DL129 -> 86.56928511 | DQ122: p10rm | DR122: شلوار | DT122: =DT106+1.2*(DT121-DT105) -> 21.57166529 | DU122: =DU106 -> 132.4752975 | DV122: b'6g | DX122: =DX106+1.2*(DX121-DX105) -> 21.59066459 | DY122: =DY106 -> 131.3041864 | DZ122: b'6p | ED122: =BS104+BT130 -> 13.87107 | EE122: =BT104 -> 119 | EF122: شیفت 5 بالاتنه | EH122: =BW115 -> 0.5122394328 | EI122: =BX115 -> 134.2513362 | EJ122: e3 | EP122: =DC122 -> 40.05480265 | EQ122: =DD122 -> 82.14124285 | ER122: ss2 | EX122: =DC124 -> 28.21974749 | EY122: =DD124 -> 109.9535603 | EZ122: 41m | FB122: 1.591287928 | FC122: 122.3042854 | FD122: e''10 | FF122: =BK101 -> 15.26974818 | FG122: =BL101 -> 138.7532465 | FH122: 22 | FJ122: =BO176 -> 3 | FK122: =BP176 -> 69.935 | FL122: 47 | FR122: =EE341 -> 8.799225 | FS122: =EF341 -> 69.935 | FT122: e216 | FX122: =-DD160-GK101 -> -7.87107 | FY122: =DE160 -> 115.9 | FZ122: 43 | GB122: =-CM131-GK101 -> -7.87107 | GC122: =CN131 -> 120.55 | GD122: 5پیراهن | GJ122: =-ED120-GK101 -> -7.87107 | GK122: =EE120 -> 120.55 | GL122: شیفت 5 پیراهن | GN122: =-EL118-GK101 -> -8.68107 | GO122: =EM118 -> 103.5 | GP122: شیفت 40 | GR122: =-EP122-GK101 -> -34.05480265 | GS122: =EQ122 -> 82.14124285 | GT122: ss2 | GZ122: =-AW268-GK101 -> -5.708361851 | HA122: =AX268 -> 146.5514088 | HB122: 25 | HD122: =-U404-GK101 -> -15.81059828 | HE122: =V404 -> 143.1985633 | HF122: 22f
E123: فاصله عمودی از خط سینه جلو تا خط سینه پشت که از کنارگردن بگذرد | F123: t2 | H123: ='متغیرها '!U75-'متغیرها '!U78+'متغیرها '!C63*('متغیرها '!U75-'متغیرها '!U78) -> 28 | I123: ='متغیرها '!U75-'متغیرها '!U78 -> 28 | J123: (7 → 9) | K123: وصل | Q123: =AN117 -> 26.38735 | R123: =AO117 -> 0 | S123: 3 | Y123: =Y118-H151-H147 -> 10.225 | Z123: (9 → 10) | AA123: =AA118-AA121-G151 -> 10.324225 | AF123: =AR126 -> 20.16425 | AG123: =AS126 -> 0 | AH123: 12 | AN123: =K120+K121 -> 12.16607 | AO123: =0+AP111 -> 0 | AP123: 9 | AR123: =AA121 -> 0 | AS123: =AT111 -> 0 | AT123: 9 | AV123: 4.48 | AW123: (16 → 21) | AX123: 4.412769906 | AZ123: =AZ115 -> 24.66934057 | BA123: =BA115 -> 129.6901424 | BB123: 16 | BD123: =BD122 -> 13.87107 | BE123: =BA106 -> 67.935 | BG123: 6.202751647 | BH123: (19 → 20) | BI123: 6.091901339 | BK123: =BI108+BI98+'متغیرها '!C56 -> 24.4241167 | BL123: =0+BI97+'متغیرها '!C57 -> 69.935 | BM123: شیفت7 | BO123: =#REF!+'متغیرها '!C56 ->  | BP123: =#REF!+'متغیرها '!C57 ->  | BQ123: b شیفت | BS123: =J263 -> 1.258567603 | BT123: =K263 -> 125.4006681 | BU123: a11 | BW123: =IF(BS116>BW115,BS116-0.7*(BS116-BW115),BW115-0.7*(BW115-BS116)) -> 1.258567603 | BX123: =BT123 -> 125.4006681 | BY123: a11 | CA123: =BO122-CB112 -> 24.4241167 | CB123: =BP122-CB113 -> 119.0584001 | CC123: 10 | CD123: نقطه زیر حلقه آستین | CE123: =CA104+SQRT(POWER(CA123-CA104,2)+POWER(CB123-CB104,2))*SIN(IF(CB123=CB104,RADIANS(90)-CB114,ATAN((CA123-CA104)/ABS(CB123-CB104))+IF(CB123>CB104,-1,1)*CB114)) -> 24.42484828 | CF123: =CB104+IF(CB123<CB104,-1,1)*SQRT(POWER(CA123-CA104,2)+POWER(CB123-CB104,2))*COS(IF(CB123=CB104,RADIANS(90)-CB114,ATAN((CA123-CA104)/ABS(CB123-CB104))+IF(CB123>CB104,-1,1)*CB114)) -> 119.0593423 | CG123: b2 | CJ123: به دست آوردن نقطه تقاطع دو خط (وسط 20f) | CK123: مولفه افقی | CL123: مولفه عمودی | CM123: =AZ161+BT130 -> 13.87107 | CN123: =BA161 -> 115.9 | CO123: شیفت 43 | CQ123: =CQ113-0.9*(CQ113-CQ122)+CR117*0.07*CR108 -> 21.42391357 | CR123: =CR113+0.25*(CR120-CR113) -> 128.2462287 | CS123: 16f | CW123: رگلان | CZ123: =BU143-BU142 -> 0.3100869095 | DA123: ζ'2-ζ'1 | DC123: =DC112-CZ125*COS(CZ123) -> 26.38368027 | DD123: =DD112-CZ125*COS(CZ123)*TAN(CZ138) -> 122.5875304 | DE123: b2m | DG123: =DG106-DH109 -> 25.11254528 | DH123: =DH106 -> 86.54770714 | DI123: 45شیفتm | DK123: =BK159 -> 12.836725 | DL123: =BL159 -> 106.5 | DM123: 34 | DO123: =DK130+DH109 -> 22.79430781 | DP123: =DL130 -> 51.38343191 | DQ123: p7rm | DT123: =DT107+0.5*(DT121-DT105) -> 23.25393273 | DU123: =DU107 -> 129.0807724 | DV123: b'10g | DX123: =DX107+0.5*(DX121-DX105) -> 22.36022699 | DY123: =DY107 -> 126.4706691 | DZ123: b'10p | ED123: =AZ161+BT130 -> 13.87107 | EE123: =BA161 -> 115.9 | EF123: شیفت 43 | EH123: =BW123 -> 1.258567603 | EI123: =BX123 -> 125.4006681 | EJ123: a11 | EL123: =AZ161 -> 13.87107 | EM123: =BA161 -> 115.9 | EN123: 43 | ET123: =BD166 -> 13.87107 | EU123: =EU120 -> 119 | EV123: g'5 | EX123: =DC125 -> 37.80830582 | EY123: =DD125 -> 82.91229874 | EZ123: ss2m | FB123: 0.8825758558 | FC123: 128.0585708 | FD123: e'10 | FL123: ترک وسط | FN123: =DK105-DL120 -> 13.774225 | FO123: =DL105-DL128 -> 127.3281918 | FP123: بدون شیفت40 | GB123: =-CM132-GK101 -> -10.75948006 | GC123: =CN132 -> 144.874986 | GD123: وسط 22f | GF123: =-EX122-GK101 -> -22.21974749 | GG123: =EY122 -> 109.9535603 | GH123: 41m | GN123: =-EL121-GK101 -> -7.87107 | GO123: =EM121 -> 115.9 | GP123: شیفت 43 | GV123: =-CR173-GK101 -> -21.3388764 | GW123: =CS173 -> 102.7077071 | GX123: d3 | GZ123: =-AW269-GK101 -> -5.708361851 | HA123: =AX269 -> 155.9857263 | HB123: 1n | HD123: =-U405-GK101 -> -34.02398423 | HE123: =V405 -> 133.3668178 | HF123: k13 | HH123: =-CP259-GK101 -> 3 | HI123: =CQ259 -> 75.30281529 | HJ123: m'11 | HL123: =-DN259-GK101 -> 3 | HM123: =DO259 -> 75.94 | HN123: p'3
E124: فاصله عمودی از خط کمر جلو تا خط کمر پشت که از کنار گردن بگذرد | F124: t3 | H124: ='متغیرها '!U76-'متغیرها '!U79+'متغیرها '!C63*('متغیرها '!U76-'متغیرها '!U79) -> 43.5 | I124: ='متغیرها '!U76-'متغیرها '!U79 -> 43.5 | J124: (9 → 10) | K124: =K115-K120-2*G152-0.5*(H120-H121-H118+H119)*(1-2*'متغیرها '!C87)+'متغیرها '!C77*O128*H130*((L115-L120-L121-L124)/(L127-L125)) -> 13.11128 | L124: =L115-L120-2*H152-0.5*('متغیرها '!U72-'متغیرها '!U73-'متغیرها '!U70+'متغیرها '!U71)*(1-2*'متغیرها '!C87) -> 13.3214 | N124: متغیرهای محاسبه ای بالاتنه جلو | P124: شبیه ساز | Q124: =AN126 -> 26.38735 | R124: =AO126 -> 19.74534242 | S124: 12 | W124: انحنای حلقه یقه جلو | Y124: =2*H151 -> 0.9 | Z124: (10 → 11) | AA124: =2*G151 -> 0.9 | AF124: =AR117 -> 21.4241167 | AG124: =AS117 -> 0 | AH124: 3 | AL124: انحنای حلقه یقه پشت | AN124: =K120+K121+K124 -> 25.27735 | AO124: =0+AP111 -> 0 | AP124: 10 | AR124: =AA121+AA123 -> 10.324225 | AS124: =AT111 -> 0 | AT124: 10 | AV124: 10.52630989 | AW124: (21 → 22) | AX124: 10.28380572 | AZ124: =AX104-AX117+AX123+AX99 -> 29.08211047 | BA124: =AX113+AX118+AX98 -> 129.6901424 | BB124: 21 | BH124: (18 → 20→ 12→ 16→ 14→ 8→ 9) | BI124: هلال وصل | BS124: =N267 -> 15.65174957 | BT124: =O267 -> 155.7170751 | BU124: a14 | BW124: =BS104+SQRT(POWER(BS124-BS104,2)+POWER(BT124-BT104,2))*SIN(BT103-ATAN((BS104-BS124)/(BT124-BT104))) -> 15.65174957 | BX124: =BT104+SQRT(POWER(BS124-BS104,2)+POWER(BT124-BT104,2))*COS(BT103-ATAN((BS104-BS124)/(BT124-BT104))) -> 155.7170751 | BY124: a14 | CB124: متغیرهای محاسبه ای ساسون زیر بغل | CI124: نقطه اول از خط اول | CJ124: 30 | CK124: =CM137 -> 9.966689481 | CL124: =CN137 -> 140.4013725 | CQ124: =CQ113-0.55*(CQ113-CQ122)+CR117*0.07*CR108 -> 23.21723701 | CR124: =CR113+0.09*(CR120-CR113) -> 125.0470552 | CS124: 14f | CU124: =CQ103 -> 9.539410683 | CV124: =CR103 -> 144.8913767 | CW124: 28 | CY124: =BD160 -> 13.87107 | CZ124: =BE160 -> 120.55 | DA124: شیفت 5 | DC124: =DC117-CZ125*COS(CZ123) -> 28.21974749 | DD124: =DD117-CZ125*COS(CZ123)*TAN(CZ137) -> 109.9535603 | DE124: 41m | DG124: =DG107-DH109 -> 25.11254528 | DH124: =CZ114-0.5*(CZ114-CZ106) -> 71.23385357 | DI124: 49'شیفتm | DJ124: پیراهن | DK124: =BO187 -> 14.749225 | DL124: =BP187 -> 88.05 | DM124: 38' | DO124: =DK131+DH109 -> 25.4176464 | DP124: =DL131 -> 11.08343191 | DQ124: p5rm | DT124: =DT111+DT122-DT106 -> 25.34867167 | DU124: =DU111 -> 129.6901424 | DV124: 16g | DW124: در مدل عصایی | DX124: =DX111+DX122-DX106 -> 21.59101632 | DY124: =DY111 -> 131.3035201 | DZ124: 12p | EA124: در مدل عصایی | EH124: =BS116 -> 3 | EI124: =BT116 -> 116.55 | EJ124: e1 | EL124: =AZ166 -> 13.06107 | EM124: =BA166 -> 103.5 | EN124: 39 | EP124: =DC122 -> 40.05480265 | EQ124: =DD122 -> 82.14124285 | ER124: ss2 | ET124: =CM105 -> 22.16658655 | EU124: =EU120 -> 119 | EV124: g''5 | FB124: =DP178 -> 0.304293093 | FC124: =DQ178 -> 135.7309513 | FD124: e10 | FF124: =BK101 -> 15.26974818 | FG124: =BL101 -> 138.7532465 | FH124: 22 | FJ124: =BK179 -> 13.774225 | FK124: =BL179 -> 127.3281918 | FL124: شیفت 40 | FN124: =DK123 -> 12.836725 | FO124: 106.5 | FP124: 34 | FR124: =DO121 -> 21.59066459 | FS124: =DP121 -> 131.3041864 | FT124: =DQ121 -> b'6p | FX124: =-DD162-GK101 -> -7.87107 | FY124: =DE162 -> 115.9 | FZ124: 43 | GF124: =-EX123-GK101 -> -31.80830582 | GG124: =EY123 -> 82.91229874 | GH124: ss2m | GJ124: =-ED122-GK101 -> -7.87107 | GK124: =EE122 -> 119 | GL124: شیفت 5 پیراهن | GR124: =-EP124-GK101 -> -34.05480265 | GS124: =EQ124 -> 82.14124285 | GT124: ss2 | GV124: =-CR176-GK101 -> -21.30735 | GW124: =CS176 -> 106.5477071 | GX124: شیفت41 یا d3 | HH124: =-CP260-GK101 -> 3 | HI124: =CQ260 -> 98.625 | HJ124: s'1 | HL124: =-DN260-GK101 -> 3 | HM124: =DO260 -> 98.625 | HN124: s'1
E125: فاصله عمودی بین خط سینه پشت و سرشانه، نزدیک دست | F125: t4 | H125: ='متغیرها '!U77-0.5*'متغیرها '!C60*'متغیرها '!U77+'متغیرها '!C63*('متغیرها '!U78) -> 24.079 | I125: ='متغیرها '!U77 -> 24.2 | J125: (10 → 11) | K125: =K124*TAN(0.5*IF(K121=0,0,G162))+K111 -> 3.111227519 | L125: =L124*TAN(0.5*IF(L121=0,0,H162))+L111 -> 3.047707137 | N125: γ5 | O125: 1.3 | Q125: =AN129 -> 21.66934057 | R125: =AO129 -> 19.74534242 | S125: 15 | U125: =AN139 -> 8.708361851 | V125: =AO139 -> 43.05140881 | W125: 25 | Z125: (10 → 8) | AA125: وصل | AF125: =AR128 -> 21.4241167 | AG125: =AS128 -> 16.74591629 | AH125: 14 | AJ125: =AR141 -> 8.719214244 | AK125: =AS141 -> 40.09520003 | AL125: 27 | AN125: =K120+K121+K124 -> 25.27735 | AO125: =K125+AP111 -> 3.111227519 | AP125: 11 | AR125: =AA121+AA123+AA124 -> 11.224225 | AS125: =AT111 -> 0 | AT125: 11 | AV125: 1.344 | AW125: (16 → 23) | AX125: 1.323830972 | AZ125: =AX104-AX117+AX123+AX99 -> 29.08211047 | BA125: =AX113+AX118+AX124+AX98 -> 139.9739481 | BB125: 22 | BD125: =AZ106 -> 3 | BE125: =BA106-2 -> 65.935 | BH125: (1 → 21) | BI125: =H106-H114+AG147 -> 68.8182465 | BK125: =BI106+BI98+'متغیرها '!C56 -> 25.47838335 | BL125: =0+BI97+'متغیرها '!C57 -> 69.935 | BM125: شیفت5 | BO125: =BO123 ->  | BP125: =BP123 ->  | BQ125: b شیفت | BS125: =N269 -> 12.19929871 | BT125: =O269 -> 151.0694584 | BU125: a16 | BW125: =BS104+SQRT(POWER(BS125-BS104,2)+POWER(BT125-BT104,2))*SIN(BT103-ATAN((BS104-BS125)/(BT125-BT104))) -> 12.19929871 | BX125: =BT104+SQRT(POWER(BS125-BS104,2)+POWER(BT125-BT104,2))*COS(BT103-ATAN((BS104-BS125)/(BT125-BT104))) -> 151.0694584 | BY125: a16 | CB125: ζ'1 | CC125: =('متغیرها '!C111+0.001)*ATAN((CA109-CA104)/(CB109-CB104)) -> 0.0001073849347 | CE125: =CA104+(1-'متغیرها '!C116)*(CA123-CA104) -> 14.83921417 | CF125: =CB104+(1-'متغیرها '!C116)*(CA123-CA104)*TAN(0.5*CB114-CC127) -> 126.5012881 | CG125: b | CI125: نقطه دوم از خط اول | CJ125: 20f | CK125: =CI120 -> 22.16658655 | CL125: =CJ120 -> 127.8603199 | CM125: =AZ161 -> 13.87107 | CN125: =BA161 -> 115.9 | CO125: 43 | CR125: به دست آوردن نقطه تقاطع دو خط (وسط 16f) | CS125: مولفه افقی | CT125: مولفه عمودی | CU125: =CS130 -> 15.3738469 | CV125: =CT130 -> 136.7198061 | CW125: وسط 16f | CZ125: =AX119 -> 2.359004717 | DA125: (12→17) | DC125: =DC122-CZ125*COS(CZ123) -> 37.80830582 | DD125: =DD122-CZ125*COS(CZ123)*TAN(CZ139) -> 82.91229874 | DE125: ss2m | DG125: =DG113-DH109 -> 25.07051531 | DH125: =DH113 -> 86.55213118 | DI125: 10rm | DJ125: شلوار | DK125: =BO188 -> 14.749225 | DL125: =BP188 -> 69.935 | DM125: 49 | DO125: =DK132+DH109 -> 25.4176464 | DP125: =DL132 -> 11.08343191 | DQ125: p1rm | DT125: =DT112+DT123-DT107 -> 25.89599708 | DU125: =DU112 -> 125.8232624 | DV125: 20g | DW125: در مدل عصایی | DX125: =DX112+DX123-DX107 -> 22.36015109 | DY125: =DY112 -> 126.4699201 | DZ125: 16p | EA125: در مدل عصایی | ED125: =AZ161 -> 13.87107 | EE125: =BA161 -> 115.9 | EF125: 43 | EP125: =DC116 -> 23.93379283 | EQ125: =DD116 -> 87.6743909 | ER125: 47''s | EV125: باسن | EX125: =DC127 -> 23.37254681 | EY125: =DD127 -> 77.68297171 | EZ125: s2m | FF125: =BK154 -> 13.774225 | FG125: =BL154 -> 127.3281918 | FH125: 40 | FJ125: =BK180 -> 14.711725 | FK125: =BL180 -> 106.5 | FL125: شیفت 35 | FN125: 14.749225 | FO125: 88.05 | FP125: 38' | FR125: =CE163 -> 10.749225 | FS125: =CF163-0.3*DZ168 -> 66.95 | FT125: e'215 | FX125: =-DD163-GK101 -> -9.706775996 | FY125: =DE163 -> 121.416057 | FZ125: 21 | GB125: =-CM134-GK101 -> -10.75948006 | GC125: =CN134 -> 144.874986 | GD125: وسط 22f | GJ125: =-ED123-GK101 -> -7.87107 | GK125: =EE123 -> 115.9 | GL125: شیفت 43 | GN125: =-EL123-GK101 -> -7.87107 | GO125: =EM123 -> 115.9 | GP125: 43 | GR125: =-EP125-GK101 -> -17.93379283 | GS125: =EQ125 -> 87.6743909 | GT125: 47''s | GZ125: =-AW269-GK101 -> -5.708361851 | HA125: =AX269 -> 155.9857263 | HB125: 1n | HD125: =-U407-GK101 -> -34.02398423 | HE125: =V407 -> 133.3668178 | HF125: k13 | HJ125: خط مرغک در جلو
E126: فاصله عمودی بین خط سینه پشت و سرشانه، نزدیک گردن | F126: t5 | H126: ='متغیرها '!U78+'متغیرها '!C63*'متغیرها '!U78 -> 28 | I126: ='متغیرها '!U78 -> 28 | J126: (9 → 11) | K126: وصل | N126: γ4 | O126: 0.3 | Q126: =AN130 -> 21.66934057 | R126: =AO130 -> 26.19014242 | S126: 16 | U126: =AN144 -> 6.966689481 | V126: =AO144 -> 36.90137251 | W126: 30 | Z126: (11 → 8) | AA126: وصل | AC126: متغیرهای محاسبه ای بالاتنه پشت | AE126: شبیه ساز | AF126: =AR131 -> 18.30585629 | AG126: =AS131 -> 16.74591629 | AH126: 17 | AJ126: =AR146 -> 6.539410683 | AK126: =AS146 -> 38.3913767 | AL126: 32 | AN126: =K115 -> 26.38735 | AO126: =K127+AP111 -> 19.74534242 | AP126: 12 | AR126: =AA121+AA123+AA124+AA127 -> 20.16425 | AS126: =AT111 -> 0 | AT126: 12 | AV126: 5.263154947 | AW126: (23 → 24) | AX126: 5.141902862 | BD126: =BD125+'متغیرها '!C279*(AZ151-BD125) -> 20.83705082 | BE126: =BE125 -> 65.935 | BH126: (21 → 22) | BI126: =AF147 -> 12.26974818 | BK126: =BI106+BI98+'متغیرها '!C56 -> 25.47838335 | BL126: =BI107+BI97+'متغیرها '!C57 -> 86.54988478 | BM126: شیفت6 | BO126: =BK154+'متغیرها '!C56 -> 13.774225 | BP126: =BL179 -> 127.3281918 | BQ126: 40 شیفت | BS126: =N268 -> 11.04848176 | BT126: =O268 -> 147.2668629 | BU126: a15 | BW126: =BS104+SQRT(POWER(BS126-BS104,2)+POWER(BT126-BT104,2))*SIN(BT103-ATAN((BS104-BS126)/(BT126-BT104))) -> 11.04848176 | BX126: =BT104+SQRT(POWER(BS126-BS104,2)+POWER(BT126-BT104,2))*COS(BT103-ATAN((BS104-BS126)/(BT126-BT104))) -> 147.2668629 | BY126: a15 | CB126: ζ'2 | CC126: =('متغیرها '!C111+0.001)*ATAN((CA121-CA104)/(CB121-CB104)) -> 0.0001958550406 | CI126: نقطه اول از خط دوم | CJ126: 5 | CK126: =CM131 -> 13.87107 | CL126: =CN131 -> 120.55 | CM126: =BS104 -> 13.87107 | CN126: =BT104 -> 119 | CO126: 5 بالاتنه | CQ126: نقطه اول از خط اول | CR126: 28 | CS126: =CU124 -> 9.539410683 | CT126: =CV124 -> 144.8913767 | CY126: محاسبات | DC126: =DC110-CZ125 -> 24.99289844 | DD126: =DD110+CZ125*TAN(CZ141) -> 127.9638969 | DE126: b'8s | DG126: =DG114-DH109 -> 20.73003804 | DH126: =DH114 -> 48.3 | DI126: 7rm | DK126: =BK101 -> 15.26974818 | DL126: =BL101 -> 138.7532465 | DM126: 22 | ED126: =BS104 -> 13.87107 | EE126: =BT104 -> 119 | EF126: 5 بالاتنه | EH126: =BW124 -> 15.65174957 | EI126: 155.7170751 | EJ126: a14 | EL126: =AZ166 -> 13.06107 | EM126: =BA166 -> 103.5 | EN126: 39 | ET126: =ET108 -> 3 | EU126: =EU108 -> 84 | EV126: g46 | EX126: =CY108 -> 12.90107 | EY126: =CZ108 -> 85.95 | EZ126: 47' | FB126: =EH102 -> 11.70836185 | FC126: 146.5514088 | FD126: چرخیده 25 | FN126: =BO188 -> 14.749225 | FO126: =BP188 -> 69.935 | FP126: =DM125 -> 49 | FX126: =-DD164-GK101 -> -13.81011881 | FY126: =DE164 -> 126.2426068 | FZ126: 31 | GB126: =-CM135-GK101 -> -5.708361851 | GC126: =CN135 -> 146.5514088 | GD126: 25 | GF126: =-EX125-GK101 -> -17.37254681 | GG126: =EY125 -> 77.68297171 | GH126: s2m | GN126: =-EL124-GK101 -> -7.06107 | GO126: =EM124 -> 103.5 | GP126: 39 | GV126: =-CR176-GK101 -> -21.30735 | GW126: =CS176 -> 106.5477071 | GX126: شیفت41 یا d3 | GZ126: =-AW272-GK101 -> -15.81059828 | HA126: =AX272 -> 155.9857263 | HB126: 2n | HD126: =-U408-GK101 -> -27.0408482 | HE126: =V408 -> 120.4305033 | HF126: k11 | HH126: =-CP280-GK101 -> -3.11867982 | HI126: =CQ280 -> 81.01182994 | HJ126: m10 | HL126: =-DN262-GK101 -> 3 | HM126: =DO262 -> 98.625 | HN126: s1
E127: فاصله عمودی بین خط کمر پشت و سرشانه، نزدیک گردن | F127: t6 | H127: ='متغیرها '!U79+'متغیرها '!C63*'متغیرها '!U79 -> 40.5 | I127: ='متغیرها '!U79 -> 40.5 | J127: (3 → 12) | K127: =L125+G153*(H127-H126)-('متغیرها '!C77/(1+'متغیرها '!C77))*K133 -> 19.74534242 | L127: =L125+H153*(I127-I126) -> 19.99573905 | N127: γ3 | O127: =0.5*O125*H130-0.89*O128*H130+0.11*AD128*H130+0.5*(H122-H125)-0.39*O126*H130 -> 11.52968 | P127: =0.5*O125*'متغیرها '!U82-0.89*O128*'متغیرها '!U82+0.11*AD128*'متغیرها '!U82+0.5*(I122-I125)-0.39*O126*'متغیرها '!U82 -> 11.44 | U127: =AN142 -> 3.48334474 | V127: =AO142 -> 31.98134348 | W127: 28 | Y127: =Y115-Y121-Y123-Y124-(0.5*('متغیرها '!U73-'متغیرها '!U71)-2*H151-H147)+(0-0.5*H151)*H151/(H153*(I127-I126)-Y132)-AE127 -> 9.319025855 | Z127: (11 → 12) | AA127: =AA115-AA121-AA123-AA124-0.5*(H121-H119)*(1-'متغیرها '!C82-'متغیرها '!C84)-AD127+'متغیرها '!C77*O128*H130*((Y115-Y121-Y123-Y124-Y127)/(Y130)) -> 8.940025 | AC127: ساسون پشت روی خط سینه | AD127: =IF(((AA117-AA116)*AA121/AA117)>0,(AA117-AA116)*AA121/AA117,0)+IF(AA120>0,2*AA120*TAN(2*G157),0) -> 0.3598666973 | AE127: =IF(((Y117-Y116)*Y121/Y117)>0,(Y117-Y116)*Y121/Y117,0)+IF(Y120>0,2*Y120*TAN(2*H157),0) -> 0.3646229693 | AF127: =AR132 -> 18.30585629 | AG127: =AS132 -> 24.80191629 | AH127: 18 | AJ127: =AR144 -> 3.487685698 | AK127: =AS144 -> 37.53946504 | AL127: 30 | AN127: =K115+K128 -> 27.99855 | AO127: =K127+AP111 -> 19.74534242 | AP127: 13 | AR127: =AA121+AA123+AA124+AA127 -> 20.16425 | AS127: =AA128+AT111 -> 0.04828101031 | AT127: 13 | AW127: (22→24→16→20→18→12→13) | AX127: هلال وصل | AZ127: =AX104-AX117+AX125+AX99 -> 25.99317154 | BA127: =AX113+AX118+AX98 -> 129.6901424 | BB127: 23 | BG127: =Y146 -> 6.992 | BH127: (2 → 23) | BI127: =AA146 -> 8.719214244 | BS127: =J247 -> 0.304293093 | BT127: =K247 -> 135.7309513 | BU127: e10 | BW127: =BS104+SQRT(POWER(BS127-BS104,2)+POWER(BT127-BT104,2))*SIN(BT103-ATAN((BS104-BS127)/(BT127-BT104))) -> 0.304293093 | BX127: =BT104+SQRT(POWER(BS127-BS104,2)+POWER(BT127-BT104,2))*COS(BT103-ATAN((BS104-BS127)/(BT127-BT104))) -> 135.7309513 | BY127: e10 | CB127: ζ1 | CC127: =ATAN((CB104-CB123)/(CA123-CA104)) -> 0.660255355 | CI127: نقطه دوم از خط دوم | CJ127: وسط 22f | CK127: =CM132 -> 16.75948006 | CL127: =CN132 -> 144.874986 | CQ127: نقطه دوم از خط اول | CR127: 16f | CS127: =CQ123 -> 21.42391357 | CT127: =CR123 -> 128.2462287 | CU127: =CU125+CR105 -> 15.3738469 | CV127: =CV125+CR106 -> 136.7198061 | CW127: شیفت وسط 16f | CY127: (43→40) | CZ127: =SQRT(POWER((CY103-CY104),2)+POWER((CZ103-CZ104),2)) -> 12.42642748 | DC127: =DC120-CZ125*COS(CZ123) -> 23.37254681 | DD127: =DD120-CZ125*COS(CZ123)*TAN(CZ140) -> 77.68297171 | DE127: s2m | DG127: =DG115-DH109 -> 19.97799258 | DH127: =DH115 -> 8 | DI127: 5rm | DK127: =BK167 -> 3 | DL127: =BL167 -> 136.875 | DM127: 45 | DQ127: پهلو جدا در شلوار و نیمی از حلقه عصایی | DT127: اپل جلو روی سرشانه با ساسون | DY127: اپل پشت روی سرشانه با ساسون | EH127: 12.19929871 | EI127: 151.0694584 | EJ127: a16 | EL127: =AZ176 -> 12.90107 | EM127: =BA176 -> 85.95 | EN127: 47' | ER127: کمر | FB127: 10.83752567 | FC127: 142.861387 | FD127: e7 | FF127: =DY152+CB112 -> 23.3697626 | FG127: =DZ152+CB113 -> 142.8731499 | FH127: شیفت 18b | FJ127: =BK180 -> 14.711725 | FK127: =BL180 -> 106.5 | FL127: شیفت 35 | FR127: =CE163 -> 10.749225 | FS127: =CF163-0.3*DZ168 -> 66.95 | FT127: e'215 | FX127: =-DD165-GK101 -> -18.66934057 | FY127: =DE165 -> 129.6901424 | FZ127: 16g | GF127: =-EX126-GK101 -> -6.90107 | GG127: =EY126 -> 85.95 | GH127: 47' | GJ127: =-ED125-GK101 -> -7.87107 | GK127: =EE125 -> 115.9 | GL127: 43 | GT127: کمر | GV127: =-CR179-GK101 -> -23.38735 | GW127: =CS179 -> 119.0562224 | GX127: شیفت 14 | HH127: =-CP281-GK101 -> 5.447471928 | HI127: =CQ281 -> 81.01182994 | HJ127: m9' | HL127: =-DN263-GK101 -> 3 | HM127: =DO263 -> 75.94 | HN127: p3
E128: دور گردن (متر به طور عمودی دور گردن قرار می گیرد و از روی استخوان ترقوه می گذرد) | F128: v | H128: =1*'متغیرها '!U80 -> 40 | J128: (12 → 13) | K128: ='متغیرها '!C79*0.05*H130 -> 1.6112 | N128: γ1 | O128: =(1-'متغیرها '!C101)*0.2+'متغیرها '!C101*'متغیرها '!C102 -> 0.2 | Q128: =AN131 -> 24.02834528 | R128: =AO131 -> 19.74534242 | S128: 17 | U128: =AN140 -> 0 | V128: =AO140 -> 30.75133622 | W128: 26 | Y128: =Y127*TAN(0.5*H157) -> 0.04988477558 | Z128: (12 → 13) | AA128: =AA127*TAN(0.5*G157) -> 0.04828101031 | AC128: γ2 | AD128: =(1-'متغیرها '!C101)*0.25+'متغیرها '!C101*'متغیرها '!C103 -> 0.25 | AJ128: =AR142 -> 0 | AK128: =AS142 -> 37.25549449 | AL128: 28 | AN128: =Q124 -> 26.38735 | AO128: =K127-K129+AP111 -> 15.55622242 | AP128: 14 | AR128: =AA115 -> 21.4241167 | AS128: =AA130+AT111 -> 16.74591629 | AT128: 14 | AV128: =L143 -> 6.992 | AW128: (2 → 25) | AX128: =K143 -> 8.708361851 | AZ128: =AX104-AX117+AX125+AX99 -> 25.99317154 | BA128: =AX113+AX118+AX126+AX98 -> 134.8320453 | BB128: 24 | BD128: =BD126 -> 20.83705082 | BE128: =BE126 -> 65.935 | BG128: 2.061828315 | BH128: (2 → 24) | BI128: 2.839705546 | BK128: =BI104+BI98+'متغیرها '!C56 -> 25.86803553 | BL128: =0+BI97+'متغیرها '!C57 -> 69.935 | BM128: شیفت3 | BO128: =BO158 -> 15.26974818 | BP128: =BP158 -> 138.7532465 | BQ128: 22شیفت | BS128: =AZ104 -> 13.87107 | BT128: =BA104 -> 120.55 | BU128: 5 پیراهن | CI128: نقطه تقاطع | CJ128: g1 | CK128: =(CL126-CL124+CK124*((CL125-CL124)/(CK125-CK124))-CK126*((CL127-CL126)/(CK127-CK126)))/(((CL125-CL124)/(CK125-CK124))-((CL127-CL126)/(CK127-CK126))) -> 15.54710912 | CL128: =CL124+(CK128-CK124)*((CL125-CL124)/(CK125-CK124)) -> 134.6649031 | CM128: =BS104 -> 13.87107 | CN128: =BT104 -> 119 | CO128: 5 بالاتنه | CQ128: نقطه اول از خط دوم | CR128: 40 | CS128: =CU118 -> 13.774225 | CT128: =CV118 -> 127.3281918 | CU128: =CU105 -> 21.42391357 | CV128: =CV105 -> 128.2462287 | CW128: شیفت 16f | CY128: (40→47'') | CZ128: =SQRT(POWER((CY104-CY105),2)+POWER((CZ104-CZ105),2)) -> 17.55072933 | DC128: =DC108-CZ125 -> 23.17254528 | DD128: =DD108 -> 86.54770714 | DE128: 45m | DG128: =DG116-DH109 -> 19.97799258 | DH128: =DH116 -> 8 | DI128: 1rm | DL128: ='متغیرها '!C57 -> 0 | DM128: شیفت عمودی | DO128: =DO102 -> 26.78312141 | DP128: 124.2142401 | DQ128: شیفت 8m | DT128: نقاط ورودی | DY128: نقاط ورودی | ED128: =BS128 -> 13.87107 | EE128: =BT128 -> 120.55 | EF128: 5 پیراهن | EH128: 11.04848176 | EI128: 147.2668629 | EJ128: a15 | EP128: =DC115 -> 18.4261921 | EQ128: =DD115 -> 104.3385571 | ER128: 40s | ET128: =ET111 -> 14.84107 | EU128: =EU111 -> 84 | EV128: g47'' | EX128: =DC127 -> 23.37254681 | EY128: =DD127 -> 77.68297171 | EZ128: s2m | FB128: 10.38436934 | FC128: 140.7341178 | FD128: e5 | FF128: =DY151+CB112 -> 17.43873153 | FG128: =DZ151+CB113 -> 145.5441633 | FH128: شیفت 32b | FJ128: =BO191 -> 12.799225 | FK128: =BP191 -> 88.05 | FL128: شیفت 38'' | FN128: =BO188 -> 14.749225 | FO128: =BP188 -> 69.935 | FP128: 49 | FR128: =CE169 -> 10.749225 | FS128: =CF169 -> 69.935 | FT128: e'216 | GD128: 33' | GJ128: =-ED126-GK101 -> -7.87107 | GK128: =EE126 -> 119 | GL128: 5 بالاتنه | GN128: =-EL124-GK101 -> -7.06107 | GO128: =EM124 -> 103.5 | GP128: 39 | GR128: =-EP128-GK101 -> -12.4261921 | GS128: =EQ128 -> 104.3385571 | GT128: 40s | GZ128: =-AW272-GK101 -> -15.81059828 | HA128: =AX272 -> 155.9857263 | HB128: 2n | HD128: =-U410-GK101 -> -27.0408482 | HE128: =V410 -> 120.4305033 | HF128: k11
E129: کارور پشت (بین دو خط امتداد زیر بغل) | F129: v3 | H129: ='متغیرها '!U81+1*'متغیرها '!C60*'متغیرها '!U81 -> 35.35 | I129: ='متغیرها '!U81 -> 35 | J129: (12 → 14) | K129: ='متغیرها '!C79*0.13*H130 -> 4.18912 | L129: =0 -> 0 | N129: فاصله افقی بین 36 و 32' | O129: =O152-0.5*G169*COS(G160) -> 1.684335739 | P129: =P152-0.5*H169*COS(H160) -> 1.547742146 | Q129: =AN132 -> 24.02834528 | R129: =AO132 -> 20.71206242 | S129: 18 | Z129: (11 → 13) | AA129: وصل | AC129: فاصله افقی بین 38 و 34' | AD129: =AD152-0.5*G170*COS(G158) -> 0.279205198 | AE129: =AE152-0.5*H170*COS(H158) -> 0.2832484682 | AF129: =AR133 -> 20.80046462 | AG129: =AS133 -> 16.74591629 | AH129: 19 | AN129: =K115-K132 -> 21.66934057 | AO129: =K127+AP111 -> 19.74534242 | AP129: 15 | AR129: =AA115+AA131 -> 23.0353167 | AS129: =AA130+AT111 -> 16.74591629 | AT129: 15 | AV129: 8.609293583 | AW129: (2 → 26) | AX129: 12.30007259 | BD129: =BD126 -> 20.83705082 | BE129: =BE126-BE122+BE123 -> 58.03229286 | BG129: 2.7968 | BH129: (2 → 25) | BI129: 3.487685698 | BK129: =BI104+BI98+'متغیرها '!C56 -> 25.86803553 | BL129: =BI105+BI97+'متغیرها '!C57 -> 74.53488478 | BM129: شیفت4 | BO129: =BK154+'متغیرها '!C56 -> 13.774225 | BP129: =BL179 -> 127.3281918 | BQ129: 40شیفت | BS129: انتقال قسمتی از ساسون سرشانه به ساسون زیر بغل به روش چرخش | CA129: حلقه آستین با ساسون زیر بغل | CM129: =BS128 -> 13.87107 | CN129: =BT128 -> 120.55 | CO129: 5 پیراهن | CQ129: نقطه دوم از خط دوم | CR129: وسط 18f | CS129: =CU119 -> 16.77033246 | CT129: =CV119 -> 144.9187773 | CW129: رگلان با درز | CY129: (14→41) | CZ129: =SQRT(POWER((CY117-CY116),2)+POWER((CZ117-CZ116),2)) -> 12.68027423 | DC129: به دست آوردن نقطه تقاطع دو خط | DD129: مولفه افقی | DE129: مولفه عمودی | DG129: =DC103 -> 13.295775 | DH129: =DD103 -> 67.935 | DI129: 50sm | DK129: =DH608 -> 24.79236028 | DL129: 86.56928511 | DM129: p10r | DN129: شلوار | DO129: 26.78312141 | DP129: 119.0584001 | DQ129: شیفت 10m | DT129: مولفه افقی | DU129: مولفه عمودی | DV129: اسم نقطه | DY129: مولفه افقی | DZ129: مولفه عمودی | EA129: اسم نقطه | ED129: =BS104 -> 13.87107 | EE129: =BT104 -> 119 | EF129: 5 بالاتنه | EH129: =BW113 -> 10.83752567 | EI129: =BX113 -> 142.861387 | EJ129: e7 | EL129: =AZ176 -> 12.90107 | EM129: =BA176 -> 85.95 | EN129: 47' | EP129: =DC117 -> 30.46624432 | EQ129: =DD117 -> 111.241559 | ER129: 41s | EV129: زمین | EX129: =IF(DD128>DD127,DC127,DC128) -> 23.37254681 | EY129: =IF(DD128>DD127,DD127,DD128) -> 77.68297171 | EZ129: s2m یا 45m | FN129: =BO176 -> 3 | FO129: =BP176 -> 69.935 | FP129: 47 | FX129: =-DD167-GK101 -> -24.99855 | FY129: =DE167 -> 123.2453424 | FZ129: 13 | GB129: =-CM137-GK101 -> -3.966689481 | GC129: =CN137 -> 140.4013725 | GD129: 30 | GF129: =-EX128-GK101 -> -17.37254681 | GG129: =EY128 -> 77.68297171 | GH129: s2m | GN129: =-EL127-GK101 -> -6.90107 | GO129: =EM127 -> 85.95 | GP129: 47' | GR129: =-EP129-GK101 -> -24.46624432 | GS129: =EQ129 -> 111.241559 | GT129: 41s | GX129: 26' | GZ129: =-AW275-GK101 -> -15.81059828 | HA129: =AX275 -> 143.1985633 | HB129: 22f | HD129: =-U411-GK101 -> -22.68360342 | HE129: =V411 -> 115.7571935 | HF129: K15 | HH129: =-CP283-GK101 -> 5.447471928 | HI129: =CQ283 -> 81.01182994 | HJ129: m9' | HN129: 72'
E130: دور بازو از ناحیه زیر بغل | F130: w2 | H130: ='متغیرها '!U82+0.7*'متغیرها '!C60*'متغیرها '!U82 -> 32.224 | J130: (13 →14) | K130: وصل | N130: فاصله عمودی بین 36 و 32' | O130: =O151+0.5*G169*SIN(G160) -> 24.44584168 | P130: =P151+0.5*H169*SIN(H160) -> 22.93987141 | W130: خطوط برش | Y130: =H153*(I127-I126)+Y128 -> 16.99791669 | Z130: (3 →14) | AA130: =G153*(H127-H126)+AA128-K133*'متغیرها '!C77/(1+'متغیرها '!C77) -> 16.74591629 | AC130: فاصله عمودی بین 38 و 34' | AD130: =AD151+0.5*G170*SIN(G158) -> 6.240831723 | AE130: =AE151+0.5*H170*SIN(H158) -> 6.107029238 | AF130: =AR134 -> 20.80046462 | AG130: =AS134 -> 17.55151629 | AH130: 20 | AJ130: خطوط برش | AN130: =K115-K132 -> 21.66934057 | AO130: =K127+K133+AP111 -> 26.19014242 | AP130: 16 | AR130: =AA115 -> 21.4241167 | AS130: =AA130-AA132+AT111 -> 12.55679629 | AT130: 16 | AV130: 2.7968 | AW130: (2 → 27) | AX130: 3.48334474 | AZ130: =AX112+AX99+'متغیرها '!C55 -> 25.37704198 | BA130: =0+AX98 -> 67.935 | BB130: 10شیفت | BG130: 1.855645483 | BH130: (25 → 26) | BI130: 2.555734991 | BQ130: کش سویشرت | BT130: ='متغیرها '!C55 -> 0 | BU130: شیفت افقی | BW130: نقاط خروجی چرخیده | CB130: =(CC142-CC141) -> 0.08855857593 | CC130: زاویه چرخش کامل به ساسون زیر بغل | CJ130: به دست آوردن نقطه تقاطع دو خط (وسط 16f) | CK130: مولفه افقی | CL130: مولفه عمودی | CQ130: نقطه تقاطع | CR130: g1 | CS130: =(CT128-CT126+CS126*((CT127-CT126)/(CS127-CS126))-CS128*((CT129-CT128)/(CS129-CS128)))/(((CT127-CT126)/(CS127-CS126))-((CT129-CT128)/(CS129-CS128))) -> 15.3738469 | CT130: =CT126+(CS130-CS126)*((CT127-CT126)/(CS127-CS126)) -> 136.7198061 | CU130: =CQ103 -> 9.539410683 | CV130: =CR103 -> 144.8913767 | CW130: 28 | CY130: (41→45) | CZ130: =SQRT(POWER((CY116-CY115),2)+POWER((CZ116-CZ115),2)) -> 20.00067403 | DB130: نقطه اول از خط اول | DC130: 41 | DD130: =CY116 -> 27.30735 | DE130: =CZ116 -> 106.5477071 | DG130: =DC104 -> 16.9665075 | DH130: =DD104 -> 69.25454143 | DI130: 50'sm | DK130: 20.43530309 | DL130: 51.38343191 | DM130: p7r | DO130: 26.49825472 | DP130: 106.5498848 | DQ130: =DQ104 -> شیفت36m | DT130: =BW137 -> 21.95663119 | DU130: =BX137 -> 143.615157 | DV130: 22 | DW130: راس حلقه آستین | DY130: =CE120 -> 23.13282193 | DZ130: =CF120 -> 142.3805323 | EA130: 18 | EB130: راس حلقه آستین | EL130: =AZ177 -> 12.90107 | EM130: =BA177 -> 67.935 | EN130: 52 | ET130: ='متغیرها '!C51 -> 3 | EU130: ='متغیرها '!C52 -> 8 | FB130: =EH106 -> 10.38436934 | FC130: =EI106 -> 140.7341178 | FD130: e5 | FF130: =DY151+CB112 -> 17.43873153 | FG130: =DZ151+CB113 -> 145.5441633 | FH130: شیفت 32b | FJ130: =BO191 -> 12.799225 | FK130: =BP191 -> 88.05 | FL130: شیفت 38'' | FR130: =DK111 -> 12.799225 | FS130: =DL111 -> 69.935 | FT130: شیفت 50 | FX130: =-DD168-GK101 -> -23.38735 | FY130: =DE168 -> 123.2453424 | FZ130: 12 | GB130: =-CM138-GK101 -> -9.547109122 | GC130: =CN138 -> 134.6649031 | GD130: وسط 20f | GF130: =-EX129-GK101 -> -17.37254681 | GG130: =EY129 -> 77.68297171 | GH130: s2m یا 45m | GJ130: =-ED128-GK101 -> -7.87107 | GK130: =EE128 -> 120.55 | GL130: 5 پیراهن | GV130: =-CR182-GK101 -> 3 | GW130: =CS182 -> 98.7 | GX130: d4 | HD130: =-U412-GK101 -> -21.30735 | HE130: =V412 -> 106.5477071 | HF130: 41 | HH130: =-CP284-GK101 -> 5.080351139 | HI130: =CQ284 -> 86.29578096 | HJ130: m9'' | HL130: =-DP460-GK101 -> -17.19495347 | HM130: =DQ460 -> 99.99523892 | HN130: β13
E131: قد آستین (دست به طور خمیده، قد از سرشانه تا مچ) | F131: w10 | H131: ='متغیرها '!U83+'متغیرها '!C63*'متغیرها '!U83+'متغیرها '!U83*'متغیرها '!C517 -> 56 | J131: (14 → 11) | K131: وصل | N131: فاصله افقی بین 36 و 34' | O131: =O152+0.5*G169*COS(G160) -> 9.154684261 | P131: =P152+0.5*H169*COS(H160) -> 8.977057854 | Q131: =AN133 -> 22.61294245 | R131: =AO133 -> 19.74534242 | S131: 19 | U131: =AN140 -> 0 | V131: =AO140 -> 30.75133622 | W131: 26 | Y131: 0 | Z131: (14 → 15) | AA131: =K128 -> 1.6112 | AC131: فاصله افقی بین 38 و 36' | AD131: =AD152+0.5*G170*COS(G158) -> 1.7151123 | AE131: =AE152+0.5*H170*COS(H158) -> 1.691654373 | AJ131: =AR142 -> 0 | AK131: =AS142 -> 37.25549449 | AL131: 28 | AN131: =K115-K134 -> 24.02834528 | AO131: =K127+AP111 -> 19.74534242 | AP131: 17 | AR131: =AA115-AA135 -> 18.30585629 | AS131: =AA130+AT111 -> 16.74591629 | AT131: 17 | AV131: 7.748364225 | AW131: (27 → 28) | AX131: 11.07006533 | AZ131: =AX112+AX99+'متغیرها '!C55 -> 25.37704198 | BA131: =AX143+AX98 -> 94 | BB131: 35شیفت | BD131: =BD129 -> 20.83705082 | BE131: =BE129 -> 58.03229286 | BG131: 5.244 | BH131: (2→27) | BI131: 6.539410683 | BK131: =BI129+BI98 -> 6.487685698 | BL131: =BI103+BI97 -> 146.5952 | BM131: 25 | BO131: =BK169 -> 3 | BP131: =BL126+'متغیرها '!C278*('متغیرها '!U60-'متغیرها '!U59) -> 75.83988478 | BT131: =(BU143-BU142) -> 0.3100869095 | BU131: زاویه چرخش به ساسون زیر بغل | BW131: مولفه افقی | BX131: مولفه عمودی | BY131: اسم نقطه | CA131: =BK122-CB112 -> 24.4241167 | CB131: =BL122-CB113 -> 123.2475201 | CC131: 8 | CD131: نقطه حلقه آستین | CE131: =CA104+SQRT(POWER(CA131-CA104,2)+POWER(CB131-CB104,2))*SIN(IF(CB131=CB104,RADIANS(90)-CB130,ATAN((CA131-CA104)/ABS(CB131-CB104))+IF(CB131>CB104,-1,1)*CB130)) -> 24.74328875 | CF131: =CB104+IF(CB131<CB104,-1,1)*SQRT(POWER(CA131-CA104,2)+POWER(CB131-CB104,2))*COS(IF(CB131=CB104,RADIANS(90)-CB130,ATAN((CA131-CA104)/ABS(CB131-CB104))+IF(CB131>CB104,-1,1)*CB130)) -> 124.2054181 | CG131: b4 | CI131: نقطه اول از خط اول | CJ131: 30 | CK131: =CM137 -> 9.966689481 | CL131: =CN137 -> 140.4013725 | CM131: =CI104 -> 13.87107 | CN131: =CJ104 -> 120.55 | CO131: 5پیراهن | CU131: =CS137 -> 15.61492381 | CV131: =CT137 -> 138.1352039 | CW131: وسط 12f | CY131: α43 | CZ131: =ATAN((CY104-CY103)/(CZ103-CZ104)) -> 0.06522990645 | DB131: نقطه دوم از خط اول | DC131: 45 | DD131: =CY115 -> 27.47155 | DE131: =CZ115 -> 86.54770714 | DG131: =DC105 -> 20.02545125 | DH131: =DD105-0.15*(CZ114-CZ106) -> 70.57408285 | DI131: 50''sm | DK131: 23.05864169 | DL131: 11.08343191 | DM131: p5r | DO131: =DO122 -> 27.151365 | DP131: 86.56928511 | DQ131: =DQ122 -> p10rm | DT131: =BW138 -> 15.69646792 | DU131: =BX138 -> 145.382018 | DV131: 34 | DW131: نقطه ساسون سرشانه | DY131: =CE121 -> 17.34970917 | DZ131: =CF121 -> 145.3582914 | EA131: 32 | EB131: نقطه ساسون سرشانه | ED131: =BS128 -> 13.87107 | EE131: =BT128 -> 120.55 | EF131: 5 پیراهن | EH131: =BW127 -> 0.304293093 | EI131: =BX127 -> 135.7309513 | EJ131: e10 | ER131: ترک وسط برای جیب با ساسون | ET131: ='متغیرها '!C51+10 -> 13 | EU131: ='متغیرها '!C52 -> 8 | EX131: =EX129 -> 23.37254681 | EY131: =EY129 -> 77.68297171 | EZ131: =EZ129 -> s2m یا 45m | FB131: =EH107 -> 4.148338715 | FC131: =EI107 -> 136.639072 | FD131: e9 | FF131: =BO158 -> 15.26974818 | FG131: =BP158 -> 138.7532465 | FH131: شیفت 22 | FJ131: =BO192 -> 12.799225 | FK131: =BP192 -> 69.935 | FL131: شیفت 50 | FN131: =DO118 -> 30.71092672 | FO131: =DP118 -> 86.99789367 | FP131: =DQ118 -> s'2m | FR131: =EE341 -> 8.799225 | FS131: =EF341 -> 69.935 | FT131: e216 | FX131: =-DD169-GK101 -> -21.02834528 | FY131: =DE169 -> 124.2120624 | FZ131: 18 | GJ131: =-ED129-GK101 -> -7.87107 | GK131: =EE129 -> 119 | GL131: 5 بالاتنه | GN131: =-EL127-GK101 -> -6.90107 | GO131: =EM127 -> 85.95 | GP131: 47' | GT131: 62' | GV131: =-CR183-GK101 -> 3 | GW131: =CS183 -> 98.7 | GX131: 26'' | GZ131: =-AW277-GK101 -> 3 | HA131: =AX277 -> 82.27441091 | HB131: 3n | HF131: رسم انحنا پایین پانچو | HH131: =-CP285-GK101 -> 4.101362368 | HI131: =CQ285 -> 93.34104898 | HJ131: m9''' | HL131: =-DP461-GK101 -> -21.55913049 | HM131: =DQ461 -> 88.00476108 | HN131: β7
E132: دور مچ دست | F132: w11 | H132: ='متغیرها '!U84+0.9*'متغیرها '!C60*'متغیرها '!U84 -> 18.162 | J132: (12 → 15) | K132: =G156+0.25*G167*'متغیرها '!C76*COS(O140)+'متغیرها '!C61*H120-1.2*0.5*G167*'متغیرها '!C78*COS(O140)-'متغیرها '!C77*O128*H130*((L115-L120-L121-L124)/(L127-L125)) -> 4.718009435 | L132: =H156 -> 5.75 | N132: فاصله عمودی بین 36 و 34' | O132: =O151-0.5*G169*SIN(G160) -> 21.7547273 | P132: =P151-0.5*H169*SIN(H160) -> 20.28217753 | Q132: =AN134 -> 22.61294245 | R132: =AO134 -> 22.32326242 | S132: 20 | U132: =AN115 -> 0 | V132: =AO115 -> 0 | W132: 1 | Y132: =L129 -> 0 | Z132: (14 → 16) | AA132: =K129 -> 4.18912 | AC132: فاصله عمودی بین 38 و 36' | AD132: =AD151-0.5*G170*SIN(G158) -> 5.745617249 | AE132: =AE151-0.5*H170*SIN(H158) -> 5.628303476 | AF132: =AR135 -> 19.24133441 | AG132: =AS135 -> 16.74591629 | AH132: 21 | AJ132: =AR119 -> 0 | AK132: =AS119 -> 30.375 | AL132: 5 | AN132: =K115-K134-0.6*P123 -> 24.02834528 | AO132: =K127+K135+AP111 -> 20.71206242 | AP132: 18 | AR132: =AA115-AA135 -> 18.30585629 | AS132: =AA130+AA136+AT111 -> 24.80191629 | AT132: 18 | AV132: 5.5936 | AW132: (2 → 29) | AX132: 6.966689481 | BD132: =BD125 -> 3 | BE132: =BE129 -> 58.03229286 | BG132: 1.237096989 | BH132: (27 → 28) | BI132: 1.703823327 | BK132: =BI129+BI98 -> 6.487685698 | BL132: =BI103-BI130+BI97 -> 144.039465 | BM132: 26 | BO132: =BK126 -> 25.47838335 | BP132: =BP131 -> 75.83988478 | BS132: =AZ99-BT130 -> 29.38735 | BT132: =BA99 -> 123.2453424 | BU132: 12 | BV132: نقطه حلقه آستین | BW132: =BS104+SQRT(POWER(BS132-BS104,2)+POWER(BT132-BT104,2))*SIN(IF(BT132=BT104,RADIANS(90)-BT131,ATAN((BS132-BS104)/ABS(BT132-BT104))+IF(BT132>BT104,-1,1)*IF(AND(BX101=1,BX102=0),(ATAN((BS138-BS104)/(BT138-BT104))-ATAN((BS109-BS104)/(BT109-BT104))),BT131))) -> 27.35190316 | BX132: =BT104+IF(BT132<BT104,-1,1)*SQRT(POWER(BS132-BS104,2)+POWER(BT132-BT104,2))*COS(IF(BT132=BT104,RADIANS(90)-BT131,ATAN((BS132-BS104)/ABS(BT132-BT104))+IF(BT132>BT104,-1,1)*IF(AND(BX101=1,BX102=0),(ATAN((BS138-BS104)/(BT138-BT104))-ATAN((BS109-BS104)/(BT109-BT104))),BT131))) -> 127.777529 | BY132: b4 | CA132: =BO105-CB112 -> 23.80046462 | CB132: =BP105-CB113 -> 124.0531201 | CC132: 14 | CD132: نقطه حلقه آستین | CE132: =CA104+SQRT(POWER(CA132-CA104,2)+POWER(CB132-CB104,2))*SIN(IF(CB132=CB104,RADIANS(90)-CB130,ATAN((CA132-CA104)/ABS(CB132-CB104))+IF(CB132>CB104,-1,1)*CB130)) -> 24.05083103 | CF132: =CB104+IF(CB132<CB104,-1,1)*SQRT(POWER(CA132-CA104,2)+POWER(CB132-CB104,2))*COS(IF(CB132=CB104,RADIANS(90)-CB130,ATAN((CA132-CA104)/ABS(CB132-CB104))+IF(CB132>CB104,-1,1)*CB130)) -> 124.9527036 | CG132: b8 | CI132: نقطه دوم از خط اول | CJ132: 16f | CK132: =CI119 -> 20.89233418 | CL132: =CJ119 -> 132.4752975 | CM132: =CM135+0.5*(CI117-CM135) -> 16.75948006 | CN132: =CJ117+0.5*(CN135-CJ117) -> 144.874986 | CO132: وسط 22f | CR132: به دست آوردن نقطه تقاطع دو خط (وسط 12f) | CS132: مولفه افقی | CT132: مولفه عمودی | CY132: α40 | CZ132: =ATAN((CY104-CY105)/(CZ104-CZ105)) -> -0.009116556545 | DB132: نقطه اول از خط دوم | DC132: 47'' | DD132: =CY105 -> 14.84107 | DE132: =CZ105 -> 85.95 | DK132: 23.05864169 | DL132: 11.08343191 | DM132: p1 r | DO132: 22.79430781 | DP132: 51.38343191 | DQ132: =DQ123 -> p7rm | DT132: =BS128 -> 13.87107 | DU132: =BT128 -> 120.55 | DV132: 5 | DW132: نقطه مرکزساسون | DY132: =BK101 -> 15.26974818 | DZ132: =BL101 -> 138.7532465 | EA132: 22 | EB132: نقطه مرکزساسون | ED132: =DT149 -> 15.76249838 | EE132: =DU149 -> 145.7157279 | EF132: چرخیده32b | EH132: =BS116 -> 3 | EI132: =BT116 -> 116.55 | EJ132: e1 | EN132: جادکمه یقه گرد در پیراهن | EP132: =CY108 -> 12.90107 | EQ132: =CZ108 -> 85.95 | ER132: 47' | EX132: =DG124-DH118 -> 25.11254528 | EY132: =DH124 -> 71.23385357 | EZ132: 49'm | FN132: =DO117 -> 29.53399785 | FO132: =DP117 -> 86.06873111 | FP132: =DQ117 -> s''2m | FX132: =-DD170-GK101 -> -19.61294245 | FY132: =DE170 -> 125.8232624 | FZ132: 20g | GB132: =-CM140-GK101 -> -9.547109122 | GC132: =CN140 -> 134.6649031 | GD132: شیفت وسط 20f | GF132: =-EX131-GK101 -> -17.37254681 | GG132: =EY131 -> 77.68297171 | GH132: =GH130 -> s2m یا 45m | GN132: =-EL130-GK101 -> -6.90107 | GO132: =EM130 -> 67.935 | GP132: 52 | GR132: =-ET134-GK101 -> -6.90107 | GS132: =EU134 -> 67.935 | GT132: 52 | GZ132: =-AW278-GK101 -> -17.47880111 | HA132: =AX278 -> 82.27441091 | HB132: 4n | HD132: =-U414-GK101 -> -55.60802752 | HE132: =V414 -> 98.42090843 | HF132: k5 | HH132: =-CP286-GK101 -> 3 | HI132: =CQ286 -> 98.625 | HJ132: s1
E133: دور سر | F133: w12 | H133: ='متغیرها '!U85 -> 53 | J133: (15 → 16) | K133: =(1+'متغیرها '!C77)*O128*H130 -> 6.4448 | L133: =O128*'متغیرها '!U82 -> 6.4 | N133: β1 | O133: =ATAN(O129/O130) -> 0.06879198409 | P133: =ATAN(P129/P130) -> 0.06736742335 | U133: =AN122 -> 9.57607 | V133: =AO122 -> 0 | W133: 8 | Z133: (15 → 16) | AA133: وصل | AC133: β5 | AD133: =ATAN(AD129/AD130) -> 0.04470864696 | AE133: =ATAN(AE129/AE130) -> 0.04634751424 | AF133: =AR136 -> 19.24133441 | AG133: =AS136 -> 19.96831629 | AH133: 22 | AJ133: =AR123 -> 0 | AK133: =AS123 -> 0 | AL133: 9 | AN133: =K115-K136 -> 22.61294245 | AO133: =K127+AP111 -> 19.74534242 | AP133: 19 | AR133: =AA115-AA137 -> 20.80046462 | AS133: =AA130+AT111 -> 16.74591629 | AT133: 19 | AV133: 4.304646792 | AW133: (29 → 30) | AX133: 6.150036297 | BH133: (24 → 26→ 28→ 23) | BI133: هلال وصل | BS133: =AZ98-BT130 -> 27.02834528 | BT133: =BA98 -> 124.2120624 | BU133: 18 | BV133: نقطه حلقه آستین | BW133: =BS104+SQRT(POWER(BS133-BS104,2)+POWER(BT133-BT104,2))*SIN(IF(BT133=BT104,RADIANS(90)-BT131,ATAN((BS133-BS104)/ABS(BT133-BT104))+IF(BT133>BT104,-1,1)*IF(AND(BX101=1,BX102=0),(ATAN((BS138-BS104)/(BT138-BT104))-ATAN((BS109-BS104)/(BT109-BT104))),BT131))) -> 24.81042003 | BX133: =BT104+IF(BT133<BT104,-1,1)*SQRT(POWER(BS133-BS104,2)+POWER(BT133-BT104,2))*COS(IF(BT133=BT104,RADIANS(90)-BT131,ATAN((BS133-BS104)/ABS(BT133-BT104))+IF(BT133>BT104,-1,1)*IF(AND(BX101=1,BX102=0),(ATAN((BS138-BS104)/(BT138-BT104))-ATAN((BS109-BS104)/(BT109-BT104))),BT131))) -> 127.9783132 | BY133: b8 | CA133: =BO104-CB112 -> 22.24133441 | CB133: =BP104-CB113 -> 126.4699201 | CC133: 16 | CD133: نقطه حلقه آستین | CE133: =CA104+SQRT(POWER(CA133-CA104,2)+POWER(CB133-CB104,2))*SIN(IF(CB133=CB104,RADIANS(90)-CB130,ATAN((CA133-CA104)/ABS(CB133-CB104))+IF(CB133>CB104,-1,1)*CB130)) -> 22.28406195 | CF133: =CB104+IF(CB133<CB104,-1,1)*SQRT(POWER(CA133-CA104,2)+POWER(CB133-CB104,2))*COS(IF(CB133=CB104,RADIANS(90)-CB130,ATAN((CA133-CA104)/ABS(CB133-CB104))+IF(CB133>CB104,-1,1)*CB130)) -> 127.2221388 | CG133: b10 | CI133: نقطه اول از خط دوم | CJ133: 5 | CK133: =CM131 -> 13.87107 | CL133: =CN131 -> 120.55 | CQ133: نقطه اول از خط اول | CR133: 28 | CS133: =CU124 -> 9.539410683 | CT133: =CV124 -> 144.8913767 | CU133: =CS137+CR105 -> 15.61492381 | CV133: =CT137+CR106 -> 138.1352039 | CW133: شیفت وسط 12f | CY133: α41 | CZ133: =ATAN((CY115-CY116)/(CZ116-CZ115)) -> 0.008209815545 | DB133: نقطه دوم از خط دوم | DC133: s''2 | DD133: =DC118 -> 27.10908443 | DE133: =DD118 -> 76.26456109 | DI133: پهلو جدا در شلوار | DO133: 25.4176464 | DP133: 11.08343191 | DQ133: =DQ124 -> p5rm | DT133: =BW109 -> 15.71320617 | DU133: =BX109 -> 145.504696 | DV133: 32 | DW133: نقطه ساسون سرشانه | DY133: =CE109 -> 15.74938081 | DZ133: =CF109 -> 145.6506668 | EA133: 30 | EB133: نقطه ساسون سرشانه | EJ133: رسم انحنا پایه | EL133: =CY109 -> 12.90107 | EM133: =CZ109 -> 67.935 | EN133: 52 | EP133: =CY107 -> 13.06107 | EQ133: =CZ107 -> 103.5 | ER133: 39 | EV133: جادکمه یقه پشت گردنی یا آرشال در پیراهن | FB133: =EH109 -> 4.148338715 | FC133: =EI109 -> 136.639072 | FD133: e9 | FF133: =BO158 -> 15.26974818 | FG133: =BP158 -> 138.7532465 | FH133: شیفت 22 | FJ133: =BK154 -> 13.774225 | FK133: =BL154 -> 127.3281918 | FL133: 40 | FP133: کمر | FR133: =BO176 -> 3 | FS133: =BP176 -> 69.935 | FT133: 47 | FX133: =-DD171-GK101 -> -18.66934057 | FY133: =DE171 -> 129.6901424 | FZ133: 16g | GB133: =-CM141-GK101 -> -16.16658655 | GC133: =CN141 -> 127.8603199 | GD133: 20f | GF133: =-EX132-GK101 -> -19.11254528 | GG133: =EY132 -> 71.23385357 | GH133: 49'm | GJ133: =-ED131-GK101 -> -7.87107 | GK133: =EE131 -> 120.55 | GL133: 5 پیراهن | GR133: =-ET135-GK101 -> 3 | GS133: =EU135 -> 67.935 | GT133: 1' | GV133: =-CR183-GK101 -> 3 | GW133: =CS183 -> 98.7 | GX133: 26'' | HD133: =-U415-GK101 -> -46.25463601 | HE133: =V415 -> 86.22654506 | HF133: k14 | HL133: =-DP463-GK101 -> -17.79262594 | HM133: =DQ463 -> 101.2769517 | HN133: β11
F134: رادیان | G134: درجه | J134: (12 → 17) | K134: =0.5*K132 -> 2.359004717 | L134: =0.5*L132 -> 2.875 | N134: β2 | O134: =ATAN(O131/O132) -> 0.3983193588 | P134: =ATAN(P131/P132) -> 0.4166899166 | Q134: =AN130 -> 21.66934057 | R134: =AO130 -> 26.19014242 | S134: 16 | U134: =AN121 -> 10.87107 | V134: =AO121 -> 12.4 | W134: 7 | Z134: (16 → 13) | AA134: وصل | AC134: β6 | AD134: =ATAN(AD131/AD132) -> 0.2900873596 | AE134: =ATAN(AE131/AE132) -> 0.2919723475 | AJ134: =AR124 -> 10.324225 | AK134: =AS124 -> 0 | AL134: 10 | AN134: =K115-K136-0.4*P123 -> 22.61294245 | AO134: =K127+K137+AP111 -> 22.32326242 | AP134: 20 | AR134: =AA115-AA137 -> 20.80046462 | AS134: =AA130+AA138+AT111 -> 17.55151629 | AT134: 20 | AW134: (25→30→28→26) | AX134: هلال وصل | AZ134: =AZ125 -> 29.08211047 | BA134: =BA125 -> 139.9739481 | BB134: 22 | BD134: =BD132 -> 3 | BE134: =BE132 -> 58.03229286 | BG134: =Y153 -> 5.672983996 | BH134: (23→29) | BI134: =AA153 -> 4.030166569 | BK134: =BI131+BI98 -> 9.539410683 | BL134: =BI103+BI97 -> 146.5952 | BM134: 27 | BO134: =BK168 -> 3 | BP134: =BL168-2 -> 67.935 | BS134: =AZ97-BT130 -> 25.61294245 | BT134: =BA97 -> 125.8232624 | BU134: 20 | BV134: نقطه حلقه آستین | BW134: =BS104+SQRT(POWER(BS134-BS104,2)+POWER(BT134-BT104,2))*SIN(IF(BT134=BT104,RADIANS(90)-BT131,ATAN((BS134-BS104)/ABS(BT134-BT104))+IF(BT134>BT104,-1,1)*IF(AND(BX101=1,BX102=0),(ATAN((BS138-BS104)/(BT138-BT104))-ATAN((BS109-BS104)/(BT109-BT104))),BT131))) -> 22.9708781 | BX134: =BT104+IF(BT134<BT104,-1,1)*SQRT(POWER(BS134-BS104,2)+POWER(BT134-BT104,2))*COS(IF(BT134=BT104,RADIANS(90)-BT131,ATAN((BS134-BS104)/ABS(BT134-BT104))+IF(BT134>BT104,-1,1)*IF(AND(BX101=1,BX102=0),(ATAN((BS138-BS104)/(BT138-BT104))-ATAN((BS109-BS104)/(BT109-BT104))),BT131))) -> 129.0807724 | BY134: b10 | CA134: =BO103-CB112 -> 21.30585629 | CB134: =BP103-CB113 -> 131.3035201 | CC134: 12 | CD134: نقطه حلقه آستین | CE134: =CA104+SQRT(POWER(CA134-CA104,2)+POWER(CB134-CB104,2))*SIN(ATAN((CA134-CA104)/(CB134-CB104))-CB130) -> 20.92475229 | CF134: =CB104+SQRT(POWER(CA134-CA104,2)+POWER(CB134-CB104,2))*COS(ATAN((CA134-CA104)/(CB134-CB104))-CB130) -> 131.9540608 | CG134: b6 | CI134: نقطه دوم از خط دوم | CJ134: وسط 22f | CK134: =CM132 -> 16.75948006 | CL134: =CN132 -> 144.874986 | CM134: =CM132 -> 16.75948006 | CN134: =CN132 -> 144.874986 | CO134: وسط 22f | CQ134: نقطه دوم از خط اول | CR134: 12f | CS134: =CQ122 -> 20.91153544 | CT134: =CR122 -> 132.2451955 | CU134: =CQ122-0.05*(CQ122-CQ103)+CR105 -> 20.3429292 | CV134: =CR122-0.15*(CR122-CR123)+CR106 -> 131.6453505 | CW134: 12fشیفت | CY134: α14 | CZ134: =ATAN((CY117-CY116)/(CZ117-CZ116)) -> 0.1647789785 | DB134: نقطه تقاطع | DC134: s'2 | DD134: =(DE132-DE130+DD130*((DE131-DE130)/(DD131-DD130+0.0001))-DD132*((DE133-DE132)/(DD133-DD132+0.0001)))/(((DE131-DE130)/(DD131-DD130+0.0001))-((DE133-DE132)/(DD133-DD132+0.0001))) -> 27.55904364 | DE134: =DE130+(DD134-DD130)*((DE131-DE130)/(DD131-DD130+0.0001)) -> 75.90940594 | DG134: =DG103 -> 27.02834528 | DH134: =DH103 -> 124.2120624 | DI134: شیفت 18 | DM134: محاسبات | DO134: 25.4176464 | DP134: 11.08343191 | DQ134: =DQ125 -> p1rm | DT134: =BW105 -> 11.70836185 | DU134: =BX105 -> 146.5514088 | DV134: 25 | DW134: نقطه یقه | DY134: =CE105 -> 11.71921424 | DZ134: =CF105 -> 146.5952 | EA134: 23 | EB134: نقطه یقه | ED134: =DT149 -> 15.76249838 | EE134: =DU149 -> 145.7157279 | EF134: چرخیده32b | EH134: =J272 -> 0 | EI134: 161.2572074 | EJ134: p3 | EL134: =BD150 -> 3 | EM134: =BE150 -> 67.935 | EN134: 1 | ET134: =CY109 -> 12.90107 | EU134: =CZ109 -> 67.935 | EV134: 52 | EX134: =DC126 -> 24.99289844 | EY134: =DD126 -> 127.9638969 | EZ134: =DE126 -> b'8s | FB134: =EH110 -> 0.304293093 | FC134: =EI110 -> 135.7309513 | FD134: e10 | FF134: =BK179 -> 13.774225 | FG134: =BL179 -> 127.3281918 | FH134: شیفت 40 | FJ134: =BK159 -> 12.836725 | FK134: =BL159 -> 106.5 | FL134: 34 | FN134: =BO178 -> 3 | FO134: =BP178 -> 106.5 | FP134: 44 | FR134: =CE169 -> 10.749225 | FS134: =CF169 -> 69.935 | FT134: e'216 | GD134: رگلان با درز | GJ134: =-ED132-GK101 -> -9.762498384 | GK134: =EE132 -> 145.7157279 | GL134: چرخیده32b | GP134: 23' | GV134: =-CR186-GK101 -> 3 | GW134: =CS186 -> 119 | GX134: 4' | GZ134: =-AW278-GK101 -> -17.47880111 | HA134: =AX278 -> 82.27441091 | HB134: 4n | HD134: =-U416-GK101 -> -27.54785301 | HE134: =V416 -> 71.8981681 | HF134: k15 | HJ134: 65' | HL134: =-DP464-GK101 -> -22.84084326 | HM134: =DQ464 -> 87.4070886 | HN134: β5
E135: زاویه خام سرشانه پشت | F135: =ATAN((I126-I125)/(0.52*H168-H163)) -> 0.3113728449 | G135: =ROUND(DEGREES(F135),0) -> 18 | J135: (17 → 18) | K135: =0.15*K133 -> 0.96672 | L135: =0.15*L133 -> 0.96 | N135: (36 → 32') | O135: =O130/COS(O133) -> 24.50379893 | P135: =P130/COS(P133) -> 22.99202484 | Q135: =AN135 -> 26.08211047 | R135: =AO135 -> 26.19014242 | S135: 21 | U135: =AN123 -> 12.16607 | V135: =AO123 -> 0 | W135: 9 | Y135: =H155+AE127 -> 4.214622969 | Z135: (14 → 17) | AA135: =G155+0.25*'متغیرها '!C76*G167*COS(AD140)+'متغیرها '!C61*H120-1.2*0.5*'متغیرها '!C78*G167*COS(AD140)+AD127-'متغیرها '!C77*O128*H130*((Y115-Y121-Y123-Y124-Y127)/(Y130)) -> 3.118260411 | AC135: (38 → 34') | AD135: =AD130/COS(AD133) -> 6.247074206 | AE135: =AE130/COS(AE133) -> 6.113594344 | AF135: =AR132 -> 18.30585629 | AG135: =AS132 -> 24.80191629 | AH135: 18 | AJ135: =AR122 -> 10.774225 | AK135: =AS122 -> 20.82819175 | AL135: 8 | AN135: =K115-K132+K138 -> 26.08211047 | AO135: =K127+K133+AP111 -> 26.19014242 | AP135: 21 | AR135: =AA115-AA139 -> 19.24133441 | AS135: =AA130+AT111 -> 16.74591629 | AT135: 21 | AV135: =L150 -> 5.655850951 | AW135: (25 → 31) | AX135: =K150 -> 4.004844319 | AZ135: =AX104-AX117+AX123-AX138+AX99 -> 23.65965529 | BA135: =AX113+AX118+AX124+AX98 -> 139.9739481 | BB135: 33 | BD135: =BD125 -> 3 | BE135: =BE125 -> 65.935 | BG135: =Y154 -> 1.297130301 | BH135: (29 → 30) | BI135: =AA154 -> 0.9445332621 | BK135: =BI131+BI98 -> 9.539410683 | BL135: =BI103-BI132+BI97 -> 144.8913767 | BM135: 28 | BO135: =BO134+'متغیرها '!C279*(BK126-BO126+BO117-BO134) -> 17.61094918 | BP135: =BP134 -> 67.935 | BS135: =AZ96-BT130 -> 24.66934057 | BT135: =BA96 -> 129.6901424 | BU135: 16 | BV135: نقطه حلقه آستین | BW135: =BS104+SQRT(POWER(BS135-BS104,2)+POWER(BT135-BT104,2))*SIN(ATAN((BS135-BS104)/(BT135-BT104))-IF(AND(BX101=1,BX102=0),(ATAN((BS138-BS104)/(BT138-BT104))-ATAN((BS109-BS104)/(BT109-BT104))),BT131)) -> 20.89233418 | BX135: =BT104+SQRT(POWER(BS135-BS104,2)+POWER(BT135-BT104,2))*COS(ATAN((BS135-BS104)/(BT135-BT104))-IF(AND(BX101=1,BX102=0),(ATAN((BS138-BS104)/(BT138-BT104))-ATAN((BS109-BS104)/(BT109-BT104))),BT131)) -> 132.4752975 | BY135: b6 | CA135: =BO102-CB112 -> 21.85434547 | CB135: =BP102-CB113 -> 137.3954214 | CC135: 20 | CD135: نقطه حلقه آستین | CE135: =CA104+SQRT(POWER(CA135-CA104,2)+POWER(CB135-CB104,2))*SIN(ATAN((CA135-CA104)/(CB135-CB104))-CB130) -> 20.93230687 | CF135: =CB104+SQRT(POWER(CA135-CA104,2)+POWER(CB135-CB104,2))*COS(ATAN((CA135-CA104)/(CB135-CB104))-CB130) -> 138.0705995 | CG135: b12 | CI135: نقطه تقاطع | CJ135: g1 | CK135: =(CL133-CL131+CK131*((CL132-CL131)/(CK132-CK131))-CK133*((CL134-CL133)/(CK134-CK133)))/(((CL132-CL131)/(CK132-CK131))-((CL134-CL133)/(CK134-CK133))) -> 15.73166285 | CL135: =CL131+(CK135-CK131)*((CL132-CL131)/(CK132-CK131)) -> 136.2191377 | CM135: =CI109 -> 11.70836185 | CN135: =CJ109 -> 146.5514088 | CO135: 25 | CQ135: نقطه اول از خط دوم | CR135: 40 | CS135: =CU118 -> 13.774225 | CT135: =CV118 -> 127.3281918 | CU135: =CU105 -> 21.42391357 | CV135: =CV105 -> 128.2462287 | CW135: 16fشیفت | CY135: (45→s'2) | CZ135: =SQRT(POWER((CY115-DC119),2)+POWER((CZ115-DD119),2))*IF('متغیرها '!C187>0,1,-1) -> -10.63866098 | DG135: =DG121 -> 27.02834528 | DH135: =DH121 -> 119.0562224 | DI135: شیفت 14m | DL135: =SQRT(POWER(DG112-DG111,2)+POWER(DH112-DH111,2)) -> 145.2838841 | DM135: m'' | DT135: =BW136 -> 20.58402031 | DU135: =BX136 -> 137.7759235 | DV135: 24 | DW135: نقطه حلقه آستین | DY135: =CE119 -> 21.85345479 | DZ135: =CF119 -> 137.3961362 | EA135: 20 | EB135: نقطه حلقه آستین | ED135: =BW105 -> 11.70836185 | EE135: =BX105 -> 146.5514088 | EF135: چرخیده25 | EH135: 6.612852303 | EI135: 161.2572074 | EJ135: p6 | EP135: =CY107 -> 13.06107 | EQ135: =CZ107 -> 103.5 | ER135: 39 | ET135: =BD97 -> 3 | EU135: =BE97 -> 67.935 | EV135: 1' | EX135: =DC109 -> 24.81042003 | EY135: =DD109 -> 127.9783132 | EZ135: =DE109 -> b8s | FN135: =BK159 -> 12.836725 | FO135: =BL159 -> 106.5 | FP135: 34 | FX135: =FX129 -> -24.99855 | FY135: =DE173 -> 123.2453424 | FZ135: 13 | GB135: =-CM143-GK101 -> -3.966689481 | GC135: =CN143 -> 140.4013725 | GD135: 30 | GF135: =-EX134-GK101 -> -18.99289844 | GG135: =EY134 -> 127.9638969 | GH135: b'8s | GN135: =GN132 -> -6.90107 | GO135: =GO132 -> 67.935 | GP135: 52 | GR135: =-ET135-GK101 -> 3 | GS135: =EU135 -> 67.935 | GT135: 1' | GZ135: =-AW281-GK101 -> 3 | HA135: =AX281 -> 67.935 | HB135: 1 | HD135: =-U417-GK101 -> -8.84107 | HE135: =V417 -> 67.935 | HF135: 53 | HH135: =-CT275-GK101 -> 3 | HI135: =CU275 -> 98.625 | HJ135: s1
E136: زاویه خام سرشانه جلو | F136: =ATAN((I123-I122-0.3*(0.5*('متغیرها '!U72-2*'متغیرها '!U73)))/(0.52*H168-H163)) -> 0.3121401127 | G136: =ROUND(DEGREES(F136),0) -> 18 | H136: =ROUND((محاسبات!H111-2*محاسبات!H110-0.03*محاسبات!H102)/محاسبات!H102,2) -> 0.12 | J136: (12 → 19) | K136: =0.8*K132 -> 3.774407548 | L136: =0.8*L132 -> 4.6 | N136: (36 → 34') | O136: =O132/COS(O134) -> 23.60246606 | P136: =P132/COS(P134) -> 22.18004268 | Q136: =AN136 -> 26.08211047 | R136: =AO136 -> 36.47394814 | S136: 22 | U136: =AN125 -> 25.27735 | V136: =AO125 -> 3.111227519 | W136: 11 | Y136: =(AD128)*'متغیرها '!U82 -> 8 | Z136: (17 → 18) | AA136: =(AD128+O128*'متغیرها '!C77)*H130 -> 8.056 | AC136: (38 → 36') | AD136: =AD132/COS(AD134) -> 5.996142741 | AE136: =AE132/COS(AE134) -> 5.877031099 | AF136: =AR137 -> 20.13415357 | AG136: =AS137 -> 24.80191629 | AH136: 23 | AJ136: =AR125 -> 11.224225 | AK136: =AS125 -> 0 | AL136: 11 | AN136: =K115-K132+K138 -> 26.08211047 | AO136: =K127+K133+K139+AP111 -> 36.47394814 | AP136: 22 | AR136: =AA115-AA139 -> 19.24133441 | AS136: =AA130+AA140+AT111 -> 19.96831629 | AT136: 22 | AV136: =L151 -> 1.369906729 | AW136: (31 → 32) | AX136: =K151 -> 1.046712777 | AZ136: =AX104-AX117+AX123-AX138+AX99 -> 23.65965529 | BA136: =AX113+AX118+AX124+AX139+AX98 -> 143.5667774 | BB136: 34 | BG136: =Y156 -> 5.187299278 | BH136: (18 → 31) | BI136: =AA156 -> 5.782849288 | BS136: =AZ95-BT130 -> 25.99317154 | BT136: =BA95 -> 134.8320453 | BU136: 24 | BV136: نقطه حلقه آستین | BW136: =BS104+SQRT(POWER(BS136-BS104,2)+POWER(BT136-BT104,2))*SIN(ATAN((BS136-BS104)/(BT136-BT104))-IF(BX101=1,(ATAN((BS138-BS104)/(BT138-BT104))-ATAN((BS109-BS104)/(BT109-BT104))),BT131)) -> 20.58402031 | BX136: =BT104+SQRT(POWER(BS136-BS104,2)+POWER(BT136-BT104,2))*COS(ATAN((BS136-BS104)/(BT136-BT104))-IF(BX101=1,(ATAN((BS138-BS104)/(BT138-BT104))-ATAN((BS109-BS104)/(BT109-BT104))),BT131)) -> 137.7759235 | BY136: b12 | CA136: =BO101-CB112 -> 23.13415357 | CB136: =BP101-CB113 -> 142.3797043 | CC136: 18 | CD136: نقطه حلقه آستین | CE136: =CA104+SQRT(POWER(CA136-CA104,2)+POWER(CB136-CB104,2))*SIN(ATAN((CA136-CA104)/(CB136-CB104))-CB130) -> 21.76627546 | CF136: =CB104+SQRT(POWER(CA136-CA104,2)+POWER(CB136-CB104,2))*COS(ATAN((CA136-CA104)/(CB136-CB104))-CB130) -> 143.1485401 | CG136: b16 | CO136: رگلان | CQ136: نقطه دوم از خط دوم | CR136: وسط 18f | CS136: =CU119 -> 16.77033246 | CT136: =CV119 -> 144.9187773 | CY136: α45 | CZ136: =ATAN((CZ105-CZ115)/(CY115-CY105)) -> -0.04728732094 | DG136: =DG122 -> 24.94834528 | DH136: =DH122 -> 106.5477071 | DI136: شیفت 41m | DL136: =ATAN((DP111-DL118)/(DK118-DO111)) -> 0.3537608801 | DM136: αm | DO136: =DO125 -> 25.4176464 | DP136: =DP125 -> 11.08343191 | DQ136: p1 rm | DT136: =BW135 -> 20.89233418 | DU136: =BX135 -> 132.4752975 | DV136: 16 | DW136: نقطه حلقه آستین | DY136: =CE118 -> 21.30550456 | DZ136: =CF118 -> 131.3041864 | EA136: 12 | EB136: نقطه حلقه آستین | EH136: 11.24184892 | EI136: 160.689448 | EJ136: p7 | EL136: =BD150 -> 3 | EM136: =BE150 -> 67.935 | EN136: 1 | EP136: =CY103 -> 13.87107 | EQ136: =CZ103 -> 115.9 | ER136: 43 | FD136: آرشال | FH136: رگلان با درز | FJ136: =BK159 -> 12.836725 | FK136: =BL159 -> 106.5 | FL136: 34 | FR136: =DO114 -> 23.3697626 | FS136: =DP114 -> 142.8731499 | FT136: 18m | FX136: =-DD174-GK101 -> -23.38735 | FY136: =DE174 -> 119.0562224 | FZ136: 14 | GB136: =-CM144-GK101 -> -9.731662848 | GC136: =CN144 -> 136.2191377 | GD136: وسط 16f | GF136: =-EX135-GK101 -> -18.81042003 | GG136: =EY135 -> 127.9783132 | GH136: b8s | GJ136: =-ED134-GK101 -> -9.762498384 | GK136: =EE134 -> 145.7157279 | GL136: چرخیده32b | GN136: =-EL134-GK101 -> 3 | GO136: =EM134 -> 67.935 | GP136: 1 | GR136: =-ET138-GK101 -> 3 | GS136: =EU138 -> 116.55 | GT136: e1 | GV136: =-CR186-GK101 -> 3 | GW136: =CS186 -> 119 | GX136: 4' | HF136: پهلو و پایین لباس | HH136: =-CT276-GK101 -> -21.34737375 | HI136: =CU276 -> 98.625 | HJ136: s2 | HL136: =-DP466-GK101 -> -22.84084326 | HM136: =DQ466 -> 87.4070886 | HN136: β5
E137: زاویه خام سرشانه متوسط | F137: =ROUND(0.5*(F135+F136),2) -> 0.31 | G137: =ROUND(0.5*(G135+G136),1) -> 18 | J137: (19 → 20) | K137: =0.4*K133 -> 2.57792 | L137: =0.4*L133 -> 2.56 | N137: فاصله افقی بین 22 و 25 بعد از بسته شدن ساسون | O137: =0.5*G167*COS(G160)+0.5*G167*COS(O134-O133-G160) -> 11.47601195 | P137: =0.5*H167*COS(H160)+0.5*H167*COS(P134-P133-H160) -> 11.29863455 | U137: =AN128 -> 26.38735 | V137: =AO128 -> 15.55622242 | W137: 14 | Y137: =0.2*Y135 -> 0.8429245939 | Z137: (14 → 19) | AA137: =0.2*AA135 -> 0.6236520823 | AC137: فاصله افقی بین 24 و 27 بعد از بسته شدن ساسون | AD137: =0.5*G167*COS(G158)+0.5*G167*COS(AD134-AD133-G158) -> 11.48142747 | AE137: =0.5*H167*COS(H158)+0.5*H167*COS(AE134-AE133-H158) -> 11.30961868 | AF137: =AR138 -> 20.13415357 | AG137: =AS138 -> 35.87810054 | AH137: 24 | AJ137: =AR127 -> 20.16425 | AK137: =AS127 -> 0.04828101031 | AL137: 13 | AN137: =K115-K132+K140 -> 22.99317154 | AO137: =K127+K133+AP111 -> 26.19014242 | AP137: 23 | AR137: =AA115-AA135+AA141 -> 20.13415357 | AS137: =AA130+AA136+AT111 -> 24.80191629 | AT137: 23 | AW137: (25 → 32) | AX137: وصل | BF137: یقه هفت | BG137: =Y157 -> 2.637654381 | BH137: (31 → 32) | BI137: =AA157 -> 2.97827068 | BK137: =0+BI98 -> 3 | BL137: =BI125+BI97 -> 138.7532465 | BM137: 21 | BO137: =BO135 -> 17.61094918 | BP137: =BP135 -> 67.935 | BS137: =AZ94-BT130 -> 29.08211047 | BT137: =BA94 -> 139.9739481 | BU137: 22 | BV137: نقطه حلقه آستین | BW137: =BS104+SQRT(POWER(BS137-BS104,2)+POWER(BT137-BT104,2))*SIN(ATAN((BS137-BS104)/(BT137-BT104))-IF(BX101=1,(ATAN((BS138-BS104)/(BT138-BT104))-ATAN((BS109-BS104)/(BT109-BT104))),BT131)) -> 21.95663119 | BX137: =BT104+SQRT(POWER(BS137-BS104,2)+POWER(BT137-BT104,2))*COS(ATAN((BS137-BS104)/(BT137-BT104))-IF(BX101=1,(ATAN((BS138-BS104)/(BT138-BT104))-ATAN((BS109-BS104)/(BT109-BT104))),BT131)) -> 143.615157 | BY137: b16 | CA137: =BK146-CB112 -> 17.35130428 | CB137: =BL146-CB113 -> 145.357975 | CC137: 32 | CD137: نقطه ساسون سرشانه | CE137: =CA104+SQRT(POWER(CA137-CA104,2)+POWER(CB137-CB104,2))*SIN(ATAN((CA137-CA104)/(CB137-CB104))-CB130) -> 15.74268091 | CF137: =CB104+SQRT(POWER(CA137-CA104,2)+POWER(CB137-CB104,2))*COS(ATAN((CA137-CA104)/(CB137-CB104))-CB130) -> 145.6036879 | CG137: 32 | CM137: =CI103 -> 9.966689481 | CN137: =CJ103 -> 140.4013725 | CO137: 30 | CQ137: نقطه تقاطع | CR137: g1 | CS137: =(CT135-CT133+CS133*((CT134-CT133)/(CS134-CS133))-CS135*((CT136-CT135)/(CS136-CS135)))/(((CT134-CT133)/(CS134-CS133))-((CT136-CT135)/(CS136-CS135))) -> 15.61492381 | CT137: =CT133+(CS137-CS133)*((CT134-CT133)/(CS134-CS133)) -> 138.1352039 | CY137: α41m | CZ137: =ATAN((DD117-DD115)/(DC117-DC115)) -> 0.5205832491 | DG137: =DG125 -> 25.07051531 | DH137: 86.55213118 | DI137: =DI125 -> 10rm | DO137: =DH607 -> 12.799225 | DP137: =DI607 -> 10.26792206 | DQ137: 50r | DU137: ='متغیرها '!C122 -> 3 | DV137: b | DW137: زاویه اپل | DZ137: ='متغیرها '!C122 -> 3 | EA137: b | EB137: زاویه اپل | EF137: رگلان با درز | EH137: 13.22570461 | EI137: 159.6350378 | EJ137: p2 | EL137: =BS111 -> 3 | EM137: =BT111 -> 119 | EN137: 4 | ET137: =BD97 -> 3 | EU137: =BE97 -> 67.935 | EV137: 1' | EX137: =DC125 -> 37.80830582 | EY137: =DD125 -> 82.91229874 | EZ137: =DE125 -> ss2m | FB137: =DU176 -> 3 | FC137: =DV176 -> 108.75 | FD137: e''1 | FF137: =CC150+CB112 -> 15.21526731 | FG137: =CD150+CB113 -> 138.3370397 | FH137: شیفت b'6 | FJ137: =BO187 -> 14.749225 | FK137: =BP187 -> 88.05 | FL137: 38' | FN137: =DO104 -> 26.49825472 | FO137: =DP104 -> 106.5498848 | FP137: =DQ104 -> شیفت36m | FR137: =DO115 -> 22.09108815 | FS137: =DP115 -> 137.3358347 | FT137: 20m | GJ137: =-ED135-GK101 -> -5.708361851 | GK137: =EE135 -> 146.5514088 | GL137: چرخیده25 | GV137: =-CR189-GK101 -> -7.87107 | GW137: =CS189 -> 119 | GX137: بالاتنه 5 | GZ137: =GZ122 -> -5.708361851 | HA137: =HA122 -> 146.5514088 | HB137: =HB122 -> 25 | HD137: =-U419-GK101 -> -21.30735 | HE137: =V419 -> 106.5477071 | HF137: 41 | HL137: =-DP467-GK101 -> -21.55913049 | HM137: =DQ467 -> 88.00476108 | HN137: β7
J138: (16 → 21) | K138: =G174-0.25*G167*'متغیرها '!C76*COS(O140)+(1-1.2)*0.5*G167*'متغیرها '!C78*COS(O140) -> 4.412769906 | L138: =H174 -> 4.48 | N138: فاصله عمودی بین 22 و 25 بعد از بسته شدن ساسون | O138: =0.5*G167*SIN(G160)+(O135-O136)*COS(O133)-0.5*G167*SIN(O134-O133-G160) -> 2.999389585 | P138: =0.5*H167*SIN(H160)+(P135-P136)*COS(P133)-0.5*H167*SIN(P134-P133-H160) -> 2.736648409 | Q138: =AN137 -> 22.99317154 | R138: =AO137 -> 26.19014242 | S138: 23 | U138: =AN127 -> 27.99855 | V138: =AO127 -> 19.74534242 | W138: 13 | Y138: =0.1*Y136 -> 0.8 | Z138: (19 → 20) | AA138: =0.1*AA136 -> 0.8056 | AC138: فاصله عمودی بین 24 و 27 بعد از بسته شدن ساسون | AD138: =0.5*G167*SIN(G158)+(AD135-AD136)*COS(AD133)-0.5*G167*SIN(AD134-AD133-G158) -> 2.690854077 | AE138: =0.5*H167*SIN(H158)+(AE135-AE136)*COS(AE133)-0.5*H167*SIN(AE134-AE133-H158) -> 2.585949315 | AJ138: =AR130 -> 21.4241167 | AK138: =AS130 -> 12.55679629 | AL138: 16 | AN138: =K115-K132+K140 -> 22.99317154 | AO138: =K127+K133+K141+AP111 -> 31.33204528 | AP138: 24 | AR138: =AA115-AA135+AA141 -> 20.13415357 | AS138: =AA130+AA136+AA142+AT111 -> 35.87810054 | AT138: 24 | AV138: =L153 -> 4.84539872 | AW138: (22 → 33) | AX138: =K153 -> 5.422455181 | AZ138: =AX128+AX135+AX99 -> 15.71320617 | BA138: =AX103-AX136+AX98 -> 145.504696 | BB138: 32 | BD138: =AZ140 -> 11.70836185 | BE138: =BA140 -> 146.5514088 | BF138: 25 | BH138: (23 →30→22→32→18) | BI138: وصل | BK138: =0+BI98 -> 3 | BL138: =BI103-BI128+BI97 -> 143.7554945 | BM138: 24 | BO138: =BO137 -> 17.61094918 | BP138: =BP137-BE122+BE123 -> 60.03229286 | BS138: =BD159-BT130 -> 23.65965529 | BT138: =BE159 -> 143.5667774 | BU138: 34 | BV138: نقطه ساسون سرشانه | BW138: =BS104+SQRT(POWER(BS138-BS104,2)+POWER(BT138-BT104,2))*SIN(ATAN((BS138-BS104)/(BT138-BT104))-BT131) -> 15.69646792 | BX138: =BT104+SQRT(POWER(BS138-BS104,2)+POWER(BT138-BT104,2))*COS(ATAN((BS138-BS104)/(BT138-BT104))-BT131) -> 145.382018 | BY138: 34 | CA138: =BO106-CB112 -> 26.0353167 | CB138: =BP106-CB113 -> 123.2475201 | CC138: 9 | CD138: نقطه حلقه آستین | CE138: =CA104+SQRT(POWER(CA138-CA104,2)+POWER(CB138-CB104,2))*SIN(IF(CB138=CB104,RADIANS(90)-CB130,ATAN((CA138-CA104)/ABS(CB138-CB104))+IF(CB138>CB104,-1,1)*CB130)) -> 26.34817486 | CF138: =CB104+IF(CB138<CB104,-1,1)*SQRT(POWER(CA138-CA104,2)+POWER(CB138-CB104,2))*COS(IF(CB138=CB104,RADIANS(90)-CB130,ATAN((CA138-CA104)/ABS(CB138-CB104))+IF(CB138>CB104,-1,1)*CB130)) -> 124.3479173 | CG138: b14 | CM138: =CK128 -> 15.54710912 | CN138: =CL128 -> 134.6649031 | CO138: وسط 20f | CY138: αb2m | CZ138: =ATAN((DD112-DD113)/(DC112-DC113)) -> 0.4908366111 | DG138: 20.73003804 | DH138: 48.3 | DI138: =DI126 -> 7rm | DU138: ='متغیرها '!C55 -> 0 | DV138: شیفت افقی | DZ138: ='متغیرها '!C56 -> 0 | EA138: شیفت افقی | ED138: =BW175+BT130 -> 15.09422669 | EE138: =BX175 -> 136.6779766 | EF138: شیفت34'' | EJ138: برش پایه | EP138: =CY108 -> 12.90107 | EQ138: =CZ108 -> 85.95 | ER138: 47' | ET138: =BS116 -> 3 | EU138: =BT116 -> 116.55 | EV138: e1 | EX138: =DC116 -> 23.93379283 | EY138: =DD116 -> 87.6743909 | EZ138: =DE116 -> 47''s | FB138: =DU177 -> 2.6 | FC138: =DV177 -> 116.55 | FD138: e'1 | FF138: =CC151+CB112 -> 21.0009927 | FG138: =CD151+CB113 -> 130.3374829 | FH138: شیفتb''6 | FN138: =DK112 -> 14.711725 | FO138: =DL112 -> 106.5 | FP138: =DM112 -> شیفت35 | FR138: =DO121 -> 21.59066459 | FS138: =DP121 -> 131.3041864 | FT138: =DQ121 -> b'6p | FZ138: 9' | GB138: =-CM146-GK101 -> -9.731662848 | GC138: =CN146 -> 136.2191377 | GD138: شیفت وسط 16f | GF138: =-EX137-GK101 -> -31.80830582 | GG138: =EY137 -> 82.91229874 | GH138: ss2m | GN138: =-EL134-GK101 -> 3 | GO138: =EM134 -> 67.935 | GP138: 1 | GR138: =-ET138-GK101 -> 3 | GS138: =EU138 -> 116.55 | GT138: e1 | GZ138: =GZ129 -> -15.81059828 | HA138: =HA129 -> 143.1985633 | HB138: =HB129 -> 22f | HD138: =-U420-GK101 -> -21.47155 | HE138: =V420 -> 86.54770714 | HF138: 45 | HH138: =-CT278-GK101 -> -21.34737375 | HI138: =CU278 -> 98.625 | HJ138: s2
J139: (21 → 22) | K139: =SQRT(POWER(O127,2)-G174*G174)+0.5*G167*'متغیرها '!C76*SIN(O140)-0.5*G167*'متغیرها '!C78*SIN(O140) -> 10.28380572 | L139: =SQRT(POWER(P127,2)-H174*H174) -> 10.52630989 | N139: β3 | O139: =ATAN(O138/O137) -> 0.2556430796 | P139: =ATAN(P138/P137) -> 0.23763408 | Q139: =AN138 -> 22.99317154 | R139: =AO138 -> 31.33204528 | S139: 24 | Y139: =0.7*Y135 -> 2.950236078 | Z139: (14 → 21) | AA139: =0.7*AA135 -> 2.182782288 | AC139: β7 | AD139: =ATAN(AD138/AD137) -> 0.2302108781 | AE139: =ATAN(AE138/AE137) -> 0.2247862579 | AF139: =AR139 -> 18.85434547 | AG139: =AS139 -> 24.80191629 | AH139: 25 | AJ139: =AR129 -> 23.0353167 | AK139: =AS129 -> 16.74591629 | AL139: 15 | AN139: =K143 -> 8.708361851 | AO139: =K114+AP111 -> 43.05140881 | AP139: 25 | AR139: =AA115-AA135+AA143 -> 18.85434547 | AS139: =AA130+AA136+AT111 -> 24.80191629 | AT139: 25 | AV139: =L154 -> 3.222949841 | AW139: (33 → 34) | AX139: =K154 -> 3.59282924 | AZ139: =AX128+AX135+AX99 -> 15.71320617 | BA139: =AX103+AX98 -> 146.5514088 | BB139: 31 | BD139: =AE708+'متغیرها '!C51 -> 3 | BE139: =AF708+'متغیرها '!C52 -> 134.2513362 | BF139: m9 | BS139: =AZ100-BT130 -> 30.99855 | BT139: =BA100 -> 123.2453424 | BU139: 13 | BV139: نقطه حلقه آستین | BW139: =BS104+SQRT(POWER(BS139-BS104,2)+POWER(BT139-BT104,2))*SIN(IF(BT139=BT104,RADIANS(90)-BT131,ATAN((BS139-BS104)/ABS(BT139-BT104))+IF(BT139>BT104,-1,1)*IF(AND(BX101=1,BX102=0),(ATAN((BS138-BS104)/(BT138-BT104))-ATAN((BS109-BS104)/(BT109-BT104))),BT131))) -> 28.88626028 | BX139: =BT104+IF(BT139<BT104,-1,1)*SQRT(POWER(BS139-BS104,2)+POWER(BT139-BT104,2))*COS(IF(BT139=BT104,RADIANS(90)-BT131,ATAN((BS139-BS104)/ABS(BT139-BT104))+IF(BT139>BT104,-1,1)*IF(AND(BX101=1,BX102=0),(ATAN((BS138-BS104)/(BT138-BT104))-ATAN((BS109-BS104)/(BT109-BT104))),BT131))) -> 128.2691728 | BY139: b14 | CA139: =BO122-CB112 -> 24.4241167 | CB139: =BP122-CB113 -> 119.0584001 | CC139: 10 | CD139: نقطه زیر حلقه آستین | CE139: =CA104+SQRT(POWER(CA139-CA104,2)+POWER(CB139-CB104,2))*SIN(IF(CB139=CB104,RADIANS(90)-CB130,ATAN((CA139-CA104)/ABS(CB139-CB104))+IF(CB139>CB104,-1,1)*CB130)) -> 25.11378653 | CF139: =CB104+IF(CB139<CB104,-1,1)*SQRT(POWER(CA139-CA104,2)+POWER(CB139-CB104,2))*COS(IF(CB139=CB104,RADIANS(90)-CB130,ATAN((CA139-CA104)/ABS(CB139-CB104))+IF(CB139>CB104,-1,1)*CB130)) -> 120.0327142 | CG139: b2 | CY139: αss2m | CZ139: =ATAN((DD122-DD116)/(DC122-DC116)) -> -0.3306272832 | DG139: 19.97799258 | DH139: 8 | DI139: =DI127 -> 5rm | DO139: =DK112 -> 14.711725 | DP139: =DL112 -> 106.5 | DQ139: =DM112 -> شیفت35 | DV139: محاسبات | DZ139: ='متغیرها '!C57 -> 0 | EA139: شیفت عمودی | ED139: =BS178+BT130 -> 20.77637203 | EE139: =BT178 -> 131.7963924 | EF139: شیفتb'6 | EH139: =J277 -> 0 | EI139: =K277 -> 159.6350378 | EJ139: p1 | EL139: =BS111 -> 3 | EM139: =BT111 -> 119 | EN139: 4 | EP139: =CY109 -> 12.90107 | EQ139: =CZ109 -> 67.935 | ER139: 52 | FB139: =DU180 -> 0.7585676029 | FC139: 125.4006681 | FD139: a'11 | FF139: =CE117+CB112 -> 22.24141031 | FG139: =CF117+CB113 -> 126.4706691 | FH139: شیفتb10 | FJ139: =BO187 -> 14.749225 | FK139: =BP187 -> 88.05 | FL139: 38' | FX139: =-DD177-GK101 -> -16.09880912 | FY139: =DE177 -> 144.2795007 | FZ139: 39 | GB139: =-CM147-GK101 -> -14.34605195 | GC139: =CN147 -> 131.7830508 | GD139: شیفت 16f | GF139: =-EX138-GK101 -> -17.93379283 | GG139: =EY138 -> 87.6743909 | GH139: 47''s | GL139: 32' | GN139: =-EL137-GK101 -> 3 | GO139: =EM137 -> 119 | GP139: 4 | GR139: =-ET141-GK101 -> 3 | GS139: =EU141 -> 116.55 | GT139: e'1 | GV139: =-CR189-GK101 -> -7.87107 | GW139: =CS189 -> 119 | GX139: بالاتنه 5 | HH139: =-CT279-GK101 -> -21.435426 | HI139: =CU279 -> 87.9 | HJ139: m4 | HL139: =-DP469-GK101 -> -21.55913049 | HM139: =DQ469 -> 88.00476108 | HN139: β7
J140: (16 → 23) | K140: =0.3*K138 -> 1.323830972 | L140: =0.3*L138 -> 1.344 | N140: β4 | O140: =O139-O133+O134 -> 0.5851704543 | P140: =P139-P133+P134 -> 0.5869565732 | U140: =AN136 -> 26.08211047 | V140: =AO136 -> 36.47394814 | W140: 22 | Y140: =0.4*Y136 -> 3.2 | Z140: (21 → 22) | AA140: =0.4*AA136 -> 3.2224 | AC140: β8 | AD140: =AD139-AD133+AD134 -> 0.4755895907 | AE140: =AE139-AE133+AE134 -> 0.4704110912 | AF140: =AR140 -> 18.85434547 | AG140: =AS140 -> 30.89381763 | AH140: 26 | AN140: 0 | AO140: =K114-K144+AP111 -> 30.75133622 | AP140: 26 | AR140: =AA115-AA135+AA143 -> 18.85434547 | AS140: =AA130+AA136+AA144+AT111 -> 30.89381763 | AT140: 26 | AW140: (22 → 34) | AX140: وصل | AZ140: =AX128+AX99 -> 11.70836185 | BA140: =AX103+AX98 -> 146.5514088 | BB140: 25 | BH140: متغیرهای محاسبه ای ساسون کمر در پیراهن راسته پشت | BK140: =BI108-BI114+BI120+BI98+'متغیرها '!C56 -> 23.13415357 | BL140: =BI110+BI115+BI121+BI97+'متغیرها '!C57 -> 142.3797043 | BM140: شیفت18 | BO140: =BO138 -> 17.61094918 | BP140: =BP138 -> 60.03229286 | BS140: =BD155-BT130 -> 29.38735 | BT140: =BE155 -> 119.0562224 | BU140: 14 | BV140: نقطه زیر حلقه آستین | BW140: =BS104+SQRT(POWER(BS140-BS104,2)+POWER(BT140-BT104,2))*SIN(IF(BT140=BT104,RADIANS(90)-BT131,ATAN((BS140-BS104)/ABS(BT140-BT104))+IF(BT140>BT104,-1,1)*BT131)) -> 28.63017711 | BX140: =BT104+IF(BT140<BT104,-1,1)*SQRT(POWER(BS140-BS104,2)+POWER(BT140-BT104,2))*COS(IF(BT140=BT104,RADIANS(90)-BT131,ATAN((BS140-BS104)/ABS(BT140-BT104))+IF(BT140>BT104,-1,1)*BT131)) -> 123.7882004 | BY140: b2 | CB140: متغیرهای محاسبه ای ساسون زیر بغل با چرخش کامل | CM140: =CM138+CJ105 -> 15.54710912 | CN140: =CN138 -> 134.6649031 | CO140: شیفت وسط 20f | CY140: αs2m | CZ140: =ATAN((DD120-CZ108)/(DC120-CY108)) -> -0.668293708 | DG140: 19.97799258 | DH140: 8 | DI140: =DI128 -> 1rm | DO140: =DO104 -> 26.49825472 | DP140: =DP104 -> 106.5498848 | DQ140: =DQ104 -> شیفت36m | DT140: (25→32) | DU140: =SQRT(POWER(DT134-DT133,2)+POWER(DU134-DU133,2)) -> 4.1393702 | EA140: محاسبات | ED140: =BW134+BT130 -> 22.9708781 | EE140: =BX134 -> 129.0807724 | EF140: شیفتb10 | EH140: =J278 -> 13.22570461 | EI140: =K278 -> 159.6350378 | EJ140: p2 | EL140: =BS112 -> 3 | EM140: =BT112 -> 119 | EN140: 4' | ET140: =BS116 -> 3 | EU140: =BT116 -> 116.55 | EV140: e1 | EX140: =CY109 -> 12.90107 | EY140: =CZ109 -> 67.935 | EZ140: 52 | FB140: -0.03776056722 | FC140: 134.2513362 | FD140: e'3 | FJ140: =BO188 -> 14.749225 | FK140: =BP188 -> 69.935 | FL140: 49 | FP140: لبه برگرد پایین کت در پهلو جدا | FT140: اطلاعات اندام | FX140: =-DD178-GK101 -> -5.708361851 | FY140: =DE178 -> 146.5514088 | FZ140: 25 | GB140: =-CM148-GK101 -> -16.16658655 | GC140: =CN148 -> 127.8603199 | GD140: شیفت 20f | GJ140: =-ED138-GK101 -> -9.094226691 | GK140: =EE138 -> 136.6779766 | GL140: شیفت34'' | GV140: =-CR192-GK101 -> 2.999999954 | GW140: =CS192 -> 119.001 | GX140: 4' | HB140: 51' | HD140: =-U422-GK101 -> -21.47155 | HE140: =V422 -> 86.54770714 | HF140: 45 | HL140: =-DP470-GK101 -> -20.96145802 | HM140: =DQ470 -> 86.72304832 | HN140: β3
J141: (23 → 24) | K141: =0.5*K139 -> 5.141902862 | L141: =0.5*L139 -> 5.263154947 | N141: β9 | O141: =ATAN(K138/K139) -> 0.4053373385 | P141: =ATAN(L138/L139) -> 0.4023789448 | Q141: =AN136 -> 26.08211047 | R141: =AO136 -> 36.47394814 | S141: 22 | U141: =AN148 -> 20.65965529 | V141: =AO148 -> 40.06677738 | W141: 34 | Y141: =H173 -> 1.92 | Z141: (18 → 23) | AA141: =G173-0.25*'متغیرها '!C76*G167*COS(AD140)+(1-1.2)*0.5*'متغیرها '!C78*G167*COS(AD140) -> 1.828297286 | AC141: β10 | AD141: =ATAN(AA141/AA142) -> 0.1635905047 | AE141: =ATAN(Y141/Y142) -> 0.1686302315 | AJ141: =AR138 -> 20.13415357 | AK141: =AS138 -> 35.87810054 | AL141: 24 | AN141: =K145 -> 3.48334474 | AO141: =K114+AP111 -> 43.05140881 | AP141: 27 | AR141: =AA146 -> 8.719214244 | AS141: =AA114+AT111 -> 40.09520003 | AT141: 27 | AW141: (32 → 5) | AX141: وصل | AZ141: =0+AX99 -> 3 | BA141: =AX103+AX98 -> 146.5514088 | BB141: 2 | BD141: =AE708+'متغیرها '!C51 -> 3 | BE141: =AF708+'متغیرها '!C52 -> 134.2513362 | BF141: m9 | BG141: =IF('متغیرها '!C125=1,H147,IF(H147>0,H147,0)) -> 0 | BH141: x''11 | BI141: =IF('متغیرها '!C125=1,G147,IF(G147>0,G147,0)) -> 0 | BK141: =BI108-BI114+BI120+BI98+'متغیرها '!C56 -> 23.13415357 | BL141: =BI110+BI115+BI97+'متغیرها '!C57 -> 131.3035201 | BM141: شیفت17 | BO141: =BO134 -> 3 | BP141: =BP140 -> 60.03229286 | BT141: متغیرهای محاسبه ای کمی چرخش به ساسون زیر بغل | CB141: ζ'1 | CC141: =(1+0.001)*ATAN((CA109-CA104)/(CB109-CB104)) -> 0.1074923197 | CE141: =CA104+(1-'متغیرها '!C116)*(CA139-CA104) -> 14.83921417 | CF141: =CB104+(1-'متغیرها '!C116)*(CA139-CA104)*TAN(0.5*CB130-CC143) -> 126.5743375 | CG141: b | CM141: =CM105 -> 22.16658655 | CN141: =CN105 -> 127.8603199 | CO141: 20f | CY141: αb4s | CZ141: =ATAN((DD109-DD110)/(DC110-DC109)) -> 0.07883904301 | DT141: (34→22) | DU141: =SQRT(POWER(DT131-DT130,2)+POWER(DU131-DU130,2)) -> 6.504724601 | DY141: (23→30) | DZ141: =SQRT(POWER(DY134-DY133,2)+POWER(DZ134-DZ133,2)) -> 4.1393702 | EP141: =DC116 -> 23.93379283 | EQ141: =DD116 -> 87.6743909 | ER141: 47''s | ET141: =BD150 -> 3 | EU141: =BT116 -> 116.55 | EV141: e'1 | EX141: =DC103 -> 13.295775 | EY141: 67.935 | EZ141: 50s | FB141: 1.89573744 | FC141: 144.1526386 | FD141: a'8 | FF141: =CE106 -> 9.539410683 | FG141: =CF106 -> 144.8913767 | FH141: 28 | FN141: =DY178 -> 18.749225 | FO141: =DZ178 -> 73.935 | FP141: a'23 | FT141: کمر | GF141: =-EX140-GK101 -> -6.90107 | GG141: =EY140 -> 67.935 | GH141: 52 | GJ141: =-ED139-GK101 -> -14.77637203 | GK141: =EE139 -> 131.7963924 | GL141: شیفتb'6 | GN141: =-EL137-GK101 -> 3 | GO141: =EM137 -> 119 | GP141: 4 | GR141: =-ET141-GK101 -> 3 | GS141: =EU141 -> 116.55 | GT141: e'1 | GZ141: =-AW287-GK101 -> -23.38735 | HA141: =AX287 -> 119.0562224 | HB141: 14 | HD141: =-U423-GK101 -> -21.47155 | HE141: =V423 -> 74.53270714 | HF141: 49' … | HJ141: 66'
J142: (22→24→16→20→18→12→13) | K142: هلال وصل | N142: (16 → 6) | O142: =SQRT((Q126-Q113)*(Q126-Q113)+(R126-R113)*(R126-R113)) -> 14.14725594 | P142: =SQRT((N161-N162)*(N161-N162)+(O161-O162)*(O161-O162)) -> 12.66104673 | Q142: =AN147 -> 20.65965529 | R142: =AO147 -> 36.47394814 | S142: 33 | U142: =AN150 -> 10.87107 | V142: =AO150 -> 17.05 | W142: 36 | Y142: =SQRT(POWER(I125-I122+(O128-AD128)*'متغیرها '!U82+P127,2)-H173*H173) -> 11.27773027 | Z142: (23→24) | AA142: =SQRT(POWER(H125-H122+(O128-AD128)*H130+O127,2)-G173*G173)+'متغیرها '!C76*0.5*G167*SIN(AD140)-'متغیرها '!C78*0.5*G167*SIN(AD140) -> 11.07618425 | AC142: (18 → 7) | AD142: =SQRT((AG135-AG113)*(AG135-AG113)+(AF135-AF113)*(AF135-AF113)) -> 7.712285462 | AE142: =SQRT((AD159-AD160)*(AD159-AD160)+(AC159-AC160)*(AC159-AC160)) -> 7.021591328 | AF142: =AR138 -> 20.13415357 | AG142: =AS138 -> 35.87810054 | AH142: 24 | AJ142: =AR152 -> 14.35130428 | AK142: =AS152 -> 38.85637122 | AL142: 36 | AN142: =K145 -> 3.48334474 | AO142: =K114-K146+AP111 -> 31.98134348 | AP142: 28 | AR142: 0 | AS142: =AA114-AA147+AT111 -> 37.25549449 | AT142: 28 | AW142: (34 → 5) | AX142: وصل | AZ142: =AZ102 -> 3 | BA142: =BA102 -> 134.2513362 | BB142: 26 | BD142: =BD98 -> 3 | BE142: =BE98 -> 134.2513362 | BF142: 26' | BG142: =IF('متغیرها '!C125=1,H146,IF(H146>0,H146,0)) -> 0 | BH142: x11 | BI142: =IF('متغیرها '!C125=1,G146,IF(G146>0,G146,0)) -> 0 | BK142: =BI108-BI114+BI98+'متغیرها '!C56 -> 21.30585629 | BL142: =BI110+BI115+BI97+'متغیرها '!C57 -> 131.3035201 | BM142: شیفت12 | BT142: ζ'1 | BU142: =('متغیرها '!C106+0.001)*ATAN((BS109-BS104)/(BT109-BT104)) -> 0.06946005825 | BW142: =BS104+(1-'متغیرها '!C115)*(BS140-BS104) -> 15.422698 | BX142: =BT104+(1-'متغیرها '!C115)*(BS140-BS104)*TAN(0.5*BT131-BU144) -> 119.248279 | BY142: b | CB142: ζ'2 | CC142: =(1+0.001)*ATAN((CA137-CA104)/(CB137-CB104)) -> 0.1960508956 | CO142: رگلان با درز | CZ142: امتداد جیب روی تکه پهلو جدا | DG142: =DG128 -> 19.97799258 | DH142: =DH128 -> 8 | DI142: =DI128 -> 1rm | DO142: =DO102 -> 26.78312141 | DP142: =DP102 -> 124.2142401 | DQ142: شیفت 8m | DT142: (32b→5) | DU142: =SQRT(POWER(DT149-DT132,2)+POWER(DU149-DU132,2)) -> 25.23670661 | DY142: (32→18) | DZ142: =SQRT(POWER(DY131-DY130,2)+POWER(DZ131-DZ130,2)) -> 6.504724601 | ED142: =BW106 -> 9.966689481 | EE142: =BX106 -> 140.4013725 | EF142: 30 | EH142: =J280 -> 0 | EI142: =K280 -> 159.6350378 | EJ142: p1 | EL142: =BS112 -> 3 | EM142: =BT112 -> 119 | EN142: 4' | EP142: =DC115 -> 18.4261921 | EQ142: =DD115 -> 104.3385571 | ER142: 40s | EX142: 16.9665075 | EY142: 69.25454143 | EZ142: 50's | FB142: 6.357232789 | FC142: 154.053941 | FD142: a'6 | FF142: =CC150 -> 15.21526731 | FG142: =CD150 -> 138.3370397 | FH142: b'6 | FJ142: =BO188 -> 14.749225 | FK142: =BP188 -> 69.935 | FL142: 49 | FN142: =DY180 -> 10.749225 | FO142: =DZ180 -> 65.935 | FP142: a''23 | FR142: =BK180 -> 14.711725 | FS142: =BL180 -> 106.5 | FT142: شیفت 35 | FZ142: 47' | GD142: 59' | GF142: =-EX141-GK101 -> -7.295775 | GG142: =EY141 -> 67.935 | GH142: 50s | GJ142: =-ED140-GK101 -> -16.9708781 | GK142: =EE140 -> 129.0807724 | GL142: شیفتb10 | GN142: =-EL140-GK101 -> 3 | GO142: =EM140 -> 119 | GP142: 4' | GR142: =-ET144-GK101 -> 3 | GS142: =EU144 -> 67.935 | GT142: 1 | GV142: =-CR192-GK101 -> 2.999999954 | GW142: =CS192 -> 119.001 | GX142: 4' | GZ142: =-AW288-GK101 -> -24.38208137 | HA142: 88.38348897 | HB142: 8n | HH142: =-CL281-GK101 -> -23.38735 | HI142: =CM281 -> 119.0562224 | HJ142: شیفت 14 | HL142: =-DP472-GK101 -> -20.96145802 | HM142: =DQ472 -> 86.72304832 | HN142: β3
J143: (2 → 25) | K143: =G163+'متغیرها '!C71*0.5*G167*COS(O139) -> 8.708361851 | L143: =H163 -> 6.992 | N143: β'1 | O143: =ATAN((Q149-Q147)/(R149-R147)) -> 0.07368556851 | P143: =ATAN((N163-N162)/(O163-O162)) -> 0.07314780161 | Q143: =AN148 -> 20.65965529 | R143: =AO148 -> 40.06677738 | S143: 34 | U143: =AN146 -> 12.71320617 | V143: =AO146 -> 42.00469603 | W143: 32 | Y143: =0.3*Y141 -> 0.576 | Z143: (18 → 25) | AA143: =0.3*AA141 -> 0.5484891857 | AC143: β11 | AD143: =ATAN((AG127-AG113)/(AF127-AF113)) -> 0.2168696943 | AE143: =ATAN((AD159-AD160)/(AC159-AC160)) -> 0.2371908484 | AF143: =AR151 -> 14.35130428 | AG143: =AS151 -> 35.87810054 | AH143: 35 | AN143: =K147 -> 6.966689481 | AO143: =K114+AP111 -> 43.05140881 | AP143: 29 | AR143: =AA148 -> 3.487685698 | AS143: =AA114+AT111 -> 40.09520003 | AT143: 29 | AW143: (10 → 35) | AX143: =H108-H114+0.5*(H105-H108) -> 26.065 | BG143: =IF('متغیرها '!C125=1,H149,IF(H149>0,H149,0)) -> 1.425 | BH143: x | BI143: =IF('متغیرها '!C125=1,G149,IF(G149>0,G149,0)) -> 1.425 | BO143: =BO141 -> 3 | BP143: =BP141 -> 60.03229286 | BT143: ζ'2 | BU143: =('متغیرها '!C106+0.001)*ATAN((BS138-BS104)/(BT138-BT104)) -> 0.3795469677 | CB143: ζ1 | CC143: =ATAN((CB104-CB139)/(CA139-CA104)) -> 0.660255355 | CM143: =CI103 -> 9.966689481 | CN143: =CJ103 -> 140.4013725 | CO143: 30 | CY143: α36m | CZ143: =ATAN((DO105-DO104)/(DP104-DP105)) -> 0.2122157944 | DG143: =DG117 -> 14.84107 | DH143: =DH117 -> 8 | DI143: =DI117 -> 53r | DO143: =DO107 -> 24.4241167 | DP143: =DP107 -> 123.7308801 | DQ143: شیفت 8'm | DT143: b1 | DU143: =ATAN((DT131-DT132)/(DU131-DU132))-ATAN((DT133-DT132)/(DU133-DU132)) -> -0.0003076990535 | DY143: (30b→22) | DZ143: =SQRT(POWER(DY150-DY132,2)+POWER(DZ150-DZ132,2)) -> 7.128887699 | ED143: =BS175 -> 15.09970287 | EE143: =BT175 -> 136.6775969 | EF143: 34' | EH143: =J281 -> 0 | EI143: =K281 -> 161.2572074 | EJ143: p3 | EL143: =BD97 -> 3 | EM143: =BE97 -> 67.935 | EN143: 1' | ET143: =BD150 -> 3 | EU143: =BT116 -> 116.55 | EV143: e'1 | EX143: 20.02545125 | EY143: 71.56373893 | EZ143: 50''s | FB143: 11.63133187 | FC143: 160.0760855 | FD143: a'4 | FH143: رگلان بدون درز | FJ143: =BO176 -> 3 | FK143: =BP176 -> 69.935 | FL143: 47 | FR143: =BK162 -> 24.13925 | FS143: =BL162 -> 106.5498848 | FT143: شیفت 36 | FX143: =-(0+AX99)+2*GC101 -> 3 | FY143: =DS238-DS239+AX98 -> 127.1094239 | FZ143: p26 | GB143: =-(AL281)+2*GC101 -> -5.708361851 | GC143: =AM281 -> 146.5514088 | GD143: =AN281 -> 25 | GF143: =-EX142-GK101 -> -10.9665075 | GG143: =EY142 -> 69.25454143 | GH143: 50's | GV143: =-CR195-GK101 -> 3 | GW143: =CS195 -> 134.2513362 | GX143: 26' | GZ143: =-AW289-GK101 -> -23.45810766 | HA143: 78.4148506 | HB143: 7n | HD143: =-U425-GK101 -> -6.90107 | HE143: =V425 -> 67.935 | HF143: 52 | HH143: =-CL282-GK101 -> -21.30735 | HI143: =CM282 -> 106.5477071 | HJ143: شیفت 41 | HL143: =-DP473-GK101 -> -22.84084326 | HM143: =DQ473 -> 87.4070886 | HN143: β5
J144: (2 → 26) | K144: =G165+'متغیرها '!C72*0.5*G167-('متغیرها '!C71)*0.5*G167*SIN(O139) -> 12.30007259 | L144: =H165 -> 8.609293583 | N144: β'2 | O144: =ATAN((Q143-Q147)/(R143-R147)) -> 0.4021081616 | P144: =ATAN((N164-N162)/(O164-O162)) -> 0.4195973339 | U144: =AN139 -> 8.708361851 | V144: =AO139 -> 43.05140881 | W144: 25 | Y144: =0.55*Y142 -> 6.202751647 | Z144: (25 → 26) | AA144: =0.55*AA142 -> 6.091901339 | AC144: (18' → 18'') | AD144: =AD142*SIN(AD147-AD146+AD143) -> 2.410865794 | AE144: =AE142*SIN(AE147-AE146+AE143) -> 2.321989964 | AF144: =AR152 -> 14.35130428 | AG144: =AS152 -> 38.85637122 | AH144: 36 | AJ144: =AR148 -> 12.74938081 | AK144: =AS148 -> 39.15066677 | AL144: 34 | AN144: =K147 -> 6.966689481 | AO144: =K114-K148+AP111 -> 36.90137251 | AP144: 30 | AR144: =AA148 -> 3.487685698 | AS144: =AA114-AA149+AT111 -> 37.53946504 | AT144: 30 | AW144: (35 → 36) | AX144: =0.5*SIN(RADIANS('متغیرها '!C198))*(0.5*'متغیرها '!U84+0.06*H105) -> 2.524108658 | AZ144: =AX130+AX99 -> 6.48334474 | BA144: =AX103+AX98 -> 146.5514088 | BB144: 27 | BD144: =BD98 -> 3 | BE144: =BE98 -> 134.2513362 | BF144: 26' | BG144: =IF('متغیرها '!C125=1,H151,IF(H151>0,H151,0)) -> 0.45 | BH144: x'' | BI144: =IF('متغیرها '!C125=1,G151,IF(G151>0,G151,0)) -> 0.45 | BK144: =BK140 -> 23.13415357 | BL144: =BL140 -> 142.3797043 | BM144: 18 | BO144: =BO134 -> 3 | BP144: =BP134 -> 67.935 | BT144: ζ1 | BU144: =ATAN((BT104-BT140)/(BS140-BS104)) -> -0.003623431113 | BW144: =BW137 -> 21.95663119 | BX144: =BX137 -> 143.615157 | BY144: b16 | CM144: =CK135 -> 15.73166285 | CN144: =CL135 -> 136.2191377 | CO144: وسط 16f | CY144: (s2m→45m) | CZ144: =SQRT(POWER((EX129-DC127),2)+POWER((EY129-DD127),2)) -> 0 | DO144: =DO109 -> 23.11444732 | DP144: =DP109 -> 124.6895441 | DQ144: شیفت 8''m | DT144: α25 | DU144: =ATAN((DU134-DU133)/(DT133-DT134)) -> 0.2556430796 | DY144: b1 | DZ144: =ATAN((DY131-DY132)/(DZ131-DZ132))-ATAN((DY133-DY132)/(DZ133-DZ132)) -> 0.2356480921 | EF144: رگلان بدون درز | EP144: =DC115 -> 18.4261921 | EQ144: =DD115 -> 104.3385571 | ER144: 40s | ET144: =BD150 -> 3 | EU144: =BE150 -> 67.935 | EV144: 1 | EX144: =EX132 -> 25.11254528 | EY144: =EY132 -> 71.23385357 | EZ144: 49'm | FF144: =CC157+CB112 -> 15.03078318 | FG144: =CD157+CB113 -> 136.9276726 | FH144: شیفتb'10 | FN144: =DY180 -> 10.749225 | FO144: =DZ180 -> 65.935 | FP144: a''23 | FX144: =-(DU241)+2*GC101 -> -0.91552 | FY144: =DV241 -> 127.6259815 | FZ144: p28 | GB144: =-(AL283)+2*GC101 -> -2.868666341 | GC144: =AM283 -> 134.2513362 | GD144: sq2 | GF144: =-EX143-GK101 -> -14.02545125 | GG144: =EY143 -> 71.56373893 | GH144: 50''s | GJ144: =-ED142-GK101 -> -3.966689481 | GK144: =EE142 -> 140.4013725 | GL144: 30 | GN144: =-EL140-GK101 -> 3 | GO144: =EM140 -> 119 | GP144: 4' | GT144: 0' | GZ144: =-AW290-GK101 -> -20.33969639 | HA144: 72.43366757 | HB144: 6n | HD144: =-U426-GK101 -> -9.235775 | HE144: =V426 -> 67.935 | HF144: 50 | HH144: =-CL283-GK101 -> -21.435426 | HI144: =CM283 -> 87.9 | HJ144: m4
F145: متغیرهای محاسبه شده پیراهن اندامی | H145: شبیه ساز | J145: (2 → 27) | K145: =0.4*K143 -> 3.48334474 | L145: =0.4*L143 -> 2.7968 | N145: β12 | O145: =ATAN((R134-R147)/(Q134-Q147)) -> 0.7024265952 | P145: =ATAN((O161-O162)/(N161-N162)) -> 0.6633073414 | Q145: =AN149 -> 16.29058 | R145: =AO149 -> 40.15028449 | S145: 35 | Z145: (15→14→20→22→18→26→24) | AA145: هلال وصل | AC145: (18''→ 7) | AD145: =AD142*COS(AD147-AD146+AD143) -> 7.325781404 | AE145: =AE142*COS(AE147-AE146+AE143) -> 6.62654566 | AJ145: =AR141 -> 8.719214244 | AK145: =AS141 -> 40.09520003 | AL145: 27 | AN145: =K143+K150 -> 12.71320617 | AO145: =K114+AP111 -> 43.05140881 | AP145: 31 | AR145: =AA150 -> 6.539410683 | AS145: =AA114+AT111 -> 40.09520003 | AT145: 31 | AW145: (36 → 37) | AX145: =0.5*COS(RADIANS('متغیرها '!C198))*(0.5*'متغیرها '!U84+0.06*H105) -> 6.934931541 | AZ145: =AX130+AX99 -> 6.48334474 | BA145: =AX103-AX131+AX98 -> 135.4813435 | BB145: 28 | BD145: =BD97 -> 3 | BE145: =BE97 -> 67.935 | BF145: 1' | BG145: =MIN(BG144,BG143)+0.5*ABS((BG144-BG143)) -> 0.9375 | BH145: * | BI145: =MIN(BI144,BI143)+0.5*ABS((BI144-BI143)) -> 0.9375 | BK145: =BI108-BI114+BI120-BI136+BI98+'متغیرها '!C56 -> 17.35130428 | BL145: =BI110+BI115+BI121+BI97+'متغیرها '!C57 -> 142.3797043 | BM145: شیفت31 | BT145: به دست آوردن نقطه تقاطع دو خط (رگلان با درز) | BU145: مولفه افقی | BV145: مولفه عمودی | CB145: به دست آوردن نقطه تقاطع دو خط (رگلان با درز) | CC145: مولفه افقی | CD145: مولفه عمودی | CY145: (47'→s2m) | CZ145: =SQRT(POWER((DC127-CY108),2)+POWER((DD127-CZ108),2)) -> 13.34149854 | DO145: =DK104 -> 22.24133441 | DP145: =DL104 -> 126.4699201 | DQ145: شیفت 16p | DT145: α32b | DU145: =ATAN((DT149-DT132)/(DU149-DU132)) -> 0.07501785541 | DY145: α23 | DZ145: =ATAN((DZ134-DZ133)/(DY133-DY134)) -> 0.2302108781 | ED145: =BW106 -> 9.966689481 | EE145: =BX106 -> 140.4013725 | EF145: 30 | EJ145: خط متصل به یقه ملوانی | EL145: =BD97 -> 3 | EM145: =BE97 -> 67.935 | EN145: 1' | EP145: =DC113 -> 13.87107 | EQ145: =DD113 -> 115.9 | ER145: 43s | EZ145: کمر | FB145: =DU184 -> 11.63133187 | FC145: =DV184 -> 160.0760855 | FD145: a'4 | FF145: =CE117+CB112 -> 22.24141031 | FG145: =CF117+CB113 -> 126.4706691 | FH145: شیفتb10 | FL145: پهلو صاف و پایین لباس | FN145: =DY179 -> 3 | FO145: =DZ179 -> 65.935 | FP145: a'6 | FR145: =BO178 -> 3 | FS145: =BP178 -> 106.5 | FT145: 44 | FX145: =-(DU243)+2*GC101 -> -4.83104 | FY145: =DV243 -> 129.6922119 | FZ145: p30 | GF145: =-EX144-GK101 -> -19.11254528 | GG145: =EY144 -> 71.23385357 | GH145: 49'm | GJ145: =-ED143-GK101 -> -9.099702865 | GK145: =EE143 -> 136.6775969 | GL145: 34' | GN145: =-EL143-GK101 -> 3 | GO145: =EM143 -> 67.935 | GP145: 1' | GT145: کمر | GV145: =-CR195-GK101 -> 3 | GW145: =CS195 -> 134.2513362 | GX145: 26' | GZ145: =-AW291-GK101 -> -12.83241 | HA145: 68.44621222 | HB145: 5n | HF145: چیب | HL145: =-DP475-GK101 -> -20.96145802 | HM145: =DQ475 -> 86.72304832 | HN145: β3
E146: نصف پهنای ساسون روی خط مرکزی پشت دامن | F146: x11 | G146: ='متغیرها '!C93*0.25*(H103-H101) -> 0 | H146: ='متغیرها '!C93*0.25*('متغیرها '!U55-'متغیرها '!U53) -> 0 | J146: (27 → 28) | K146: =0.9*K144 -> 11.07006533 | L146: =0.9*L144 -> 7.748364225 | N146: (16' →16'') | O146: =O142*SIN(O144-O143+O145) -> 12.13460871 | P146: =P142*SIN(P144-P143+P145) -> 10.72014005 | Q146: =AN150 -> 10.87107 | R146: =AO150 -> 17.05 | S146: 36 | U146: =AN115 -> 0 | V146: =AO115 -> 0 | W146: 1 | Y146: =H163 -> 6.992 | Z146: (2 → 27) | AA146: =G163+'متغیرها '!C71*0.5*G167*COS(AD139) -> 8.719214244 | AC146: β'5 | AD146: =ATAN((AF150-AF113)/(AG150-AG113)) -> 0.1227633058 | AE146: =ATAN((AC161-AC160)/(AD161-AD160)) -> 0.1248598058 | AF146: =AR155 -> 13.26690693 | AG146: =AS155 -> 38.24647099 | AH146: 37 | AN146: =K143+K150 -> 12.71320617 | AO146: =K114-K151+AP111 -> 42.00469603 | AP146: 32 | AR146: =AA150 -> 6.539410683 | AS146: =AA114-AA151+AT111 -> 38.3913767 | AT146: 32 | AW146: (37' → 37) | AX146: =(0.5*'متغیرها '!U84+0.06*H105) -> 14.76 | BK146: =BI108-BI114+BI120-BI136+BI98+'متغیرها '!C56 -> 17.35130428 | BL146: =BI110+BI115+BI121+BI137+BI97+'متغیرها '!C57 -> 145.357975 | BM146: شیفت32 | BQ146: خطوط برش | BS146: نقطه اول از خط اول | BT146: 30 | BU146: =BW106 -> 9.966689481 | BV146: =BX106 -> 140.4013725 | BW146: =BW139 -> 28.88626028 | BX146: =BX139 -> 128.2691728 | BY146: b14 | CA146: نقطه اول از خط اول | CB146: 28 | CC146: =CE106 -> 9.539410683 | CD146: =CF106 -> 144.8913767 | CM146: =CK135+CJ105 -> 15.73166285 | CN146: =CL135 -> 136.2191377 | CO146: شیفت وسط 16f | CY146: (s''2m→s'2m) | CZ146: =IF('متغیرها '!C188*(0.5*H132+0.06*I105)>CZ145,'متغیرها '!C188*(0.5*H132+0.06*I105)-CZ145,0) -> 1.49950146 | DO146: =DK103 -> 21.30585629 | DP146: =DL103 -> 131.3035201 | DQ146: شیفت 12p | DT146: α34 | DU146: =ATAN((DU131-DU130)/(DT130-DT131)) -> 0.2750835448 | DY146: α30b | DZ146: =ATAN((DY150-DY132)/(DZ150-DZ132)) -> 0.07350575027 | ED146: =BS176 -> 15.05089801 | EE146: =BT176 -> 135.9753915 | EF146: 5' | EH146: =BW113 -> 10.83752567 | EI146: =BX113 -> 142.861387 | EJ146: e7 | EL146: =BD150 -> 3 | EM146: =BE150 -> 67.935 | EN146: 1 | ER146: کمر | EV146: انحنا ساسون کمر | EX146: =DC124 -> 28.21974749 | EY146: =DD124 -> 109.9535603 | EZ146: 41m | FB146: =DP179 -> 12.03812049 | FC146: =DQ179 -> 159.6350378 | FD146: a4 | FJ146: =BO170 -> 24.4241167 | FK146: =BP170 -> 119.0584001 | FL146: 10شیفت | FR146: =BK159 -> 12.836725 | FS146: =BL159 -> 106.5 | FT146: 34 | FX146: =-(DU239)+2*GC101 -> -6.7888 | FY146: =DV239 -> 132.275 | FZ146: p25 | GB146: =-(AL283)+2*GC101 -> -2.868666341 | GC146: =AM283 -> 134.2513362 | GD146: sq2 | GH146: کمر | GL146: رگلان بدون درز | GR146: =-ET102-GK101 -> 3 | GS146: =EU102 -> 103.5 | GT146: 38 | GV146: =-CR198-GK101 -> 3 | GW146: =CS198 -> 134.2513362 | GX146: 26 | GZ146: =-AW292-GK101 -> 3 | HA146: 67.935 | HB146: 1 | HD146: =-U428-GK101 -> -16.85293332 | HE146: =V428 -> 100.9349315 | HF146: 37 | HJ146: 67' | HL146: =HL148 -> -15.9132407 | HM146: =DQ476 -> 100.5929114 | HN146: β9
E147: نصف پهنای ساسون روی خط مرکزی پشت بالاتنه | F147: x''11 | G147: =('متغیرها '!C82*1/2)*(H121-H119) -> 0 | H147: =('متغیرها '!C82*1/2)*('متغیرها '!U73-'متغیرها '!U71) -> 0 | J147: (2 → 29) | K147: =0.8*K143 -> 6.966689481 | L147: =0.8*L143 -> 5.5936 | N147: (6 →16'') | O147: =O142*COS(O144-O143+O145) -> 7.272972019 | P147: =P142*COS(P144-P143+P145) -> 6.736519995 | Q147: =AN120 -> 10.87107 | R147: =AO120 -> 17.05 | S147: 6 | U147: =AN151 -> 0 | V147: =AO151 -> 0 | W147: 37 | Y147: =H166 -> 2.061828315 | Z147: (2 → 28) | AA147: =G166+'متغیرها '!C73*0.5*G167-('متغیرها '!C71)*0.5*G167*SIN(AD139) -> 2.839705546 | AC147: β'6 | AD147: =ATAN((AF144-AF113)/(AG144-AG113)) -> 0.2238233209 | AE147: =ATAN((AC162-AC160)/(AD162-AD160)) -> 0.2247065803 | AF147: =AR156 -> 12.26974818 | AG147: =AS156 -> 32.2532465 | AH147: 38 | AN147: =K115-K132+K138-K153 -> 20.65965529 | AO147: =K127+K133+K139+AP111 -> 36.47394814 | AP147: 33 | AR147: =AA146+AA153 -> 12.74938081 | AS147: =AA114+AT111 -> 40.09520003 | AT147: 33 | AW147: (1 → 1') | AX147: =-'متغیرها '!C66*(2*H129+H130) -> 0 | AZ147: =AX132+AX99 -> 9.966689481 | BA147: =AX103+AX98 -> 146.5514088 | BB147: 29 | BC147: 3' | BD147: =BD152 -> 14.082687 | BE147: =BE152 -> 67.935 | BF147: خطوط برش | BH147: متغیرهای خروجی ساسون کمر در پیراهن راسته پشت | BO147: =BK138 -> 3 | BP147: =BL138 -> 143.7554945 | BQ147: 24 | BS147: نقطه دوم از خط اول | BT147: b6 | BU147: =BW163 -> 20.89233418 | BV147: =BX163 -> 132.4752975 | BW147: =BW140 -> 28.63017711 | BX147: =BX140 -> 123.7882004 | BY147: b2 | CA147: نقطه دوم از خط اول | CB147: b6 | CC147: =CE118 -> 21.30550456 | CD147: =CF118 -> 131.3041864 | CM147: =CI119-0.05*(CI119-CI103)+CJ105 -> 20.34605195 | CN147: =CJ119-0.15*(CJ119-CJ120) -> 131.7830508 | CO147: شیفت 16f | CY147: (41m→45m) | CZ147: =SQRT(POWER((DG122-DG123),2)+POWER((DH122-DH123),2)) -> 20.00067403 | DT147: نقاط خروجی | DY147: α32b | DZ147: =ATAN((DZ131-DZ130)/(DY130-DY131)) -> 0.4755011206 | EH147: =BS116 -> 3 | EI147: =BT116 -> 116.55 | EJ147: e1 | EP147: =AZ165 -> 3 | EQ147: =BA165 -> 103.5 | ER147: 38 | ET147: =BD174+'متغیرها '!C55 -> 14.68107 | EU147: =BE174 -> 103.5 | EV147: 40شیفت | EX147: =DC115 -> 18.4261921 | EY147: =DD115 -> 104.3385571 | EZ147: 40s | FF147: =CE106 -> 9.539410683 | FG147: =CF106 -> 144.8913767 | FH147: 28 | FJ147: =BK126 -> 25.47838335 | FK147: =BL126 -> 86.54988478 | FL147: 6شیفت | FN147: =DY179 -> 3 | FO147: =DZ179 -> 65.935 | FP147: a'6 | FT147: باسن | GB147: =-(AL282)+2*GC101 -> 3 | GC147: =AM282 -> 134.2513362 | GD147: =AN282 -> 26 | GF147: =-EX146-GK101 -> -22.21974749 | GG147: =EY146 -> 109.9535603 | GH147: 41m | GJ147: =-ED145-GK101 -> -3.966689481 | GK147: =EE145 -> 140.4013725 | GL147: 30 | GN147: =-EL143-GK101 -> 3 | GO147: =EM143 -> 67.935 | GP147: 1' | GR147: =-ET103-GK101 -> -7.06107 | GS147: =EU103 -> 103.5 | GT147: 39 | HD147: =-U429-GK101 -> -21.90115064 | HE147: =V429 -> 87.06506846 | HF147: 37' | HH147: =-CX270-GK101 -> 3 | HI147: =CY270 -> 134.2513362 | HJ147: 26 چرخیده
E148: نسبت فاصله دو ساسون پشت به نوار سینه از پشت (بین دو خط پهلو) | F148: z'2 | G148: ='متغیرها '!C86*0.5 -> 0.25 | H148: =0.5*0.5 -> 0.25 | J148: (29 → 30) | K148: =0.5*K144 -> 6.150036297 | L148: =0.5*L144 -> 4.304646792 | N148: (22 → 35') | O148: =0.5*G179-0.5*G167*'متغیرها '!C76*COS(O140)+0.5*G167*'متغیرها '!C78*COS(O140) -> 9.791530471 | P148: =COS(H160)*(0.5*H169+0.5*H167*(1)) -> 9.194 | U148: =AN152 -> 0 | V148: =AO152 -> 30.75133622 | W148: 38 | Y148: =0.4*Y146 -> 2.7968 | Z148: (2 → 29) | AA148: =0.4*AA146 -> 3.487685698 | AC148: (24 → 37') | AD148: =COS(G158)*(0.5*G170+0.5*G167*(1-'متغیرها '!C76+'متغیرها '!C78)) -> 6.867246645 | AE148: =COS(H158)*(0.5*H170+0.5*H167) -> 6.214 | AF148: =AR121 -> 10.774225 | AG148: =AS121 -> 23.14243528 | AH148: 7 | AN148: =K115-K132+K138-K153 -> 20.65965529 | AO148: =K127+K133+K139+K154+AP111 -> 40.06677738 | AP148: 34 | AR148: =AA146+AA153 -> 12.74938081 | AS148: =AA114-AA154+AT111 -> 39.15066677 | AT148: 34 | AW148: (26 → 26') | AX148: =AX147 -> 0 | AZ148: =AX132+AX99 -> 9.966689481 | BA148: =AX103-AX133+AX98 -> 140.4013725 | BB148: 30 | BD148: =AZ102 -> 3 | BE148: =BA102 -> 134.2513362 | BF148: 26 | BG148: ='متغیرها '!U58-'متغیرها '!U59 -> 56.2 | BH148: (1 → 33) | BI148: =H106-H114 -> 36.565 | BK148: =0+BI98 -> 3 | BL148: =0+'متغیرها '!C54 -> 10 | BM148: زمین | BO148: =BK168 -> 3 | BP148: =BL168 -> 69.935 | BQ148: 1 | BS148: نقطه اول از خط دوم | BT148: 5 بالاتنه | BU148: =BS104 -> 13.87107 | BV148: =BT104 -> 119 | BW148: =BW142 -> 15.422698 | BX148: =BX142 -> 119.248279 | BY148: b | CA148: نقطه اول از خط دوم | CB148: 22 | CC148: =BK101 -> 15.26974818 | CD148: =BL101 -> 138.7532465 | CM148: =CM105 -> 22.16658655 | CN148: =CN105 -> 127.8603199 | CO148: شیفت 20f | CY148: (41m→s2m) | CZ148: =CZ147-CZ144 -> 20.00067403 | DA148: (36m→s'2m) | DT148: مولفه افقی | DU148: مولفه عمودی | DV148: اسم نقطه | DY148: نقاط خروجی | ED148: =BW176+BT130 -> 15.04563936 | EE148: =BX176 -> 135.9757562 | EF148: 5''شیفت | EL148: =BW108 -> 3 | EM148: =BX108 -> 134.2513362 | EN148: 26 چرخیده | EP148: =AZ166 -> 13.06107 | EQ148: =BA166 -> 103.5 | ER148: 39 | ET148: =IF(AX152>0,ET150+0.95*(ET147-ET150),ET150) -> 14.64057 | EU148: =IF(AX152>0,EU150-0.4*(EU150-EU147),EU147) -> 110.94 | EV148: 40a | FB148: =EH112 -> 16.75154973 | FC148: 154.5246517 | FD148: a2 | FF148: =CC157 -> 15.03078318 | FG148: =CD157 -> 136.9276726 | FH148: b'10 | FN148: =DY161 -> 3 | FO148: =DZ161 -> 69.935 | FP148: 47 | FR148: =BK170 -> 3 | FS148: =BP178-(H106-H108) -> 86 | FT148: b48 | FX148: =-(DU244)+2*GC101 -> -13.83016 | FY148: =DV244 -> 129.9380331 | FZ148: p16 | GF148: =-EX147-GK101 -> -12.4261921 | GG148: =EY147 -> 104.3385571 | GH148: 40s | GJ148: =-ED146-GK101 -> -9.050898007 | GK148: =EE146 -> 135.9753915 | GL148: 5' | GN148: =-EL146-GK101 -> 3 | GO148: =EM146 -> 67.935 | GP148: 1 | GV148: =-CR198-GK101 -> 3 | GW148: =CS198 -> 134.2513362 | GX148: 26 | HB148: 60' | HH148: =-CX271-GK101 -> 3 | HI148: =CY271 -> 134.2513362 | HJ148: چرخیده 26' | HL148: =-DP478-GK101 -> -15.9132407 | HM148: =DQ478 -> 100.5929114 | HN148: β9
E149: نصف پهنای ساسون میانی پشت کمر دامن | F149: x | G149: ='متغیرها '!C95*0.25*(H103-H101) -> 1.425 | H149: ='متغیرها '!C95*0.25*('متغیرها '!U55-'متغیرها '!U53) -> 1.425 | J149: (25→30→28→26) | K149: هلال وصل | N149: (35' → 35) | O149: =0.5*G180-0.5*G167*'متغیرها '!C76*SIN(O140)+0.5*G167*'متغیرها '!C78*SIN(O140) -> 3.676336349 | P149: =SIN(H160)*(0.5*H169+0.5*H167*(1)) -> 3.288975527 | Q149: =AN146 -> 12.71320617 | R149: =AO146 -> 42.00469603 | S149: 32 | U149: =AN140 -> 0 | V149: =AO140 -> 30.75133622 | W149: 26 | Y149: =0.9*Y147 -> 1.855645483 | Z149: (29→30) | AA149: =0.9*AA147 -> 2.555734991 | AC149: (37 ' → 37) | AD149: =SIN(G158)*(0.5*G170+0.5*G167*(1-'متغیرها '!C76+'متغیرها '!C78)) -> 2.368370443 | AE149: =SIN(H158)*(0.5*H170+0.5*H167) -> 2.112176521 | AN149: =K115-K132+K138-O148 -> 16.29058 | AO149: =K127+K133+K139+O149+AP111 -> 40.15028449 | AP149: 35 | AR149: =AR156+0.8*(AR148-AR156) -> 12.65345429 | AS149: =AS156+0.7*(AS148-AS156) -> 37.08144069 | AT149: 34- | AW149: محاسبه ات ساسون کمر در پیراهن جلو | BD149: =AZ102 -> 3 | BE149: =BA102 -> 134.2513362 | BF149: 26 | BG149: =BG155-0.5*BG150 -> 9.7375 | BH149: (33 → 34) | BI149: =BI155-0.5*BI150 -> 9.836725 | BS149: نقطه دوم از خط دوم | BT149: 32 | BU149: =BW109 -> 15.71320617 | BV149: =BX109 -> 145.504696 | BW149: =BS104 -> 13.87107 | BX149: =BT104 -> 119 | BY149: 5 بالاتنه | CA149: نقطه دوم از خط دوم | CB149: 40 | CC149: =CA104 -> 13.774225 | CD149: =CB104 -> 127.3281918 | DT149: =DT134+DU140*COS(DU144-RADIANS(DU137)) -> 15.76249838 | DU149: =DU134-DU140*SIN(DU144-RADIANS(DU137)) -> 145.7157279 | DV149: 32b | DY149: مولفه افقی | DZ149: مولفه عمودی | EA149: اسم نقطه | ED149: =BW134+BT130 -> 22.9708781 | EE149: =BX134 -> 129.0807724 | EF149: شیفتb10 | EJ149: یقه گرد چرخیده | EL149: =BW110 -> 3 | EM149: =BX110 -> 134.2513362 | EN149: چرخیده 26' | ET149: =IF(AX152>0,ET150+0.2*(ET147-ET150),ET150) -> 14.03307 | EU149: =IF(AX152>0,EU150-0.15*(EU150-EU147),EU147) -> 114.04 | EV149: 40aa | EZ149: لبه برگرد پایین کت در پهلو جدا | FB149: 13.725637 | FC149: 150.5380303 | FD149: a13 | FJ149: =BK126 -> 25.47838335 | FK149: =BL126 -> 86.54988478 | FL149: 6شیفت | FR149: =BO187 -> 14.749225 | FS149: =FS148 -> 86 | FT149: b49 | FX149: =-(DU247)+2*GC101 -> -15.2637385 | FY149: =DV247 -> 126.5916877 | FZ149: p20 | GD149: 18' | GR149: =-ET105-GK101 -> -8.68107 | GS149: =EU105 -> 103.5 | GT149: شیفت 40 | GV149: =-CR201-GK101 -> 2.999999954 | GW149: =CS201 -> 119.001 | GX149: 4 | GZ149: =-AU239-GK101 -> -5.708361851 | HA149: =AV239 -> 146.5514088 | HB149: 25 | HF149: 81' | HL149: =HL151 -> -17.19495347 | HM149: =DQ479 -> 99.99523892 | HN149: β13
E150: نصف پهنای ساسون جلو کمر دامن | F150: y | G150: ='متغیرها '!C97*0.5*(H102-H103-H100+H101) -> 0.325 | H150: ='متغیرها '!C97*0.5*('متغیرها '!U54-'متغیرها '!U55-'متغیرها '!U52+'متغیرها '!U53) -> 0.325 | J150: (25 → 31) | K150: =(1-'متغیرها '!C71)*0.5*G167*COS(O139) -> 4.004844319 | L150: =0.5*H167*COS(P139) -> 5.655850951 | N150: (35 → 6) | O150: وصل | Q150: =AN145 -> 12.71320617 | R150: =AO145 -> 43.05140881 | S150: 31 | Y150: =0.75*Y146 -> 5.244 | Z150: (2 → 31) | AA150: =0.75*AA146 -> 6.539410683 | AC150: (37 → 7) | AD150: وصل | AF150: =AR148 -> 12.74938081 | AG150: =AS148 -> 39.15066677 | AH150: 34 | AN150: =K115-K132+K138-O148-O152 -> 10.87107 | AO150: =K127+K133+K139+O149-O151+AP111 -> 17.05 | AP150: 36 | AR150: =AR156+0.6*(AR148-AR156) -> 12.55752776 | AS150: =AS156+0.5*(AS148-AS156) -> 35.70195663 | AT150: 34-- | AV150: =IF('متغیرها '!C125=1,H150,IF(H150>0,H150,0)) -> 0.325 | AW150: y | AX150: =IF('متغیرها '!C125=1,G150,IF(G150>0,G150,0)) -> 0.325 | AZ150: =AX110+AX99 -> 30.44161665 | BA150: =0+AX98 -> 67.935 | BB150: 8 | BD150: =0+AX99 -> 3 | BE150: =0+AX98 -> 67.935 | BF150: 1 | BG150: =2*IF(BG144<0.3,0,IF(BG145>0.3,BG145,0)) -> 1.875 | BH150: (34 → 35) | BI150: =IF('متغیرها '!C125=0,2*IF(BI144<0.3,0,IF(BI145>0.3,BI145,0)),2*BI144) -> 1.875 | BK150: =0+BI98 -> 3 | BL150: =I127-I126+BI148+BI97 -> 119 | BM150: سینه | BO150: =BO192 -> 12.799225 | BP150: =BP192 -> 69.935 | BQ150: شیفت50 | BS150: نقطه تقاطع | BT150: 32' | BU150: =(BV148-BV146+BU146*((BV147-BV146)/(BU147-BU146))-BU148*((BV149-BV148)/(BU149-BU148)))/(((BV147-BV146)/(BU147-BU146))-((BV149-BV148)/(BU149-BU148))) -> 15.09970287 | BV150: =BV146+(BU150-BU146)*((BV147-BV146)/(BU147-BU146)) -> 136.6775969 | BW150: انحنا | CA150: نقطه تقاطع | CB150: b'6 | CC150: =(CD148-CD146+CC146*((CD147-CD146)/(CC147-CC146))-CC148*((CD149-CD148)/(CC149-CC148)))/(((CD147-CD146)/(CC147-CC146))-((CD149-CD148)/(CC149-CC148))) -> 15.21526731 | CD150: =CD146+(CC150-CC146)*((CD147-CD146)/(CC147-CC146)) -> 138.3370397 | DT150: =DT132+DU142*SIN(DU145+DU143) -> 15.75475482 | DU150: =DU132+DU142*COS(DU145+DU143) -> 145.7163087 | DV150: 34b | DY150: =DY134+DZ141*COS(DZ145-RADIANS(DZ137)) -> 15.79329066 | DZ150: =DZ134-DZ141*SIN(DZ145-RADIANS(DZ137)) -> 145.8628838 | EA150: 30b | EH150: =BW105 -> 11.70836185 | EI150: 146.5514088 | EJ150: =BY105 -> 25 | ER150: انحنا لبه روی خط مرکزی جلو بالاتنه | ET150: =BD175+'متغیرها '!C55 -> 13.87107 | EU150: =BE175 -> 115.9 | EV150: 43شیفت | EX150: =DP170 -> 13.04960939 | EY150: =DQ170 -> 67.935 | EZ150: آستر a5 | FB150: 11.70836185 | FC150: 146.5514088 | FD150: چرخیده 25 | FH150: ساسون کمر بدون شیفت | FJ150: =BK129 -> 25.86803553 | FK150: =BL129 -> 74.53488478 | FL150: 4شیفت | FN150: =DY163 -> 8.799225 | FO150: =DZ163 -> 69.935 | FP150: پهلوe216 | FX150: =-(DU249)+2*GC101 -> -18.608755 | FY150: =DV249 -> 124.249246 | FZ150: p18 | GB150: =-EP132-GK101 -> -6.90107 | GC150: =EQ132 -> 85.95 | GD150: 47' | GH150: 31' | GJ150: =-ED148-GK101 -> -9.045639362 | GK150: =EE148 -> 135.9757562 | GL150: 5''شیفت | GN150: =-EL148-GK101 -> 3 | GO150: =EM148 -> 134.2513362 | GP150: چرخیده26 | GR150: =-ET106-GK101 -> -21.30735 | GS150: =EU106 -> 106.5477071 | GT150: شیفت 41 | GZ150: =-AU240-GK101 -> -7.725637002 | HA150: =AV240 -> 150.5380303 | HB150: a13 | HD150: =-AG277-GK101 -> -15.95663119 | HE150: =AH277 -> 143.615157 | HF150: c22 | HH150: =-CX271-GK101 -> 3 | HI150: =CY271 -> 134.2513362 | HJ150: چرخیده 26'
E151: نصف پهنای ساسون میانی پشت کمر بالاتنه | F151: x'' | G151: =('متغیرها '!C84*1/4)*(H121-H119) -> 0.45 | H151: =('متغیرها '!C84*1/4)*('متغیرها '!U73-'متغیرها '!U71) -> 0.45 | J151: (31 → 32) | K151: =(1-'متغیرها '!C71)*0.5*G167*SIN(O139) -> 1.046712777 | L151: =0.5*H167*SIN(P139) -> 1.369906729 | N151: (35 → 36') | O151: =COS(G161)*K159 -> 23.10028449 | P151: =COS(H161)*L159 -> 21.61102447 | Q151: =AN139 -> 8.708361851 | R151: =AO139 -> 43.05140881 | S151: 25 | Y151: =0.6*Y147 -> 1.237096989 | Z151: (31 → 32) | AA151: =0.6*AA147 -> 1.703823327 | AC151: (37 → 38') | AD151: =IF((4*G170)<G172,COS(G159)*(4*G170),COS(G159)*G172) -> 5.993224486 | AE151: =IF((4*H170)<H172,COS(H159)*(4*H170),COS(H159)*H172) -> 5.867666357 | AF151: =AR147 -> 12.74938081 | AG151: =AS147 -> 40.09520003 | AH151: 33 | AN151: =K162 -> 0 | AO151: =0+AP111 -> 0 | AP151: 37 | AR151: =AA115-AA135+AA141-AA156 -> 14.35130428 | AS151: =AA130+AA136+AA142+AT111 -> 35.87810054 | AT151: 35 | AV151: =IF('متغیرها '!C125=1,H152,IF(H152>0,H152,0)) -> 1.295 | AW151: y'' | AX151: =IF('متغیرها '!C125=1,G152,IF(G152>0,G152,0)) -> 1.295 | AZ151: =AX110+AX99 -> 30.44161665 | BA151: =AX111+AX98 -> 86.54770714 | BB151: 9 | BD151: =AZ106 -> 3 | BE151: =BA106 -> 67.935 | BF151: 1 | BG151: =0.5*'متغیرها '!U71-BG149+BG163 -> 9.8125 | BH151: (35 → 36) | BI151: =0.5*H119-BI149+BI163+'متغیرها '!C61*H120 -> 9.427525 | BK151: =0.5*(BK154-BK153)+BI98 -> 8.3871125 | BL151: =BL150 -> 119 | BO151: =BK129 -> 25.86803553 | BP151: =BL129 -> 74.53488478 | BQ151: 4شیفت | BW151: =BW144 -> 21.95663119 | BX151: =BX144 -> 143.615157 | BY151: b16 | CB151: b''6 | CC151: =CC147-0.05*(CC147-CC150) -> 21.0009927 | CD151: =CD147-0.2*(CD147-CD154) -> 130.3374829 | CL151: شبیه ساز حلقه آستین بدون ساسون سرشانه | CN151: بالاتنه کمر جناقی در جلو و پشت | CZ151: جلو بالاتنه عصایی با اپل و کنترل گودی حلقه آستین | DH151: پشت بالاتنه عصایی با اپل و کنترل گودی حلقه آستین | DT151: =DT150+DU141*COS(DU146-RADIANS(DU137)) -> 22.09880912 | DU151: =DU150-DU141*SIN(DU146-RADIANS(DU137)) -> 144.2795007 | DV151: 22b | DY151: =DY132+DZ143*SIN(DZ146+DZ144) -> 17.43873153 | DZ151: =DZ132+DZ143*COS(DZ146+DZ144) -> 145.5441633 | EA151: 32b | EF151: ساسون زیر بغل متغیر | EH151: 9.966689481 | EI151: 140.4013725 | EJ151: =BY106 -> 30 | EL151: =BW110 -> 3 | EM151: =BX110 -> 134.2513362 | EN151: چرخیده 26' | EP151: =BS116 -> 3 | EQ151: =BT116 -> 116.55 | ER151: e1 | EX151: =DT162 -> 13.04960939 | EY151: =DU162 -> 63.935 | EZ151: a'5 | FF151: =BK154 -> 13.774225 | FG151: =BL154 -> 127.3281918 | FH151: 40 | FN151: =DY181 -> 8.799225 | FO151: =DZ181 -> 65.935 | FP151: a'26 | FR151: =BO191 -> 12.799225 | FS151: =FS148+'متغیرها '!C57 -> 86 | FT151: b50 | FX151: =-(AZ99-'متغیرها '!C55)+2*GC101 -> -23.38735 | FY151: =BA99 -> 123.2453424 | FZ151: 12 | GB151: =-EP133-GK101 -> -7.06107 | GC151: =EQ133 -> 103.5 | GD151: 39 | GF151: =-ET147-GK101 -> -8.68107 | GG151: =EU147 -> 103.5 | GH151: 40شیفت | GJ151: =-ED149-GK101 -> -16.9708781 | GK151: =EE149 -> 129.0807724 | GL151: شیفتb10 | GN151: =-EL149-GK101 -> 3 | GO151: =EM149 -> 134.2513362 | GP151: چرخیده26' | GT151: باسن | GV151: =-CR203-GK101 -> 3 | GW151: =CS203 -> 119 | GX151: 4 | GZ151: =-AU241-GK101 -> -10.75154973 | HA151: =AV241 -> 154.5246517 | HB151: a2 | HD151: =-AG278-GK101 -> -25.20435295 | HE151: =AH278 -> 137.7552346 | HF151: c4 | HH151: =-CX274-GK101 -> 2.999999954 | HI151: =CY274 -> 119.001 | HJ151: چرخیده 4' | HL151: =-DP481-GK101 -> -17.19495347 | HM151: =DQ481 -> 99.99523892 | HN151: β13
E152: نصف پهنای ساسون جلو کمر | F152: y'' | G152: =0.5*'متغیرها '!C87*(H120-H121-H118+H119) -> 1.295 | H152: =0.5*'متغیرها '!C87*('متغیرها '!U72-'متغیرها '!U73-'متغیرها '!U70+'متغیرها '!U71) -> 1.295 | J152: (25 → 32) | K152: وصل | N152: (36' → 36) | O152: =SIN(G161)*K159 -> 5.41951 | P152: =SIN(H161)*L159 -> 5.2624 | Q152: =AN116 -> 0 | R152: =AO116 -> 43.05140881 | S152: 2 | W152: دکلته ساسون سرشانه | Z152: (27→32→30→28) | AA152: هلال وصل | AC152: (38' → 38) | AD152: =IF((4*G170)<G172,SIN(G159)*(4*G170),SIN(G159)*G172) -> 0.9971587491 | AE152: =IF((4*H170)<H172,SIN(H159)*(4*H170),SIN(H159)*H172) -> 0.9874514208 | AF152: =AR141 -> 8.719214244 | AG152: =AS141 -> 40.09520003 | AH152: 27 | AN152: =K162 -> 0 | AO152: =K114-K144+AP111 -> 30.75133622 | AP152: 38 | AR152: =AA115-AA135+AA141-AA156 -> 14.35130428 | AS152: =AA130+AA136+AA142+AA157+AT111 -> 38.85637122 | AT152: 36 | AV152: =MIN(AV150,AV151)+0.5*ABS((AV150-AV151)) -> 0.81 | AW152: * | AX152: =MIN(AX150,AX151)+0.5*ABS((AX150-AX151)) -> 0.81 | BD152: =0.42*AX104+AX99 -> 14.082687 | BE152: =0+AX98 -> 67.935 | BF152: 3' | BG152: =BG148-1*('متغیرها '!U58-'متغیرها '!U60) -> 35.7 | BH152: (1 → 37) | BI152: =BI148-'متغیرها '!C96*(H106-H108) -> 18.115 | BK152: ساسون کمر | BO152: =BK126 -> 25.47838335 | BP152: =BL126 -> 86.54988478 | BQ152: 6شیفت | BT152: به دست آوردن نقطه تقاطع دو خط (رگلان بدون درز) | BU152: مولفه افقی | BV152: مولفه عمودی | BW152: =BW136 -> 20.58402031 | BX152: =BX136 -> 137.7759235 | BY152: b12 | CB152: به دست آوردن نقطه تقاطع دو خط (رگلان بدون درز) | CC152: مولفه افقی | CD152: مولفه عمودی | CI152: نقاط ورودی | CN152: بعضی نقاط ورودی جلو | CT152: جلو بالاتنه کمر جناقی | CX152: پشت بالاتنه کمر جناقی | CZ152: نقاط ورودی | DF152: حلقه آستین عصایی | DH152: نقاط ورودی | DN152: حلقه آستین عصایی | DY152: =DY151+DZ142*COS(DZ147-RADIANS(DZ137)) -> 23.3697626 | DZ152: =DZ151-DZ142*SIN(DZ147-RADIANS(DZ137)) -> 142.8731499 | EA152: 18b | ED152: =BW140+BT130 -> 28.63017711 | EE152: =BX140 -> 123.7882004 | EF152: شیفت b2 | EH152: 6.48334474 | EI152: 135.4813435 | EJ152: =BY107 -> 28 | EL152: =BW112 -> 3.000000046 | EM152: =BX112 -> 119.001 | EN152: چرخیده 4' | EP152: =CE184 -> 3 | EQ152: =CF184 -> 114.6981013 | ER152: 8n | ET152: =BD175 -> 13.87107 | EU152: =BE175 -> 115.9 | EV152: 43 | FB152: =EH116 -> 16.75154973 | FC152: =EI116 -> 154.5246517 | FD152: a2 | FF152: =BK159 -> 12.836725 | FG152: =BL159 -> 106.5 | FH152: 34 | FJ152: =BK129 -> 25.86803553 | FK152: =BL129 -> 74.53488478 | FL152: 4شیفت | FR152: =BK165 -> 28.44845 | FS152: =BL162-(H105-H108) -> 86.54988478 | FT152: b42 | FZ152: خطوط برش پیش سینه | GF152: =-ET148-GK101 -> -8.64057 | GG152: =EU148 -> 110.94 | GH152: 40a | GR152: =-ET108-GK101 -> 3 | GS152: =EU108 -> 84 | GT152: g46 | GV152: =-CR204-GK101 -> 3 | GW152: =CS204 -> 98.7 | GX152: d4 | HD152: =-AG279-GK101 -> -32.77067075 | HE152: =AH279 -> 127.777529 | HF152: c12 | HL152: =-DP482-GK101 -> -17.79262594 | HM152: =DQ482 -> 101.2769517 | HN152: β11
E153: ضریب بالا آمدن کف حلقه آستین از خط سینه | F153: z1 | G153: =(H127-H126+H122-O128*H130-O127-(0.5-G148)*H119*((G151)/(I127-I126+0.05*H130)))/(H127-H126) -> 1.335810822 | H153: =(I127-I126+I122-O128*'متغیرها '!U82-P127-(0.5-G148)*'متغیرها '!U71*((H151)/(I127-I126+0.05*'متغیرها '!U82)))/(I127-I126) -> 1.355842553 | J153: (22 → 33) | K153: =(1-'متغیرها '!C76+'متغیرها '!C78)*0.5*G167*COS(O140) -> 5.422455181 | L153: =0.5*H167*COS(P140) -> 4.84539872 | N153: (36 → 32) | O153: وصل | Q153: =AN140 -> 0 | R153: =AO140 -> 30.75133622 | S153: 26 | U153: =AN148 -> 20.65965529 | V153: =AO148 -> 40.06677738 | W153: 34 | Y153: =0.5*H167*COS(AE139) -> 5.672983996 | Z153: (27 → 33) | AA153: =(1-'متغیرها '!C71)*0.5*G167*COS(AD139) -> 4.030166569 | AC153: (38 → 36) | AD153: وصل | AF153: =AR116 -> 0 | AG153: =AS116 -> 40.09520003 | AH153: 2 | AR153: =AR156+0.6*(AR152-AR156) -> 13.51868184 | AS153: =AS156+0.65*(AS152-AS156) -> 36.54527757 | AT153: 36- | AZ153: =AZ131 -> 25.37704198 | BA153: =BA131 -> 94 | BB153: 35 | BD153: =AZ108+'متغیرها '!C55 -> 30.83126883 | BE153: =BA108 -> 74.53270714 | BF153: 7شیفت | BG153: =BG155 -> 10.675 | BH153: (37 → 38) | BI153: =BI155 -> 10.774225 | BK153: =0+BI98 -> 3 | BL153: =BI154+BI97 -> 127.3281918 | BM153: 39 | BO153: =BO170 -> 24.4241167 | BP153: =BP170 -> 119.0584001 | BQ153: 10شیفت | BS153: نقطه اول از خط اول | BT153: 30 | BU153: =BW106 -> 9.966689481 | BV153: =BX106 -> 140.4013725 | BW153: =BW135 -> 20.89233418 | BX153: =BX135 -> 132.4752975 | BY153: b6 | CA153: نقطه اول از خط اول | CB153: 28 | CC153: =CE106 -> 9.539410683 | CD153: =CF106 -> 144.8913767 | CI153: مولفه افقی | CJ153: مولفه عمودی | CK153: اسم نقطه | CN153: مولفه افقی | CO153: مولفه عمودی | CP153: اسم نقطه | CR153: مولفه افقی | CS153: مولفه عمودی | CT153: اسم نقطه | CV153: مولفه افقی | CW153: مولفه عمودی | CX153: اسم نقطه | CZ153: مولفه افقی | DA153: مولفه عمودی | DB153: اسم نقطه | DD153: =CZ157 -> 22.09880912 | DE153: =DA157 -> 144.2795007 | DF153: =DB157 -> 39 | DH153: مولفه افقی | DI153: مولفه عمودی | DJ153: اسم نقطه | DL153: =DH158+DI161 -> 21.30585629 | DM153: =DI158+DI162 -> 131.3035201 | DN153: شیفت12p یا 12 | ED153: =BW142+BT130 -> 15.422698 | EE153: =BX142 -> 119.248279 | EF153: شیفت b | EH153: 3 | EI153: 134.2513362 | EJ153: =BY108 -> 26 | EP153: =CE183 -> 4.558604253 | EQ153: =CF183 -> 104.9392595 | ER153: 7n | ET153: =ET152-(ET149-ET150) -> 13.70907 | EU153: =EU149 -> 114.04 | EV153: 39aa | EX153: =DT162 -> 13.04960939 | EY153: =DU162 -> 63.935 | EZ153: a'5 | FB153: =EH117 -> 12.03812049 | FC153: =EI117 -> 159.6350378 | FD153: a4 | FJ153: =BK174 -> 22.72254875 | FK153: 72.46493663 | FL153: 41''' | FN153: =DY181 -> 8.799225 | FO153: =DZ181 -> 65.935 | FP153: a'26 | FX153: =-(DU239)+2*GC101 -> -6.7888 | FY153: =DV239 -> 132.275 | FZ153: p25 | GB153: =-EP135-GK101 -> -7.06107 | GC153: =EQ135 -> 103.5 | GD153: 39 | GF153: =-ET149-GK101 -> -8.03307 | GG153: =EU149 -> 114.04 | GH153: 40aa | GL153: 4' | GN153: =-EL149-GK101 -> 3 | GO153: =EM149 -> 134.2513362 | GP153: چرخیده26' | GR153: =-ET109-GK101 -> -6.90107 | GS153: =EU109 -> 84 | GT153: g47' | GZ153: =-AU243-GK101 -> -10.75154973 | HA153: =AV243 -> 154.5246517 | HB153: a2 | HD153: =-AG280-GK101 -> -52.31422239 | HE153: =AH280 -> 81.92846146 | HF153: c2 | HH153: =-CX274-GK101 -> 2.999999954 | HI153: =CY274 -> 119.001 | HJ153: چرخیده 4'
E154: نسبت فاصله دو سینه به نوار سینه از جلو (بین دو خط پهلو) | F154: z2 | G154: =((2*G163+0.4*(K115-G163))/(H120-H121))*2*'متغیرها '!C89 -> 0.404556864 | H154: =((2*H163+0.4*(L115-H163))/('متغیرها '!U72-'متغیرها '!U73))*2*0.5 -> 0.409891182 | J154: (33 → 34) | K154: =(1-'متغیرها '!C76+'متغیرها '!C78)*0.5*G167*SIN(O140) -> 3.59282924 | L154: =0.5*H167*SIN(P140) -> 3.222949841 | N154: (36 → 34) | O154: وصل | Q154: =AN118 -> 0 | R154: =AO118 -> 15.5 | S154: 4 | U154: =AN120 -> 10.87107 | V154: =AO120 -> 17.05 | W154: 6 | Y154: =0.5*H167*SIN(AE139) -> 1.297130301 | Z154: (33 → 34) | AA154: =(1-'متغیرها '!C71)*0.5*G167*SIN(AD139) -> 0.9445332621 | AC154: (38 → 34) | AD154: وصل | AF154: =AR142 -> 0 | AG154: =AS142 -> 37.25549449 | AH154: 28 | AR154: =AR156+0.3*(AR152-AR156) -> 12.89421501 | AS154: =AS156+0.35*(AS152-AS156) -> 34.56434015 | AT154: 36-- | AW154: ساسون کمر در پیراهن راسته جلو | AZ154: =AX112-AX144+AX99+'متغیرها '!C55 -> 22.85293332 | BA154: =AX143+AX98 -> 94 | BB154: 36شیفت | BD154: =AZ151+'متغیرها '!C55 -> 30.44161665 | BE154: =BA151 -> 86.54770714 | BF154: شیفت9 | BG154: =BG148+Y116+Y120 -> 77.21322872 | BH154: (1 → 39) | BI154: =BI148+AA116+AA120 -> 57.39319175 | BK154: =BI155+BI98 -> 13.774225 | BL154: =BI154+BI97 -> 127.3281918 | BM154: 40 | BO154: =BK114 -> 26.0353167 | BP154: =BL114 -> 123.2475201 | BQ154: شیفت9 | BS154: نقطه دوم از خط اول | BT154: b10 | BU154: =BW162 -> 22.9708781 | BV154: =BX162 -> 129.0807724 | BW154: =BW134 -> 22.9708781 | BX154: =BX134 -> 129.0807724 | BY154: b10 | CA154: نقطه دوم از خط اول | CB154: b10 | CC154: =CE117 -> 22.24141031 | CD154: =CF117 -> 126.4706691 | CI154: =BW169 -> 20.09694969 | CJ154: =BX169 -> 132.4363309 | CK154: b6 | CL154: با چرخش کامل | CN154: =AZ166 -> 13.06107 | CO154: =BA166 -> 103.5 | CP154: 39 | CR154: =AZ161 -> 13.87107 | CS154: =BA161 -> 115.9 | CT154: 43 | CV154: =BK154 -> 13.774225 | CW154: =BL154 -> 127.3281918 | CX154: 40 | CZ154: =AZ161 -> 13.87107 | DA154: =BA161 -> 115.9 | DB154: 43 | DC154: راس ساسون کمر | DD154: =CZ156 -> 20.58402031 | DE154: =DA156 -> 137.7759235 | DF154: =DB156 -> 37 | DH154: =CA104 -> 13.774225 | DI154: =CB104 -> 127.3281918 | DJ154: 40 | DK154: راس ساسون کمر | DL154: =DH175+DI161 -> 18.66978534 | DM154: =DI175+DI162 -> 130.5084544 | DN154: شیفت25 | EL154: =BW112 -> 3.000000046 | EM154: =BX112 -> 119.001 | EN154: چرخیده 4' | EP154: =CE182 -> 7.156278009 | EQ154: =CF182 -> 100.7797532 | ER154: 6n | ET154: =ET152-(ET148-ET150) -> 13.10157 | EU154: =EU148 -> 110.94 | EV154: 39a | EX154: =DT163 -> 25.11254528 | EY154: =DU163 -> 67.23385357 | EZ154: a''5 | FF154: =BK159 -> 12.836725 | FG154: =BL159 -> 106.5 | FH154: 34 | FJ154: 19.5414925 | FK154: 70.85497696 | FL154: 41'' | FN154: =DY182 -> 30.84587684 | FO154: =DZ182 -> 65.935 | FP154: a''8 | FR154: =FR148 -> 3 | FS154: =FS148 -> 86 | FT154: b48 | FX154: =-(DU244)+2*GC101 -> -13.83016 | FY154: =DV244 -> 129.9380331 | FZ154: p16 | GB154: =-EP136-GK101 -> -7.87107 | GC154: =EQ136 -> 115.9 | GD154: 43 | GF154: =-ET150-GK101 -> -7.87107 | GG154: =EU150 -> 115.9 | GH154: 43شیفت | GJ154: =-ED152-GK101 -> -22.63017711 | GK154: =EE152 -> 123.7882004 | GL154: شیفت b2 | GN154: =-EL152-GK101 -> 2.999999954 | GO154: =EM152 -> 119.001 | GP154: 4' | GX154: 61' | GZ154: =-AU244-GK101 -> -7.079369544 | HA154: =AV244 -> 156.8473571 | HB154: d4 | HH154: =-CX277-GK101 -> 3 | HI154: =CY277 -> 98.625 | HJ154: s'1 | HL154: =-DP484-GK101 -> -17.79262594 | HM154: =DQ484 -> 101.2769517 | HN154: β11
E155: نصف کف حلقه پشت | F155: z3 | G155: =0.5*(H121-H129) -> 3.87345 | H155: =0.5*('متغیرها '!U73-'متغیرها '!U81) -> 3.85 | J155: (22 → 34) | K155: وصل | U155: =AN146 -> 12.71320617 | V155: =AO146 -> 42.00469603 | W155: 32 | Z155: (27 → 34) | AA155: وصل | AF155: =AR119 -> 0 | AG155: =AS119 -> 30.375 | AH155: 5 | AR155: =AA115-AA135+AA141-AD148 -> 13.26690693 | AS155: =AA130+AA136+AA142+AD149+AT111 -> 38.24647099 | AT155: 37 | AV155: ='متغیرها '!U56-'متغیرها '!U59 -> 55.2 | AW155: (1 → 38) | AX155: =H104-H114 -> 35.565 | AZ155: =AX112-AX144+AX99+'متغیرها '!C55 -> 22.85293332 | BA155: =AX143+AX145+AX98 -> 100.9349315 | BB155: 37شیفت | BD155: =AX104+AX99+'متغیرها '!C55 -> 29.38735 | BE155: =AX113-AX115+AX98 -> 119.0562224 | BF155: شیفت14 | BG155: =Y118 -> 10.675 | BH155: (39→40) | BI155: =AA118 -> 10.774225 | BK155: =BI153+BI98 -> 13.774225 | BL155: =BI152+BI97 -> 88.05 | BM155: 38 | BS155: نقطه اول از خط دوم | BT155: 5 بالاتنه | BU155: =BS104 -> 13.87107 | BV155: =BT104 -> 119 | BW155: =BW133 -> 24.81042003 | BX155: =BX133 -> 127.9783132 | BY155: b8 | CA155: نقطه اول از خط دوم | CB155: 22 | CC155: =BK101 -> 15.26974818 | CD155: =BL101 -> 138.7532465 | CI155: =BG385 -> 9.992 | CJ155: =BH385 -> 147 | CK155: 25 | CL155: نقطه اتصال سرشانه به گردن | CN155: =AZ167+CO162 -> 14.68107 | CO155: =BA167 -> 103.5 | CP155: شیفت40 | CR155: =IF(CO158>CO154,CN158,CN154) -> 13.06107 | CS155: =IF(CO158>CO154,CO158,CO154) -> 103.5 | CT155: 39 یا d5 | CV155: =IF(CO171>CO166,CN171,CN166) -> 12.836725 | CW155: =IF(CO171>CO166,CO171,CO166) -> 106.5 | CX155: 34 یا d2 | CZ155: =IF('متغیرها '!C119=1,DT122,BW135) -> 20.89233418 | DA155: =IF('متغیرها '!C119=1,DU122,BX135) -> 132.4752975 | DB155: 35 | DC155: b6 یا b'6g | DD155: =CZ155 -> 20.89233418 | DE155: =DA155 -> 132.4752975 | DF155: =DB155 -> 35 | DH155: =IF('متغیرها '!C119=1,DX122,CE118) -> 21.30550456 | DI155: =IF('متغیرها '!C119=1,DY122,CF118) -> 131.3041864 | DJ155: 37 | DK155: b'6p یا b6 | DL155: =DH174+DI161 -> 15.28055126 | DM155: =DI174+DI162 -> 128.9183231 | DN155: شیفت23 | DP155: آستر کت | DY155: لبه برگرد پایین کت | ED155: =BW142+BT130 -> 15.422698 | EE155: =BX142 -> 119.248279 | EF155: شیفت b | EJ155: پایین پیراهن بدون ترک | EL155: =BS104 -> 13.87107 | EM155: =BT104 -> 119 | EN155: =BU104 -> 5 بالاتنه | EP155: =CE181 -> 10.99284232 | EQ155: =CF181 -> 98.7 | ER155: 5n | ET155: =BD172 -> 13.06107 | EU155: =BE172 -> 103.5 | EV155: 39 | FB155: =EH126 -> 15.65174957 | FC155: 155.7170751 | FD155: a14 | FF155: =BK155 -> 13.774225 | FG155: =BL155 -> 88.05 | FH155: 38 | FJ155: 15.724225 | FK155: 69.935 | FL155: شیفت41' | GJ155: =-ED153-GK101 -> -9.422698 | GK155: =EE153 -> 119.248279 | GL155: شیفت b | GR155: =-ET111-GK101 -> -8.84107 | GS155: =EU111 -> 84 | GT155: g47'' | GV155: =-CV189-GK101 -> 3 | GW155: =CW189 -> 98.7 | GX155: d4 | HD155: =-AG282-GK101 -> -8.082687 | HE155: =AH282 -> 67.935 | HF155: 3' | HL155: =-DP485-GK101 -> -15.9132407 | HM155: =DQ485 -> 100.5929114 | HN155: β9
E156: نصف کف حلقه جلو | F156: z4 | G156: =O126*H130-G155 -> 5.79375 | H156: =O126*'متغیرها '!U82-H155 -> 5.75 | J156: (22 → 25) | K156: وصل | Q156: =AN141 -> 3.48334474 | R156: =AO141 -> 43.05140881 | S156: 27 | Y156: =0.5*H167*COS(AE140) -> 5.187299278 | Z156: (24 → 35) | AA156: =(1-'متغیرها '!C76+'متغیرها '!C78)*0.5*G167*COS(AD140) -> 5.782849288 | AF156: =AR118 -> 0 | AG156: =AS118 -> 12.5 | AH156: 4 | AR156: =AA115-AA135+AA141-AD148-AD152 -> 12.26974818 | AS156: =AA130+AA136+AA142+AD149-AD151+AT111 -> 32.2532465 | AT156: 38 | AV156: =AV160-0.5*AV157 -> 10.1136 | AW156: (38 → 39) | AX156: =AX160-0.5*AX157 -> 10.06107 | BD156: =AX104+AX114+AX99+'متغیرها '!C55 -> 30.99855 | BE156: =AX113+AX98 -> 123.2453424 | BF156: شیفت13 | BG156: =BG149+BG150+BG151+(IF('متغیرها '!U55>'متغیرها '!U53,0.5*'متغیرها '!U55,0.5*'متغیرها '!U53)-BG149-BG151+BG163)-BG142-BG150 -> 25.25 | BH156: (1 → 41) | BI156: =BI149+BI150+BI151+'متغیرها '!C128*(IF(H103>H101,0.5*H103,0.5*H101)+'متغیرها '!C62*H120-BI149-BI151+BI163)-'متغیرها '!C128*BI142-IF('متغیرها '!C125=1,2*BI143,BI150)*IF('متغیرها '!C128<'متغیرها '!C96,'متغیرها '!C128/'متغیرها '!C96,1) -> 25.44845 | BK156: =0+BI98 -> 3 | BL156: =BI152+BI97 -> 88.05 | BM156: 37 | BO156: =BK140 -> 23.13415357 | BP156: =BL140 -> 142.3797043 | BQ156: شیفت18 | BS156: نقطه دوم از خط دوم | BT156: 32 | BU156: =BW109 -> 15.71320617 | BV156: =BX109 -> 145.504696 | BW156: =BW132 -> 27.35190316 | BX156: =BX132 -> 127.777529 | BY156: b4 | CA156: نقطه دوم از خط دوم | CB156: 40 | CC156: =CA104 -> 13.774225 | CD156: =CB104 -> 127.3281918 | CI156: =BG395 -> 29.65 | CJ156: =BH395 -> 123.4957391 | CK156: 12 | CN156: =AZ168+CO162 -> 27.30735 | CO156: =BA168 -> 106.5477071 | CP156: شیفت41 | CZ156: =IF('متغیرها '!C119=1,DT121,BW136) -> 20.58402031 | DA156: =IF('متغیرها '!C119=1,DU121,BX136) -> 137.7759235 | DB156: 37 | DC156: b12 یا b'12g | DH156: =IF('متغیرها '!C119=1,DX121,CE119) -> 21.85345479 | DI156: =IF('متغیرها '!C119=1,DY121,CF119) -> 137.3961362 | DJ156: 39 | DK156: b'12p یا b12 | DL156: =DH154+DI161 -> 13.774225 | DM156: =DI154+DI162 -> 127.3281918 | DN156: شیفت40 | DP156: نقاط ورودی | DT156: نقاط ورودی | DY156: نقاط ورودی | ED156: =BS140+BT130 -> 29.38735 | EE156: =BT140 -> 119.0562224 | EF156: شیفت 14 | EH156: =BD153 -> 30.83126883 | EI156: =BE153 -> 74.53270714 | EJ156: شیفت7 | EP156: =CN158 -> 12.99105291 | EQ156: =CO158 -> 95.82 | ER156: d5 | EX156: =DT163 -> 25.11254528 | EY156: =DU163 -> 67.23385357 | EZ156: a''5 | FB156: 12.19929871 | FC156: 151.0694584 | FD156: a16 | FJ156: =BO176 -> 3 | FK156: =BP176 -> 69.935 | FL156: 47 | FN156: =DY182 -> 30.84587684 | FO156: =DZ182 -> 65.935 | FP156: a''8 | FR156: =FR151 -> 12.799225 | FS156: =FS151 -> 86 | FT156: b50 | FX156: =-(0+AX99)+2*GC101 -> 3 | FY156: =DS251+AX98 -> 67.935 | FZ156: p10 | GB156: =-EP138-GK101 -> -6.90107 | GC156: =EQ138 -> 85.95 | GD156: 47' | GF156: =-ET152-GK101 -> -7.87107 | GG156: =EU152 -> 115.9 | GH156: 43 | GN156: =-EL152-GK101 -> 2.999999954 | GO156: =EM152 -> 119.001 | GP156: 4' | GR156: =-ET112-GK101 -> -21.47155 | GS156: =EU112 -> 86.54770714 | GT156: g45 | GV156: =-CV190-GK101 -> 3 | GW156: =CW190 -> 98.7 | GX156: 26'' | GZ156: =-AU246-GK101 -> -7.079369544 | HA156: =AV246 -> 156.8473571 | HB156: d4 | HD156: =-AG283-GK101 -> -30.19845469 | HE156: =AH283 -> 72.13303844 | HF156: c5 | HH156: =-CX277-GK101 -> 3 | HI156: =CY277 -> 98.625 | HJ156: s'1 | HN156: کیسه جیب
E157: ربع زاویه ساسون کمر پشت بالاتنه | F157: α1 | G157: =0.5*ATAN(G151/(AA116+AA120)) -> 0.01080098566 | H157: =0.5*ATAN(H151/(Y116+Y120)) -> 0.01070590422 | J157: (22 → 35) | K157: =0.5*(G169+G167*(1-'متغیرها '!C76+'متغیرها '!C78)) -> 10.47486955 | Q157: =AN142 -> 3.48334474 | R157: =AO142 -> 31.98134348 | S157: 28 | Y157: =0.5*H167*SIN(AE140) -> 2.637654381 | Z157: (35 → 36) | AA157: =(1-'متغیرها '!C76+'متغیرها '!C78)*0.5*G167*SIN(AD140) -> 2.97827068 | AV157: =2*IF(AV151<0.3,0,IF(AV152>0.3,AV152,0)) -> 1.62 | AW157: (39 → 40) | AX157: =IF('متغیرها '!C125=0,2*IF(AX151<0.3,0,IF(AX152>0.3,AX152,0)),2*AX151) -> 1.62 | AZ157: =0+AX99 -> 3 | BA157: =0+'متغیرها '!C52 -> 8 | BB157: زمین | BG157: =BG148-1*(I105-'متغیرها '!U60)+Y128 -> 36.24988478 | BH157: (41 → 42) | BI157: =BI148-'متغیرها '!C128*(H105-H108)+Y128 -> 16.61488478 | BO157: =BK146 -> 17.35130428 | BP157: =BL146 -> 145.357975 | BQ157: شیفت32 | BS157: نقطه تقاطع | BT157: 5' | BU157: =(BV155-BV153+BU153*((BV154-BV153)/(BU154-BU153))-BU155*((BV156-BV155)/(BU156-BU155)))/(((BV154-BV153)/(BU154-BU153))-((BV156-BV155)/(BU156-BU155))) -> 15.05089801 | BV157: =BV153+(BU157-BU153)*((BV154-BV153)/(BU154-BU153)) -> 135.9753915 | CA157: نقطه تقاطع | CB157: b'10 | CC157: =(CD155-CD153+CC153*((CD154-CD153)/(CC154-CC153))-CC155*((CD156-CD155)/(CC156-CC155)))/(((CD154-CD153)/(CC154-CC153))-((CD156-CD155)/(CC156-CC155))) -> 15.03078318 | CD157: =CD153+(CC157-CC153)*((CD154-CD153)/(CC154-CC153)) -> 136.9276726 | CI157: =BG395+AX114 -> 31.2612 | CJ157: =BH395 -> 123.4957391 | CK157: 13 | CL157: نقطه انتهایی زیر حلقه | CN157: =J338 -> 3 | CO157: =K338 -> 98.7 | CP157: d4 | CR157: =IF(CO158>CO154,CN158,CN154) -> 13.06107 | CS157: =IF(CO158>CO154,CO158,CO154) -> 103.5 | CT157: 39 یا d5 | CV157: =IF(CO171>CO166,CN171,CN166) -> 12.836725 | CW157: =IF(CO171>CO166,CO171,CO166) -> 106.5 | CX157: 34 یا d2 | CZ157: =DT151 -> 22.09880912 | DA157: =DU151 -> 144.2795007 | DB157: 39 | DC157: 22b | DD157: =CZ155 -> 20.89233418 | DE157: =DA155 -> 132.4752975 | DF157: =DB155 -> 35 | DH157: =DX103 -> 23.3697626 | DI157: =DY103 -> 142.8731499 | DJ157: 41 | DK157: =DZ103 -> 18b | DP157: مولفه افقی | DQ157: مولفه عمودی | DR157: اسم نقطه | DT157: مولفه افقی | DU157: مولفه عمودی | DV157: اسم نقطه | DY157: مولفه افقی | DZ157: مولفه عمودی | EA157: اسم نقطه | EH157: =BD180 -> 27.47155 | EI157: =BE180 -> 74.53270714 | EJ157: شیفت49' … | EL157: =BS104 -> 13.87107 | EM157: =BT104 -> 119 | EN157: =BU106 -> 30 | ET157: =BD177 -> 29.38735 | EU157: =IF(AX152>0,BE177,EU160) -> 119.0562224 | EV157: 14 | EX157: =DG124-DH118 -> 25.11254528 | EY157: =DH124 -> 71.23385357 | EZ157: 49'm | FB157: 11.04848176 | FC157: 147.2668629 | FD157: a15 | FF157: =BK155 -> 13.774225 | FG157: =BL155 -> 88.05 | FH157: 38 | FN157: =DY165 -> 30.80745472 | FO157: =DZ165 -> 71.23603121 | FP157: 43''m | FT157: زانو | FX157: =-(DS252+AX99)+2*GC101 -> 3 | FY157: =DS251+AX98 -> 67.935 | FZ157: p11 | GB157: =-EP139-GK101 -> -6.90107 | GC157: =EQ139 -> 67.935 | GD157: 52 | GF157: =-ET153-GK101 -> -7.70907 | GG157: =EU153 -> 114.04 | GH157: 39aa | GJ157: =-ED155-GK101 -> -9.422698 | GK157: =EE155 -> 119.248279 | GL157: شیفت b | GN157: =-EL155-GK101 -> -7.87107 | GO157: =EM155 -> 119 | GP157: بالاتنه 5 | GT157: زانو | GZ157: =-AU247-GK101 -> -2.922279378 | HA157: =AV247 -> 149.4437268 | HB157: d5 | HD157: =-AG284-GK101 -> -52.31422239 | HE157: =AH284 -> 81.92846146 | HF157: c2 | HH157: =-CX280-GK101 -> 3 | HI157: =CY280 -> 98.625 | HJ157: s1 | HL157: =-DP487-GK101 -> -15.9132407 | HM157: =DQ487 -> 100.5929114 | HN157: β9
E158: زاویه سرشانه پشت با افق | F158: α2 | G158: =ATAN(G182/G181) -> 0.3321055844 | H158: =ATAN(H182/H181) -> 0.3276543366 | J158: (35 → 6) | K158: وصل | Z158: (24 →36) | AA158: وصل | AC158: شبیه ساز بعضی نقاط | AF158: =AR143 -> 3.487685698 | AG158: =AS143 -> 40.09520003 | AH158: 29 | AV158: =0.5*('متغیرها '!U70-'متغیرها '!U71)-AV156 -> 12.8364 | AW158: (40 → 41) | AX158: =0.5*(H118-H119)-AX156+'متغیرها '!C61*H120 -> 12.62628 | BD158: =AZ125+'متغیرها '!C55 -> 29.08211047 | BE158: =BA125 -> 139.9739481 | BF158: شیفت22 | BG158: =BG156 -> 25.25 | BH158: (1 → 43) | BI158: =BI156+0.25*'متغیرها '!C131*H103 -> 25.44845 | BK158: =0+BI98 -> 3 | BL158: =BI148+BI97 -> 106.5 | BM158: 33 | BO158: =BK101+'متغیرها '!C56 -> 15.26974818 | BP158: =BL101+'متغیرها '!C57 -> 138.7532465 | BQ158: 22شیفت | CI158: α4 | CJ158: ='متغیرها '!B245 -> 0.3204522679 | CK158: زاویه سرشانه با افق | CN158: =J340 -> 12.99105291 | CO158: =K340 -> 95.82 | CP158: d5 | CR158: =CN158 -> 12.99105291 | CS158: =CO158 -> 95.82 | CT158: d5 | CV158: =CN171 -> 13.63282256 | CW158: =CO171 -> 98.82 | CX158: d2 | CZ158: =IF('متغیرها '!C119=1,DT124,AZ115) -> 24.66934057 | DA158: =IF('متغیرها '!C119=1,DU124,BA115) -> 129.6901424 | DB158: =DV124 -> 16g | DC158: 16 یا | DD158: =CZ175 -> 17.7327653 | DE158: =DA175 -> 128.3314731 | DF158: =DB175 -> 33 | DH158: =IF('متغیرها '!C119=1,DX124,BK112-DI161) -> 21.30585629 | DI158: =IF('متغیرها '!C119=1,DY124,BL112-DI162) -> 131.3035201 | DJ158: =DZ124 -> 12p | DK158: یا 12 | DL158: =DH155 -> 21.30550456 | DM158: =DI155 -> 131.3041864 | DN158: 37 | DP158: =BW114 -> 10.38436934 | DQ158: =BX114 -> 140.7341178 | DR158: e5 | DS158: یقه چرخیده | DU158: =DZ168 -> 4 | DV158: (a13→a23) | DW158: عرض برگرد لبه پیراهن | DY158: =DT336 -> 18.749225 | DZ158: =DU336 -> 68.15 | EA158: e215 | EB158: وسط | EF158: انحنا لبه روی خط مرکزی جلو پیراهن | EH158: =BD183 -> 25.024395 | EI158: 73.87293642 | EJ158: شیفت50''' | EL158: =BS112 -> 3 | EM158: =BT112 -> 119 | EN158: =BU112 -> 4' | ER158: ساسون کمر | ET158: =ET160+0.5*(ET157-ET160) -> 28.34735 | EU158: =IF(AX152>0,EU160+0.65*(EU157-EU160),EU160) -> 114.6782421 | FB158: 10.83752567 | FC158: 142.861387 | FD158: e7 | FF158: =BO165 -> 14.711725 | FG158: =BP165 -> 106.5 | FH158: 35 | FL158: خط پشت در پیراهن | FR158: =FR148 -> 3 | FS158: =BP178-(H106-H107) -> 50.3 | FT158: b'48 | GF158: =-ET154-GK101 -> -7.10157 | GG158: =EU154 -> 110.94 | GH158: 39a | GJ158: =-ED156-GK101 -> -23.38735 | GK158: =EE156 -> 119.0562224 | GL158: شیفت 14 | GR158: =-ET114-GK101 -> 3 | GS158: =EU114 -> 48.3 | GT158: g1 | GV158: =-CV190-GK101 -> 3 | GW158: =CW190 -> 98.7 | GX158: 26'' | GZ158: =-AU248-GK101 -> -2.33005144 | HA158: =AV248 -> 132.9968634 | HB158: d6 | HL158: =-DP488-GK101 -> -6.899418204 | HM158: =DQ488 -> 88.53111827 | HN158: β'9
E159: زاویه خط عمود با وسط ساسون سرشانه پشت | F159: α3 | G159: =ATAN(G177/G178) -> 0.1648707293 | H159: =ATAN(H177/H178) -> 0.1667247118 | J159: (35 → 36) | K159: =IF((6*G169)<G171,6*G169,G171) -> 23.72749949 | L159: =IF((6*H169)<H171,6*H169,H171) -> 22.24250958 | Q159: =AN143 -> 6.966689481 | R159: =AO143 -> 43.05140881 | S159: 29 | Z159: (24 → 27) | AA159: وصل | AC159: =Y115-Y135 -> 17.5 | AD159: =Y130+Y136 -> 24.99791669 | AE159: 18 | AF159: =AR144 -> 3.487685698 | AG159: =AS144 -> 37.53946504 | AH159: 30 | AV159: =AV155+L116-L119 -> 70.7 | AW159: (1 → 42) | AX159: =AX155+K116-K119 -> 47.965 | AZ159: ساسون کمر | BD159: =AZ136+'متغیرها '!C55 -> 23.65965529 | BE159: =BA136 -> 143.5667774 | BF159: شیفت34 | BG159: =2*BG144-0.5*BG150 -> -0.0375 | BH159: (43 → 43') | BI159: ='متغیرها '!C68*H127+Y128+0.5*(H106-H104) -> 4.599884776 | BK159: =BI149+BI98 -> 12.836725 | BL159: =BI148+BI97 -> 106.5 | BM159: 34 | BS159: =(BT172-BT171) -> 0.3100869095 | BT159: زاویه چرخش کامل به ساسون زیر بغل | BW159: حلقه آستین با چرخش کامل به ساسون زیر بغل | CA159: به دست آوردن مختصات قرینه یک نقطه نسبت به خط تقارن با داشتن دونقطه از خط تقارن | CG159: آستر کت پشت | CJ159: =H167 -> 11.63877905 | CK159: W | CN159: =J352 -> 14.75108709 | CO159: =K352 -> 95.82 | CP159: dd5 | CZ159: =IF('متغیرها '!C119=1,DT125,AZ121) -> 25.61294245 | DA159: =IF('متغیرها '!C119=1,DU125,BA121) -> 125.8232624 | DB159: =DV125 -> 20g | DC159: یا 20 | DD159: =CZ173 -> 15.06468491 | DE159: =DA173 -> 122.530119 | DF159: =DB173 -> 23 | DH159: =BK114 -> 26.0353167 | DI159: =BL114 -> 123.2475201 | DJ159: شیفت 9 | DL159: =DH177 -> 18.21767994 | DM159: =DI177 -> 130.3101877 | DN159: 35 | DP159: =DC126 -> 24.99289844 | DQ159: =DD126 -> 127.9638969 | DR159: b'8s | DS159: نقطه حلقه آستین | DY159: =DT340 -> 18.749225 | DZ159: =DU340 -> 69.935 | EA159: e216 | EB159: وسط | ED159: =BS116 -> 3 | EE159: =BT116 -> 116.55 | EF159: e1 | EH159: 21.96545125 | EI159: 71.56373893 | EJ159: شیفت50'' | EP159: =AZ161 -> 13.87107 | EQ159: =BA161 -> 115.9 | ER159: 43 | ET159: =ET160+0.1*(ET157-ET160) -> 27.51535 | EU159: =IF(AX152>0,EU160+0.3*(EU157-EU160),EU160) -> 110.3002617 | EZ159: 105 لبه برگرد پایین ترک در پهلو جدا | FJ159: =CE108 -> 3 | FK159: =CF108 -> 143.7554945 | FL159: 24 | FN159: =DY185 -> 8.799225 | FO159: =DZ185 -> 73.935 | FP159: a''26 | FR159: =FR149 -> 14.749225 | FS159: =FS158 -> 50.3 | FT159: b'49 | FZ159: 58' | GB159: =-EP141-GK101 -> -17.93379283 | GC159: =EQ141 -> 87.6743909 | GD159: 47''s | GF159: =-ET155-GK101 -> -7.06107 | GG159: =EU155 -> 103.5 | GH159: 39 | GN159: =-EL155-GK101 -> -7.87107 | GO159: =EM155 -> 119 | GP159: بالاتنه 5 | GR159: =-ET115-GK101 -> -6.90107 | GS159: =EU115 -> 48.3 | GT159: g52 | GV159: =-CV193-GK101 -> 3 | GW159: =CW193 -> 116.55 | GX159: e1 | GZ159: =-AU249-GK101 -> -0.7310360082 | HA159: =AV249 -> 122.3064022 | HB159: d7 | HH159: =-CX280-GK101 -> 3 | HI159: =CY280 -> 98.625 | HJ159: s1 | HL159: =-DP489-GK101 -> -8.433203575 | HM159: =DQ489 -> 78.37057899 | HN159: β15
E160: زاویه سرشانه جلو با افق | F160: α4 | G160: =ATAN(G180/G179) -> 0.3457675578 | H160: =ATAN(H180/H179) -> 0.3435451371 | J160: (32 → 36) | K160: وصل | N160: شبیه ساز بعضی نقاط | Q160: =AN144 -> 6.966689481 | R160: =AO144 -> 36.90137251 | S160: 30 | Z160: (24 → 37) | AA160: =0.5*(G170+G167*(1-'متغیرها '!C76+'متغیرها '!C78)) -> 7.264176143 | AC160: =Y118 -> 10.675 | AD160: =Y116+Y119 -> 23.34803191 | AE160: 7 | AV160: =L117 -> 10.9236 | AW160: (42 → 43) | AX160: =K117 -> 10.87107 | AZ160: =0+AX99 -> 3 | BA160: =AX159+AX98 -> 115.9 | BB160: 42 | BD160: =AZ104+'متغیرها '!C55 -> 13.87107 | BE160: =BA104 -> 120.55 | BF160: شیفت5 | BH160: (1 → 41') | BI160: =0.5*BI158 -> 12.724225 | BO160: =BK101 -> 15.26974818 | BP160: =BL101 -> 138.7532465 | BQ160: 22 | BS160: =AZ99-BT130 -> 29.38735 | BT160: =BA99 -> 123.2453424 | BU160: 12 | BV160: نقطه حلقه آستین | BW160: =BS104+SQRT(POWER(BS160-BS104,2)+POWER(BT160-BT104,2))*SIN(IF(BT160=BT104,RADIANS(90)-BS159,ATAN((BS160-BS104)/ABS(BT160-BT104))+IF(BT160>BT104,-1,1)*BS159)) -> 27.35190316 | BX160: =BT104+IF(BT160<BT104,-1,1)*SQRT(POWER(BS160-BS104,2)+POWER(BT160-BT104,2))*COS(IF(BT160=BT104,RADIANS(90)-BS159,ATAN((BS160-BS104)/ABS(BT160-BT104))+IF(BT160>BT104,-1,1)*BS159)) -> 127.777529 | BY160: b4 | CA160: مولفه افقی | CB160: مولفه عمودی | CC160: اسم نقطه | CJ160: نقاط شبیه ساز حلقه آستین جلو بدون ساسون سرشانه | CN160: =J354 -> 27.3388764 | CO160: =K354 -> 102.7077071 | CP160: d3 | CR160: =CN158 -> 12.99105291 | CS160: =CO158 -> 95.82 | CT160: d5 | CV160: =CN171 -> 13.63282256 | CW160: =CO171 -> 98.82 | CX160: d2 | DA160: ='متغیرها '!C55 -> 0 | DB160: شیفت افقی | DD160: =CZ154 -> 13.87107 | DE160: =DA154 -> 115.9 | DF160: =DB154 -> 43 | DH160: =BO170 -> 24.4241167 | DI160: =BP170 -> 119.0584001 | DJ160: شیفت 10 | DL160: =DH176 -> 15.20516812 | DM160: =DI176 -> 128.9185896 | DN160: 33 | DP160: =DC124 -> 28.21974749 | DQ160: =DD124 -> 109.9535603 | DR160: 41m | DS160: کمر | DT160: نقاط خروجی برگرد لبه پیراهن در رویه کت | DY160: =DT324 -> 14.749225 | DZ160: =DU324 -> 69.935 | EA160: e21 | EB160: وسط | ED160: =CA184 -> 3 | EE160: =CB184 -> 97.7773513 | EF160: 8n | EH160: 18.9065075 | EI160: 69.25454143 | EJ160: شیفت50' | EL160: =BW108 -> 3 | EM160: =BX108 -> 134.2513362 | EN160: چرخیده 26 | EP160: =AZ167 -> 14.68107 | EQ160: =BA167 -> 103.5 | ER160: 40 | ET160: =BD178 -> 27.30735 | EU160: =BE178 -> 106.5477071 | EV160: 41 | EX160: =DT169 -> 14.84107 | EY160: =DU169 -> 67.935 | EZ160: =DV169 -> شیفت53 | FF160: =BO165 -> 14.711725 | FG160: =BP165 -> 106.5 | FH160: 35 | FJ160: =BK167 -> 3 | FK160: =BL167 -> 136.875 | FL160: 45 | FP160: خط ترک وسط کت | FX160: =-(AK240+AC244)+2*GC101 -> -19.17237794 | FY160: =AK239+AD244 -> 148.9227072 | FZ160: b2 | GB160: =-EP142-GK101 -> -12.4261921 | GC160: =EQ142 -> 104.3385571 | GD160: 40s | GL160: 27' | GN160: =-EL158-GK101 -> 3 | GO160: =EM158 -> 119 | GP160: 4' | GZ160: =-AU250-GK101 -> 3 | HA160: =AV250 -> 116.55 | HB160: e1 | HF160: 92' | HH160: =-CX283-GK101 -> 3 | HI160: =CY283 -> 119 | HJ160: 4 | HL160: =-DP490-GK101 -> -15.49083786 | HM160: =DQ490 -> 79.16414 | HN160: β'15
E161: زاویه خط عمود با وسط ساسون سرشانه جلو | F161: α5 | G161: =ATAN(G175/G176) -> 0.2304403799 | H161: =ATAN(H175/H176) -> 0.2388567691 | J161: (34 → 36) | K161: وصل | N161: =L115-L132 -> 20.9 | O161: =L127+L133 -> 26.39573905 | P161: 16 | U161: رسم الگو واقعی جلو بالاتنه | Z161: (37 → 7) | AA161: وصل | AC161: =Y146+Y153 -> 12.664984 | AD161: =Y114-Y154 -> 39.2028697 | AE161: 34 | AF161: =AR145 -> 6.539410683 | AG161: =AS145 -> 40.09520003 | AH161: 31 | AJ161: رسم الگو واقعی پشت بالاتنه | AV161: =IF(('متغیرها '!U54-'متغیرها '!U55)>('متغیرها '!U52-'متغیرها '!U53),0.5*('متغیرها '!U54-'متغیرها '!U55),0.5*('متغیرها '!U52-'متغیرها '!U53)) -> 24.25 | AW161: (1 → 44) | AX161: =AX156+AX157+AX158+'متغیرها '!C128*(IF((H102-H103)>(H100-H101),0.5*(H102-H103),0.5*(H100-H101))+'متغیرها '!C62*H120-AX156-AX158)-IF('متغیرها '!C125=1,2*AX150,AX157)*IF('متغیرها '!C128<'متغیرها '!C98,'متغیرها '!C128/'متغیرها '!C98,1) -> 24.47155 | AZ161: =AX160+AX99 -> 13.87107 | BA161: =AX159+AX98 -> 115.9 | BB161: 43 | BH161: (43' → 43'') | BI161: =BI159*((BI158-BI156)/BI157) -> 0 | BK161: =BK180 -> 14.711725 | BL161: =BL180 -> 106.5 | BM161: 35 شیفت | BO161: =BK106 -> 15.74938081 | BP161: =BL106 -> 145.6506668 | BQ161: 30 | BS161: =AZ98-BT130 -> 27.02834528 | BT161: =BA98 -> 124.2120624 | BU161: 18 | BV161: نقطه حلقه آستین | BW161: =BS104+SQRT(POWER(BS161-BS104,2)+POWER(BT161-BT104,2))*SIN(IF(BT161=BT104,RADIANS(90)-BS159,ATAN((BS161-BS104)/ABS(BT161-BT104))+IF(BT161>BT104,-1,1)*BS159)) -> 24.81042003 | BX161: =BT104+IF(BT161<BT104,-1,1)*SQRT(POWER(BS161-BS104,2)+POWER(BT161-BT104,2))*COS(IF(BT161=BT104,RADIANS(90)-BS159,ATAN((BS161-BS104)/ABS(BT161-BT104))+IF(BT161>BT104,-1,1)*BS159)) -> 127.9783132 | BY161: b8 | CA161: =DT328 -> 14.749225 | CB161: =DU328 -> 68.15 | CC161: e25 | CD161: نقطه اول خط تقارن | CE161: نقاط قرینه شده نسبت به خط تقارن | CJ161: مولفه افقی | CK161: مولفه عمودی | CL161: اسم نقطه | CN161: =BD97 -> 3 | CO161: =CO157 -> 98.7 | CP161: 26'' | CR161: =IF(CO177=1,CN163,CN157) -> 7.8 | CS161: =IF(CO177=1,CO163,CO157) -> 98.7 | CT161: _ U5 | CV161: =CN170 -> 3 | CW161: =CO170 -> 101.7 | CX161: d1 | DB161: محاسبات | DI161: ='متغیرها '!C56 -> 0 | DJ161: شیفت افقی | DL161: =DH154 -> 13.774225 | DM161: =DI154 -> 127.3281918 | DN161: 40 | DP161: =EX105-'متغیرها '!C55 -> 25.11254528 | DQ161: =EY105 -> 71.23385357 | DR161: 49'm | DS161: لبه پایین پیراهن | DT161: مولفه افقی | DU161: مولفه عمودی | DV161: اسم نقطه | DY161: =BO176 -> 3 | DZ161: =BP176 -> 69.935 | EA161: 47 | EB161: وسط | ED161: =CA183 -> 4.54456692 | EE161: =CB183 -> 79.57351701 | EF161: 7n | EH161: 15.235775 | EI161: 67.935 | EJ161: شیفت50 | EL161: =BW111 -> 3.000000046 | EM161: =BX111 -> 119.001 | EN161: چرخیده 4 | EX161: =DT167 -> 14.84107 | EY161: =DU167 -> 63.935 | EZ161: =DV167 -> شیفتa53 | FF161: =BK154 -> 13.774225 | FG161: =BL154 -> 127.3281918 | FH161: 40 | FN161: =DK103 -> 21.30585629 | FO161: =DL103 -> 131.3035201 | FP161: =DM103 -> شیفت12p | FR161: =FR151 -> 12.799225 | FS161: =FS158+'متغیرها '!C57 -> 50.3 | FT161: b'50 | FX161: =-(AC240)+2*GC101 -> -15.81059828 | FY161: =AD240 -> 143.1985633 | FZ161: =AE240 -> 22f | GF161: =-ET157-GK101 -> -23.38735 | GG161: =EU157 -> 119.0562224 | GH161: 14 | GJ161: =-ED159-GK101 -> 3 | GK161: =EE159 -> 116.55 | GL161: e1 | GR161: =-ET117-GK101 -> -8.84107 | GS161: =EU117 -> 48.3 | GT161: g53 | GV161: =-CV193-GK101 -> 3 | GW161: =CW193 -> 116.55 | GX161: e1 | HD161: =-EP151-GK101 -> 3 | HE161: =EQ151 -> 116.55 | HF161: e1 | HL161: =-DP491-GK101 -> -20.96145802 | HM161: =DQ491 -> 86.72304832 | HN161: β3
E162: ربع زاویه ساسون کمر جلو بالاتنه | F162: α6 | G162: =0.5*ATAN(G152/(K116-K119)) -> 0.05202913237 | H162: =0.5*ATAN(H152/(L116-L119)) -> 0.04167739936 | J162: (1 → 37) | K162: =-'متغیرها '!C66*(2*H129+H130) -> 0 | N162: =L117 -> 10.9236 | O162: =L116+L118 -> 18.6 | P162: 6 | Q162: =AN136 -> 26.08211047 | R162: =AO136 -> 36.47394814 | S162: 22 | Z162: (37 → 38) | AA162: =4*G170 -> 6.07561234 | AC162: =Y115-Y135+Y141-Y156 -> 14.23270072 | AD162: =Y130+Y136+Y142+Y157 -> 38.91330134 | AE162: 36 | AF162: =AR146 -> 6.539410683 | AG162: =AS146 -> 38.3913767 | AH162: 32 | AV162: =AV155-1*(I105-'متغیرها '!U60)+L125 -> 38.24770714 | AW162: (44→ 45) | AX162: =AX155-'متغیرها '!C128*(H105-H108)+L125 -> 18.61270714 | AZ162: =AX164+AX99 -> 13.87107 | BA162: =AX163+AX98 -> 85.95 | BB162: 47 | BD162: =AZ104 -> 13.87107 | BE162: =BA104 -> 120.55 | BF162: 5 | BK162: =BI149+BI150+BI151+BI98+'متغیرها '!C56 -> 24.13925 | BL162: =BI148+BI97+Y128+'متغیرها '!C57 -> 106.5498848 | BM162: شیفت36 | BO162: =BK104 -> 11.71921424 | BP162: =BL104 -> 146.5952 | BQ162: 23 | BS162: =AZ97-BT130 -> 25.61294245 | BT162: =BA97 -> 125.8232624 | BU162: 20 | BV162: نقطه حلقه آستین | BW162: =BS104+SQRT(POWER(BS162-BS104,2)+POWER(BT162-BT104,2))*SIN(IF(BT162=BT104,RADIANS(90)-BS159,ATAN((BS162-BS104)/ABS(BT162-BT104))+IF(BT162>BT104,-1,1)*BS159)) -> 22.9708781 | BX162: =BT104+IF(BT162<BT104,-1,1)*SQRT(POWER(BS162-BS104,2)+POWER(BT162-BT104,2))*COS(IF(BT162=BT104,RADIANS(90)-BS159,ATAN((BS162-BS104)/ABS(BT162-BT104))+IF(BT162>BT104,-1,1)*BS159)) -> 129.0807724 | BY162: b10 | CA162: =DT324 -> 14.749225 | CB162: =DU324 -> 69.935 | CC162: e21 | CD162: نقطه دوم خط تقارن | CE162: مولفه افقی | CF162: مولفه عمودی | CG162: اسم نقطه | CJ162: =CI155+CJ159*COS(CJ158) -> 21.03828434 | CK162: =CJ155-CJ159*SIN(CJ158) -> 143.3338331 | CL162: 22f | CO162: ='متغیرها '!C55 -> 0 | CP162: شیفت افقی تکه پهلو | CZ162: (1 → 6) | DA162: =DA154+0.4*(DA158-DA154) -> 121.416057 | DC162: شیفت | DD162: =CZ154+DA160 -> 13.87107 | DE162: =DA154 -> 115.9 | DF162: =DB154 -> 43 | DI162: ='متغیرها '!C57 -> 0 | DJ162: شیفت عمودی | DP162: =BD97 -> 3 | DQ162: =BE97 -> 67.935 | DR162: 1' | DT162: =DP170 -> 13.04960939 | DU162: =DQ170-DU158 -> 63.935 | DV162: a'5 | DY162: =BK170 -> 3 | DZ162: =BL170 -> 86 | EA162: 48 | EB162: وسط | ED162: =CA182 -> 7.11884512 | EE162: =CB182 -> 71.81450567 | EF162: 6n | EH162: =AZ181 -> 14.84107 | EI162: =BA181 -> 67.935 | EJ162: شیفت53 | EP162: =AZ167 -> 14.68107 | EQ162: =BA167 -> 103.5 | ER162: 40 | FJ162: =BK167 -> 3 | FK162: =BL167 -> 136.875 | FL162: 45 | FN162: =DK112 -> 14.711725 | FO162: =DL112 -> 106.5 | FP162: =DM112 -> شیفت35 | FR162: =FR152 -> 28.44845 | FS162: =BL162-(H105-H107) -> 50.84988478 | FT162: b'42 | FZ162: انحنا | GB162: =-EP144-GK101 -> -12.4261921 | GC162: =EQ144 -> 104.3385571 | GD162: 40s | GF162: =-ET158-GK101 -> -22.34735 | GG162: =EU158 -> 114.6782421 | GJ162: =-ED160-GK101 -> 3 | GK162: 97.7773513 | GL162: 8n | GN162: =-EL160-GK101 -> 3 | GO162: =EM160 -> 134.2513362 | GP162: چرخیده26 | GR162: =-ET118-GK101 -> -21.47155 | GS162: =EU118 -> 50.84770714 | GT162: g49 | GV162: =-CV196-GK101 -> 3 | GW162: =CW196 -> 116.55 | GX162: e'1 | GZ162: =-AU252-GK101 -> -5.708361851 | HA162: =AV252 -> 146.5514088 | HB162: 25 | HD162: =-EP152-GK101 -> 3 | HE162: 114.6981013 | HF162: 8n | HH162: =-CX283-GK101 -> 3 | HI162: =CY283 -> 119 | HJ162: 4
E163: شعاع یقه | F163: V1 | G163: =0.46*G164 -> 6.992 | H163: =0.46*H164 -> 6.992 | J163: (26 → 38) | K163: =K162 -> 0 | N163: =L143+L150 -> 12.64785095 | O163: =L114-L151 -> 42.13009327 | P163: 32 | Q163: =AN139 -> 8.708361851 | R163: =AO139 -> 43.05140881 | S163: 25 | Z163: (36 →38) | AA163: وصل | AC163: =Y118 -> 10.675 | AD163: =Y116 -> 12.5 | AE163: 6 | AV163: =I104-I107-1*(I104-I108) -> 35.7 | AW163: (1 → 46) | AX163: =H104-H114-'متغیرها '!C98*(H104-H108) -> 18.015 | AZ163: =0+AX99 -> 3 | BA163: =AX163+AX98 -> 85.95 | BB163: 46 | BD163: =AZ138 -> 15.71320617 | BE163: =BA138 -> 145.504696 | BF163: 32 | BG163: =BG141 -> 0 | BH163: (33 → 44) | BI163: =BI141 -> 0 | BO163: خطوط برش ساسون کمر | BS163: =AZ96-BT130 -> 24.66934057 | BT163: =BA96 -> 129.6901424 | BU163: 16 | BV163: نقطه حلقه آستین | BW163: =BS104+SQRT(POWER(BS163-BS104,2)+POWER(BT163-BT104,2))*SIN(ATAN((BS163-BS104)/(BT163-BT104))-BS159) -> 20.89233418 | BX163: =BT104+SQRT(POWER(BS163-BS104,2)+POWER(BT163-BT104,2))*COS(ATAN((BS163-BS104)/(BT163-BT104))-BS159) -> 132.4752975 | BY163: b6 | CA163: =DT336 -> 18.749225 | CB163: =DU336 -> 68.15 | CC163: e215 | CD163: نقطه قرینه خواسته | CE163: =CA163+2*(SIN(ATAN((CA162-CA161)/(CB162-CB161)))*(CB163-CB161)+COS(ATAN((CA162-CA161)/(CB162-CB161)))*(CA161-CA163))*COS(ATAN((CA162-CA161)/(CB162-CB161))) -> 10.749225 | CF163: =CB163-2*(SIN(ATAN((CA162-CA161)/(CB162-CB161)))*(CB163-CB161)+COS(ATAN((CA162-CA161)/(CB162-CB161)))*(CA161-CA163))*SIN(ATAN((CA162-CA161)/(CB162-CB161))) -> 68.15 | CG163: e'215 | CJ163: =CJ164+IF(CJ162>CJ164,0.3,0.7)*(CJ162-CJ164) -> 20.37935008 | CK163: =CK164+0.5*(CK162-CK164) -> 137.885082 | CL163: 24f | CN163: =J341 -> 7.8 | CO163: =G338-I345 -> 98.7 | CP163: _u5 | CR163: =IF(CO177=1,CN163,CN157) -> 7.8 | CS163: =IF(CO177=1,CO163,CO157) -> 98.7 | CT163: _ U5 | CV163: =BK179 -> 13.774225 | CW163: =BL179 -> 127.3281918 | CX163: شیفت 40 | CZ163: (6 → 21) | DA163: =CZ154+0.17*(CZ158-CZ154) -> 15.706776 | DC163: شیفت | DD163: =CZ172+DA160 -> 15.706776 | DE163: =DA172 -> 121.416057 | DF163: =DB172 -> 21 | DJ163: محاسبات | DL163: =DH155 -> 21.30550456 | DM163: 131.3041864 | DN163: 37 | DP163: =CA181 -> 10.920856 | DQ163: =CB181 -> 67.935 | DR163: 5n | DT163: =DP161 -> 25.11254528 | DU163: =DQ161-DU158 -> 67.23385357 | DV163: a''5 | DY163: =EE341 -> 8.799225 | DZ163: =EF341 -> 69.935 | EA163: e216 | EB163: پهلو | ED163: =CA181 -> 10.920856 | EE163: =CB181 -> 67.935 | EF163: 5n | EH163: =BD150 -> 3 | EI163: =BE150 -> 67.935 | EJ163: 1 | EP163: =AZ162 -> 13.87107 | EQ163: =BA162 -> 85.95 | ER163: 47 | EX163: =DT167 -> 14.84107 | EY163: 63.935 | EZ163: شیفتa53 | FF163: =BO176 -> 3 | FG163: =BP176 -> 69.935 | FH163: 47 | FJ163: =BO178 -> 3 | FK163: =BP178 -> 106.5 | FL163: 44 | FT163: سینه | FX163: =FX160 -> -19.17237794 | FY163: =FY160 -> 148.9227072 | FZ163: b2 | GB163: =-EP145-GK101 -> -7.87107 | GC163: =EQ145 -> 115.9 | GD163: 43s | GF163: =-ET159-GK101 -> -21.51535 | GG163: =EU159 -> 110.3002617 | GJ163: =-ED161-GK101 -> 1.45543308 | GK163: 79.57351701 | GL163: 7n | GN163: =-EL161-GK101 -> 2.999999954 | GO163: =EM161 -> 119.001 | GP163: چرخیده4 | GT163: سینه | GZ163: =-AU253-GK101 -> -9.619247177 | HA163: =AV253 -> 137.1644689 | HB163: d9 | HD163: =-EP153-GK101 -> 1.441395747 | HE163: 104.9392595 | HF163: 7n | HH163: =-CX286-GK101 -> 3 | HI163: =CY286 -> 134.2513362 | HJ163: 26 چرخیده
E164: نوار گردن از پشت | F164: V2 | G164: =0.38*H128 -> 15.2 | H164: =0.38*H128 -> 15.2 | N164: =L115-L132+L138-L153 -> 20.53460128 | O164: =L127+L133+L139+L154 -> 40.14499879 | P164: 34 | Z164: (34 → 38) | AA164: وصل | AC164: =Y118 -> 10.675 | AD164: =Y116-Y120 -> 3.986771277 | AE164: 8 | AF164: =AR138 -> 20.13415357 | AG164: =AS138 -> 35.87810054 | AH164: 24 | AV164: =AV160 -> 10.9236 | AW164: (46 → 47) | AX164: =AX160 -> 10.87107 | BD164: =AZ140 -> 11.70836185 | BE164: =BA140 -> 146.5514088 | BF164: 25 | BG164: =Y117 -> 30.375 | BH164: (33→45) | BI164: =AA117 -> 30.375 | BK164: =BI156+BI98+'متغیرها '!C56 -> 28.44845 | BL164: =0+BI97+'متغیرها '!C57 -> 69.935 | BM164: شیفت41 | BO164: =BK154 -> 13.774225 | BP164: =BL154 -> 127.3281918 | BQ164: 40 | BS164: =AZ95-BT130 -> 25.99317154 | BT164: =BA95 -> 134.8320453 | BU164: 24 | BV164: نقطه حلقه آستین | BW164: =BS104+SQRT(POWER(BS164-BS104,2)+POWER(BT164-BT104,2))*SIN(ATAN((BS164-BS104)/(BT164-BT104))-BS159) -> 20.58402031 | BX164: =BT104+SQRT(POWER(BS164-BS104,2)+POWER(BT164-BT104,2))*COS(ATAN((BS164-BS104)/(BT164-BT104))-BS159) -> 137.7759235 | BY164: b12 | CJ164: =CI154 -> 20.09694969 | CK164: =CJ154 -> 132.4363309 | CL164: 16f | CN164: بعضی نقاط ورودی پشت | CR164: =CN157 -> 3 | CS164: =CO157 -> 98.7 | CT164: d4 | CV164: =IF(CO172>CO167,CN172,CN167) -> 14.711725 | CW164: =IF(CO172>CO167,CO172,CO167) -> 106.5 | CX164: شیفت35 یا dd2 | CZ164: (1 → 22) | DA164: =DA154+0.4*(DA155-DA154) -> 122.530119 | DC164: شیفت | DD164: =CZ174+DA160 -> 19.81011881 | DE164: =DA174 -> 126.2426068 | DF164: =DB174 -> 31 | DH164: (1 → 7) | DI164: =DI154+0.4*(DI158-DI154) -> 128.9183231 | DL164: 21.85345479 | DM164: 137.3961362 | DN164: 39 | DP164: نقاط خروجی | DY164: =EE337 -> 8.799225 | DZ164: =EF337 -> 68.15 | EA164: e215 | EB164: پهلو | ED164: =AZ177 -> 12.90107 | EE164: =BA177 -> 67.935 | EF164: 52 | EX164: 25.11254528 | EY164: 67.23385357 | EZ164: شیفتa''5 | FF164: =BO192 -> 12.799225 | FG164: =BP192 -> 69.935 | FH164: شیفت50 | FN164: =DO121 -> 21.59066459 | FO164: =DP121 -> 131.3041864 | FP164: =DQ121 -> b'6p | FR164: =BO178-(FS164-BP178)*(BO178-BK167)/(BL167-BP178) -> 3 | FS164: =BP178+(H127-H126) -> 119 | FT164: b44 | FX164: =-(AK242+AC244)+2*GC101 -> -7.958958019 | FY164: =AK241+AD244 -> 146.9065027 | FZ164: b4 | GD164: کمر | GF164: =-ET160-GK101 -> -21.30735 | GG164: =EU160 -> 106.5477071 | GH164: 41 | GJ164: =-ED162-GK101 -> -1.11884512 | GK164: 71.81450567 | GL164: 6n | GR164: =-ET120-GK101 -> 3 | GS164: =EU120 -> 119 | GT164: g4 | GV164: =-CV196-GK101 -> 3 | GW164: =CW196 -> 116.55 | GX164: e'1 | GZ164: =-AU254-GK101 -> -15.09448663 | HA164: =AV254 -> 130.0303945 | HB164: d8 | HD164: =-EP154-GK101 -> -1.156278009 | HE164: 100.7797532 | HF164: 6n
E165: شعاع گودی یقه جلو | F165: V' | G165: =SQRT(0.2*(H128-G164)*(H128-G164)-G163*G163) -> 8.609293583 | H165: =SQRT(0.2*(H128-H164)*(H128-H164)-H163*H163) -> 8.609293583 | AF165: =AR141 -> 8.719214244 | AG165: =AS141 -> 40.09520003 | AH165: 27 | AW165: (1 → 48) | AX165: =AX161+0.25*'متغیرها '!C129*(H102-H103) -> 24.47155 | AZ165: =0+AX99 -> 3 | BA165: =AX155+AX98 -> 103.5 | BB165: 38 | BG165: =1*BG142-BG141 -> 0 | BH165: (1 → 46) | BI165: ='متغیرها '!C128*BI142-BI141 -> 0 | BK165: =BI156+BI98+'متغیرها '!C56 -> 28.44845 | BL165: =BI157+BI97+'متغیرها '!C57 -> 86.54988478 | BM165: شیفت42 | BO165: =BI149+BI150+BI98 -> 14.711725 | BP165: =BI148+BI97 -> 106.5 | BQ165: 35 | BS165: =AZ94-BT130 -> 29.08211047 | BT165: =BA94 -> 139.9739481 | BU165: 22 | BV165: نقطه حلقه آستین | BW165: =BS104+SQRT(POWER(BS165-BS104,2)+POWER(BT165-BT104,2))*SIN(ATAN((BS165-BS104)/(BT165-BT104))-BS159) -> 21.95663119 | BX165: =BT104+SQRT(POWER(BS165-BS104,2)+POWER(BT165-BT104,2))*COS(ATAN((BS165-BS104)/(BT165-BT104))-BS159) -> 143.615157 | BY165: b16 | CA165: به دست آوردن مختصات قرینه یک نقطه نسبت به خط تقارن با داشتن دونقطه از خط تقارن | CG165: آستر کت پشت | CJ165: =CI156-0.85*(CI156-CJ164) -> 21.52990724 | CK165: =CJ156+0.5*(CK164-CJ156) -> 127.966035 | CL165: 20f | CN165: مولفه افقی | CO165: مولفه عمودی | CP165: اسم نقطه | CZ165: (22→23) | DA165: =CZ154+0.17*(CZ155-CZ154) -> 15.06468491 | DC165: شیفت | DD165: =CZ158+DA160 -> 24.66934057 | DE165: =DA158 -> 129.6901424 | DF165: =DB158 -> 16g | DH165: (7→23) | DI165: =DH154+0.2*(DH158-DH154) -> 15.28055126 | DL165: 23.3697626 | DM165: 142.8731499 | DN165: 41 | DP165: مولفه افقی | DQ165: مولفه عمودی | DR165: اسم نقطه | DT165: نقاط خروجی برگرد لبه پیراهن ترک | DY165: =DO106 -> 30.80745472 | DZ165: =DP106 -> 71.23603121 | EA165: 43''m | EB165: پهلو | EP165: =AZ162 -> 13.87107 | EQ165: =BA162 -> 85.95 | ER165: 47 | FJ165: =BO178 -> 3 | FK165: =BP178 -> 106.5 | FL165: 44 | FN165: =DK123 -> 12.836725 | FO165: =DL123 -> 106.5 | FP165: =DM123 -> 34 | FR165: =BK154 -> 13.774225 | FS165: =FS164 -> 119 | FT165: b40 | FX165: =-(AK244+AC244)+2*GC101 -> -3.28669972 | FY165: =AK243+AD244 -> 138.8416844 | FZ165: b6 | GB165: =-EP147-GK101 -> 3 | GC165: =EQ147 -> 103.5 | GD165: 38 | GJ165: =-ED163-GK101 -> -4.920856 | GK165: 67.935 | GL165: 5n | GP165: 40' | GR165: =-ET121-GK101 -> -7.87107 | GS165: =EU121 -> 119 | GT165: g5 | GV165: =-CV199-GK101 -> 3 | GW165: =CW199 -> 98.7 | GX165: d4 | GZ165: =-AU255-GK101 -> -21.35190316 | HA165: =AV255 -> 127.777529 | HB165: b4 | HD165: =-EP155-GK101 -> -4.992842325 | HE165: 98.7 | HF165: 5n | HJ165: 69'
E166: شعاع گودی یقه پشت | F166: V'' | G166: =SQRT(0.23*G164*G164-G163*G163) -> 2.061828315 | H166: =SQRT(0.23*H164*H164-H163*H163) -> 2.061828315 | AW166: (48 → 49) | AX166: ='متغیرها '!C68*H127+L125-0.5*(H106-H104) -> 6.597707137 | AZ166: =AX156+AX99 -> 13.06107 | BA166: =AX155+AX98 -> 103.5 | BB166: 39 | BD166: =BD160 -> 13.87107 | BE166: =BE160 -> 120.55 | BF166: 5شیفت | BH166: (46 → 47) | BI166: =0.25*'متغیرها '!C132*H103 -> 0 | BO166: =BK155 -> 13.774225 | BP166: =BL155 -> 88.05 | BQ166: 38 | BS166: =BD159-BT130 -> 23.65965529 | BT166: =BE159 -> 143.5667774 | BU166: 34 | BV166: نقطه ساسون سرشانه | BW166: =BS104+SQRT(POWER(BS166-BS104,2)+POWER(BT166-BT104,2))*SIN(ATAN((BS166-BS104)/(BT166-BT104))-BS159) -> 15.69646792 | BX166: =BT104+SQRT(POWER(BS166-BS104,2)+POWER(BT166-BT104,2))*COS(ATAN((BS166-BS104)/(BT166-BT104))-BS159) -> 145.382018 | BY166: 34 | CA166: مولفه افقی | CB166: مولفه عمودی | CC166: اسم نقطه | CJ166: =CI156-0.5*(CI156-CJ164) -> 24.87347485 | CK166: =CJ156+0.15*(CK164-CJ156) -> 124.8368278 | CL166: 18f | CN166: =BK159 -> 12.836725 | CO166: =BL159 -> 106.5 | CP166: 34 | CR166: =AZ161+BT130 -> 13.87107 | CS166: =BA161 -> 115.9 | CT166: شیفت 43 | CV166: =IF(CO172>CO167,CN172,CN167) -> 14.711725 | CW166: =IF(CO172>CO167,CO172,CO167) -> 106.5 | CX166: شیفت35 یا dd2 | CZ166: (1 → 24) | DA166: =DA154+0.75*(DA158-DA154) -> 126.2426068 | DH166: (1→ 24) | DI166: =DI154+0.8*(DI158-DI154) -> 130.5084544 | DP166: =DP160-DT171+0.8*(DP159-DP160) -> 25.63826825 | DQ166: =DQ160+0.8*(DQ159-DQ160) -> 124.3618296 | DR166: a1 | DT166: مولفه افقی | DU166: مولفه عمودی | DV166: اسم نقطه | DY166: =DT328 -> 14.749225 | DZ166: =DU328 -> 68.15 | EA166: e25 | EB166: وسط | EP166: =AZ166 -> 13.06107 | EQ166: =BA166 -> 103.5 | ER166: 39 | EX166: =DT168 -> 25.11254528 | EY166: =DU168 -> 67.23385357 | EZ166: =DV168 -> شیفتa''5 | FJ166: =BK170 -> 3 | FK166: =BL170 -> 86 | FL166: 48 | FX166: =-(AC242)+2*GC101 -> -0.4833447404 | FY166: =AD242 -> 135.4813435 | FZ166: =AE242 -> 28 | GB166: =-EP148-GK101 -> -7.06107 | GC166: =EQ148 -> 103.5 | GD166: 39 | GJ166: =-ED164-GK101 -> -6.90107 | GK166: 67.935 | GL166: 52 | GN166: =-CD478-GK101 -> -14.55119431 | GO166: =CE478 -> 137.6349887 | GP166: g2 | HD166: =-EP156-GK101 -> -6.991052906 | HE166: 95.82 | HF166: d5 | HH166: =-CL286-GK101 -> 3 | HI166: =CM286 -> 98.625 | HJ166: s1
E167: اندازه سرشانه | F167: W | G167: =(1/COS(F137))*(0.5*G168-G163) -> 11.826772 | H167: =(1/COS(F137))*(0.5*H168-H163) -> 11.63877905 | AW167: (1 → 50) | AX167: =0.5*AX165 -> 12.235775 | AZ167: =AX156+AX157+AX99 -> 14.68107 | BA167: =AX155+AX98 -> 103.5 | BB167: 40 | BD167: =AZ161+'متغیرها '!C55 -> 13.87107 | BE167: =BA161 -> 115.9 | BF167: شیفت43 | BG167: =BG157 -> 36.24988478 | BH167: (46 → 48) | BI167: =BI148-'متغیرها '!C128*(H106-H108) -> 16.065 | BK167: =0+BI98 -> 3 | BL167: =BI148+BI164+BI97 -> 136.875 | BM167: 45 | BO167: =BK159 -> 12.836725 | BP167: =BL159 -> 106.5 | BQ167: 34 | BS167: =AZ100-BT130 -> 30.99855 | BT167: =BA100 -> 123.2453424 | BU167: 13 | BV167: نقطه حلقه آستین | BW167: =BS104+SQRT(POWER(BS167-BS104,2)+POWER(BT167-BT104,2))*SIN(IF(BT167=BT104,RADIANS(90)-BS159,ATAN((BS167-BS104)/ABS(BT167-BT104))+IF(BT167>BT104,-1,1)*BS159)) -> 28.88626028 | BX167: =BT104+IF(BT167<BT104,-1,1)*SQRT(POWER(BS167-BS104,2)+POWER(BT167-BT104,2))*COS(IF(BT167=BT104,RADIANS(90)-BS159,ATAN((BS167-BS104)/ABS(BT167-BT104))+IF(BT167>BT104,-1,1)*BS159)) -> 128.2691728 | BY167: b14 | CA167: =DT328 -> 14.749225 | CB167: =DU328 -> 68.15 | CC167: e25 | CD167: نقطه اول خط تقارن | CE167: نقاط قرینه شده نسبت به خط تقارن | CN167: =BK180 -> 14.711725 | CO167: =BL180 -> 106.5 | CP167: شیفت35 | CR167: =IF(CO159>CO155,CN159,CN155) -> 14.68107 | CS167: =IF(CO159>CO155,CO159,CO155) -> 103.5 | CT167: شیفت40 یا dd5 | CV167: =CN172 -> 13.91562744 | CW167: =CO172 -> 98.82 | CX167: dd2 | CZ167: (24 → 31) | DA167: =CZ154+0.55*(CZ158-CZ154) -> 19.81011881 | DC167: شیفت | DD167: =BD156 -> 30.99855 | DE167: =BE156 -> 123.2453424 | DF167: 13 | DH167: (24 → 25) | DI167: =DH154+0.65*(DH158-DH154) -> 18.66978534 | DK167: شیفت | DL167: =DH158+DI161 -> 21.30585629 | DM167: =DI158+DI162 -> 131.3035201 | DN167: 12p یا 12 | DP167: =DP160-DT171+0.5*(DP159-DP160) -> 26.60632296 | DQ167: =DQ160+0.5*(DQ159-DQ160) -> 118.9587286 | DR167: a2 | DT167: =DT169 -> 14.84107 | DU167: =DU162 -> 63.935 | DV167: شیفتa53 | EA167: محاسبات | EX167: =DT170 -> 25.11254528 | EY167: =DU170 -> 71.23385357 | EZ167: =DV170 -> شیفت49'm | FR167: =BK154+'متغیرها '!C56 -> 13.774225 | FS167: =FS164+'متغیرها '!C57 -> 119 | FT167: b35 | FX167: =GB147 -> 3 | FY167: =AD243 -> 134.2513362 | FZ167: =AE243 -> 26 | GN167: =-CD479-GK101 -> -3.966689481 | GO167: =CE479 -> 140.4013725 | GP167: 30 | GR167: =-ET123-GK101 -> -7.87107 | GS167: =EU123 -> 119 | GT167: g'5 | HB167: 78' | HH167: =-CL287-GK101 -> 3 | HI167: =CM287 -> 127.1094239 | HJ167: p26
E168: فاصله بین دو سرشانه از پشت | F168: W1 | G168: =H129+0.6*G173 -> 36.510064 | H168: ='متغیرها '!U81+0.6*H173 -> 36.152 | AW168: (49 → 49') | AX168: =AX166*((AX165-AX161)/AX162) -> 0 | AZ168: =AX156+AX157+AX158+AX99 -> 27.30735 | BA168: =AX155+AX98+L125 -> 106.5477071 | BB168: 41 | BD168: =AZ167+'متغیرها '!C55 -> 14.68107 | BE168: =BA167 -> 103.5 | BF168: شیفت40 | BH168: (1 → 49') | BI168: =BI155-BI144+BI143 -> 11.749225 | BK168: =0+BI98 -> 3 | BL168: =0+BI97 -> 69.935 | BM168: 1 | BO168: =BK154 -> 13.774225 | BP168: =BL154 -> 127.3281918 | BQ168: 40 | BS168: =BD155-BT130 -> 29.38735 | BT168: =BE155 -> 119.0562224 | BU168: 14 | BV168: نقطه زیر حلقه آستین | BW168: =BS104+SQRT(POWER(BS168-BS104,2)+POWER(BT168-BT104,2))*SIN(IF(BT168=BT104,RADIANS(90)-BS159,ATAN((BS168-BS104)/ABS(BT168-BT104))+IF(BT168>BT104,-1,1)*BS159)) -> 28.63017711 | BX168: =BT104+IF(BT168<BT104,-1,1)*SQRT(POWER(BS168-BS104,2)+POWER(BT168-BT104,2))*COS(IF(BT168=BT104,RADIANS(90)-BS159,ATAN((BS168-BS104)/ABS(BT168-BT104))+IF(BT168>BT104,-1,1)*BS159)) -> 123.7882004 | BY168: b2 | CA168: =DT324 -> 14.749225 | CB168: =DU324 -> 69.935 | CC168: e21 | CD168: نقطه دوم خط تقارن | CE168: مولفه افقی | CF168: مولفه عمودی | CG168: اسم نقطه | CI168: نقاط ورودی | CN168: =BK162 -> 24.13925 | CO168: =BL162 -> 106.5498848 | CP168: شیفت36 | CZ168: (1 → 32) | DA168: =DA154+0.75*(DA155-DA154) -> 128.3314731 | DC168: شیفت | DD168: =BS132+DA160 -> 29.38735 | DE168: =BT132 -> 123.2453424 | DF168: 12 | DH168: (1 → 26) | DI168: =DI154+0.4*(DI155-DI154) -> 128.9185896 | DK168: شیفت | DL168: =IF('متغیرها '!C119=1,DX125,BK117-DI161)+DI161 -> 22.24133441 | DM168: =IF('متغیرها '!C119=1,DY125,BL117-DI162)+DI162 -> 126.4699201 | DN168: 16p یا 16 | DP168: =DP158+0.4*(DP166-DP158) -> 16.4859289 | DQ168: =DQ166+0.1*(DQ158-DQ166) -> 125.9990584 | DR168: a3 | DT168: =DT163+DT171 -> 25.11254528 | DU168: =DU163 -> 67.23385357 | DV168: شیفتa''5 | DY168: (a13→a23) | DZ168: =SQRT(POWER(DY160-DY159,2)+POWER(DZ160-DZ159,2)) -> 4 | EP168: =AZ166 -> 13.06107 | EQ168: =BA166 -> 103.5 | ER168: 39 | FJ168: =BK170 -> 3 | FK168: =BL170 -> 86 | FL168: 48 | FR168: =CU104 -> 20.91153544 | FS168: =FS167 -> 119 | FT168: b36 | GD168: 34' | GL168: 11' | GR168: =-ET124-GK101 -> -16.16658655 | GS168: =EU124 -> 119 | GT168: g''5 | GZ168: =-DN279-GK101 -> -20.49609935 | HA168: =DO279 -> 67.935 | HB168: p8
